Workbook

Sheet Cover
D2: ARP model
D4: Release for 2020/21 charge setting
B6: ='Version control'!F7 -> Model date: | D6: ='Version control'!H7 -> 2018-10-16
B8: ='Version control'!F9 -> Development stage: | D8: ='Version control'!H9 -> Release for charge setting
B10: ='Version control'!F11 -> Model number: | D10: ='Version control'!H11 -> 3
B12: ='Version control'!F13 -> DCUSA text version: | D12: ='Version control'!H13 -> 01 April 2020 DCUSA Charging Methodologies Pre-Release (released 09/10/2018)
B14: ='Version control'!F15 -> DCUSA text schedule: | D14: ='Version control'!H15 -> Schedules 16 & 20
B16: DISCLAIMER | D16: Neither the authors nor Cambridge Economic Policy Associates/TNEI accept or assume any responsibility or duty of care to any third party.
D17: © All rights reserved by Cambridge Economic Policy Associates Ltd (CEPA) and TNEI Services Ltd
B19: Charging year: | D19: 2020/21
B21: DNO name: | D21: SP Manweb
B23: Data version: | D23: V0.1
B25: Notes: | D25: Final
B27: Key:
B28: Format | D28: Description
D29: Cell intentionally blank
B30: Value | D30: Hardcoded input
B31: Value | D31: User input
B32: Value | D32: Model output
B33: Value | D33: Calculation
B34: Value | D34: Value from another worksheet
B35: Value | D35: Value used on another worksheet
B36: Value | D36: Issue identified in a check
B37: Text | D37: Label
B38: Text | D38: Annotation
B39: Text | D39: Column heading
B40: Text | D40: Level 1 heading
B41: Text | D41: Level 2 heading
B42: Text | D42: Level 3 and 4 heading
B43: Sheet tab colour | D43: Information sheet
B44: Sheet tab colour | D44: User control sheet
B45: Sheet tab colour | D45: Input sheet
B46: Sheet tab colour | D46: Calculation sheet
B47: Sheet tab colour | D47: Output sheet

Sheet Version control
A1: =MID(CELL("filename",A1),FIND("]",CELL("filename",A1))+1,255) -> Version control
A2: =Cover!D21&" - "&Cover!D23 -> SP Manweb - V0.1
A3: =Cover!D2&" - "&Cover!D8&" v"&Cover!D10&" - "&Cover!D19 -> ARP model - Release for charge setting v3 - 2020/21
A4: =J60 & IF(J60 = 1, " issue", " issues") &" identified in checks on this sheet" -> 0 issues identified in checks on this sheet
B5: Model version
F7: Model date: | H7: =LOOKUP(2,1/(F20:F30<>""),F20:F30) -> 2018-10-16
F9: Development stage: | H9: =LOOKUP(2,1/(G20:G30<>""),G20:G30) -> Release for charge setting
F11: Model number: | H11: =LOOKUP(2,1/(H20:H30<>""),H20:H30) -> 3
F13: DCUSA text version: | H13: =LOOKUP(2,1/(I20:I30<>""),I20:I30) -> 01 April 2020 DCUSA Charging Methodologies Pre-Release (released 09/10/2018)
F15: DCUSA text schedule: | H15: =LOOKUP(2,1/(J20:J30<>""),J20:J30) -> Schedules 16 & 20
B17: Version log
F19: Model date | G19: Development stage | H19: Model number | I19: DCUSA text version | J19: DCUSA text schedule | K19: Author | L19: Description of changes
F20: 2018-05-30 | G20: Pre-release | H20: 1 | I20: 2019-20 pre-release plus Expert Panel clarifications | J20: Schedules 16 & 20 | K20: CEPA-TNEI | L20: -
F21: 2018-07-20 | G21: Pre-release | H21: 2 | I21: DCUSA v10.3 (released 28/06/2018) | J21: Schedules 16 & 20 | K21: CEPA-TNEI | L21: References to DCUSA text updated to comply with version 10.3 (released 28/06/2018).
F22: 2018-10-16 | G22: Release for charge setting | H22: 3 | I22: 01 April 2020 DCUSA Charging Methodologies Pre-Release (released 09/10/2018) | J22: Schedules 16 & 20 | K22: CEPA-TNEI | L22: Updated references to legal text version.
B31: Model checks
E33: Issues identified by in-built model checks, by sheet
F34: ="ARP_"&F38 -> ARP_Inputs by customer type | H34: Input 501 | I34: number of issues | J34: ='ARP_Inputs by customer type'!$H$1384 -> 0
F35: ="ARP_"&F39 -> ARP_Inputs by network level | H35: Input 502 | I35: number of issues | J35: ='ARP_Inputs by network level'!$H$218 -> 0
F36: ="ARP_"&F40 -> ARP_General inputs | H36: Input 503 | I36: number of issues | J36: ='ARP_General inputs'!$H$122 -> 0
F37: Fixed inputs | H37: Input 504 | I37: number of issues | J37: ='Fixed inputs'!H174 -> 0
F38: Inputs by customer type | H38: Section 501 | I38: number of issues | J38: ='Inputs by customer type'!H88 -> 0
F39: Inputs by network level | H39: Section 502 | I39: number of issues | J39: ='Inputs by network level'!H59 -> 0
F40: General inputs | H40: Section 503 | I40: number of issues | J40: ='General inputs'!H115 -> 0
F41: Standing Charge Factors | H41: Section 504 | I41: number of issues | J41: ='Standing charge factors'!H58 -> 0
F42: Load & loss characteristics | H42: Section 505 | I42: number of issues | J42: ='Load & loss characteristics'!H302 -> 0
F43: Customer contributions | H43: Section 506 | I43: number of issues | J43: ='Customer contributions'!H104 -> 0
F44: Volume adjustments | H44: Section 507 | I44: number of issues | J44: ='Volume adjustments'!H140 -> 0
F45: Pseudo-load coefficients | H45: Section 508 | I45: number of issues | J45: ='Pseudo-load coefficients'!H543 -> 0
F46: System peak demand | H46: Section 509 | I46: number of issues | J46: ='System peak demand'!H281 -> 0
F47: Service model assets | H47: Section 510 | I47: number of issues | J47: ='Service model assets'!H38 -> 0
F48: Unit costs | H48: Section 511 | I48: number of issues | J48: ='Unit costs'!H131 -> 0
F49: Initial unit rates | H49: Section 512 | I49: number of issues | J49: ='Initial unit rates'!H294 -> 0
F50: Service model charges | H50: Section 513 | I50: number of issues | J50: ='Service model charges'!H48 -> 0
F51: Unit rate charges | H51: Section 514 | I51: number of issues | J51: ='Unit rate charges'!H223 -> 0
F52: Reactive power charges | H52: Section 515 | I52: number of issues | J52: ='Reactive power charges'!H254 -> 0
F53: Capacity charges | H53: Section 516 | I53: number of issues | J53: ='Capacity charges'!H295 -> 0
F54: Fixed charges | H54: Section 517 | I54: number of issues | J54: ='Fixed charges'!H165 -> 0
F55: Revenue matching | H55: Section 518 | I55: number of issues | J55: ='Revenue matching'!H156 -> 0
F56: Rounding | H56: Section 519 | I56: number of issues | J56: =Rounding!H117 -> 0
F57: Net revenue summary | H57: Section 520 | I57: number of issues | J57: ='Net revenue summary'!$H$130 -> 0
F58: Tariff summary | H58: Output 501 | I58: number of issues | J58: ='Tariff summary'!$H$659 -> 0
F59: Typical bills | H59: Output 502 | I59: number of issues | J59: ='Typical bills'!$H$124 -> 0
F60: Total | I60: number of issues | J60: =IFERROR(SUM(J34:J59), 1) -> 0
B62: Version log lists
F64: Development stages
F65: Working draft
F66: Interim release
F67: Pre-release
F68: Release for charge setting
F75: …
B77: End of sheet

Sheet Model map
A1: =MID(CELL("filename",A1),FIND("]",CELL("filename",A1))+1,255) -> Model map
A2: =Cover!D21&" - "&Cover!D23 -> SP Manweb - V0.1
A3: =Cover!D2&" - "&Cover!D8&" v"&Cover!D10&" - "&Cover!D19 -> ARP model - Release for charge setting v3 - 2020/21
B5: Model map
A62: End of sheet

Sheet Index
A1: =MID(CELL("filename",A1),FIND("]",CELL("filename",A1))+1,255) -> Index
A2: =Cover!D21&" - "&Cover!D23 -> SP Manweb - V0.1
A3: =Cover!D2&" - "&Cover!D8&" v"&Cover!D10&" - "&Cover!D19 -> ARP model - Release for charge setting v3 - 2020/21
B5: Description
C7: This sheet contains links to each sheet of the model and the main sections within them.
C8: It also contains links to more granular sections within the sheets for inputs, calculations and outputs.
B10: Index of sheets and main sections
C12: The following table provides links to all the sheets within this model and the main sections within them.
F14: Sheet | G14: Section
F15: Cover
F16: Version control | G16: ='Version control'!$B$5 -> Model version
G17: ='Version control'!$B$17 -> Version log
G18: ='Version control'!$B$31 -> Model checks
G19: ='Version control'!$B$62 -> Version log lists
F20: Model map | G20: ='Model map'!$B$5 -> Model map
F21: Named ranges | G21: ='Named ranges'!$B$5 -> List of named ranges
F22: ARP_DNO commentary | G22: ='ARP_DNO commentary'!$B$9 -> Commentary
F23: ARP_CDCM timebands | G23: ='ARP_CDCM timebands'!$B$12 -> CDCM timebands
F24: ARP_Load characteristics | G24: ='ARP_Load characteristics'!$B$13 -> Years
G25: ='ARP_Load characteristics'!$B$20 -> Load characteristics
G26: ='ARP_Load characteristics'!$B$34 -> Split of units by distribution timeband
F27: ARP_Peaking probabilities | G27: ='ARP_Peaking probabilities'!$B$14 -> Years
G28: ='ARP_Peaking probabilities'!$B$21 -> Peaking probabilities, by distribution timeband
F29: ARP_User control | G29: ='ARP_User control'!$B$10 -> User interface
G30: ='ARP_User control'!$B$25 -> Lists
F31: ARP_Inputs by customer type | G31: ='ARP_Inputs by customer type'!$B$14 -> Load characteristics
G32: ='ARP_Inputs by customer type'!$B$90 -> 0
G33: ='ARP_Inputs by customer type'!$B$833 -> 0
G34: ='ARP_Inputs by customer type'!$B$1159 -> 0
F35: ARP_Inputs by network level | G35: ='ARP_Inputs by network level'!$B$14 -> Inputs by network level
F36: ARP_General inputs | G36: ='ARP_General inputs'!$B$14 -> General inputs
F37: Fixed inputs | G37: ='Fixed inputs'!$B$11 -> Fixed inputs
F38: Inputs by customer type | G38: ='Inputs by customer type'!$B$14 -> Inputs by customer type
F39: Inputs by network level | G39: ='Inputs by network level'!$B$14 -> Inputs by network level
F40: General inputs | G40: ='General inputs'!$B$14 -> General inputs
F41: Load & loss characteristics | G41: ='Load & loss characteristics'!$B$13 -> Load and loss characteristics
G42: ='Load & loss characteristics'!$B$31 -> User loss factor adjustments
F43: Customer contributions | G43: ='Customer contributions'!$B$12 -> Customer contributions
F44: Volume adjustments | G44: ='Volume adjustments'!$B$13 -> LDNO discounts
G45: ='Volume adjustments'!$B$51 -> Volume discounting
F46: Pseudo-load coefficients | G46: ='Pseudo-load coefficients'!$B$325 -> Adjustment for domestic and non-domestic charge equalisation
F47: System peak demand | G47: ='System peak demand'!$B$16 -> Common inputs for chargeable load calculations
G48: ='System peak demand'!$B$63 -> Load at system peak charged to unit rates
G49: ='System peak demand'!$B$179 -> Load at system peak charged to standing charges
G50: ='System peak demand'!$B$262 -> System peak based on chargeable load
F51: Service model assets | G51: ='Service model assets'!$B$12 -> Service model notional asset values
F52: Unit costs | G52: ='Unit costs'!$B$15 -> 500MW model costs
G53: ='Unit costs'!$B$58 -> Allocation of other costs
G54: ='Unit costs'!$B$102 -> Outputs
F55: Initial unit rates | G55: ='Initial unit rates'!$B$11 -> Inputs for yardstick and unit rate calculations
G56: ='Initial unit rates'!$B$116 -> Calculation of yardstick & unit rate charges
F57: Service model charges | G57: ='Service model charges'!$B$13 -> Inputs to service model charge calculation
G58: ='Service model charges'!$B$29 -> Allocation of service model costs
F59: Unit rate charges | G59: ='Unit rate charges'!$B$15 -> Inputs to unit rate charge calculations
G60: ='Unit rate charges'!$B$122 -> Application of standing charges to unit rates
F61: Reactive power charges | G61: ='Reactive power charges'!$B$13 -> Inputs to reactive power charge calculations
G62: ='Reactive power charges'!$B$150 -> Calculation of yardstick charges for generation
G63: ='Reactive power charges'!$B$185 -> Calculation of reactive power charges
F64: Capacity charges | G64: ='Capacity charges'!$B$17 -> Inputs to capacity charge calculations
G65: ='Capacity charges'!$B$125 -> Calculation of capacity charges
G66: ='Capacity charges'!$B$249 -> Capacity charges (and elements allocated to fixed charges)
F67: Fixed charges | G67: ='Fixed charges'!$B$14 -> Inputs to fixed charge calculations
G68: ='Fixed charges'!$B$65 -> Calculation of fixed charges
F69: Revenue matching | G69: ='Revenue matching'!$B$13 -> Pre-matching net revenue calculations
G70: ='Revenue matching'!$B$56 -> Adder calculation
F71: Rounding | G71: =Rounding!$B$12 -> Inputs
G72: =Rounding!$B$71 -> Rounding of tariff forecast
F73: Net revenue summary | G73: ='Net revenue summary'!$B$11 -> Inputs to net revenue summary calculation
G74: ='Net revenue summary'!$B$77 -> Typical bills
F75: Tariff summary | G75: ='Tariff summary'!$B$13 -> Tariff summary
F76: Typical bills | G76: ='Typical bills'!$B$13 -> Typical bills
B78: Index of inputs, calculation sections and outputs
C80: The following table provides links to each input, calculation and output section. Each has a unique identifier for ease of reference.
F82: Sheet | G82: Section
F83: ARP_CDCM timebands | G83: ='ARP_CDCM timebands'!$C$14 -> Distribution time bands
G84: ='ARP_CDCM timebands'!$C$26 -> Special distribution time bands
F85: ARP_Load characteristics | G85: ='ARP_Load characteristics'!$D$39 -> Unit rate 1
G86: ='ARP_Load characteristics'!$D$59 -> Unit rate 2
G87: ='ARP_Load characteristics'!$D$79 -> Unit rate 3
F88: ARP_User control | G88: ='ARP_User control'!$C$15 -> Inputs for manually running selected year
G89: ='ARP_User control'!$C$19 -> Macro to run all years
F90: ARP_Inputs by customer type | G90: ='ARP_Inputs by customer type'!$C$16 -> Input 501-A: Load factor
G91: ='ARP_Inputs by customer type'!$C$53 -> Input 501-B: Coincidence factor
G92: ='ARP_Inputs by customer type'!$C$92 -> Input 501-C: All-the-way volumes
G93: ='ARP_Inputs by customer type'!$C$339 -> Input 501-D: LDNO LV volumes
G94: ='ARP_Inputs by customer type'!$C$586 -> Input 501-E: LDNO HV volumes
G95: ='ARP_Inputs by customer type'!$C$838 -> Input 501-F: Split of units by distribution timeband - Unit rate 1
G96: ='ARP_Inputs by customer type'!$C$945 -> Input 501-G: Split of units by distribution timeband - Unit rate 2
G97: ='ARP_Inputs by customer type'!$C$1052 -> Input 501-H: Split of units by distribution timeband - Unit rate 3
G98: ='ARP_Inputs by customer type'!$C$1163 -> Input 501-I: LV customer service model asset values
G99: ='ARP_Inputs by customer type'!$C$1200 -> Input 501-J: HV customer service model asset values
G100: ='ARP_Inputs by customer type'!$C$1237 -> Input 501-K: LV UMS customer service model asset values
F101: ARP_Inputs by network level | G101: ='ARP_Inputs by network level'!$C$16 -> Input 502-A: Diversity allowance between top and bottom of network level
G102: ='ARP_Inputs by network level'!$C$30 -> Input 502-B: Proportion of EHV/HV load going through 132kV/HV direct transformation
G103: ='ARP_Inputs by network level'!$C$44 -> Input 502-C: Loss adjustment factors to transmission
G104: ='ARP_Inputs by network level'!$C$58 -> Input 502-D: Average kVAr by kVA, by network level
G105: ='ARP_Inputs by network level'!$C$72 -> Input 502-E: Customer contributions under current connection charging policy
G106: ='ARP_Inputs by network level'!$C$120 -> Input 502-F: Gross asset cost by network level
G107: ='ARP_Inputs by network level'!$C$134 -> Input 502-G: Peaking probabilities, by timeband & network level
F108: ARP_General inputs | G108: ='ARP_General inputs'!$C$16 -> Input 503-A: Split of hours by distribution timeband
G109: ='ARP_General inputs'!$C$28 -> Input 503-B: Embedded network (LDNO) discount percentages
G110: ='ARP_General inputs'!$C$38 -> Input 503-C: CDCM target revenue
G111: ='ARP_General inputs'!$C$96 -> Input 503-D: Financial and general assumptions
G112: ='ARP_General inputs'!$C$101 -> Input 503-E: Transmission exit charges
G113: ='ARP_General inputs'!$C$105 -> Input 503-F: Other expenditure
F114: Fixed inputs | G114: ='Fixed inputs'!$C$13 -> Input 504-A: Conversions and time
G115: ='Fixed inputs'!$C$20 -> Input 504-B: Input 101-B: Rounding
G116: ='Fixed inputs'!$C$33 -> Input 504-C: Financial and general assumptions
G117: ='Fixed inputs'!$C$43 -> Input 504-D: Mappings
G118: ='Fixed inputs'!$C$84 -> Input 504-E: Standing charge factors
G119: ='Fixed inputs'!$C$100 -> Input 504-F: Flags
G120: ='Fixed inputs'!$C$146 -> Input 504-G: Identifiers for customer groupings
G121: ='Fixed inputs'!$C$157 -> Input 504-H: Decimal places for error checks
F122: Inputs by customer type | G122: ='Inputs by customer type'!$C$16 -> Section 501-A: Load characteristics
G123: ='Inputs by customer type'!$C$21 -> Section 501-B: Volume forecasts for the charging year
G124: ='Inputs by customer type'!$C$50 -> Section 501-C: Split of units by distribution timeband
G125: ='Inputs by customer type'!$C$70 -> Section 501-D: Service model asset values
F126: Inputs by network level | G126: ='Inputs by network level'!$C$16 -> Section 502-A: Network and load inputs
G127: ='Inputs by network level'!$C$26 -> Section 502-B: Customer contributions under current connection charging policy
G128: ='Inputs by network level'!$C$34 -> Section 502-C: DRM asset costs
G129: ='Inputs by network level'!$C$38 -> Section 502-D: Peaking probabilities by network level
F130: General inputs | G130: ='General inputs'!$C$16 -> Section 503-A: Inputs by distribution timeband
G131: ='General inputs'!$C$28 -> Section 503-B: LDNO discount inputs
G132: ='General inputs'!$C$38 -> Section 503-C: CDCM target revenue
G133: ='General inputs'!$C$90 -> Section 503-D: Financial and general assumptions
G134: ='General inputs'!$C$96 -> Section 503-E: Transmission exit charges
G135: ='General inputs'!$C$100 -> Section 503-F: Other expenditure
F136: Standing charge factors | G136: ='Standing charge factors'!$C$19 -> Section 504-A: Adjustments to standing charges
F137: Load & loss characteristics | G137: ='Load & loss characteristics'!$C$17 -> Section 505-A: Load characteristics
G138: ='Load & loss characteristics'!$C$25 -> Section 505-B: Loss adjustment factors
G139: ='Load & loss characteristics'!$C$35 -> Section 505-C: Proportion of relevant load going through 132kV/HV direct transformation
G140: ='Load & loss characteristics'!$C$40 -> Section 505-D: Network use factors
G141: ='Load & loss characteristics'!$C$189 -> Section 505-E: User loss factors
F142: Customer contributions | G142: ='Customer contributions'!$C$16 -> Section 506-A: Network use factors
G143: ='Customer contributions'!$C$55 -> Section 506-B: Customer contributions
F144: Volume adjustments | G144: ='Volume adjustments'!$C$15 -> Section 507-A: LDNO discounts
G145: ='Volume adjustments'!$C$55 -> Section 507-B: Volume discounting
F146: Pseudo-load coefficients | G146: ='Pseudo-load coefficients'!$C$21 -> Section 508-A: Flags and hours in timebands
G147: ='Pseudo-load coefficients'!$C$33 -> Section 508-B: Average load by timeband
G148: ='Pseudo-load coefficients'!$C$77 -> Section 508-C: Aggregated values for UMS customers
G149: ='Pseudo-load coefficients'!$C$86 -> Section 508-D: Ratio of coincidence to load factor assuming units evenly spread within time bands, and peak falls in Red period
G150: ='Pseudo-load coefficients'!$C$96 -> Section 508-E: Load characteristics for all customers
G151: ='Pseudo-load coefficients'!$C$101 -> Section 508-F: Aggregated load characteristics for UMS customers
G152: ='Pseudo-load coefficients'!$C$114 -> Section 508-G: Calculation of correction factor
G153: ='Pseudo-load coefficients'!$C$129 -> Section 508-H: Peaking probabilities, by network level
G154: ='Pseudo-load coefficients'!$C$203 -> Section 508-I: Peaking probabilities, by network level and customer type
G155: ='Pseudo-load coefficients'!$C$250 -> Section 508-J: Ratio of coincidence factor to load factor, based on uniform distribution in timebands and peaking probabilities
G156: ='Pseudo-load coefficients'!$C$290 -> Section 508-K: Pseudo load coefficients, by unit rate
G157: ='Pseudo-load coefficients'!$C$335 -> Section 508-L: Peak load based on average pseudo load coefficient
G158: ='Pseudo-load coefficients'!$C$359 -> Section 508-M: Adjustment group flags
G159: ='Pseudo-load coefficients'!$C$365 -> Section 508-N: Average pseudo load coefficient for HH tariff forecast, based on average split of units for NHH tariff forecast
G160: ='Pseudo-load coefficients'!$C$393 -> Section 508-O: Volume weighted average pseudo load coefficient by profile class
G161: ='Pseudo-load coefficients'!$C$417 -> Section 508-P: Relative correction factors
G162: ='Pseudo-load coefficients'!$C$485 -> Section 508-Q: Final correction factors for Paragraph 72A adjustment
G163: ='Pseudo-load coefficients'!$C$502 -> Section 508-R: Load coefficient
G164: ='Pseudo-load coefficients'!$C$506 -> Section 508-S: Pseudo load coefficients, by unit rate
F165: System peak demand | G165: ='System peak demand'!$C$18 -> Section 509-A: Common inputs for chargeable load calculations
G166: ='System peak demand'!$C$67 -> Section 509-B: System peak load, by unit rate
G167: ='System peak demand'!$C$138 -> Section 509-C: System peak load, all unit rates
G168: ='System peak demand'!$C$164 -> Section 509-D: Unit rate contributions to chargeable peak load
G169: ='System peak demand'!$C$184 -> Section 509-E: Adjustment of import and exceeded capacity
G170: ='System peak demand'!$C$194 -> Section 509-F: Calculation of LV circuit diversity factor
G171: ='System peak demand'!$C$236 -> Section 509-G: Import/exceeded capacity contribution to system peak
G172: ='System peak demand'!$C$249 -> Section 509-H: Estimated capacity contribution to system peak
G173: ='System peak demand'!$C$266 -> Section 509-I: System peak based on chargeable load
F174: Service model assets | G174: ='Service model assets'!$C$14 -> Section 510-A: Service model notional asset values
F175: Unit costs | G175: ='Unit costs'!$C$19 -> Section 511-A: Financial data
G176: ='Unit costs'!$C$27 -> Section 511-B: Diversity and loss adjustment factors
G177: ='Unit costs'!$C$35 -> Section 511-C: Maximum demand
G178: ='Unit costs'!$C$42 -> Section 511-D: Rerouting matrix
G179: ='Unit costs'!$C$50 -> Section 511-E: Annuitised cost of assets
G180: ='Unit costs'!$C$62 -> Section 511-F: System simultaneous peak load based on charegable units
G181: ='Unit costs'!$C$69 -> Section 511-G: Notional asset values, by network level
G182: ='Unit costs'!$C$80 -> Section 511-H: Other operating costs
G183: ='Unit costs'!$C$92 -> Section 511-I: Other operating costs by network level
G184: ='Unit costs'!$C$104 -> Section 511-J: Notional asset values by network level
G185: ='Unit costs'!$C$110 -> Section 511-K: Unit costs
G186: ='Unit costs'!$C$117 -> Section 511-L: Values used for allocating costs to service models
F187: Initial unit rates | G187: ='Initial unit rates'!$C$13 -> Section 512-A: Inputs for yardstick and unit rate calculations
G188: ='Initial unit rates'!$C$118 -> Section 512-B: Yardstick charges
G189: ='Initial unit rates'!$C$146 -> Section 512-C: Unit rate 1
G190: ='Initial unit rates'!$C$175 -> Section 512-D: Unit rate 2
G191: ='Initial unit rates'!$C$204 -> Section 512-E: Unit rate 3
F192: Service model charges | G192: ='Service model charges'!$C$17 -> Section 513-A: Inputs to service model charge calculation
G193: ='Service model charges'!$C$33 -> Section 513-B: Calculation of other operating expenditure per £ of notional asset value
G194: ='Service model charges'!$C$37 -> Section 513-C: Calculation of service model charges
F195: Unit rate charges | G195: ='Unit rate charges'!$C$19 -> Section 514-A: Initial unit rate 1
G196: ='Unit rate charges'!$C$49 -> Section 514-B: Initial unit rate 2
G197: ='Unit rate charges'!$C$79 -> Section 514-C: Initial unit rate 3
G198: ='Unit rate charges'!$C$109 -> Section 514-D: Standing charge factors
G199: ='Unit rate charges'!$C$124 -> Section 514-E: Contributions to unit rate 1 p/kWh by network level (taking account of standing charges)
G200: ='Unit rate charges'!$C$154 -> Section 514-F: Contributions to unit rate 2 p/kWh by network level (taking account of standing charges)
G201: ='Unit rate charges'!$C$184 -> Section 514-G: Contributions to unit rate 3 p/kWh by network level (taking account of standing charges)
G202: ='Unit rate charges'!$C$214 -> Section 514-H: Unit rates, post application of standing charges
F203: Reactive power charges | G203: ='Reactive power charges'!$C$17 -> Section 515-A: Inputs to reactive power charge calculations
G204: ='Reactive power charges'!$C$120 -> Section 515-B: Yardstick charge (demand)
G205: ='Reactive power charges'!$C$155 -> Section 515-C: Yardstick charge used for generation
G206: ='Reactive power charges'!$C$190 -> Section 515-D: Reactive power charges, all customer categories
G207: ='Reactive power charges'!$C$220 -> Section 515-E: Reactive power charges for applicable customers
F208: Capacity charges | G208: ='Capacity charges'!$C$19 -> Section 516-A: Inputs to capacity charge calculations
... 39 more rows

Sheet Named ranges
A1: =MID(CELL("filename",A1),FIND("]",CELL("filename",A1))+1,255) -> Named ranges
A2: =Cover!D21&" - "&Cover!D23 -> SP Manweb - V0.1
A3: =Cover!D2&" - "&Cover!D8&" v"&Cover!D10&" - "&Cover!D19 -> ARP model - Release for charge setting v3 - 2020/21
B5: List of named ranges
F7: charging_year | G7: Year for which charges are being calculated | H7: Cover
F8: charging_year_selected | G8: Charging year currently selected for ARP | H8: ARP_User control
F9: check_decimals | G9: Number of decimal places of precision for in-built model checks | H9: Fixed inputs
F10: days_in_year | G10: Days in the charging year | H10: General inputs
F11: DNO_name | G11: Name of DNO | H11: Cover
F12: hours_in_day | G12: Hours per day | H12: Fixed inputs
F13: hours_in_year | G13: Hours in the charging year | H13: General inputs
F14: hundred | G14: Equal to 100 | H14: Fixed inputs
F15: live_results_bills | G15: Typical bills for selected charging year | H15: Typical bills
F16: live_results_tariffs | G16: Tariffs for selected charging year | H16: Tariff summary
F17: PowerFactor | G17: Power factor, equal to 0.95 | H17: Fixed inputs
F18: results_4_bills | G18: Typical bills for current charging year | H18: Typical bills
F19: results_4_tariffs | G19: Tariffs for current charging year | H19: Tariff summary
F20: results_5_bills | G20: Typical bills for current charging year + 1 | H20: Typical bills
F21: results_5_tariffs | G21: Tariffs for current charging year + 1 | H21: Tariff summary
F22: results_6_bills | G22: Typical bills for current charging year + 2 | H22: Typical bills
F23: results_6_tariffs | G23: Tariffs for current charging year + 2 | H23: Tariff summary
F24: results_7_bills | G24: Typical bills for current charging year + 3 | H24: Typical bills
F25: results_7_tariffs | G25: Tariffs for current charging year + 3 | H25: Tariff summary
F26: results_8_bills | G26: Typical bills for current charging year + 4 | H26: Typical bills
F27: results_8_tariffs | G27: Tariffs for current charging year + 4 | H27: Tariff summary
F28: ten | G28: Equal to 10 | H28: Fixed inputs
F29: thousand | G29: Equal to 1000 | H29: Fixed inputs
F30: year_selection | G30: Index for selected charging year | H30: ARP_User control
B32: End of sheet

Sheet ARP_DNO commentary
A1: =MID(CELL("filename",A1),FIND("]",CELL("filename",A1))+1,255) -> ARP_DNO commentary
A2: =Cover!D21&" - "&Cover!D23 -> SP Manweb - V0.1
A3: =Cover!D2&" - "&Cover!D8&" v"&Cover!D10&" - "&Cover!D19 -> ARP model - Release for charge setting v3 - 2020/21
B5: Description
C7: This sheet contains the DNO's commentary on its forecast of CDCM input data for the four years following the charging year, as required by DCUSA Schedule 20, Paragraph 2.1 (e).
B9: Commentary
B20: End of sheet

Sheet ARP_CDCM timebands
A1: =MID(CELL("filename",A1),FIND("]",CELL("filename",A1))+1,255) -> ARP_CDCM timebands
A2: =Cover!D21&" - "&Cover!D23 -> SP Manweb - V0.1
A3: =Cover!D2&" - "&Cover!D8&" v"&Cover!D10&" - "&Cover!D19 -> ARP model - Release for charge setting v3 - 2020/21
B5: Click here to return to model map | G5: Units | H5: Constants | J5: =TRANSPOSE('ARP_User control'!G31:G35) -> 2020/21 | K5: 2021/22 | L5: 2022/23 | M5: 2023/24 | N5: 2024/25
B7: Description
C9: This sheet sets out the expected timebands that the DNO plans to use for each of the five years covered by the
C10: Annual Review Pack, as required by DCUSA Schedule 20, Paragraph 2.1 (f).
B12: CDCM timebands
C14: Distribution time bands
E16: Weekdays (including bank holidays)
F17: Red | G17: time of day | J17: 16:30 - 19:30 | K17: 16:30 - 19:30 | L17: 16:30 - 19:30 | M17: 16:30 - 19:30 | N17: 16:30 - 19:30
F18: Amber | G18: time of day | J18: 08:00 - 16:30 19:30 - 22:30 | K18: 08:00 - 16:30 19:30 - 22:30 | L18: 08:00 - 16:30 19:30 - 22:30 | M18: 08:00 - 16:30 19:30 - 22:30 | N18: 08:00 - 16:30 19:30 - 22:30
F19: Green | G19: time of day | J19: 00:00 - 08:00 22:30 - 00:00 | K19: 00:00 - 08:00 22:30 - 00:00 | L19: 00:00 - 08:00 22:30 - 00:00 | M19: 00:00 - 08:00 22:30 - 00:00 | N19: 00:00 - 08:00 22:30 - 00:00
E21: Weekends
F22: Red | G22: time of day
F23: Amber | G23: time of day | J23: 16:00 - 20:00 | K23: 16:00 - 20:00 | L23: 16:00 - 20:00 | M23: 16:00 - 20:00 | N23: 16:00 - 20:00
F24: Green | G24: time of day | J24: 00:00 - 16:00 20:00 - 00:00 | K24: 00:00 - 16:00 20:00 - 00:00 | L24: 00:00 - 16:00 20:00 - 00:00 | M24: 00:00 - 16:00 20:00 - 00:00 | N24: 00:00 - 16:00 20:00 - 00:00
C26: Special distribution time bands
E28: Weekdays (including bank holidays) Nov to Feb
F29: Black | G29: time of day | J29: 16:30 - 19:30 | K29: 16:30 - 19:30 | L29: 16:30 - 19:30 | M29: 16:30 - 19:30 | N29: 16:30 - 19:30
F30: Yellow | G30: time of day | J30: 08:00 - 16:30 19:30 - 22:30 | K30: 08:00 - 16:30 19:30 - 22:30 | L30: 08:00 - 16:30 19:30 - 22:30 | M30: 08:00 - 16:30 19:30 - 22:30 | N30: 08:00 - 16:30 19:30 - 22:30
F31: Green | G31: time of day | J31: 00:00 - 08:00 22:30 - 00:00 | K31: 00:00 - 08:00 22:30 - 00:00 | L31: 00:00 - 08:00 22:30 - 00:00 | M31: 00:00 - 08:00 22:30 - 00:00 | N31: 00:00 - 08:00 22:30 - 00:00
E33: Weekdays (including bank holidays) Mar to Oct
F34: Black | G34: time of day
F35: Yellow | G35: time of day | J35: 08:00 - 16:30 16:30 - 19:30 19:30 - 22:30 | K35: 08:00 - 16:30 16:30 - 19:30 19:30 - 22:30 | L35: 08:00 - 16:30 16:30 - 19:30 19:30 - 22:30 | M35: 08:00 - 16:30 16:30 - 19:30 19:30 - 22:30 | N35: 08:00 - 16:30 16:30 - 19:30 19:30 - 22:30
F36: Green | G36: time of day | J36: 00:00 - 08:00 22:30 - 00:00 | K36: 00:00 - 08:00 22:30 - 00:00 | L36: 00:00 - 08:00 22:30 - 00:00 | M36: 00:00 - 08:00 22:30 - 00:00 | N36: 00:00 - 08:00 22:30 - 00:00
E38: Weekends
F39: Black | G39: time of day
F40: Yellow | G40: time of day | J40: 16:00 - 20:00 | K40: 16:00 - 20:00 | L40: 16:00 - 20:00 | M40: 16:00 - 20:00 | N40: 16:00 - 20:00
F41: Green | G41: time of day | J41: 00:00 - 16:00 20:00 - 00:00 | K41: 00:00 - 16:00 20:00 - 00:00 | L41: 00:00 - 16:00 20:00 - 00:00 | M41: 00:00 - 16:00 20:00 - 00:00 | N41: 00:00 - 16:00 20:00 - 00:00
B43: End of sheet

Sheet ARP_Load characteristics
A1: =MID(CELL("filename",A1),FIND("]",CELL("filename",A1))+1,255) -> ARP_Load characteristics
A2: =Cover!D21&" - "&Cover!D23 -> SP Manweb - V0.1
A3: =Cover!D2&" - "&Cover!D8&" v"&Cover!D10&" - "&Cover!D19 -> ARP model - Release for charge setting v3 - 2020/21
B5: Click here to return to model map | G5: Units | H5: Constants | J5: Domestic Unrestricted | K5: Domestic Two Rate | L5: Domestic Off Peak (related MPAN) | M5: Small Non Domestic Unrestricted | N5: Small Non Domestic Two Rate | O5: Small Non Domestic Off Peak (related MPAN) | P5: LV Medium Non-Domestic | Q5: LV Sub Medium Non-Domestic | R5: HV Medium Non-Domestic | S5: LV Network Domestic | T5: LV Network Non-Domestic Non-CT | U5: LV HH Metered | V5: LV Sub HH Metered | W5: HV HH Metered | X5: NHH UMS category A | Y5: NHH UMS category B | Z5: NHH UMS category C | AA5: NHH UMS category D | AB5: LV UMS (Pseudo HH Metered) | AC5: LV Generation NHH or Aggregate HH | AD5: LV Sub Generation NHH | AE5: LV Generation Intermittent | AF5: LV Generation Intermittent no RP charge | AG5: LV Generation Non-Intermittent | AH5: LV Generation Non-Intermittent no RP charge | AI5: LV Sub Generation Intermittent | AJ5: LV Sub Generation Intermittent no RP charge | AK5: LV Sub Generation Non-Intermittent | AL5: LV Sub Generation Non-Intermittent no RP charge | AM5: HV Generation Intermittent | AN5: HV Generation Intermittent no RP charge | AO5: HV Generation Non-Intermittent | AP5: HV Generation Non-Intermittent no RP charge
B7: Description
C9: This sheet presents historic data used to calculate average values for load characteristics, as required by DCUSA Schedule 20, Paragraph 2.1 (g).
C10: Charges for year Y are set in year Y-2 using average load characteristics from the three previous years (i.e. Y-3 to Y-5).
C11: This sheet is for information only, and is not linked to following worksheets.
B13: Years
E15: Years to which input data relate
F16: Year 1 | G16: year | H16: =LEFT(H17,4) - 1 & "/" & RIGHT(H17,2) - 1 -> 2015/16
F17: Year 2 | G17: year | H17: =LEFT(H18,4) - 1 & "/" & RIGHT(H18,2) - 1 -> 2016/17
F18: Year 3 | G18: year | H18: ='ARP_User control'!$G$28 -> 2017/18
B20: Load characteristics
E22: Load factor
F23: =$H$16 -> 2015/16 | G23: % | J23: 0.452 | K23: 0.254 | L23: 0.136 | M23: 0.403 | N23: 0.577 | O23: 0.176 | P23: 0.557 | Q23: 0.534 | R23: 0.534 | S23: 0.4373534185 | T23: 0.4321032561 | U23: 0.613 | V23: 0.579 | W23: 0.727 | X23: 1 | Y23: 0.473 | Z23: 0.256 | AA23: 0.554 | AB23: 0.5005
F24: =$H$17 -> 2016/17 | G24: % | J24: 0.453 | K24: 0.257 | L24: 0.048 | M24: 0.403 | N24: 0.58 | O24: 0.169 | P24: 0.526 | Q24: 0.532 | R24: 0.532 | S24: 0.4382036369 | T24: 0.4323178107 | U24: 0.555 | V24: 0.682 | W24: 0.737 | X24: 1 | Y24: 0.473 | Z24: 0.256 | AA24: 0.554 | AB24: 0.5005
F25: =$H$18 -> 2017/18 | G25: % | J25: 0.447 | K25: 0.232 | L25: 0.122 | M25: 0.355 | N25: 0.507 | O25: 0.156 | P25: 0.597 | Q25: 0.516 | R25: 0.516 | S25: 0.4311544375 | T25: 0.543 | U25: 0.561 | V25: 0.555 | W25: 0.744 | X25: 1 | Y25: 0.473 | Z25: 0.256 | AA25: 0.554 | AB25: 0.5005
F26: Average | G26: % | J26: =AVERAGE(J23:J25) -> 0.4506666667 | K26: =AVERAGE(K23:K25) -> 0.2476666667 | L26: 0.102 | M26: 0.387 | N26: 0.5546666667 | O26: 0.167 | P26: 0.56 | Q26: 0.5273333333 | R26: 0.5273333333 | S26: 0.4355704976 | T26: 0.4691403556 | U26: 0.5763333333 | V26: 0.6053333333 | W26: 0.736 | X26: 1 | Y26: 0.473 | Z26: 0.256 | AA26: 0.554 | AB26: 0.5005
E28: Coincidence factor
F29: =$H$16 -> 2015/16 | G29: % | J29: 0.921 | K29: 0.307 | M29: 0.666 | N29: 0.834 | P29: 0.815 | Q29: 0.913 | R29: 0.913 | S29: 0.8767893714 | T29: 0.6892137309 | U29: 0.842 | V29: 0.793 | W29: 0.817 | X29: 1 | Y29: 1 | Z29: 1 | AA29: 0.067 | AB29: 0.6976666667
F30: =$H$17 -> 2016/17 | G30: % | J30: 0.834 | K30: 0.291 | M30: 0.623 | N30: 0.812 | P30: 0.808 | Q30: 0.853 | R30: 0.853 | S30: 0.7939381587 | T30: 0.65009549 | U30: 0.855 | V30: 0.808 | W30: 0.856 | X30: 1 | Y30: 1 | Z30: 1 | AA30: 0.067 | AB30: 0.6976666667
F31: =$H$18 -> 2017/18 | G31: % | J31: 0.917 | K31: 0.31 | M31: 0.743 | N31: 0.686 | P31: 0.927 | Q31: 0.921 | R31: 0.921 | S31: 0.8722657259 | T31: 0.716 | U31: 0.785 | V31: 0.716 | W31: 0.838 | X31: 1 | Y31: 1 | Z31: 1 | AA31: 0.067 | AB31: 0.6976666667
F32: Average | G32: % | J32: =AVERAGE(J29:J31) -> 0.8906666667 | K32: =AVERAGE(K29:K31) -> 0.3026666667 | M32: =AVERAGE(M29:M31) -> 0.6773333333 | N32: 0.7773333333 | P32: =AVERAGE(P29:P31) -> 0.85 | Q32: 0.8956666667 | R32: 0.8956666667 | S32: 0.8476644187 | T32: 0.6851030736 | U32: 0.8273333333 | V32: 0.7723333333 | W32: 0.837 | X32: 1 | Y32: 1 | Z32: 1 | AA32: 0.067 | AB32: 0.6976666667
B34: Split of units by distribution timeband
D36: UMS customers are under the special time band regime (Black & Yellow).
D37: All other customers are under the normal time band regime (Red & Amber).
D39: Unit rate 1
E41: Red / Black
F42: =$H$16 -> 2015/16 | G42: % | J42: 0.1266949497 | K42: 0.1582119231 | L42: 0.0113489313 | M42: 0.1097219625 | N42: 0.1327734653 | O42: 0.004087952347 | P42: 0.138949905 | Q42: 0.1409859873 | R42: 0.1409859873 | S42: 1 | T42: 1 | U42: 1 | V42: 1 | W42: 1 | X42: 0.02945205479 | Y42: 0.05557325143 | Z42: 0.1057349059 | AA42: 0.009433624627 | AB42: 1 | AG42: 1 | AH42: 1 | AK42: 1 | AL42: 1 | AO42: 1 | AP42: 1
F43: =$H$17 -> 2016/17 | G43: % | J43: 0.1252919445 | K43: 0.1575656198 | L43: 0.01104169325 | M43: 0.1091600122 | N43: 0.1335148957 | O43: 0.003899026717 | P43: 0.1404656679 | Q43: 0.1488214128 | R43: 0.1488214128 | S43: 1 | T43: 1 | U43: 1 | V43: 1 | W43: 1 | X43: 0.02945205479 | Y43: 0.05557325143 | Z43: 0.1057349059 | AA43: 0.009433624627 | AB43: 1 | AG43: 1 | AH43: 1 | AK43: 1 | AL43: 1 | AO43: 1 | AP43: 1
F44: =$H$18 -> 2017/18 | G44: % | J44: 0.1243682102 | K44: 0.1553522555 | L44: 0.01117896465 | M44: 0.109377882 | N44: 0.1337040956 | O44: 0.004238155901 | P44: 0.1287676016 | Q44: 0.1287676016 | R44: 0.1287676016 | S44: 1 | T44: 1 | U44: 1 | V44: 1 | W44: 1 | X44: 0.02945205479 | Y44: 0.05557325143 | Z44: 0.1057349059 | AA44: 0.009433624627 | AB44: 1 | AG44: 1 | AH44: 1 | AK44: 1 | AL44: 1 | AO44: 1 | AP44: 1
F45: Average | G45: % | J45: =AVERAGE(J42:J44) -> 0.1254517015 | K45: =AVERAGE(K42:K44) -> 0.1570432661 | L45: 0.01118986307 | M45: 0.1094199523 | N45: 0.1333308189 | O45: 0.004075044988 | P45: 0.1360610582 | Q45: 0.1395250006 | R45: 0.1395250006 | S45: =AVERAGE(S42:S44) -> 1 | T45: 1 | U45: 1 | V45: 1 | W45: 1 | X45: 0.02945205479 | Y45: 0.05557325143 | Z45: 0.1057349059 | AA45: 0.009433624627 | AB45: 1 | AG45: 1 | AH45: 1 | AK45: 1 | AL45: 1 | AO45: 1 | AP45: 1
E47: Amber / Yellow
F48: =$H$16 -> 2015/16 | G48: % | J48: 0.4564162027 | K48: 0.5272727954 | L48: 0.07270804127 | M48: 0.5400569626 | N48: 0.6068304123 | O48: 0.07397009579 | P48: 0.6071688896 | Q48: 0.6176798108 | R48: 0.6176798108 | X48: 0.4500570776 | Y48: 0.19349876 | Z48: 0.3821418424 | AA48: 0.6669208634
F49: =$H$17 -> 2016/17 | G49: % | J49: 0.4543171924 | K49: 0.5258784635 | L49: 0.07290461928 | M49: 0.539506717 | N49: 0.6046934422 | O49: 0.07410819903 | P49: 0.6055465247 | Q49: 0.6115987169 | R49: 0.6115987169 | X49: 0.4500570776 | Y49: 0.19349876 | Z49: 0.3821418424 | AA49: 0.6669208634
F50: =$H$18 -> 2017/18 | G50: % | J50: 0.4556451051 | K50: 0.5282348219 | L50: 0.07350901078 | M50: 0.5396802862 | N50: 0.6017534098 | O50: 0.07380619062 | P50: 0.6324936118 | Q50: 0.6324936118 | R50: 0.6324936118 | X50: 0.4500570776 | Y50: 0.19349876 | Z50: 0.3821418424 | AA50: 0.6669208634
F51: Average | G51: % | J51: =AVERAGE(J48:J50) -> 0.4554595001 | K51: =AVERAGE(K48:K50) -> 0.5271286936 | L51: 0.07304055711 | M51: 0.5397479886 | N51: 0.6044257548 | O51: 0.07396149515 | P51: 0.6150696754 | Q51: 0.6205907132 | R51: 0.6205907132 | X51: =AVERAGE(X48:X50) -> 0.4500570776 | Y51: 0.19349876 | Z51: 0.3821418424 | AA51: 0.6669208634
E53: Green
F54: =$H$16 -> 2015/16 | G54: % | J54: 0.4168888475 | K54: 0.3145152815 | L54: 0.9159430274 | M54: 0.3502210748 | N54: 0.2603961224 | O54: 0.9219419519 | P54: 0.2538812054 | Q54: 0.2413342019 | R54: 0.2413342019 | X54: 0.5204908676 | Y54: 0.7509279886 | Z54: 0.5121232517 | AA54: 0.323645512
F55: =$H$17 -> 2016/17 | G55: % | J55: 0.4203908631 | K55: 0.3165559166 | L55: 0.9160536875 | M55: 0.3513332708 | N55: 0.2617916621 | O55: 0.9219927743 | P55: 0.2539878074 | Q55: 0.2395798702 | R55: 0.2395798702 | X55: 0.5204908676 | Y55: 0.7509279886 | Z55: 0.5121232517 | AA55: 0.323645512
F56: =$H$18 -> 2017/18 | G56: % | J56: 0.4199866847 | K56: 0.3164129226 | L56: 0.9153120246 | M56: 0.3509418317 | N56: 0.2645424946 | O56: 0.9219556535 | P56: 0.2387387865 | Q56: 0.2387387865 | R56: 0.2387387865 | X56: 0.5204908676 | Y56: 0.7509279886 | Z56: 0.5121232517 | AA56: 0.323645512
F57: Average | G57: % | J57: =AVERAGE(J54:J56) -> 0.4190887985 | K57: =AVERAGE(K54:K56) -> 0.3158280403 | L57: 0.9157695798 | M57: 0.3508320591 | N57: 0.2622434263 | O57: 0.9219634599 | P57: 0.2488692664 | Q57: 0.2398842862 | R57: 0.2398842862 | X57: =AVERAGE(X54:X56) -> 0.5204908676 | Y57: 0.7509279886 | Z57: 0.5121232517 | AA57: 0.323645512
D59: Unit rate 2
E61: Red / Black
F62: =$H$16 -> 2015/16 | G62: % | K62: 0.002704121859 | N62: 0 | P62: 0 | Q62: 0 | R62: 0
F63: =$H$17 -> 2016/17 | G63: % | K63: 0.002581146484 | N63: 0 | P63: 0 | Q63: 0 | R63: 0
F64: =$H$18 -> 2017/18 | G64: % | K64: 0.00327587797 | N64: 0 | P64: 0 | Q64: 0 | R64: 0
F65: Average | G65: % | K65: =AVERAGE(K62:K64) -> 0.002853715438 | N65: =AVERAGE(N62:N64) -> 0 | P65: =AVERAGE(P62:P64) -> 0 | Q65: 0 | R65: 0
E67: Amber / Yellow
F68: =$H$16 -> 2015/16 | G68: % | K68: 0.06340777756 | N68: 0.01868923303 | P68: 0 | Q68: 0 | R68: 0 | S68: 1 | T68: 1 | U68: 1 | V68: 1 | W68: 1 | AB68: 1 | AG68: 1 | AH68: 1 | AK68: 1 | AL68: 1 | AO68: 1 | AP68: 1
F69: =$H$17 -> 2016/17 | G69: % | K69: 0.06366873144 | N69: 0.01979583421 | P69: 0 | Q69: 0 | R69: 0 | S69: 1 | T69: 1 | U69: 1 | V69: 1 | W69: 1 | AB69: 1 | AG69: 1 | AH69: 1 | AK69: 1 | AL69: 1 | AO69: 1 | AP69: 1
F70: =$H$18 -> 2017/18 | G70: % | K70: 0.07023420195 | N70: 0.02073712958 | P70: 0 | Q70: 0 | R70: 0 | S70: 1 | T70: 1 | U70: 1 | V70: 1 | W70: 1 | AB70: 1 | AG70: 1 | AH70: 1 | AK70: 1 | AL70: 1 | AO70: 1 | AP70: 1
F71: Average | G71: % | K71: =AVERAGE(K68:K70) -> 0.06577023698 | N71: =AVERAGE(N68:N70) -> 0.01974073227 | P71: =AVERAGE(P68:P70) -> 0 | Q71: 0 | R71: 0 | S71: 1 | T71: 1 | U71: 1 | V71: 1 | W71: 1 | AB71: =AVERAGE(AB68:AB70) -> 1 | AG71: =AVERAGE(AG68:AG70) -> 1 | AH71: 1 | AK71: =AVERAGE(AK68:AK70) -> 1 | AL71: 1 | AO71: =AVERAGE(AO68:AO70) -> 1 | AP71: 1
E73: Green
F74: =$H$16 -> 2015/16 | G74: % | K74: 0.9338881006 | N74: 0.981310767 | P74: 1 | Q74: 1 | R74: 1
F75: =$H$17 -> 2016/17 | G75: % | K75: 0.9337501221 | N75: 0.9802041658 | P75: 1 | Q75: 1 | R75: 1
F76: =$H$18 -> 2017/18 | G76: % | K76: 0.9264899201 | N76: 0.9792628704 | P76: 1 | Q76: 1 | R76: 1
F77: Average | G77: % | K77: =AVERAGE(K74:K76) -> 0.9313760476 | N77: =AVERAGE(N74:N76) -> 0.9802592677 | P77: =AVERAGE(P74:P76) -> 1 | Q77: 1 | R77: 1
D79: Unit rate 3
E81: Red / Black
F82: =$H$16 -> 2015/16 | G82: %
F83: =$H$17 -> 2016/17 | G83: %
F84: =$H$18 -> 2017/18 | G84: %
F85: Average | G85: %
E87: Amber / Yellow
F88: =$H$16 -> 2015/16 | G88: %
F89: =$H$17 -> 2016/17 | G89: %
F90: =$H$18 -> 2017/18 | G90: %
F91: Average | G91: %
E93: Green
F94: =$H$16 -> 2015/16 | G94: % | S94: 1 | T94: 1 | U94: 1 | V94: 1 | W94: 1 | AB94: 1 | AG94: 1 | AH94: 1 | AK94: 1 | AL94: 1 | AO94: 1 | AP94: 1
F95: =$H$17 -> 2016/17 | G95: % | S95: 1 | T95: 1 | U95: 1 | V95: 1 | W95: 1 | AB95: 1 | AG95: 1 | AH95: 1 | AK95: 1 | AL95: 1 | AO95: 1 | AP95: 1
F96: =$H$18 -> 2017/18 | G96: % | S96: 1 | T96: 1 | U96: 1 | V96: 1 | W96: 1 | AB96: 1 | AG96: 1 | AH96: 1 | AK96: 1 | AL96: 1 | AO96: 1 | AP96: 1
F97: Average | G97: % | S97: =AVERAGE(S94:S96) -> 1 | T97: 1 | U97: 1 | V97: 1 | W97: 1 | AB97: =AVERAGE(AB94:AB96) -> 1 | AG97: =AVERAGE(AG94:AG96) -> 1 | AH97: 1 | AK97: =AVERAGE(AK94:AK96) -> 1 | AL97: 1 | AO97: =AVERAGE(AO94:AO96) -> 1 | AP97: 1
B99: End of sheet

Sheet ARP_Peaking probabilities
A1: =MID(CELL("filename",A1),FIND("]",CELL("filename",A1))+1,255) -> ARP_Peaking probabilities
A2: =Cover!D21&" - "&Cover!D23 -> SP Manweb - V0.1
A3: =Cover!D2&" - "&Cover!D8&" v"&Cover!D10&" - "&Cover!D19 -> ARP model - Release for charge setting v3 - 2020/21
B5: Click here to return to model map | G5: Units | H5: Constants | J5: Transmission exit | K5: GSPs | L5: 132kV | M5: 132kV/EHV | N5: EHV | O5: EHV/HV | P5: 132kV/HV | Q5: HV | R5: HV/LV | S5: LV circuits
B7: Description
C9: This sheet presents historic data used to calculate average values for peaking probabilities, as required by
C10: DCUSA Schedule 20, Paragraph 2.1 (e).
C11: Charges for year Y are set in year Y-2 using average peaking probabilities from the three previous years (i.e. Y-3 to Y-5).
C12: This sheet is for information only, and is not linked to following worksheets.
B14: Years
E16: Years to which input data relate
F17: Year 1 | G17: year | H17: =LEFT(H18,4) - 1 & "/" & RIGHT(H18,2) - 1 -> 2015/16
F18: Year 2 | G18: year | H18: =LEFT(H19,4) - 1 & "/" & RIGHT(H19,2) - 1 -> 2016/17
F19: Year 3 | G19: year | H19: ='ARP_User control'!$G$28 -> 2017/18
B21: Peaking probabilities, by distribution timeband
E23: Red period
F24: =$H$17 -> 2015/16 | G24: % | K24: 0.8206171845 | L24: 0.8206171845 | M24: 0.5237322177 | N24: 0.5237322177 | O24: 0.4687276532 | P24: 0.4687276532 | Q24: 0.4687276532 | R24: 0.4687276532 | S24: 0.4687276532
F25: =$H$18 -> 2016/17 | G25: % | K25: 0.5148415228 | L25: 0.5148415228 | M25: 0.5734971222 | N25: 0.5734971222 | O25: 0.5383653152 | P25: 0.5383653152 | Q25: 0.5383653152 | R25: 0.5383653152 | S25: 0.5383653152
F26: =$H$19 -> 2017/18 | G26: % | K26: 0.8942236609 | L26: 0.8942236609 | M26: 0.5124658914 | N26: 0.5124658914 | O26: 0.4466938367 | P26: 0.4466938367 | Q26: 0.4466938367 | R26: 0.4466938367 | S26: 0.4466938367
F27: Average | G27: % | K27: =AVERAGE(K24:K26) -> 0.7432274561 | L27: 0.7432274561 | M27: 0.5365650771 | N27: 0.5365650771 | O27: 0.4845956017 | P27: 0.4845956017 | Q27: 0.4845956017 | R27: 0.4845956017 | S27: 0.4845956017
E29: Amber period
F30: =$H$17 -> 2015/16 | G30: % | K30: 0.126161962 | L30: 0.126161962 | M30: 0.3890252636 | N30: 0.3890252636 | O30: 0.4864491539 | P30: 0.4864491539 | Q30: 0.4864491539 | R30: 0.4864491539 | S30: 0.4864491539
F31: =$H$18 -> 2016/17 | G31: % | K31: 0.4195428899 | L31: 0.4195428899 | M31: 0.3498986754 | N31: 0.3498986754 | O31: 0.4215717996 | P31: 0.4215717996 | Q31: 0.4215717996 | R31: 0.4215717996 | S31: 0.4215717996
F32: =$H$19 -> 2017/18 | G32: % | K32: 0.00396709956 | L32: 0.00396709956 | M32: 0.4031276831 | N32: 0.4031276831 | O32: 0.5022951928 | P32: 0.5022951928 | Q32: 0.5022951928 | R32: 0.5022951928 | S32: 0.5022951928
F33: Average | G33: % | K33: =AVERAGE(K30:K32) -> 0.1832239838 | L33: 0.1832239838 | M33: 0.3806838741 | N33: 0.3806838741 | O33: 0.4701053821 | P33: 0.4701053821 | Q33: 0.4701053821 | R33: 0.4701053821 | S33: 0.4701053821
E35: Green period
F36: =$H$17 -> 2015/16 | G36: % | K36: 0.05322085347 | L36: 0.05322085347 | M36: 0.08724251865 | N36: 0.08724251865 | O36: 0.04482319298 | P36: 0.04482319298 | Q36: 0.04482319298 | R36: 0.04482319298 | S36: 0.04482319298
F37: =$H$18 -> 2016/17 | G37: % | K37: 0.06561558731 | L37: 0.06561558731 | M37: 0.07660420237 | N37: 0.07660420237 | O37: 0.04006288519 | P37: 0.04006288519 | Q37: 0.04006288519 | R37: 0.04006288519 | S37: 0.04006288519
F38: =$H$19 -> 2017/18 | G38: % | K38: 0.1018092395 | L38: 0.1018092395 | M38: 0.0844064255 | N38: 0.0844064255 | O38: 0.05101097049 | P38: 0.05101097049 | Q38: 0.05101097049 | R38: 0.05101097049 | S38: 0.05101097049
F39: Average | G39: % | K39: =AVERAGE(K36:K38) -> 0.0735485601 | L39: 0.0735485601 | M39: 0.08275104884 | N39: 0.08275104884 | O39: 0.04529901622 | P39: 0.04529901622 | Q39: 0.04529901622 | R39: 0.04529901622 | S39: 0.04529901622
E41: Black period
F42: =$H$17 -> 2015/16 | G42: % | K42: 0.3352103768 | L42: 0.3352103768 | M42: 0.2682280745 | N42: 0.2682280745 | O42: 0.1862505708 | P42: 0.1862505708 | Q42: 0.1862505708 | R42: 0.1862505708 | S42: 0.1862505708
F43: =$H$18 -> 2016/17 | G43: % | K43: 0.5148415228 | L43: 0.5148415228 | M43: 0.3624867741 | N43: 0.3624867741 | O43: 0.465725521 | P43: 0.465725521 | Q43: 0.465725521 | R43: 0.465725521 | S43: 0.465725521
F44: =$H$19 -> 2017/18 | G44: % | K44: 0.8742417877 | L44: 0.8742417877 | M44: 0.347294187 | N44: 0.347294187 | O44: 0.3674375948 | P44: 0.3674375948 | Q44: 0.3674375948 | R44: 0.3674375948 | S44: 0.3674375948
F45: Average | G45: % | K45: =AVERAGE(K42:K44) -> 0.5747645624 | L45: 0.5747645624 | M45: 0.3260030119 | N45: 0.3260030119 | O45: 0.3398045622 | P45: 0.3398045622 | Q45: 0.3398045622 | R45: 0.3398045622 | S45: 0.3398045622
B47: End of sheet

Sheet ARP_User control
A1: =MID(CELL("filename",A1),FIND("]",CELL("filename",A1))+1,255) -> ARP_User control
A2: =Cover!D21&" - "&Cover!D23 -> SP Manweb - V0.1
A3: =Cover!D2&" - "&Cover!D8&" v"&Cover!D10&" - "&Cover!D19 -> ARP model - Release for charge setting v3 - 2020/21
B5: Description
C7: This sheet contains the user interface for the ARP, which is used to select the "live" year used for input data.
C8: It houses the Macro Button which should be pressed to update results for all years of the forecast period.
B10: User interface
C12: Users can select which year of input data is pulled into the model using the yellow cell.
C13: Users should press the "Run all years" macro button to update multi-year results on the 'Tariff summary' and 'Typical bills' sheets.
C15: Inputs for manually running selected year
E17: Year selection | G17: 2020/21
C19: Macro to run all years
B25: Lists
D27: List of years
E28: Year -3 | G28: =LEFT(G29,4) - 1 & "/" & RIGHT(G29,2) - 1 -> 2017/18 | H28: Historic
E29: Year -2 | G29: =LEFT(G30,4) - 1 & "/" & RIGHT(G30,2) - 1 -> 2018/19 | H29: Historic
E30: Year -1 | G30: =LEFT(G31,4) - 1 & "/" & RIGHT(G31,2) - 1 -> 2019/20 | H30: Historic
E31: ="Charging year (" & charging_year &")" -> Charging year (2020/21) | G31: =charging_year -> 2020/21 | H31: Current
E32: Year +1 | G32: =LEFT(G31,4) + 1 & "/" & RIGHT(G31,2) + 1 -> 2021/22 | H32: Forecast
E33: Year +2 | G33: =LEFT(G32,4) + 1 & "/" & RIGHT(G32,2) + 1 -> 2022/23 | H33: Forecast
E34: Year +3 | G34: 2023/24 | H34: Forecast
E35: Year +4 | G35: 2024/25 | H35: Forecast
E36: Year selection (index) | G36: =MATCH(G17,G28:G35) -> 4 | H36: =INDEX(H28:H35,MATCH($G$17,$G$28:$G$35,0)) -> Current
B38: End of sheet

Sheet ARP_Inputs by customer type
A1: =MID(CELL("filename",A1),FIND("]",CELL("filename",A1))+1,255) -> ARP_Inputs by customer type
A2: =Cover!D21&" - "&Cover!D23 -> SP Manweb - V0.1
A3: =Cover!D2&" - "&Cover!D8&" v"&Cover!D10&" - "&Cover!D19 -> ARP model - Release for charge setting v3 - 2020/21
A4: =H1384 & IF(H1384 = 1, " issue", " issues") &" identified in checks on this sheet" -> 0 issues identified in checks on this sheet
J5: ="Year selected ("& charging_year_selected &")" -> Year selected (2020/21) | L5: =TRANSPOSE('ARP_User control'!G28:H35) -> 2017/18 | M5: 2018/19 | N5: 2019/20 | O5: 2020/21 | P5: 2021/22 | Q5: 2022/23 | R5: 2023/24 | S5: 2024/25
B6: Click here to return to model map | G6: Units | H6: Constants | J6: ='ARP_User control'!$H$36 -> Current | L6: Historic | M6: Historic | N6: Historic | O6: Current | P6: Forecast | Q6: Forecast | R6: Forecast | S6: Forecast | U6: Legal text reference
B8: Description
C10: This sheet sets out inputs by customer type and by year.
C11: DNOs should populate the inputs for the charging year and the four following years.
C12: DNOs can also populate the three years preceding the charging year, but are not obliged to do so.
B14: Load characteristics
C16: =INDEX('Version control'!$H$34:$H$59,MATCH($A$1,'Version control'!$F$34:$F$59,0),1)&"-A: Load factor" -> Input 501-A: Load factor
E18: Load factor | I18: > | U18: Paragraphs 42 (a) and 52
F19: Domestic Unrestricted | G19: % | J19: =CHOOSE(year_selection, L19,M19,N19,O19,P19,Q19,R19,S19) -> 0.4506666667 | L19: 0.4486666667 | M19: 0.452 | N19: 0.454 | O19: 0.4506666667 | P19: 0.4506666667 | Q19: 0.4506666667 | R19: 0.4506666667 | S19: 0.4506666667
F20: Domestic Two Rate | G20: % | J20: =CHOOSE(year_selection, L20,M20,N20,O20,P20,Q20,R20,S20) -> 0.2476666667 | L20: 0.241 | M20: 0.2513333333 | N20: 0.2576666667 | O20: 0.2476666667 | P20: 0.2476666667 | Q20: 0.2476666667 | R20: 0.2476666667 | S20: 0.2476666667
F21: Domestic Off Peak (related MPAN) | G21: % | J21: 0.102 | L21: 0.1243333333 | M21: 0.123 | N21: 0.093 | O21: 0.102 | P21: 0.102 | Q21: 0.102 | R21: 0.102 | S21: 0.102
F22: Small Non Domestic Unrestricted | G22: % | J22: 0.387 | L22: 0.398 | M22: 0.4016666667 | N22: 0.4 | O22: 0.387 | P22: 0.387 | Q22: 0.387 | R22: 0.387 | S22: 0.387
F23: Small Non Domestic Two Rate | G23: % | J23: 0.5546666667 | L23: 0.5193333333 | M23: 0.5496666667 | N23: 0.5686666667 | O23: 0.5546666667 | P23: 0.5546666667 | Q23: 0.5546666667 | R23: 0.5546666667 | S23: 0.5546666667
F24: Small Non Domestic Off Peak (related MPAN) | G24: % | J24: 0.167 | L24: 0.1646666667 | M24: 0.166 | N24: 0.1616666667 | O24: 0.167 | P24: 0.167 | Q24: 0.167 | R24: 0.167 | S24: 0.167
F25: LV Medium Non-Domestic | G25: % | J25: 0.56 | L25: 0.5713333333 | M25: 0.56 | N25: 0.56 | O25: 0.56 | P25: 0.56 | Q25: 0.56 | R25: 0.56 | S25: 0.56
F26: LV Sub Medium Non-Domestic | G26: % | J26: 0.5273333333 | L26: 0.5173333333 | M26: 0.5273333333 | N26: 0.5273333333 | O26: 0.5273333333 | P26: 0.5273333333 | Q26: 0.5273333333 | R26: 0.5273333333 | S26: 0.5273333333
F27: HV Medium Non-Domestic | G27: % | J27: 0.5273333333 | L27: 0.5173333333 | M27: 0.5273333333 | N27: 0.5273333333 | O27: 0.5273333333 | P27: 0.5273333333 | Q27: 0.5273333333 | R27: 0.5273333333 | S27: 0.5273333333
F28: LV Network Domestic | G28: % | J28: 0.4355704976 | L28: 0.4333279268 | M28: 0.4371447845 | N28: 0.4393543687 | O28: 0.4355704976 | P28: 0.4355704976 | Q28: 0.4355704976 | R28: 0.4355704976 | S28: 0.4355704976
F29: LV Network Non-Domestic Non-CT | G29: % | J29: 0.4691403556 | L29: 0.4172745248 | M29: 0.4259326809 | N29: 0.4280049737 | O29: 0.4691403556 | P29: 0.4691403556 | Q29: 0.4691403556 | R29: 0.4691403556 | S29: 0.4691403556
F30: LV HH Metered | G30: % | J30: 0.5763333333 | L30: 0.616 | M30: 0.616 | N30: 0.5943333333 | O30: 0.5763333333 | P30: 0.5763333333 | Q30: 0.5763333333 | R30: 0.5763333333 | S30: 0.5763333333
F31: LV Sub HH Metered | G31: % | J31: 0.6053333333 | L31: 0.574 | M31: 0.5796666667 | N31: 0.615 | O31: 0.6053333333 | P31: 0.6053333333 | Q31: 0.6053333333 | R31: 0.6053333333 | S31: 0.6053333333
F32: HV HH Metered | G32: % | J32: 0.736 | L32: 0.738 | M32: 0.7333333333 | N32: 0.734 | O32: 0.736 | P32: 0.736 | Q32: 0.736 | R32: 0.736 | S32: 0.736
F33: NHH UMS category A | G33: % | J33: 1 | L33: 1 | M33: 1 | N33: 1 | O33: 1 | P33: 1 | Q33: 1 | R33: 1 | S33: 1
F34: NHH UMS category B | G34: % | J34: 0.473 | L34: 0.473 | M34: 0.473 | N34: 0.473 | O34: 0.473 | P34: 0.473 | Q34: 0.473 | R34: 0.473 | S34: 0.473
F35: NHH UMS category C | G35: % | J35: 0.256 | L35: 0.256 | M35: 0.256 | N35: 0.256 | O35: 0.256 | P35: 0.256 | Q35: 0.256 | R35: 0.256 | S35: 0.256
F36: NHH UMS category D | G36: % | J36: 0.554 | L36: 0.554 | M36: 0.554 | N36: 0.554 | O36: 0.554 | P36: 0.554 | Q36: 0.554 | R36: 0.554 | S36: 0.554 | W36: NHH UMS category D | X36: LV UMS (Pseudo HH Metered) | Y36: LV Generation NHH or Aggregate HH | Z36: LV Sub Generation NHH | AA36: LV Generation Intermittent | AB36: LV Generation Intermittent no RP charge | AC36: LV Generation Non-Intermittent | AD36: LV Generation Non-Intermittent no RP charge | AE36: LV Sub Generation Intermittent | AF36: LV Sub Generation Intermittent no RP charge | AG36: LV Sub Generation Non-Intermittent | AH36: LV Sub Generation Non-Intermittent no RP charge | AI36: HV Generation Intermittent | AJ36: HV Generation Intermittent no RP charge | AK36: HV Generation Non-Intermittent | AL36: HV Generation Non-Intermittent no RP charge
F37: LV UMS (Pseudo HH Metered) | G37: % | J37: 0.5005 | L37: 0.5005 | M37: 0.5005 | N37: 0.5005 | O37: 0.5005 | P37: 0.5005 | Q37: 0.5005 | R37: 0.5005 | S37: 0.5005
F38: LV Generation NHH or Aggregate HH | G38: %
F39: LV Sub Generation NHH | G39: %
F40: LV Generation Intermittent | G40: %
F41: LV Generation Intermittent no RP charge | G41: %
F42: LV Generation Non-Intermittent | G42: %
F43: LV Generation Non-Intermittent no RP charge | G43: %
F44: LV Sub Generation Intermittent | G44: %
F45: LV Sub Generation Intermittent no RP charge | G45: %
F46: LV Sub Generation Non-Intermittent | G46: %
F47: LV Sub Generation Non-Intermittent no RP charge | G47: %
F48: HV Generation Intermittent | G48: %
F49: HV Generation Intermittent no RP charge | G49: %
F50: HV Generation Non-Intermittent | G50: %
F51: HV Generation Non-Intermittent no RP charge | G51: %
C53: =INDEX('Version control'!$H$34:$H$59,MATCH($A$1,'Version control'!$F$34:$F$59,0),1)&"-B: Coincidence factor" -> Input 501-B: Coincidence factor
E55: Coincidence factor | I55: > | U55: Paragraphs 42 (b) and 52
F56: Domestic Unrestricted | G56: % | J56: =CHOOSE(year_selection, L56,M56,N56,O56,P56,Q56,R56,S56) -> 0.8906666667 | L56: 0.8233333333 | M56: 0.828 | N56: 0.8546666667 | O56: 0.8906666667 | P56: 0.8906666667 | Q56: 0.8906666667 | R56: 0.8906666667 | S56: 0.8906666667
F57: Domestic Two Rate | G57: % | J57: 0.3026666667 | L57: 0.267 | M57: 0.28 | N57: 0.2843333333 | O57: 0.3026666667 | P57: 0.3026666667 | Q57: 0.3026666667 | R57: 0.3026666667 | S57: 0.3026666667
F58: Domestic Off Peak (related MPAN) | G58: % | M58: 0
F59: Small Non Domestic Unrestricted | G59: % | J59: 0.6773333333 | L59: 0.7093333333 | M59: 0.7153333333 | N59: 0.6773333333 | O59: 0.6773333333 | P59: 0.6773333333 | Q59: 0.6773333333 | R59: 0.6773333333 | S59: 0.6773333333
F60: Small Non Domestic Two Rate | G60: % | J60: 0.7773333333 | L60: 0.744 | M60: 0.7843333333 | N60: 0.7996666667 | O60: 0.7773333333 | P60: 0.7773333333 | Q60: 0.7773333333 | R60: 0.7773333333 | S60: 0.7773333333
F61: Small Non Domestic Off Peak (related MPAN) | G61: % | M61: 0
F62: LV Medium Non-Domestic | G62: % | J62: 0.85 | L62: 0.886 | M62: 0.85 | N62: 0.85 | O62: 0.85 | P62: 0.85 | Q62: 0.85 | R62: 0.85 | S62: 0.85
F63: LV Sub Medium Non-Domestic | G63: % | J63: 0.8956666667 | L63: 0.871 | M63: 0.8956666667 | N63: 0.8956666667 | O63: 0.8956666667 | P63: 0.8956666667 | Q63: 0.8956666667 | R63: 0.8956666667 | S63: 0.8956666667
F64: HV Medium Non-Domestic | G64: % | J64: 0.8956666667 | L64: 0.871 | M64: 0.8956666667 | N64: 0.8956666667 | O64: 0.8956666667 | P64: 0.8956666667 | Q64: 0.8956666667 | R64: 0.8956666667 | S64: 0.8956666667
F65: LV Network Domestic | G65: % | J65: 0.8476644187 | L65: 0.7823883579 | M65: 0.7879528734 | N65: 0.8129964733 | O65: 0.8476644187 | P65: 0.8476644187 | Q65: 0.8476644187 | R65: 0.8476644187 | S65: 0.8476644187
F66: LV Network Non-Domestic Non-CT | G66: % | J66: 0.6851030736 | L66: 0.707589339 | M66: 0.7198523169 | N66: 0.691910575 | O66: 0.6851030736 | P66: 0.6851030736 | Q66: 0.6851030736 | R66: 0.6851030736 | S66: 0.6851030736
F67: LV HH Metered | G67: % | J67: 0.8273333333 | L67: 0.8823333333 | M67: 0.867 | N67: 0.866 | O67: 0.8273333333 | P67: 0.8273333333 | Q67: 0.8273333333 | R67: 0.8273333333 | S67: 0.8273333333
F68: LV Sub HH Metered | G68: % | J68: 0.7723333333 | L68: 0.8136666667 | M68: 0.809 | N68: 0.806 | O68: 0.7723333333 | P68: 0.7723333333 | Q68: 0.7723333333 | R68: 0.7723333333 | S68: 0.7723333333
F69: HV HH Metered | G69: % | J69: 0.837 | L69: 0.877 | M69: 0.856 | N69: 0.85 | O69: 0.837 | P69: 0.837 | Q69: 0.837 | R69: 0.837 | S69: 0.837
F70: NHH UMS category A | G70: % | J70: 1 | L70: 1 | M70: 1 | N70: 1 | O70: 1 | P70: 1 | Q70: 1 | R70: 1 | S70: 1
F71: NHH UMS category B | G71: % | J71: 1 | L71: 1 | M71: 1 | N71: 1 | O71: 1 | P71: 1 | Q71: 1 | R71: 1 | S71: 1
F72: NHH UMS category C | G72: % | J72: 1 | L72: 1 | M72: 1 | N72: 1 | O72: 1 | P72: 1 | Q72: 1 | R72: 1 | S72: 1
F73: NHH UMS category D | G73: % | J73: 0.067 | L73: 0.067 | M73: 0.067 | N73: 0.067 | O73: 0.067 | P73: 0.067 | Q73: 0.067 | R73: 0.067 | S73: 0.067
F74: LV UMS (Pseudo HH Metered) | G74: % | J74: 0.6976666667 | L74: 0.6976666667 | M74: 0.6976666667 | N74: 0.6976666667 | O74: 0.6976666667 | P74: 0.6976666667 | Q74: 0.6976666667 | R74: 0.6976666667 | S74: 0.6976666667
F75: LV Generation NHH or Aggregate HH | G75: %
F76: LV Sub Generation NHH | G76: %
F77: LV Generation Intermittent | G77: %
F78: LV Generation Intermittent no RP charge | G78: %
F79: LV Generation Non-Intermittent | G79: %
F80: LV Generation Non-Intermittent no RP charge | G80: %
F81: LV Sub Generation Intermittent | G81: %
F82: LV Sub Generation Intermittent no RP charge | G82: %
F83: LV Sub Generation Non-Intermittent | G83: %
F84: LV Sub Generation Non-Intermittent no RP charge | G84: %
F85: HV Generation Intermittent | G85: %
F86: HV Generation Intermittent no RP charge | G86: %
F87: HV Generation Non-Intermittent | G87: %
F88: HV Generation Non-Intermittent no RP charge | G88: %
C92: =INDEX('Version control'!$H$34:$H$59,MATCH($A$1,'Version control'!$F$34:$F$59,0),1)&"-C: All-the-way volumes" -> Input 501-C: All-the-way volumes
I93: > | U93: Paragraph 52
E94: Rate 1 units
F95: Domestic Unrestricted | G95: MWh | H95: All the way customers | J95: =CHOOSE(year_selection, L95,M95,N95,O95,P95,Q95,R95,S95) -> 4132243.804 | L95: 4279043.429 | M95: 4236934.202 | N95: 4025678.188 | O95: 4132243.804 | P95: 4132243.804 | Q95: 4132243.804 | R95: 4132243.804 | S95: 4132243.804
F96: Domestic Two Rate | G96: MWh | H96: All the way customers | J96: 248437.0765 | L96: 272847.1278 | M96: 270001.0775 | N96: 245657.8131 | O96: 248437.0765 | P96: 248437.0765 | Q96: 248437.0765 | R96: 248437.0765 | S96: 248437.0765
F97: Domestic Off Peak (related MPAN) | G97: MWh | H97: All the way customers | J97: 13312.43601 | L97: 18200.17814 | M97: 17938.57807 | N97: 13759.72674 | O97: 13312.43601 | P97: 13312.43601 | Q97: 13312.43601 | R97: 13312.43601 | S97: 13312.43601
F98: Small Non Domestic Unrestricted | G98: MWh | H98: All the way customers | J98: 1035508.428 | L98: 1093311.802 | M98: 1080571.203 | N98: 1005481.257 | O98: 1035508.428 | P98: 1035508.428 | Q98: 1035508.428 | R98: 1035508.428 | S98: 1035508.428
F99: Small Non Domestic Two Rate | G99: MWh | H99: All the way customers | J99: 368722.4957 | L99: 384721.7888 | M99: 379536.358 | N99: 359229.3315 | O99: 368722.4957 | P99: 368722.4957 | Q99: 368722.4957 | R99: 368722.4957 | S99: 368722.4957
F100: Small Non Domestic Off Peak (related MPAN) | G100: MWh | H100: All the way customers | J100: 5034.142114 | L100: 6430.391481 | M100: 6384.534358 | N100: 4911.074028 | O100: 5034.142114 | P100: 5034.142114 | Q100: 5034.142114 | R100: 5034.142114 | S100: 5034.142114
F101: LV Medium Non-Domestic | G101: MWh | H101: All the way customers | J101: 77 | L101: 0 | M101: 80.4 | N101: 80.4 | O101: 77 | P101: 77 | Q101: 77 | R101: 77 | S101: 77
F102: LV Sub Medium Non-Domestic | G102: MWh | H102: All the way customers | J102: 76 | L102: 0 | M102: 80.3 | N102: 80.3 | O102: 76 | P102: 76 | Q102: 76 | R102: 76 | S102: 76
F103: HV Medium Non-Domestic | G103: MWh | H103: All the way customers | J103: 79 | L103: 0 | M103: 78.6 | N103: 78.6 | O103: 79 | P103: 79 | Q103: 79 | R103: 79 | S103: 79
F104: LV Network Domestic | G104: MWh | H104: All the way customers | J104: 2038.802394 | L104: 0 | M104: 0 | N104: 0.452 | O104: 2038.802394 | P104: 2038.802394 | Q104: 2038.802394 | R104: 2038.802394 | S104: 2038.802394
F105: LV Network Non-Domestic Non-CT | G105: MWh | H105: All the way customers | J105: 20903.42641 | L105: 28258.35012 | M105: 27356.22653 | N105: 21058.18446 | O105: 20903.42641 | P105: 20903.42641 | Q105: 20903.42641 | R105: 20903.42641 | S105: 20903.42641
F106: LV HH Metered | G106: MWh | H106: All the way customers | J106: 103968.6652 | L106: 94081.41674 | M106: 96004.06932 | N106: 98622.89006 | O106: 103968.6652 | P106: 103968.6652 | Q106: 103968.6652 | R106: 103968.6652 | S106: 103968.6652
F107: LV Sub HH Metered | G107: MWh | H107: All the way customers | J107: 128942.9823 | L107: 139537.0555 | M107: 139293.1342 | N107: 131959.0269 | O107: 128942.9823 | P107: 128942.9823 | Q107: 128942.9823 | R107: 128942.9823 | S107: 128942.9823
F108: HV HH Metered | G108: MWh | H108: All the way customers | J108: 182704.8909 | L108: 177532.9728 | M108: 174451.2021 | N108: 176092.9428 | O108: 182704.8909 | P108: 182704.8909 | Q108: 182704.8909 | R108: 182704.8909 | S108: 182704.8909
F109: NHH UMS category A | G109: MWh | H109: All the way customers | J109: 23470.9331 | L109: 32848.6102 | M109: 32848.6102 | N109: 22265.975 | O109: 23470.9331 | P109: 23470.9331 | Q109: 23470.9331 | R109: 23470.9331 | S109: 23470.9331
F110: NHH UMS category B | G110: MWh | H110: All the way customers | J110: 51195.8419 | L110: 85597.1689 | M110: 85597.1689 | N110: 55981.919 | O110: 51195.8419 | P110: 51195.8419 | Q110: 51195.8419 | R110: 51195.8419 | S110: 51195.8419
F111: NHH UMS category C | G111: MWh | H111: All the way customers | J111: 168.2768 | L111: 179.025 | M111: 179.025 | N111: 168.867 | O111: 168.2768 | P111: 168.2768 | Q111: 168.2768 | R111: 168.2768 | S111: 168.2768
F112: NHH UMS category D | G112: MWh | H112: All the way customers | J112: 0 | L112: 0 | M112: 0 | N112: 0 | O112: 0 | P112: 0 | Q112: 0 | R112: 0 | S112: 0
F113: LV UMS (Pseudo HH Metered) | G113: MWh | H113: All the way customers | J113: 5031.063643 | L113: 5059.055932 | M113: 5059.055932 | N113: 5900.639 | O113: 5031.063643 | P113: 5031.063643 | Q113: 5031.063643 | R113: 5031.063643 | S113: 5031.063643
F114: LV Generation NHH or Aggregate HH | G114: MWh | H114: All the way customers | J114: 1133.820771 | L114: 567.908 | M114: 976.4119139 | N114: 1628.118425 | O114: 1133.820771 | P114: 1133.820771 | Q114: 1133.820771 | R114: 1133.820771 | S114: 1133.820771
F115: LV Sub Generation NHH | G115: MWh | H115: All the way customers | J115: 401.7241471 | L115: 313.994 | M115: 376.6984968 | N115: 723.091234 | O115: 401.7241471 | P115: 401.7241471 | Q115: 401.7241471 | R115: 401.7241471 | S115: 401.7241471
F116: LV Generation Intermittent | G116: MWh | H116: All the way customers | J116: 44292.94229 | L116: 19815.79121 | M116: 29875.34467 | N116: 42621.06619 | O116: 44292.94229 | P116: 44292.94229 | Q116: 44292.94229 | R116: 44292.94229 | S116: 44292.94229
F117: LV Generation Intermittent no RP charge | G117: MWh | H117: All the way customers | J117: 0 | M117: 0 | N117: 0 | O117: 0 | P117: 0 | Q117: 0 | R117: 0 | S117: 0
F118: LV Generation Non-Intermittent | G118: MWh | H118: All the way customers | J118: 818.6848691 | L118: 182.0961437 | M118: 245.7192949 | N118: 659.4237129 | O118: 818.6848691 | P118: 818.6848691 | Q118: 818.6848691 | R118: 818.6848691 | S118: 818.6848691
F119: LV Generation Non-Intermittent no RP charge | G119: MWh | H119: All the way customers | J119: 0 | M119: 0 | N119: 0 | O119: 0 | P119: 0 | Q119: 0 | R119: 0 | S119: 0
F120: LV Sub Generation Intermittent | G120: MWh | H120: All the way customers | J120: 12581.23911 | L120: 4341.697409 | M120: 11128.21112 | N120: 12669.74645 | O120: 12581.23911 | P120: 12581.23911 | Q120: 12581.23911 | R120: 12581.23911 | S120: 12581.23911
F121: LV Sub Generation Intermittent no RP charge | G121: MWh | H121: All the way customers | J121: 0 | M121: 0 | N121: 0 | O121: 0 | P121: 0 | Q121: 0 | R121: 0 | S121: 0
F122: LV Sub Generation Non-Intermittent | G122: MWh | H122: All the way customers | J122: 338.1293855 | L122: 95.24137181 | M122: 494.6881811 | N122: 357.2974184 | O122: 338.1293855 | P122: 338.1293855 | Q122: 338.1293855 | R122: 338.1293855 | S122: 338.1293855
F123: LV Sub Generation Non-Intermittent no RP charge | G123: MWh | H123: All the way customers | J123: 0 | M123: 0 | N123: 0 | O123: 0 | P123: 0 | Q123: 0 | R123: 0 | S123: 0
F124: HV Generation Intermittent | G124: MWh | H124: All the way customers | J124: 157247.271 | L124: 71259.58119 | M124: 98860.44853 | N124: 146990.384 | O124: 157247.271 | P124: 157247.271 | Q124: 157247.271 | R124: 157247.271 | S124: 157247.271
F125: HV Generation Intermittent no RP charge | G125: MWh | H125: All the way customers | J125: 0 | M125: 0 | N125: 0 | O125: 0 | P125: 0 | Q125: 0 | R125: 0 | S125: 0
F126: HV Generation Non-Intermittent | G126: MWh | H126: All the way customers | J126: 26134.70794 | L126: 18656.4859 | M126: 17489.64836 | N126: 24620.23022 | O126: 26134.70794 | P126: 26134.70794 | Q126: 26134.70794 | R126: 26134.70794 | S126: 26134.70794
F127: HV Generation Non-Intermittent no RP charge | G127: MWh | H127: All the way customers | J127: 0 | M127: 0 | N127: 0 | O127: 0 | P127: 0 | Q127: 0 | R127: 0 | S127: 0
E129: Rate 2 units
F130: Domestic Unrestricted | G130: MWh | H130: All the way customers | M130: 0
F131: Domestic Two Rate | G131: MWh | H131: All the way customers | J131: =CHOOSE(year_selection, L131,M131,N131,O131,P131,Q131,R131,S131) -> 268830.9457 | L131: 311761.286 | M131: 307537.5631 | N131: 268037.0045 | O131: 268830.9457 | P131: 268830.9457 | Q131: 268830.9457 | R131: 268830.9457 | S131: 268830.9457
F132: Domestic Off Peak (related MPAN) | G132: MWh | H132: All the way customers | M132: 0
F133: Small Non Domestic Unrestricted | G133: MWh | H133: All the way customers | M133: 0
F134: Small Non Domestic Two Rate | G134: MWh | H134: All the way customers | J134: 126255.5377 | L134: 139229.3359 | M134: 137522.3806 | N134: 122603.3935 | O134: 126255.5377 | P134: 126255.5377 | Q134: 126255.5377 | R134: 126255.5377 | S134: 126255.5377
F135: Small Non Domestic Off Peak (related MPAN) | G135: MWh | H135: All the way customers | M135: 0
F136: LV Medium Non-Domestic | G136: MWh | H136: All the way customers | J136: 23 | L136: 0 | M136: 19.6 | N136: 19.6 | O136: 23 | P136: 23 | Q136: 23 | R136: 23 | S136: 23
F137: LV Sub Medium Non-Domestic | G137: MWh | H137: All the way customers | J137: 24 | L137: 0 | M137: 19.7 | N137: 19.7 | O137: 24 | P137: 24 | Q137: 24 | R137: 24 | S137: 24
F138: HV Medium Non-Domestic | G138: MWh | H138: All the way customers | J138: 21 | L138: 0 | M138: 21.4 | N138: 21.4 | O138: 21 | P138: 21 | Q138: 21 | R138: 21 | S138: 21
F139: LV Network Domestic | G139: MWh | H139: All the way customers | J139: 7549.238181 | L139: 0 | M139: 0 | N139: 1.615 | O139: 7549.238181 | P139: 7549.238181 | Q139: 7549.238181 | R139: 7549.238181 | S139: 7549.238181
F140: LV Network Non-Domestic Non-CT | G140: MWh | H140: All the way customers | J140: 100377.9372 | L140: 122065.4836 | M140: 118201.9869 | N140: 100210.9842 | O140: 100377.9372 | P140: 100377.9372 | Q140: 100377.9372 | R140: 100377.9372 | S140: 100377.9372
F141: LV HH Metered | G141: MWh | H141: All the way customers | J141: 469588.136 | L141: 417434.551 | M141: 425497.8371 | N141: 446345.1287 | O141: 469588.136 | P141: 469588.136 | Q141: 469588.136 | R141: 469588.136 | S141: 469588.136
F142: LV Sub HH Metered | G142: MWh | H142: All the way customers | J142: 618527.7347 | L142: 658817.3949 | M142: 655987.8534 | N142: 633658.2983 | O142: 618527.7347 | P142: 618527.7347 | Q142: 618527.7347 | R142: 618527.7347 | S142: 618527.7347
F143: HV HH Metered | G143: MWh | H143: All the way customers | J143: 836422.8279 | L143: 811187.6773 | M143: 798579.9629 | N143: 806239.6586 | O143: 836422.8279 | P143: 836422.8279 | Q143: 836422.8279 | R143: 836422.8279 | S143: 836422.8279
F144: NHH UMS category A | G144: MWh | H144: All the way customers | M144: 0
F145: NHH UMS category B | G145: MWh | H145: All the way customers | M145: 0
F146: NHH UMS category C | G146: MWh | H146: All the way customers | M146: 0
F147: NHH UMS category D | G147: MWh | H147: All the way customers | M147: 0
F148: LV UMS (Pseudo HH Metered) | G148: MWh | H148: All the way customers | J148: 21693.90007 | L148: 19355.32866 | M148: 19355.32866 | N148: 25443.501 | O148: 21693.90007 | P148: 21693.90007 | Q148: 21693.90007 | R148: 21693.90007 | S148: 21693.90007
F149: LV Generation NHH or Aggregate HH | G149: MWh | H149: All the way customers | M149: 0
F150: LV Sub Generation NHH | G150: MWh | H150: All the way customers | M150: 0
F151: LV Generation Intermittent | G151: MWh | H151: All the way customers | M151: 0
F152: LV Generation Intermittent no RP charge | G152: MWh | H152: All the way customers | M152: 0
F153: LV Generation Non-Intermittent | G153: MWh | H153: All the way customers | J153: 3583.812173 | L153: 788.3175183 | M153: 1101.33788 | N153: 2861.757401 | O153: 3583.812173 | P153: 3583.812173 | Q153: 3583.812173 | R153: 3583.812173 | S153: 3583.812173
F154: LV Generation Non-Intermittent no RP charge | G154: MWh | H154: All the way customers | J154: 0 | M154: 0 | N154: 0 | O154: 0 | P154: 0 | Q154: 0 | R154: 0 | S154: 0
F155: LV Sub Generation Intermittent | G155: MWh | H155: All the way customers | M155: 0
F156: LV Sub Generation Intermittent no RP charge | G156: MWh | H156: All the way customers | M156: 0
F157: LV Sub Generation Non-Intermittent | G157: MWh | H157: All the way customers | J157: 1467.32446 | L157: 415.6870653 | M157: 2161.235146 | N157: 1563.438537 | O157: 1467.32446 | P157: 1467.32446 | Q157: 1467.32446 | R157: 1467.32446 | S157: 1467.32446
F158: LV Sub Generation Non-Intermittent no RP charge | G158: MWh | H158: All the way customers | J158: 0 | M158: 0 | N158: 0 | O158: 0 | P158: 0 | Q158: 0 | R158: 0 | S158: 0
F159: HV Generation Intermittent | G159: MWh | H159: All the way customers | M159: 0
F160: HV Generation Intermittent no RP charge | G160: MWh | H160: All the way customers | M160: 0
F161: HV Generation Non-Intermittent | G161: MWh | H161: All the way customers | J161: 86001.19971 | L161: 79649.28146 | M161: 74614.87517 | N161: 88506.00466 | O161: 86001.19971 | P161: 86001.19971 | Q161: 86001.19971 | R161: 86001.19971 | S161: 86001.19971
F162: HV Generation Non-Intermittent no RP charge | G162: MWh | H162: All the way customers | J162: 0 | M162: 0 | N162: 0 | O162: 0 | P162: 0 | Q162: 0 | R162: 0 | S162: 0
E164: Rate 3 units
F165: Domestic Unrestricted | G165: MWh | H165: All the way customers | M165: 0
F166: Domestic Two Rate | G166: MWh | H166: All the way customers | M166: 0
F167: Domestic Off Peak (related MPAN) | G167: MWh | H167: All the way customers | M167: 0
F168: Small Non Domestic Unrestricted | G168: MWh | H168: All the way customers | M168: 0
F169: Small Non Domestic Two Rate | G169: MWh | H169: All the way customers | M169: 0
F170: Small Non Domestic Off Peak (related MPAN) | G170: MWh | H170: All the way customers | M170: 0
F171: LV Medium Non-Domestic | G171: MWh | H171: All the way customers | M171: 0
F172: LV Sub Medium Non-Domestic | G172: MWh | H172: All the way customers | M172: 0
F173: HV Medium Non-Domestic | G173: MWh | H173: All the way customers | M173: 0
F174: LV Network Domestic | G174: MWh | H174: All the way customers | J174: =CHOOSE(year_selection, L174,M174,N174,O174,P174,Q174,R174,S174) -> 8179.050969 | L174: 0 | M174: 0 | N174: 1.72 | O174: 8179.050969 | P174: 8179.050969 | Q174: 8179.050969 | R174: 8179.050969 | S174: 8179.050969
F175: LV Network Non-Domestic Non-CT | G175: MWh | H175: All the way customers | J175: 88381.28128 | L175: 97632.67278 | M175: 94452.7652 | N175: 87840.17604 | O175: 88381.28128 | P175: 88381.28128 | Q175: 88381.28128 | R175: 88381.28128 | S175: 88381.28128
F176: LV HH Metered | G176: MWh | H176: All the way customers | J176: 413004.122 | L176: 361183.389 | M176: 368758.3858 | N176: 391398.0339 | O176: 413004.122 | P176: 413004.122 | Q176: 413004.122 | R176: 413004.122 | S176: 413004.122
F177: LV Sub HH Metered | G177: MWh | H177: All the way customers | J177: 544043.7201 | L177: 567856.5198 | M177: 566367.2758 | N177: 547123.9149 | O177: 544043.7201 | P177: 544043.7201 | Q177: 544043.7201 | R177: 544043.7201 | S177: 544043.7201
F178: HV HH Metered | G178: MWh | H178: All the way customers | J178: 895800.5274 | L178: 863484.2962 | M178: 851316.5871 | N178: 863477.214 | O178: 895800.5274 | P178: 895800.5274 | Q178: 895800.5274 | R178: 895800.5274 | S178: 895800.5274
F179: NHH UMS category A | G179: MWh | H179: All the way customers | M179: 0
F180: NHH UMS category B | G180: MWh | H180: All the way customers | M180: 0
F181: NHH UMS category C | G181: MWh | H181: All the way customers | M181: 0
F182: NHH UMS category D | G182: MWh | H182: All the way customers | M182: 0
F183: LV UMS (Pseudo HH Metered) | G183: MWh | H183: All the way customers | J183: 64636.76788 | L183: 66790.0881 | M183: 66790.0881 | N183: 75808.668 | O183: 64636.76788 | P183: 64636.76788 | Q183: 64636.76788 | R183: 64636.76788 | S183: 64636.76788
F184: LV Generation NHH or Aggregate HH | G184: MWh | H184: All the way customers | M184: 0
F185: LV Sub Generation NHH | G185: MWh | H185: All the way customers | M185: 0
F186: LV Generation Intermittent | G186: MWh | H186: All the way customers | M186: 0
F187: LV Generation Intermittent no RP charge | G187: MWh | H187: All the way customers | M187: 0
F188: LV Generation Non-Intermittent | G188: MWh | H188: All the way customers | J188: 4594.76927 | L188: 970.7442102 | M188: 1298.404341 | N188: 3623.73721 | O188: 4594.76927 | P188: 4594.76927 | Q188: 4594.76927 | R188: 4594.76927 | S188: 4594.76927
F189: LV Generation Non-Intermittent no RP charge | G189: MWh | H189: All the way customers | J189: 0 | M189: 0 | N189: 0 | O189: 0 | P189: 0 | Q189: 0 | R189: 0 | S189: 0
F190: LV Sub Generation Intermittent | G190: MWh | H190: All the way customers | M190: 0
F191: LV Sub Generation Intermittent no RP charge | G191: MWh | H191: All the way customers | M191: 0
F192: LV Sub Generation Non-Intermittent | G192: MWh | H192: All the way customers | J192: 2000.971626 | L192: 557.8143921 | M192: 2897.158092 | N192: 2149.376593 | O192: 2000.971626 | P192: 2000.971626 | Q192: 2000.971626 | R192: 2000.971626 | S192: 2000.971626
F193: LV Sub Generation Non-Intermittent no RP charge | G193: MWh | H193: All the way customers | J193: 0 | M193: 0 | N193: 0 | O193: 0 | P193: 0 | Q193: 0 | R193: 0 | S193: 0
F194: HV Generation Intermittent | G194: MWh | H194: All the way customers | M194: 0
F195: HV Generation Intermittent no RP charge | G195: MWh | H195: All the way customers | M195: 0
F196: HV Generation Non-Intermittent | G196: MWh | H196: All the way customers | J196: 105391.3866 | L196: 110310.2207 | M196: 104194.702 | N196: 110444.0557 | O196: 105391.3866 | P196: 105391.3866 | Q196: 105391.3866 | R196: 105391.3866 | S196: 105391.3866
F197: HV Generation Non-Intermittent no RP charge | G197: MWh | H197: All the way customers | J197: 0 | M197: 0 | N197: 0 | O197: 0 | P197: 0 | Q197: 0 | R197: 0 | S197: 0
E199: MPANs
F200: Domestic Unrestricted | G200: MPANs | H200: All the way customers | J200: =CHOOSE(year_selection, L200,M200,N200,O200,P200,Q200,R200,S200) -> 1295187 | L200: 1281549 | M200: 1287907 | N200: 1294823 | O200: 1295187 | P200: 1295187 | Q200: 1295187 | R200: 1295187 | S200: 1295187
F201: Domestic Two Rate | G201: MPANs | H201: All the way customers | J201: 88757 | L201: 95042 | M201: 93595 | N201: 91180 | O201: 88757 | P201: 88757 | Q201: 88757 | R201: 88757 | S201: 88757
F202: Domestic Off Peak (related MPAN) | G202: MPANs | H202: All the way customers | J202: 3576 | L202: 4460 | M202: 4117 | N202: 3795 | O202: 3576 | P202: 3576 | Q202: 3576 | R202: 3576 | S202: 3576
F203: Small Non Domestic Unrestricted | G203: MPANs | H203: All the way customers | J203: 78333 | L203: 79293 | M203: 79537 | N203: 78691 | O203: 78333 | P203: 78333 | Q203: 78333 | R203: 78333 | S203: 78333
F204: Small Non Domestic Two Rate | G204: MPANs | H204: All the way customers | J204: 18394 | L204: 17715 | M204: 17879 | N204: 18083 | O204: 18394 | P204: 18394 | Q204: 18394 | R204: 18394 | S204: 18394
F205: Small Non Domestic Off Peak (related MPAN) | G205: MPANs | H205: All the way customers | J205: 989 | L205: 1107 | M205: 1077 | N205: 1031 | O205: 989 | P205: 989 | Q205: 989 | R205: 989 | S205: 989
F206: LV Medium Non-Domestic | G206: MPANs | H206: All the way customers | J206: 1 | L206: 0 | M206: 1 | N206: 1 | O206: 1 | P206: 1 | Q206: 1 | R206: 1 | S206: 1
F207: LV Sub Medium Non-Domestic | G207: MPANs | H207: All the way customers | J207: 1 | L207: 0 | M207: 1 | N207: 1 | O207: 1 | P207: 1 | Q207: 1 | R207: 1 | S207: 1
F208: HV Medium Non-Domestic | G208: MPANs | H208: All the way customers | J208: 1 | L208: 0 | M208: 1 | N208: 1 | O208: 1 | P208: 1 | Q208: 1 | R208: 1 | S208: 1
F209: LV Network Domestic | G209: MPANs | H209: All the way customers | J209: 4084 | L209: 0 | M209: 0 | N209: 1 | O209: 4084 | P209: 4084 | Q209: 4084 | R209: 4084 | S209: 4084
F210: LV Network Non-Domestic Non-CT | G210: MPANs | H210: All the way customers | J210: 3645.284645 | L210: 2842 | M210: 2842 | N210: 3725.360215 | O210: 3645.284645 | P210: 3645.284645 | Q210: 3645.284645 | R210: 3645.284645 | S210: 3645.284645
F211: LV HH Metered | G211: MPANs | H211: All the way customers | J211: 5425.715355 | L211: 5210 | M211: 5405 | N211: 5088 | O211: 5425.715355 | P211: 5425.715355 | Q211: 5425.715355 | R211: 5425.715355 | S211: 5425.715355
F212: LV Sub HH Metered | G212: MPANs | H212: All the way customers | J212: 3245 | L212: 3762 | M212: 3822 | N212: 2993 | O212: 3245 | P212: 3245 | Q212: 3245 | R212: 3245 | S212: 3245
F213: HV HH Metered | G213: MPANs | H213: All the way customers | J213: 796 | L213: 727 | M213: 757 | N213: 783 | O213: 796 | P213: 796 | Q213: 796 | R213: 796 | S213: 796
... 1123 more rows

Sheet ARP_Inputs by network level
A1: =MID(CELL("filename",A1),FIND("]",CELL("filename",A1))+1,255) -> ARP_Inputs by network level
A2: =Cover!D21&" - "&Cover!D23 -> SP Manweb - V0.1
A3: =Cover!D2&" - "&Cover!D8&" v"&Cover!D10&" - "&Cover!D19 -> ARP model - Release for charge setting v3 - 2020/21
A4: =H218 & IF(H218 = 1, " issue", " issues") &" identified in checks on this sheet" -> 0 issues identified in checks on this sheet
J5: ="Year selected ("& charging_year_selected &")" -> Year selected (2020/21) | L5: =TRANSPOSE('ARP_User control'!G28:H35) -> 2017/18 | M5: 2018/19 | N5: 2019/20 | O5: 2020/21 | P5: 2021/22 | Q5: 2022/23 | R5: 2023/24 | S5: 2024/25
B6: Click here to return to model map | G6: Units | H6: Constants | J6: ='ARP_User control'!$H$36 -> Current | L6: Historic | M6: Historic | N6: Historic | O6: Current | P6: Forecast | Q6: Forecast | R6: Forecast | S6: Forecast | U6: Legal text reference
B8: Description
C10: This sheet sets out inputs by network level and by year.
C11: DNOs should populate the inputs for the charging year and the four following years.
C12: DNOs can also populate the three years preceding the charging year, but are not obliged to do so.
B14: Inputs by network level
C16: =INDEX('Version control'!$H$34:$H$59,MATCH($A$1,'Version control'!$F$34:$F$59,0),1)&"-A: Diversity allowance between top and bottom of network level" -> Input 502-A: Diversity allowance between top and bottom of network level
E18: Diversity allowance between top and bottom of network level | I18: > | U18: Paragraphs 26 to 28
F19: Transmission exit | G19: %
F20: GSPs | G20: % | J20: =CHOOSE(year_selection, L20,M20,N20,O20,P20,Q20,R20,S20) -> 0.025 | L20: 0.025 | M20: 0.025 | N20: 0.025 | O20: 0.025 | P20: 0.025 | Q20: 0.025 | R20: 0.025 | S20: 0.025
F21: 132kV | G21: % | J21: =CHOOSE(year_selection, L21,M21,N21,O21,P21,Q21,R21,S21) -> 0.1 | L21: 0.1 | M21: 0.1 | N21: 0.1 | O21: 0.1
F22: 132kV/EHV | G22: %
F23: EHV | G23: % | J23: =CHOOSE(year_selection, L23,M23,N23,O23,P23,Q23,R23,S23) -> 0.26 | L23: 0.26 | M23: 0.26 | N23: 0.26 | O23: 0.26 | P23: 0.26 | Q23: 0.26 | R23: 0.26 | S23: 0.26
F24: EHV/HV | G24: %
F25: 132kV/HV | G25: %
F26: HV | G26: % | J26: =CHOOSE(year_selection, L26,M26,N26,O26,P26,Q26,R26,S26) -> 0.2 | L26: 0.2 | M26: 0.2 | N26: 0.2 | O26: 0.2 | P26: 0.2 | Q26: 0.2 | R26: 0.2 | S26: 0.2
F27: HV/LV | G27: %
F28: LV circuits | G28: %
C30: =INDEX('Version control'!$H$34:$H$59,MATCH($A$1,'Version control'!$F$34:$F$59,0),1)&"-B: Proportion of EHV/HV load going through 132kV/HV direct transformation" -> Input 502-B: Proportion of EHV/HV load going through 132kV/HV direct transformation
E32: Proportion of EHV/HV load going through 132kV/HV direct transformation
F33: Transmission exit | G33: %
F34: GSPs | G34: %
F35: 132kV | G35: %
F36: 132kV/EHV | G36: % | J36: =CHOOSE(year_selection, L36,M36,N36,O36,P36,Q36,R36,S36) -> 0 | N36: 0 | O36: 0 | P36: 0 | Q36: 0 | R36: 0 | S36: 0
F37: EHV | G37: %
F38: EHV/HV | G38: %
F39: 132kV/HV | G39: %
F40: HV | G40: %
F41: HV/LV | G41: %
F42: LV circuits | G42: %
C44: =INDEX('Version control'!$H$34:$H$59,MATCH($A$1,'Version control'!$F$34:$F$59,0),1)&"-C: Loss adjustment factors to transmission" -> Input 502-C: Loss adjustment factors to transmission
E46: Loss adjustment factors to transmission | I46: > | U46: Paragraph 47
F47: Transmission exit | G47: scalar
F48: GSPs | G48: scalar | J48: =CHOOSE(year_selection, L48,M48,N48,O48,P48,Q48,R48,S48) -> 1 | L48: 1 | M48: 1 | N48: 1 | O48: 1 | P48: 1 | Q48: 1 | R48: 1 | S48: 1
F49: 132kV | G49: scalar | J49: =CHOOSE(year_selection, L49,M49,N49,O49,P49,Q49,R49,S49) -> 1.005 | L49: 1.005 | M49: 1.005 | N49: 1.005 | O49: 1.005 | P49: 1.005 | Q49: 1.005 | R49: 1.005 | S49: 1.005
F50: 132kV/EHV | G50: scalar | J50: =CHOOSE(year_selection, L50,M50,N50,O50,P50,Q50,R50,S50) -> 1.012 | L50: 1.013 | M50: 1.013 | N50: 1.012 | O50: 1.012 | P50: 1.012 | Q50: 1.012 | R50: 1.012 | S50: 1.012
F51: EHV | G51: scalar | J51: =CHOOSE(year_selection, L51,M51,N51,O51,P51,Q51,R51,S51) -> 1.018 | L51: 1.019 | M51: 1.018 | N51: 1.018 | O51: 1.018 | P51: 1.018 | Q51: 1.018 | R51: 1.018 | S51: 1.018
F52: EHV/HV | G52: scalar | J52: =CHOOSE(year_selection, L52,M52,N52,O52,P52,Q52,R52,S52) -> 1.026 | L52: 1.027 | M52: 1.027 | N52: 1.027 | O52: 1.026 | P52: 1.026 | Q52: 1.026 | R52: 1.026 | S52: 1.026
F53: 132kV/HV | G53: scalar
F54: HV | G54: scalar | J54: =CHOOSE(year_selection, L54,M54,N54,O54,P54,Q54,R54,S54) -> 1.038 | L54: 1.039 | M54: 1.038 | N54: 1.038 | O54: 1.038 | P54: 1.038 | Q54: 1.038 | R54: 1.038 | S54: 1.038
F55: HV/LV | G55: scalar | J55: =CHOOSE(year_selection, L55,M55,N55,O55,P55,Q55,R55,S55) -> 1.06 | L55: 1.061 | M55: 1.06 | N55: 1.06 | O55: 1.06 | P55: 1.06 | Q55: 1.06 | R55: 1.06 | S55: 1.06
F56: LV circuits | G56: scalar | J56: =CHOOSE(year_selection, L56,M56,N56,O56,P56,Q56,R56,S56) -> 1.105 | L56: 1.102 | M56: 1.094 | N56: 1.103 | O56: 1.105 | P56: 1.105 | Q56: 1.105 | R56: 1.105 | S56: 1.105
C58: =INDEX('Version control'!$H$34:$H$59,MATCH($A$1,'Version control'!$F$34:$F$59,0),1)&"-D: Average kVAr by kVA, by network level" -> Input 502-D: Average kVAr by kVA, by network level
E60: Average kVAr by kVA, by network level | I60: > | U60: Paragraphs 50 to 51
F61: Transmission exit | G61: kVAr/ kVA
F62: GSPs | G62: kVAr/ kVA | J62: =CHOOSE(year_selection, L62,M62,N62,O62,P62,Q62,R62,S62) -> 0.2171210252 | L62: 0.2826214918 | M62: 0.2340460764 | N62: 0.2219943458 | O62: 0.2171210252 | P62: 0.2171210252 | Q62: 0.2171210252 | R62: 0.2171210252 | S62: 0.2171210252
F63: 132kV | G63: kVAr/ kVA | J63: 0.2171210252 | L63: 0.2826214918 | M63: 0.2340460764 | N63: 0.2219943458 | O63: 0.2171210252 | P63: 0.2171210252 | Q63: 0.2171210252 | R63: 0.2171210252 | S63: 0.2171210252
F64: 132kV/EHV | G64: kVAr/ kVA | J64: 0.2546323519 | L64: 0.294852932 | M64: 0.2813134959 | N64: 0.2453921267 | O64: 0.2546323519 | P64: 0.2546323519 | Q64: 0.2546323519 | R64: 0.2546323519 | S64: 0.2546323519
F65: EHV | G65: kVAr/ kVA | J65: 0.2546323519 | L65: 0.294852932 | M65: 0.2813134959 | N65: 0.2453921267 | O65: 0.2546323519 | P65: 0.2546323519 | Q65: 0.2546323519 | R65: 0.2546323519 | S65: 0.2546323519
F66: EHV/HV | G66: kVAr/ kVA | J66: 0.258965946 | L66: 0.2909888528 | M66: 0.2946512837 | N66: 0.2822138085 | O66: 0.258965946 | P66: 0.258965946 | Q66: 0.258965946 | R66: 0.258965946 | S66: 0.258965946
F67: 132kV/HV | G67: kVAr/ kVA | J67: 0.258965946 | L67: 0.2909888528 | M67: 0.2946512837 | N67: 0.2822138085 | O67: 0.258965946 | P67: 0.258965946 | Q67: 0.258965946 | R67: 0.258965946 | S67: 0.258965946
F68: HV | G68: kVAr/ kVA | J68: 0.258965946 | L68: 0.2909888528 | M68: 0.2946512837 | N68: 0.2822138085 | O68: 0.258965946 | P68: 0.258965946 | Q68: 0.258965946 | R68: 0.258965946 | S68: 0.258965946
F69: HV/LV | G69: kVAr/ kVA | J69: 0.258965946 | L69: 0.2909888528 | M69: 0.2946512837 | N69: 0.2822138085 | O69: 0.258965946 | P69: 0.258965946 | Q69: 0.258965946 | R69: 0.258965946 | S69: 0.258965946
F70: LV circuits | G70: kVAr/ kVA | J70: 0.258965946 | L70: 0.2909888528 | M70: 0.2946512837 | N70: 0.2822138085 | O70: 0.258965946 | P70: 0.258965946 | Q70: 0.258965946 | R70: 0.258965946 | S70: 0.258965946
C72: =INDEX('Version control'!$H$34:$H$59,MATCH($A$1,'Version control'!$F$34:$F$59,0),1)&"-E: Customer contributions under current connection charging policy" -> Input 502-E: Customer contributions under current connection charging policy
D74: Customer contributions under current connection charging policy | I74: > | U74: Paragraphs 29 to 31
E75: LV network
F76: Transmission exit | G76: %
F77: GSPs | G77: %
F78: 132kV | G78: % | J78: =CHOOSE(year_selection, L78,M78,N78,O78,P78,Q78,R78,S78) -> 0 | L78: 0 | M78: 0 | N78: 0 | O78: 0 | P78: 0 | Q78: 0 | R78: 0 | S78: 0
F79: 132kV/EHV | G79: % | J79: 0 | L79: 0 | M79: 0 | N79: 0 | O79: 0 | P79: 0 | Q79: 0 | R79: 0 | S79: 0
F80: EHV | G80: % | J80: 0 | L80: 0 | M80: 0 | N80: 0 | O80: 0 | P80: 0 | Q80: 0 | R80: 0 | S80: 0
F81: EHV/HV | G81: % | J81: 0 | L81: 0 | M81: 0 | N81: 0 | O81: 0 | P81: 0 | Q81: 0 | R81: 0 | S81: 0
F82: 132kV/HV | G82: % | J82: 0 | L82: 0 | M82: 0 | N82: 0 | O82: 0 | P82: 0 | Q82: 0 | R82: 0 | S82: 0
F83: HV | G83: % | J83: 0.3263512902 | L83: 0.3263512902 | M83: 0.3263512902 | N83: 0.3263512902 | O83: 0.3263512902 | P83: 0.3263512902 | Q83: 0.3263512902 | R83: 0.3263512902 | S83: 0.3263512902
F84: HV/LV | G84: % | J84: 0.7109728507 | L84: 0.7109728507 | M84: 0.7109728507 | N84: 0.7109728507 | O84: 0.7109728507 | P84: 0.7109728507 | Q84: 0.7109728507 | R84: 0.7109728507 | S84: 0.7109728507
F85: LV circuits | G85: % | J85: 0.9309486908 | L85: 0.9309486908 | M85: 0.9309486908 | N85: 0.9309486908 | O85: 0.9309486908 | P85: 0.9309486908 | Q85: 0.9309486908 | R85: 0.9309486908 | S85: 0.9309486908
E86: LV substation
F87: Transmission exit | G87: %
F88: GSPs | G88: %
F89: 132kV | G89: % | J89: =CHOOSE(year_selection, L89,M89,N89,O89,P89,Q89,R89,S89) -> 0 | L89: 0 | M89: 0 | N89: 0 | O89: 0 | P89: 0 | Q89: 0 | R89: 0 | S89: 0
F90: 132kV/EHV | G90: % | J90: 0 | L90: 0 | M90: 0 | N90: 0 | O90: 0 | P90: 0 | Q90: 0 | R90: 0 | S90: 0
F91: EHV | G91: % | J91: 0 | L91: 0 | M91: 0 | N91: 0 | O91: 0 | P91: 0 | Q91: 0 | R91: 0 | S91: 0
F92: EHV/HV | G92: % | J92: 0 | L92: 0 | M92: 0 | N92: 0 | O92: 0 | P92: 0 | Q92: 0 | R92: 0 | S92: 0
F93: 132kV/HV | G93: % | J93: 0 | L93: 0 | M93: 0 | N93: 0 | O93: 0 | P93: 0 | Q93: 0 | R93: 0 | S93: 0
F94: HV | G94: % | J94: 0.3263512902 | L94: 0.3263512902 | M94: 0.3263512902 | N94: 0.3263512902 | O94: 0.3263512902 | P94: 0.3263512902 | Q94: 0.3263512902 | R94: 0.3263512902 | S94: 0.3263512902
F95: HV/LV | G95: % | J95: 0.7109728507 | L95: 0.7109728507 | M95: 0.7109728507 | N95: 0.7109728507 | O95: 0.7109728507 | P95: 0.7109728507 | Q95: 0.7109728507 | R95: 0.7109728507 | S95: 0.7109728507
F96: LV circuits | G96: %
E97: HV network
F98: Transmission exit | G98: %
F99: GSPs | G99: %
F100: 132kV | G100: % | J100: =CHOOSE(year_selection, L100,M100,N100,O100,P100,Q100,R100,S100) -> 0 | L100: 0 | M100: 0 | N100: 0 | O100: 0 | P100: 0 | Q100: 0 | R100: 0 | S100: 0
F101: 132kV/EHV | G101: % | J101: 0 | L101: 0 | M101: 0 | N101: 0 | O101: 0 | P101: 0 | Q101: 0 | R101: 0 | S101: 0
F102: EHV | G102: % | J102: 0.2944301994 | L102: 0.2944301994 | M102: 0.2944301994 | N102: 0.2944301994 | O102: 0.2944301994 | P102: 0.2944301994 | Q102: 0.2944301994 | R102: 0.2944301994 | S102: 0.2944301994
F103: EHV/HV | G103: % | J103: 0.1431705882 | L103: 0.1431705882 | M103: 0.1431705882 | N103: 0.1431705882 | O103: 0.1431705882 | P103: 0.1431705882 | Q103: 0.1431705882 | R103: 0.1431705882 | S103: 0.1431705882
F104: 132kV/HV | G104: % | J104: 0 | L104: 0 | M104: 0 | N104: 0 | O104: 0 | P104: 0 | Q104: 0 | R104: 0 | S104: 0
F105: HV | G105: % | J105: 0.7342904029 | L105: 0.7342904029 | M105: 0.7342904029 | N105: 0.7342904029 | O105: 0.7342904029 | P105: 0.7342904029 | Q105: 0.7342904029 | R105: 0.7342904029 | S105: 0.7342904029
F106: HV/LV | G106: %
F107: LV circuits | G107: %
E108: HV substation
F109: Transmission exit | G109: %
F110: GSPs | G110: %
F111: 132kV | G111: % | J111: =CHOOSE(year_selection, L111,M111,N111,O111,P111,Q111,R111,S111) -> 0 | L111: 0 | M111: 0 | N111: 0 | O111: 0 | P111: 0 | Q111: 0 | R111: 0 | S111: 0
F112: 132kV/EHV | G112: % | J112: 0 | L112: 0 | M112: 0 | N112: 0 | O112: 0 | P112: 0 | Q112: 0 | R112: 0 | S112: 0
F113: EHV | G113: % | J113: 0.2944301994 | L113: 0.2944301994 | M113: 0.2944301994 | N113: 0.2944301994 | O113: 0.2944301994 | P113: 0.2944301994 | Q113: 0.2944301994 | R113: 0.2944301994 | S113: 0.2944301994
F114: EHV/HV | G114: % | J114: 0.1431705882 | L114: 0.1431705882 | M114: 0.1431705882 | N114: 0.1431705882 | O114: 0.1431705882 | P114: 0.1431705882 | Q114: 0.1431705882 | R114: 0.1431705882 | S114: 0.1431705882
F115: 132kV/HV | G115: %
F116: HV | G116: %
F117: HV/LV | G117: %
F118: LV circuits | G118: %
C120: =INDEX('Version control'!$H$34:$H$59,MATCH($A$1,'Version control'!$F$34:$F$59,0),1)&"-F: Gross asset cost by network level" -> Input 502-F: Gross asset cost by network level
E122: Gross asset cost by network level
F123: Transmission exit | G123: £
F124: GSPs | G124: £
F125: 132kV | G125: £ | J125: =CHOOSE(year_selection, L125,M125,N125,O125,P125,Q125,R125,S125) -> 171855644.7 | L125: 157079540.8 | M125: 161909736.7 | N125: 166969416 | O125: 171855644.7 | P125: 176579243.7 | Q125: 182275348.3 | R125: 187743608.7 | S125: 193375917
F126: 132kV/EHV | G126: £ | J126: 14408725.46 | L126: 13169866.97 | M126: 13574840.38 | N126: 13999054.14 | O126: 14408725.46 | P126: 14804761.57 | Q126: 15282334.52 | R126: 15740804.56 | S126: 16213028.7
F127: EHV | G127: £ | J127: 147094424.8 | L127: 134447284.2 | M127: 138581538.2 | N127: 142912211.3 | O127: 147094424.8 | P127: 151137440.6 | Q127: 156012841.9 | R127: 160693227.1 | S127: 165514023.9
F128: EHV/HV | G128: £ | J128: 24430842.08 | L128: 22330284.6 | M128: 23016940.85 | N128: 23736220.25 | O128: 24430842.08 | P128: 25102344.61 | Q128: 25912097.66 | R128: 26689460.59 | S128: 27490144.41
F129: 132kV/HV | G129: £ | J129: 0 | L129: 0 | M129: 0 | N129: 0 | O129: 0 | P129: 0 | Q129: 0 | R129: 0 | S129: 0
F130: HV | G130: £ | J130: 200515363.3 | L130: 183275104.2 | M130: 188910813.6 | N130: 194814276.6 | O130: 200515363.3 | P130: 206026699 | Q130: 212672721.6 | R130: 219052903.2 | S130: 225624490.3
F131: HV/LV | G131: £ | J131: 78426095.59 | L131: 71683040.18 | M131: 73887293.66 | N131: 76196271.59 | O131: 78426095.59 | P131: 80581703.72 | Q131: 83181113.52 | R131: 85676546.92 | S131: 88246843.33
F132: LV circuits | G132: £ | J132: 48021829.36 | L132: 43892924.9 | M132: 45242632.34 | N132: 46656464.6 | O132: 48021829.36 | P132: 49341750.3 | Q132: 50933419.66 | R132: 52461422.25 | S132: 54035264.92
C134: =INDEX('Version control'!$H$34:$H$59,MATCH($A$1,'Version control'!$F$34:$F$59,0),1)&"-G: Peaking probabilities, by timeband & network level" -> Input 502-G: Peaking probabilities, by timeband & network level
C136: Red, Amber & Green peaking probabilities must sum to 100%, except for unused network levels, which should sum to 0%
E138: Red peaking probabilities, by network level | I138: > | U138: Paragraphs 48 to 49
F139: Transmission exit | G139: %
F140: GSPs | G140: % | J140: =CHOOSE(year_selection, L140,M140,N140,O140,P140,Q140,R140,S140) -> 0.7432274561 | L140: 0.8669950257 | M140: 0.8737448455 | N140: 0.7492788506 | O140: 0.7432274561 | P140: 0.7432274561 | Q140: 0.7432274561 | R140: 0.7432274561 | S140: 0.7432274561
F141: 132kV | G141: % | J141: 0.7432274561 | L141: 0.8669950257 | M141: 0.8737448455 | N141: 0.7492788506 | O141: 0.7432274561 | P141: 0.7432274561 | Q141: 0.7432274561 | R141: 0.7432274561 | S141: 0.7432274561
F142: 132kV/EHV | G142: % | J142: 0.5365650771 | L142: 0.5449409259 | M142: 0.5265528595 | N142: 0.5535310689 | O142: 0.5365650771 | P142: 0.5365650771 | Q142: 0.5365650771 | R142: 0.5365650771 | S142: 0.5365650771
F143: EHV | G143: % | J143: 0.5365650771 | L143: 0.5449409259 | M143: 0.5265528595 | N143: 0.5535310689 | O143: 0.5365650771 | P143: 0.5365650771 | Q143: 0.5365650771 | R143: 0.5365650771 | S143: 0.5365650771
F144: EHV/HV | G144: % | J144: 0.4845956017 | L144: 0.4783567925 | M144: 0.4698870427 | N144: 0.4915878749 | O144: 0.4845956017 | P144: 0.4845956017 | Q144: 0.4845956017 | R144: 0.4845956017 | S144: 0.4845956017
F145: 132kV/HV | G145: % | J145: 0.4845956017 | L145: 0 | M145: 0.08904109589 | N145: 0.4915878749 | O145: 0.4845956017 | P145: 0.4845956017 | Q145: 0.4845956017 | R145: 0.4845956017 | S145: 0.4845956017
F146: HV | G146: % | J146: 0.4845956017 | L146: 0.4783567925 | M146: 0.4698870427 | N146: 0.4915878749 | O146: 0.4845956017 | P146: 0.4845956017 | Q146: 0.4845956017 | R146: 0.4845956017 | S146: 0.4845956017
F147: HV/LV | G147: % | J147: 0.4845956017 | L147: 0.4783567925 | M147: 0.4698870427 | N147: 0.4915878749 | O147: 0.4845956017 | P147: 0.4845956017 | Q147: 0.4845956017 | R147: 0.4845956017 | S147: 0.4845956017
F148: LV circuits | G148: % | J148: 0.4845956017 | L148: 0.4783567925 | M148: 0.4698870427 | N148: 0.4915878749 | O148: 0.4845956017 | P148: 0.4845956017 | Q148: 0.4845956017 | R148: 0.4845956017 | S148: 0.4845956017
E150: Amber peaking probabilities, by network level | I150: > | U150: Paragraphs 48 to 49
F151: Transmission exit | G151: %
F152: GSPs | G152: % | J152: =CHOOSE(year_selection, L152,M152,N152,O152,P152,Q152,R152,S152) -> 0.1832239838 | L152: 0.0567835283 | M152: 0.02410148505 | N152: 0.1633953724 | O152: 0.1832239838 | P152: 0.1832239838 | Q152: 0.1832239838 | R152: 0.1832239838 | S152: 0.1832239838
F153: 132kV | G153: % | J153: 0.1832239838 | L153: 0.0567835283 | M153: 0.02410148505 | N153: 0.1633953724 | O153: 0.1832239838 | P153: 0.1832239838 | Q153: 0.1832239838 | R153: 0.1832239838 | S153: 0.1832239838
F154: 132kV/EHV | G154: % | J154: 0.3806838741 | L154: 0.3564951968 | M154: 0.3942399831 | N154: 0.3756162705 | O154: 0.3806838741 | P154: 0.3806838741 | Q154: 0.3806838741 | R154: 0.3806838741 | S154: 0.3806838741
F155: EHV | G155: % | J155: 0.3806838741 | L155: 0.3564951968 | M155: 0.3942399831 | N155: 0.3756162705 | O155: 0.3806838741 | P155: 0.3806838741 | Q155: 0.3806838741 | R155: 0.3806838741 | S155: 0.3806838741
F156: EHV/HV | G156: % | J156: 0.4701053821 | L156: 0.4791325019 | M156: 0.4878142985 | N156: 0.4654235987 | O156: 0.4701053821 | P156: 0.4701053821 | Q156: 0.4701053821 | R156: 0.4701053821 | S156: 0.4701053821
F157: 132kV/HV | G157: % | J157: 0.4701053821 | L157: 0 | M157: 0.3892694064 | N157: 0.4654235987 | O157: 0.4701053821 | P157: 0.4701053821 | Q157: 0.4701053821 | R157: 0.4701053821 | S157: 0.4701053821
F158: HV | G158: % | J158: 0.4701053821 | L158: 0.4791325019 | M158: 0.4878142985 | N158: 0.4654235987 | O158: 0.4701053821 | P158: 0.4701053821 | Q158: 0.4701053821 | R158: 0.4701053821 | S158: 0.4701053821
F159: HV/LV | G159: % | J159: 0.4701053821 | L159: 0.4791325019 | M159: 0.4878142985 | N159: 0.4654235987 | O159: 0.4701053821 | P159: 0.4701053821 | Q159: 0.4701053821 | R159: 0.4701053821 | S159: 0.4701053821
F160: LV circuits | G160: % | J160: 0.4701053821 | L160: 0.4791325019 | M160: 0.4878142985 | N160: 0.4654235987 | O160: 0.4701053821 | P160: 0.4701053821 | Q160: 0.4701053821 | R160: 0.4701053821 | S160: 0.4701053821
E162: Green peaking probabilities, by network level | I162: > | U162: Paragraphs 48 to 49
F163: Transmission exit | G163: %
F164: GSPs | G164: % | J164: =CHOOSE(year_selection, L164,M164,N164,O164,P164,Q164,R164,S164) -> 0.0735485601 | L164: 0.07622144598 | M164: 0.1021536694 | N164: 0.08732577698 | O164: 0.0735485601 | P164: 0.0735485601 | Q164: 0.0735485601 | R164: 0.0735485601 | S164: 0.0735485601
F165: 132kV | G165: % | J165: 0.0735485601 | L165: 0.07622144598 | M165: 0.1021536694 | N165: 0.08732577698 | O165: 0.0735485601 | P165: 0.0735485601 | Q165: 0.0735485601 | R165: 0.0735485601 | S165: 0.0735485601
F166: 132kV/EHV | G166: % | J166: 0.08275104884 | L166: 0.09856387729 | M166: 0.0792071574 | N166: 0.07085266065 | O166: 0.08275104884 | P166: 0.08275104884 | Q166: 0.08275104884 | R166: 0.08275104884 | S166: 0.08275104884
F167: EHV | G167: % | J167: 0.08275104884 | L167: 0.09856387729 | M167: 0.0792071574 | N167: 0.07085266065 | O167: 0.08275104884 | P167: 0.08275104884 | Q167: 0.08275104884 | R167: 0.08275104884 | S167: 0.08275104884
F168: EHV/HV | G168: % | J168: 0.04529901622 | L168: 0.04251070559 | M168: 0.04229865889 | N168: 0.04298852638 | O168: 0.04529901622 | P168: 0.04529901622 | Q168: 0.04529901622 | R168: 0.04529901622 | S168: 0.04529901622
F169: 132kV/HV | G169: % | J169: 0.04529901622 | L169: 0 | M169: 0.5216894977 | N169: 0.04298852638 | O169: 0.04529901622 | P169: 0.04529901622 | Q169: 0.04529901622 | R169: 0.04529901622 | S169: 0.04529901622
F170: HV | G170: % | J170: 0.04529901622 | L170: 0.04251070559 | M170: 0.04229865889 | N170: 0.04298852638 | O170: 0.04529901622 | P170: 0.04529901622 | Q170: 0.04529901622 | R170: 0.04529901622 | S170: 0.04529901622
F171: HV/LV | G171: % | J171: 0.04529901622 | L171: 0.04251070559 | M171: 0.04229865889 | N171: 0.04298852638 | O171: 0.04529901622 | P171: 0.04529901622 | Q171: 0.04529901622 | R171: 0.04529901622 | S171: 0.04529901622
F172: LV circuits | G172: % | J172: 0.04529901622 | L172: 0.04251070559 | M172: 0.04229865889 | N172: 0.04298852638 | O172: 0.04529901622 | P172: 0.04529901622 | Q172: 0.04529901622 | R172: 0.04529901622 | S172: 0.04529901622
E174: Black peaking probabilities, by network level
F175: Transmission exit | G175: %
F176: GSPs | G176: % | J176: =CHOOSE(year_selection, L176,M176,N176,O176,P176,Q176,R176,S176) -> 0.5747645624 | L176: 0.7800452819 | M176: 0.8064919002 | N176: 0.7120210791 | O176: 0.5747645624 | P176: 0.5747645624 | Q176: 0.5747645624 | R176: 0.5747645624 | S176: 0.5747645624
F177: 132kV | G177: % | J177: 0.5747645624 | L177: 0.7800452819 | M177: 0.8064919002 | N177: 0.7120210791 | O177: 0.5747645624 | P177: 0.5747645624 | Q177: 0.5747645624 | R177: 0.5747645624 | S177: 0.5747645624
F178: 132kV/EHV | G178: % | J178: 0.3260030119 | L178: 0.3586723135 | M178: 0.361527921 | N178: 0.3612597205 | O178: 0.3260030119 | P178: 0.3260030119 | Q178: 0.3260030119 | R178: 0.3260030119 | S178: 0.3260030119
F179: EHV | G179: % | J179: 0.3260030119 | L179: 0.3586723135 | M179: 0.361527921 | N179: 0.3612597205 | O179: 0.3260030119 | P179: 0.3260030119 | Q179: 0.3260030119 | R179: 0.3260030119 | S179: 0.3260030119
F180: EHV/HV | G180: % | J180: 0.3398045622 | L180: 0.3956852578 | M180: 0.3939250712 | N180: 0.4137068511 | O180: 0.3398045622 | P180: 0.3398045622 | Q180: 0.3398045622 | R180: 0.3398045622 | S180: 0.3398045622
F181: 132kV/HV | G181: % | J181: 0.3398045622 | L181: 0 | M181: 0.4783105023 | N181: 0.4137068511 | O181: 0.3398045622 | P181: 0.3398045622 | Q181: 0.3398045622 | R181: 0.3398045622 | S181: 0.3398045622
F182: HV | G182: % | J182: 0.3398045622 | L182: 0.3956852578 | M182: 0.3939250712 | N182: 0.4137068511 | O182: 0.3398045622 | P182: 0.3398045622 | Q182: 0.3398045622 | R182: 0.3398045622 | S182: 0.3398045622
F183: HV/LV | G183: % | J183: 0.3398045622 | L183: 0.3956852578 | M183: 0.3939250712 | N183: 0.4137068511 | O183: 0.3398045622 | P183: 0.3398045622 | Q183: 0.3398045622 | R183: 0.3398045622 | S183: 0.3398045622
F184: LV circuits | G184: % | J184: 0.3398045622 | L184: 0.3956852578 | M184: 0.3939250712 | N184: 0.4137068511 | O184: 0.3398045622 | P184: 0.3398045622 | Q184: 0.3398045622 | R184: 0.3398045622 | S184: 0.3398045622
B186: Checks
C188: Checks are not run for historic years, for which DNOs are not obliged to enter inputs.
E190: Check for error values | G190: number of issues | H190: =SUM(IF(ISERROR(H18:T185), 1)) -> 0
E192: Check that loss adjustment factor = 1 at grid supply point | G192: number of issues | H192: =SUM(L192:S192) -> 0 | O192: =IF(O48 = 1, 0, 1) -> 0 | P192: =IF(P48 = 1, 0, 1) -> 0 | Q192: =IF(Q48 = 1, 0, 1) -> 0 | R192: =IF(R48 = 1, 0, 1) -> 0 | S192: =IF(S48 = 1, 0, 1) -> 0
E194: Peaking probabilities check - General
F195: Transmission exit | G195: number of issues
F196: GSPs | G196: number of issues | H196: =SUM(L196:S196) -> 0 | O196: =IF(ABS(SUM(O140,O152,O164) - 1) < 10^-check_decimals,0,1) -> 0 | P196: =IF(ABS(SUM(P140,P152,P164) - 1) < 10^-check_decimals,0,1) -> 0 | Q196: =IF(ABS(SUM(Q140,Q152,Q164) - 1) < 10^-check_decimals,0,1) -> 0 | R196: =IF(ABS(SUM(R140,R152,R164) - 1) < 10^-check_decimals,0,1) -> 0 | S196: =IF(ABS(SUM(S140,S152,S164) - 1) < 10^-check_decimals,0,1) -> 0
F197: 132kV | G197: number of issues
F198: 132kV/EHV | G198: number of issues
F199: EHV | G199: number of issues | H199: 0 | O199: =IF(ABS(SUM(O143,O155,O167) - 1) < 10^-check_decimals,0,1) -> 0 | P199: 0 | Q199: 0 | R199: 0 | S199: 0
F200: EHV/HV | G200: number of issues | H200: 0 | O200: 0 | P200: 0 | Q200: 0 | R200: 0 | S200: 0
F201: 132kV/HV | G201: number of issues
F202: HV | G202: number of issues | H202: 0 | O202: =IF(ABS(SUM(O146,O158,O170) - 1) < 10^-check_decimals,0,1) -> 0 | P202: 0 | Q202: 0 | R202: 0 | S202: 0
F203: HV/LV | G203: number of issues | H203: 0 | O203: 0 | P203: 0 | Q203: 0 | R203: 0 | S203: 0
F204: LV circuits | G204: number of issues | H204: =SUM(L204:S204) -> 0 | O204: 0 | P204: 0 | Q204: 0 | R204: 0 | S204: 0
E206: Peaking probabilities check - 132kV/HV
F207: Transmission exit | G207: number of issues
F208: GSPs | G208: number of issues
F209: 132kV | G209: number of issues | H209: =SUM(L209:S209) -> 0 | O209: =IF(OR(ABS(SUM(O141,O153,O165) - 1) < 10^-check_decimals, ABS(SUM(O141,O153,O165) - 0) < 10^-check_decimals),0,1) -> 0 | P209: 0 | Q209: 0 | R209: 0 | S209: 0
F210: 132kV/EHV | G210: number of issues | H210: =SUM(L210:S210) -> 0 | O210: 0 | P210: 0 | Q210: 0 | R210: 0 | S210: 0
F211: EHV | G211: number of issues
F212: EHV/HV | G212: number of issues
F213: 132kV/HV | G213: number of issues | H213: =SUM(L213:S213) -> 0 | O213: =IF(OR(ABS(SUM(O145,O157,O169) - 1) < 10^-check_decimals, ABS(SUM(O145,O157,O169) - 0) < 10^-check_decimals),0,1) -> 0 | P213: =IF(OR(ABS(SUM(P145,P157,P169) - 1) < 10^-check_decimals, ABS(SUM(P145,P157,P169) - 0) < 10^-check_decimals),0,1) -> 0 | Q213: =IF(OR(ABS(SUM(Q145,Q157,Q169) - 1) < 10^-check_decimals, ABS(SUM(Q145,Q157,Q169) - 0) < 10^-check_decimals),0,1) -> 0 | R213: =IF(OR(ABS(SUM(R145,R157,R169) - 1) < 10^-check_decimals, ABS(SUM(R145,R157,R169) - 0) < 10^-check_decimals),0,1) -> 0 | S213: =IF(OR(ABS(SUM(S145,S157,S169) - 1) < 10^-check_decimals, ABS(SUM(S145,S157,S169) - 0) < 10^-check_decimals),0,1) -> 0
F214: HV | G214: number of issues
F215: HV/LV | G215: number of issues
F216: LV circuits | G216: number of issues
E218: Summary of checks | G218: number of issues | H218: =SUM(H190,H192,H195:H204,H207:H216) -> 0
B220: End of sheet

Sheet ARP_General inputs
A1: =MID(CELL("filename",A1),FIND("]",CELL("filename",A1))+1,255) -> ARP_General inputs
A2: =Cover!D21&" - "&Cover!D23 -> SP Manweb - V0.1
A3: =Cover!D2&" - "&Cover!D8&" v"&Cover!D10&" - "&Cover!D19 -> ARP model - Release for charge setting v3 - 2020/21
A4: =H122 & IF(H122 = 1, " issue", " issues") &" identified in checks on this sheet" -> 0 issues identified in checks on this sheet
J5: ="Year selected ("& charging_year_selected &")" -> Year selected (2020/21) | L5: =TRANSPOSE('ARP_User control'!G28:H35) -> 2017/18 | M5: 2018/19 | N5: 2019/20 | O5: 2020/21 | P5: 2021/22 | Q5: 2022/23 | R5: 2023/24 | S5: 2024/25
B6: Click here to return to model map | G6: Units | H6: Constants | J6: ='ARP_User control'!$H$36 -> Current | L6: Historic | M6: Historic | N6: Historic | O6: Current | P6: Forecast | Q6: Forecast | R6: Forecast | S6: Forecast | U6: Legal text reference
B8: Description
C10: This sheet sets out general inputs by year.
C11: DNOs should populate the inputs for the charging year and the four following years.
C12: DNOs can also populate the three years preceding the charging year, but are not obliged to do so.
B14: General inputs
C16: =INDEX('Version control'!$H$34:$H$59,MATCH($A$1,'Version control'!$F$34:$F$59,0),1)&"-A: Split of hours by distribution timeband" -> Input 503-A: Split of hours by distribution timeband
E18: Typical annual hours by special distribution time band | I18: > | U18: Paragraphs 40 to 41
F19: Black | G19: hours per year | J19: =CHOOSE(year_selection, L19,M19,N19,O19,P19,Q19,R19,S19) -> 255 | L19: 261 | M19: 258 | N19: 258 | O19: 255 | P19: 258 | Q19: 258 | R19: 261 | S19: 258
F20: Yellow | G20: hours per year | J20: =CHOOSE(year_selection, L20,M20,N20,O20,P20,Q20,R20,S20) -> 3945.5 | L20: 3929 | M20: 3932 | N20: 3957 | O20: 3945.5 | P20: 3942.5 | Q20: 3942.5 | R20: 3933 | S20: 3942.5
F21: Green | G21: hours per year | J21: =CHOOSE(year_selection, L21,M21,N21,O21,P21,Q21,R21,S21) -> 4559.5 | L21: 4570 | M21: 4570 | N21: 4569 | O21: 4559.5 | P21: 4559.5 | Q21: 4559.5 | R21: 4590 | S21: 4559.5
E23: Typical annual hours by distribution time band | I23: > | U23: Paragraphs 40 to 41
F24: Red | G24: hours per year | J24: =CHOOSE(year_selection, L24,M24,N24,O24,P24,Q24,R24,S24) -> 783 | L24: 780 | M24: 780 | N24: 786 | O24: 783 | P24: 783 | Q24: 783 | R24: 780 | S24: 783
F25: Amber | G25: hours per year | J25: =CHOOSE(year_selection, L25,M25,N25,O25,P25,Q25,R25,S25) -> 3417.5 | L25: 3410 | M25: 3410 | N25: 3429 | O25: 3417.5 | P25: 3417.5 | Q25: 3417.5 | R25: 3414 | S25: 3417.5
F26: Green | G26: hours per year | J26: =CHOOSE(year_selection, L26,M26,N26,O26,P26,Q26,R26,S26) -> 4559.5 | L26: 4570 | M26: 4570 | N26: 4569 | O26: 4559.5 | P26: 4559.5 | Q26: 4559.5 | R26: 4590 | S26: 4559.5
C28: =INDEX('Version control'!$H$34:$H$59,MATCH($A$1,'Version control'!$F$34:$F$59,0),1)&"-B: Embedded network (LDNO) discount percentages" -> Input 503-B: Embedded network (LDNO) discount percentages
D30: Inputs sourced from PCDM
E32: Embedded network (LDNO) discount percentages | I32: > | U32: Paragraph 53
F33: LDNO LV: LV user | G33: % | J33: =CHOOSE(year_selection, L33,M33,N33,O33,P33,Q33,R33,S33) -> 0.379357347 | L33: 0.375700031 | M33: 0.3760732531 | N33: 0.3770905906 | O33: 0.379357347 | P33: 0.3770905906 | Q33: 0.3770905906 | R33: 0.3770905906 | S33: 0.3770905906
F34: LDNO HV: LV user | G34: % | J34: =CHOOSE(year_selection, L34,M34,N34,O34,P34,Q34,R34,S34) -> 0.5848240063 | L34: 0.6065112466 | M34: 0.5996218219 | N34: 0.5967465787 | O34: 0.5848240063 | P34: 0.5967465787 | Q34: 0.5967465787 | R34: 0.5967465787 | S34: 0.5967465787 | W34: NHH UMS category D | X34: LV UMS (Pseudo HH Metered) | Y34: LV Generation NHH or Aggregate HH | Z34: LV Sub Generation NHH | AA34: LV Generation Intermittent | AB34: LV Generation Intermittent no RP charge | AC34: LV Generation Non-Intermittent | AD34: LV Generation Non-Intermittent no RP charge | AE34: LV Sub Generation Intermittent | AF34: LV Sub Generation Intermittent no RP charge | AG34: LV Sub Generation Non-Intermittent | AH34: LV Sub Generation Non-Intermittent no RP charge | AI34: HV Generation Intermittent | AJ34: HV Generation Intermittent no RP charge | AK34: HV Generation Non-Intermittent | AL34: HV Generation Non-Intermittent no RP charge
F35: LDNO HV: LV Sub user | G35: % | J35: =CHOOSE(year_selection, L35,M35,N35,O35,P35,Q35,R35,S35) -> 0.3296081647 | L35: 0.3684150294 | M35: 0.3566560028 | N35: 0.3513047411 | O35: 0.3296081647 | P35: 0.3513047411 | Q35: 0.3513047411 | R35: 0.3513047411 | S35: 0.3513047411
F36: LDNO HV: HV user | G36: % | J36: =CHOOSE(year_selection, L36,M36,N36,O36,P36,Q36,R36,S36) -> 0.2427681856 | L36: 0.2864604924 | M36: 0.2729333953 | N36: 0.266618482 | O36: 0.2427681856 | P36: 0.266618482 | Q36: 0.266618482 | R36: 0.266618482 | S36: 0.266618482
C38: =INDEX('Version control'!$H$34:$H$59,MATCH($A$1,'Version control'!$F$34:$F$59,0),1)&"-C: CDCM target revenue" -> Input 503-C: CDCM target revenue
D40: The contents of this section are defined in Paragraph 1.5 of Schedule 15 (Table 1). | I40: > | U40: Paragraph 54 and Schedule 15 Table 1
D41: "CDCM Revenue used in Charging Model" is the only row used as an input to the model itself.
E43: Base Demand Revenue before inflation | G43: £ | J43: =CHOOSE(year_selection, L43,M43,N43,O43,P43,Q43,R43,S43) -> 310900000 | L43: 298140000 | M43: 310900000 | N43: 310900000 | O43: 310900000 | P43: 310900000 | Q43: 310900000 | R43: 310900000 | S43: 310900000
E44: Annual Iteration adjustment before inflation | G44: £ | J44: -10200011.06 | L44: 0 | M44: -18319000 | N44: -7766000 | O44: -10200011.06 | P44: -5000000 | Q44: -7000000 | R44: -7500000 | S44: -8000000
E45: RPI True-up before inflation | G45: £ | J45: 819865.5405 | L45: 0 | M45: -945000 | N45: 218000 | O45: 819865.5405 | P45: 126955.0706 | Q45: 0 | R45: 0 | S45: 0
E46: Price index adjustment (RPI index) | G46: scalar | J46: 1.237 | L46: 1.121 | M46: 1.155 | N46: 1.196 | O46: 1.237 | P46: 1.271 | Q46: 1.312 | R46: 1.35136 | S46: 1.3919008
E47: Base demand revenue | G47: £ | J47: 301519854.5 | L47: =SUM(L43:L45) -> 298140000 | M47: =SUM(M43:M45) -> 291636000 | N47: 303352000 | O47: =SUM(O43:O45) -> 301519854.5 | P47: =SUM(P43:P45) -> 306026955.1 | Q47: 303900000 | R47: 303400000 | S47: 302900000
E48: Inflation adjustment | G48: £ | J48: 71460205.51 | L48: =L47 * (L46 - 1) -> 36074940 | M48: 45203580 | N48: 59456992 | O48: =O47 * (O46 - 1) -> 71460205.51 | P48: =P47 * (P46 - 1) -> 82933304.82 | Q48: 94816800 | R48: 106602624 | S48: 118706752.3
E50: Pass-Through Licence Fees | G50: £ | J50: =CHOOSE(year_selection, L50,M50,N50,O50,P50,Q50,R50,S50) -> 194845.9492 | L50: 190000 | M50: 20000 | N50: 269000 | O50: 194845.9492 | P50: 201721.6372 | Q50: 208556.1557 | R50: 214812.8404 | S50: 217912.8541
E51: Pass-Through Business Rates | G51: £ | J51: 6631134.17 | L51: -810000 | M51: -1039000 | N51: 6038000 | O51: 6631134.17 | P51: 6699479.71 | Q51: 6636493.003 | R51: 6504615.283 | S51: 6607622.173
E52: Pass-Through Transmission Connection Point Charges | G52: £ | J52: -1831935.834 | L52: -750000 | M52: -1552000 | N52: -1979000 | O52: -1831935.834 | P52: -1609399.516 | Q52: -1989079.15 | R52: -1481815.203 | S52: -1061954.535
E53: Pass-through Smart Meter Communication Licence Costs | G53: £ | J53: 1174060.8 | L53: 0 | M53: 586000 | N53: 788000 | O53: 1174060.8 | P53: 1374870.728 | Q53: 1235798.711 | R53: 1543447.194 | S53: 1401389.071
E54: Pass-through Smart Meter IT Costs | G54: £ | J54: 1388934.861 | L54: 0 | M54: 368000 | N54: 64000 | O54: 1388934.861 | P54: 258401.3632 | Q54: 0 | R54: 0 | S54: 0
E55: Pass-through Ring Fence Costs | G55: £ | J55: 0 | L55: 0 | M55: 0 | N55: 0 | O55: 0 | P55: 0 | Q55: 0 | R55: 0 | S55: 0
E56: Pass-Through Others | G56: £ | J56: 0 | L56: -320000 | M56: 0 | N56: 0 | O56: 0 | P56: 0 | Q56: 0 | R56: 0 | S56: 0
E57: Allowed Pass-Through Items | G57: £ | J57: 7557039.948 | L57: =SUM(L50:L56) -> -1690000 | M57: -1617000 | N57: 5180000 | O57: 7557039.948 | P57: 6925073.922 | Q57: 6091768.72 | R57: 6781060.114 | S57: 7164969.562
E59: Broad Measure of Customer Service incentive | G59: £ | J59: =CHOOSE(year_selection, L59,M59,N59,O59,P59,Q59,R59,S59) -> 3834751.718 | L59: 0 | M59: 2500000 | N59: 3477000 | O59: 3834751.718 | P59: 3900000 | Q59: 4000000 | R59: 4100000 | S59: 4100000
E60: Quality of Service incentive | G60: £ | J60: 4629782.871 | L60: 7000000 | M60: 2055000 | N60: 4487000 | O60: 4629782.871 | P60: 4600000 | Q60: 4600000 | R60: 4600000 | S60: 4600000
E61: Connections Engagement incentive | G61: £ | J61: 0 | L61: 0 | M61: 0 | N61: 0 | O61: 0 | P61: 0 | Q61: 0 | R61: 0 | S61: 0
E62: Time to Connect incentive | G62: £ | J62: 348613.7926 | L62: 0 | M62: 800000 | N62: 785000 | O62: 348613.7926 | P62: 717276.4596 | Q62: 739153.3916 | R62: 762806.3001 | S62: 762806.3001
E63: Losses Discretionary Reward incentive | G63: £ | J63: 0 | L63: 0 | M63: 0 | N63: 478000 | O63: 0 | P63: 740993 | Q63: 0 | R63: 0 | S63: 0
E64: Network Innovation Allowance | G64: £ | J64: 1260000 | L64: 1400000 | M64: 1310000 | N64: 1260000 | O64: 1260000 | P64: 1400000 | Q64: 1400000 | R64: 0 | S64: 0
E65: Low Carbon Network Fund - Tier 1 unrecoverable | G65: £ | J65: 0 | L65: 0 | M65: 0 | N65: 0 | O65: 0 | P65: 0 | Q65: 0 | R65: 0 | S65: 0
E66: Low Carbon Network Fund - Tier 2 & Discretionary Funding | G66: £ | J66: 0 | L66: 2840000 | M66: 0 | N66: 0 | O66: 0 | P66: 0 | Q66: 0 | R66: 0 | S66: 0
E67: Connection Guaranteed Standards Systems & Processes penalty | G67: £ | J67: 0 | L67: 0 | M67: 0 | N67: 0 | O67: 0 | P67: 0 | Q67: 0 | R67: 0 | S67: 0
E68: Residual Losses and Growth Incentive - Losses | G68: £ | J68: 0 | L68: 0 | M68: 0 | N68: 0 | O68: 0 | P68: 0 | Q68: 0 | R68: 0 | S68: 0
E69: Residual Losses and Growth Incentive - Growth | G69: £ | J69: 0 | L69: 0 | M69: 0 | N69: 0 | O69: 0 | P69: 0 | Q69: 0 | R69: 0 | S69: 0
E70: Incentive Revenue and Other Adjustments | G70: £ | J70: 10073148.38 | L70: =SUM(L59:L69) -> 11240000 | M70: 6665000 | N70: 10487000 | O70: 10073148.38 | P70: 11358269.46 | Q70: 10739153.39 | R70: 9462806.3 | S70: 9462806.3
E72: Correction Factor | G72: £ | J72: =CHOOSE(year_selection, L72,M72,N72,O72,P72,Q72,R72,S72) -> 9333808.579 | L72: -6440000 | M72: 86000 | N72: 3669000 | O72: 9333808.579 | P72: -13195301.05 | Q72: 0 | R72: 0 | S72: 0
E73: Total allowed Revenue | G73: £ | J73: =CHOOSE(year_selection, L73,M73,N73,O73,P73,Q73,R73,S73) -> 399944056.9 | L73: =L72 + L70 + L57 + L48 + L47 -> 337324940 | M73: 341973580 | N73: 382144992 | O73: =O72 + O70 + O57 + O48 + O47 -> 399944056.9 | P73: 394048302.2 | Q73: 415547722.1 | R73: 426246490.4 | S73: 438234528.2
E75: Other 1. Excluded services - Top-up, standby, and enhanced system security | G75: £ | J75: =CHOOSE(year_selection, L75,M75,N75,O75,P75,Q75,R75,S75) -> 0 | L75: 0 | M75: 0 | N75: 0 | O75: 0 | P75: 0 | Q75: 0 | R75: 0 | S75: 0
E76: Other 2. Excluded services - Revenue protection services | G76: £ | J76: 533092.9651 | L76: 490000 | M76: 499000 | N76: 500000 | O76: 533092.9651 | P76: 536965.7721 | Q76: 550389.9164 | R76: 0 | S76: 0
E77: Other 3. Excluded services - Miscellaneous | G77: £ | J77: 0 | L77: 0 | M77: 0 | N77: 0 | O77: 0 | P77: 0 | Q77: 0 | R77: 0 | S77: 0
E78: Other 4. Please describe if used | G78: £ | J78: 0 | L78: 0 | M78: 0 | N78: 0 | O78: 0 | P78: 0 | Q78: 0 | R78: 0 | S78: 0
E79: Other 5. Please describe if used | G79: £ | J79: 0 | L79: 0 | M79: 0 | N79: 0 | O79: 0 | P79: 0 | Q79: 0 | R79: 0 | S79: 0
E80: Total other revenue recovered by Use of System Charges | G80: £ | J80: 533092.9651 | L80: =SUM(L75:L79) -> 490000 | M80: 499000 | N80: 500000 | O80: =SUM(O75:O79) -> 533092.9651 | P80: 536965.7721 | Q80: 550389.9164 | R80: 0 | S80: 0
E81: Total Revenue for Use of System Charges | G81: £ | J81: 400477149.9 | L81: =L73+L80 -> 337814940 | M81: 342472580 | N81: 382644992 | O81: =O73+O80 -> 400477149.9 | P81: 394585268 | Q81: 416098112 | R81: 426246490.4 | S81: 438234528.2
E83: 1. Revenue raised outside CDCM - EDCM and Certain Interconnector Revenue | G83: £ | J83: =CHOOSE(year_selection, L83,M83,N83,O83,P83,Q83,R83,S83) -> 32006147.04 | N83: 33141967.86 | O83: 32006147.04 | P83: 32006147.04 | Q83: 32006147.04 | R83: 32006147.04 | S83: 32006147.04
E84: 2. Revenue raised outside CDCM - Voluntary under-recovery | G84: £ | J84: 0 | L84: 28037325.7 | M84: 29124408.26 | N84: 0 | P84: 0 | Q84: 0 | R84: 0 | S84: 0
E85: 3. Revenue raised outside CDCM - Please describe if used | G85: £ | J85: 0 | L85: 0 | M85: 0 | N85: 0 | P85: 0 | Q85: 0 | R85: 0 | S85: 0
E86: 4. Revenue raised outside CDCM - Please describe if used | G86: £ | J86: 0 | L86: 1440000 | M86: 0 | N86: 0 | P86: 0 | Q86: 0 | R86: 0 | S86: 0
E87: Total Revenue to be raised outside the CDCM | G87: £ | J87: 32006147.04 | L87: =SUM(L83:L86) -> 29477325.7 | M87: 29124408.26 | N87: 33141967.86 | O87: =SUM(O83:O86) -> 32006147.04 | P87: 32006147.04 | Q87: 32006147.04 | R87: 32006147.04 | S87: 32006147.04
E88: Latest forecast of CDCM Revenue | G88: £ | J88: 368471002.8 | L88: =L81-L87 -> 308337614.3 | M88: 313348171.7 | N88: 349503024.1 | O88: =O81-O87 -> 368471002.8 | P88: 362579121 | Q88: 384091965 | R88: 394240343.4 | S88: 406228381.1
E89: CDCM Revenue Used in Charging Model | G89: £ | J89: =CHOOSE(year_selection, L89,M89,N89,O89,P89,Q89,R89,S89) -> 368471002.8 | L89: =L88 -> 308337614.3 | M89: 313348171.7 | N89: 349503024.1 | O89: =O88 -> 368471002.8 | P89: 362579121 | Q89: 384091965 | R89: 394240343.4 | S89: 406228381.1
E91: Final Collected Revenue Forecast | G91: £ | J91: =CHOOSE(year_selection, L91,M91,N91,O91,P91,Q91,R91,S91) -> 400477149.9 | L91: 337814940 | M91: 342472580 | N91: 382644992 | O91: 400477149.9 | P91: 394585268 | Q91: 416098112 | R91: 426246490.4 | S91: 438234528.2
E92: Forecast Over / (Under) Recovery | G92: £ | J92: =CHOOSE(year_selection, L92,M92,N92,O92,P92,Q92,R92,S92) -> 2.980232239e-07 | L92: =L91 - L80 - L73 + L84 -> 28037325.7 | M92: 29124408.26 | N92: -5.960464478e-08 | O92: =O91 - O80 - O73 + O84 -> 2.980232239e-07 | P92: =P91 - P80 - P73 + P84 -> 0 | Q92: 0 | R92: 0 | S92: 0
E93: Forecast overall percentage change to Allowed Revenue | G93: % | J93: =CHOOSE(year_selection, L93,M93,N93,O93,P93,Q93,R93,S93) -> 0.04657673206 | L93: =IF( K73 <> 0, L73 / K73 - 1, 0) -> 0 | M93: =IF( L73 <> 0, M73 / L73 - 1, 0) -> 0.01378089625 | N93: =IF( M73 <> 0, N73 / M73 - 1, 0) -> 0.1174693437 | O93: =IF( N73 <> 0, O73 / N73 - 1, 0) -> 0.04657673206 | P93: -0.0147414484 | Q93: 0.05456036676 | R93: 0.02574618445 | S93: 0.02812466035
E94: Overall % change to Use of System Charges effective 1st April of Regulatory Year to balance | G94: % | J94: =CHOOSE(year_selection, L94,M94,N94,O94,P94,Q94,R94,S94) -> 0.04660235529 | L94: =IF( K91 <> 0, L91 / K91 - 1, 0) -> 0 | M94: =IF( L91 <> 0, M91 / L91 - 1, 0) -> 0.01378754889 | N94: =IF( M91 <> 0, N91 / M91 - 1, 0) -> 0.1173011048 | O94: =IF( N91 <> 0, O91 / N91 - 1, 0) -> 0.04660235529 | P94: -0.01471215492 | Q94: 0.05452013995 | R94: 0.02438938821 | S94: 0.02812466035
C96: =INDEX('Version control'!$H$34:$H$59,MATCH($A$1,'Version control'!$F$34:$F$59,0),1)&"-D: Financial and general assumptions" -> Input 503-D: Financial and general assumptions
E98: Real post-tax cost of capital | G98: % | I98: > | J98: =CHOOSE(year_selection, L98,M98,N98,O98,P98,Q98,R98,S98) -> 0.0379 | L98: 0.0417 | M98: 0.0408 | N98: 0.0402 | O98: 0.0379 | P98: 0.0379 | Q98: 0.0379 | R98: 0.0379 | S98: 0.0379 | U98: Paragraph 57
E99: Days in the charging year | G99: days | J99: =CHOOSE(year_selection, L99,M99,N99,O99,P99,Q99,R99,S99) -> 365 | L99: 365 | M99: 365 | N99: 366 | O99: =[1]!days_in_year -> 365 | P99: 365 | Q99: 365 | R99: 366 | S99: 365
C101: =INDEX('Version control'!$H$34:$H$59,MATCH($A$1,'Version control'!$F$34:$F$59,0),1)&"-E: Transmission exit charges" -> Input 503-E: Transmission exit charges
E103: Transmission exit charges | G103: £ per year | I103: > | J103: =CHOOSE(year_selection, L103,M103,N103,O103,P103,Q103,R103,S103) -> 19197064.17 | L103: 18643300 | M103: 18429946.42 | N103: 17754949.08 | O103: 19197064.17 | P103: 19724711.85 | Q103: 20360992.87 | R103: 20971822.66 | S103: 21600977.34 | U103: Paragraph 38
C105: =INDEX('Version control'!$H$34:$H$59,MATCH($A$1,'Version control'!$F$34:$F$59,0),1)&"-F: Other expenditure" -> Input 503-F: Other expenditure
E107: Other expenditure | I107: > | U107: Paragraph 39
F108: Direct cost | G108: £ per year | J108: =CHOOSE(year_selection, L108,M108,N108,O108,P108,Q108,R108,S108) -> 26111025.14 | L108: 28069125.64 | M108: 25401055.92 | N108: 25697639.88 | O108: 26111025.14 | P108: 26828708.93 | Q108: 27694151.16 | R108: 28524975.69 | S108: 29380724.96
F109: Indirect cost | G109: £ per year | J109: =CHOOSE(year_selection, L109,M109,N109,O109,P109,Q109,R109,S109) -> 61684476.31 | L109: 112907213.5 | M109: 93944832.34 | N109: 79907134.02 | O109: 61684476.31 | P109: 63379926.75 | Q109: 65424440.52 | R109: 67387173.73 | S109: 69408788.94
F110: Network rates | G110: £ per year | J110: =CHOOSE(year_selection, L110,M110,N110,O110,P110,Q110,R110,S110) -> 24567634.17 | L110: 15444500 | M110: 15708754.62 | N110: 23380042.81 | O110: 24567634.17 | P110: 25242896.55 | Q110: 26057183.53 | R110: 26838899.04 | S110: 27644066.01
B112: Checks
C114: Checks are not run for historic years, for which DNOs are not obliged to enter inputs.
E116: Check for error values | G116: number of issues | H116: =SUM(IF(ISERROR(H15:S111), 1)) -> 0
E118: Hours in charging year check
F119: Normal distribution timebands | G119: number of issues | H119: =SUM(L119:S119) -> 0 | M119: =IF(SUM(M19:M21) = M$99 * hours_in_day, 0, 1) -> 0 | N119: 0 | O119: 0 | P119: 0 | Q119: 0 | R119: 0 | S119: =IF(SUM(S19:S21) = S$99 * hours_in_day, 0, 1) -> 0
F120: Special distribution timebands | G120: number of issues | H120: =SUM(L120:S120) -> 0 | M120: =IF(SUM(M24:M26) = M$99 * hours_in_day, 0, 1) -> 0 | N120: 0 | O120: 0 | P120: 0 | Q120: 0 | R120: 0 | S120: =IF(SUM(S24:S26) = S$99 * hours_in_day, 0, 1) -> 0
E122: Summary of checks | G122: number of issues | H122: =SUM(H116, H119:H120) -> 0
B124: End of sheet

Sheet Fixed inputs
A1: =MID(CELL("filename",A1),FIND("]",CELL("filename",A1))+1,255) -> Fixed inputs
A2: =Cover!D21&" - "&Cover!D23 -> SP Manweb - V0.1
A3: =Cover!D2&" - "&Cover!D8&" v"&Cover!D10&" - "&Cover!D19 -> ARP model - Release for charge setting v3 - 2020/21
A4: =H174 & IF(H174 = 1, " issue", " issues") &" identified in checks on this sheet" -> 0 issues identified in checks on this sheet
B5: Click here to return to model map | G5: Units | H5: Constants | J5: Domestic Unrestricted | K5: Domestic Two Rate | L5: Domestic Off Peak (related MPAN) | M5: Small Non Domestic Unrestricted | N5: Small Non Domestic Two Rate | O5: Small Non Domestic Off Peak (related MPAN) | P5: LV Medium Non-Domestic | Q5: LV Sub Medium Non-Domestic | R5: HV Medium Non-Domestic | S5: LV Network Domestic | T5: LV Network Non-Domestic Non-CT | U5: LV HH Metered | V5: LV Sub HH Metered | W5: HV HH Metered | X5: NHH UMS category A | Y5: NHH UMS category B | Z5: NHH UMS category C | AA5: NHH UMS category D | AB5: LV UMS (Pseudo HH Metered) | AC5: LV Generation NHH or Aggregate HH | AD5: LV Sub Generation NHH | AE5: LV Generation Intermittent | AF5: LV Generation Intermittent no RP charge | AG5: LV Generation Non-Intermittent | AH5: LV Generation Non-Intermittent no RP charge | AI5: LV Sub Generation Intermittent | AJ5: LV Sub Generation Intermittent no RP charge | AK5: LV Sub Generation Non-Intermittent | AL5: LV Sub Generation Non-Intermittent no RP charge | AM5: HV Generation Intermittent | AN5: HV Generation Intermittent no RP charge | AO5: HV Generation Non-Intermittent | AP5: HV Generation Non-Intermittent no RP charge | AR5: Legal text reference
B7: Description
C9: This sheet sets out the inputs that should be constant across DNOs
B11: Fixed inputs
C13: =INDEX('Version control'!$H$34:$H$59,MATCH($A$1,'Version control'!$F$34:$F$59,0),1)&"-A: Conversions and time" -> Input 504-A: Conversions and time
E15: Hours per day | G15: hours | H15: 24
E16: Ten | G16: integer | H16: 10
E17: One hundred | G17: integer | H17: 100
E18: One thousand | G18: integer | H18: 1000
C20: =INDEX('Version control'!$H$34:$H$59,MATCH($A$1,'Version control'!$F$34:$F$59,0),1)&"-B: Input 101-B: Rounding" -> Input 504-B: Input 101-B: Rounding
D22: Number of decimal places each final charge should be rounded to, specified in Paragraph 14.
E24: Decimal places | I24: > | AR24: Paragraph 14
F25: Unit rate 1 | G25: integer | H25: 3
F26: Unit rate 2 | G26: integer | H26: 3
F27: Unit rate 3 | G27: integer | H27: 3
F28: Fixed charge | G28: integer | H28: 2
F29: Capacity charge | G29: integer | H29: 2
F30: Exceeded capacity charge | G30: integer | H30: 2
F31: Reactive power charge | G31: integer | H31: 3
C33: =INDEX('Version control'!$H$34:$H$59,MATCH($A$1,'Version control'!$F$34:$F$59,0),1)&"-C: Financial and general assumptions" -> Input 504-C: Financial and general assumptions
E35: Annualisation period | G35: years | H35: 40 | I35: > | AR35: Paragraph 57
E37: Power factor | G37: % | H37: 0.95 | I37: > | AR37: Paragraphs 21 & 79
E39: Indirect cost proportion | G39: % | H39: 0.6 | I39: > | AR39: Paragraph 39
E41: Network model GSP peak demand | G41: MW | H41: 500 | I41: > | AR41: Paragraph 20
C43: =INDEX('Version control'!$H$34:$H$59,MATCH($A$1,'Version control'!$F$34:$F$59,0),1)&"-D: Mappings" -> Input 504-D: Mappings
E45: LDNO discount map
F46: LDNO LV: LV user | G46: 1 or 0 | J46: 1 | K46: 1 | L46: 1 | M46: 1 | N46: 1 | O46: 1 | P46: 1 | Q46: 0 | R46: 0 | S46: 1 | T46: 1 | U46: 1 | V46: 0 | W46: 0 | X46: 1 | Y46: 1 | Z46: 1 | AA46: 1 | AB46: 1
F47: LDNO HV: LV user | G47: 1 or 0 | J47: 1 | K47: 1 | L47: 1 | M47: 1 | N47: 1 | O47: 1 | P47: 1 | Q47: 0 | R47: 0 | S47: 1 | T47: 1 | U47: 1 | V47: 0 | W47: 0 | X47: 1 | Y47: 1 | Z47: 1 | AA47: 1 | AB47: 1
F48: LDNO HV: LV Sub user | G48: 1 or 0 | J48: 0 | K48: 0 | L48: 0 | M48: 0 | N48: 0 | O48: 0 | P48: 0 | Q48: 0 | R48: 0 | S48: 0 | T48: 0 | U48: 0 | V48: 1 | W48: 0 | X48: 0 | Y48: 0 | Z48: 0 | AA48: 0 | AB48: 0
F49: LDNO HV: HV user | G49: 1 or 0 | J49: 0 | K49: 0 | L49: 0 | M49: 0 | N49: 0 | O49: 0 | P49: 0 | Q49: 0 | R49: 0 | S49: 0 | T49: 0 | U49: 0 | V49: 0 | W49: 1 | X49: 0 | Y49: 0 | Z49: 0 | AA49: 0 | AB49: 0
E51: Network level at which users are supplied | I51: > | AR51: Paragraph 30
E52: Network use factors based on customer contributed assets
F53: HV substation | G53: 1 or 0 | J53: 0 | K53: 0 | L53: 0 | M53: 0 | N53: 0 | O53: 0 | P53: 0 | Q53: 0 | R53: 0 | S53: 0 | T53: 0 | U53: 0 | V53: 0 | W53: 0 | X53: 0 | Y53: 0 | Z53: 0 | AA53: 0 | AB53: 0 | AC53: 0 | AD53: 0 | AE53: 0 | AF53: 0 | AG53: 0 | AH53: 0 | AI53: 0 | AJ53: 0 | AK53: 0 | AL53: 0 | AM53: 0 | AN53: 0 | AO53: 0 | AP53: 0
F54: HV network | G54: 1 or 0 | J54: 0 | K54: 0 | L54: 0 | M54: 0 | N54: 0 | O54: 0 | P54: 0 | Q54: 0 | R54: 1 | S54: 0 | T54: 0 | U54: 0 | V54: 0 | W54: 1 | X54: 0 | Y54: 0 | Z54: 0 | AA54: 0 | AB54: 0 | AC54: 0 | AD54: 0 | AE54: 0 | AF54: 0 | AG54: 0 | AH54: 0 | AI54: 0 | AJ54: 0 | AK54: 0 | AL54: 0 | AM54: 1 | AN54: 1 | AO54: 1 | AP54: 1
F55: LV substation | G55: 1 or 0 | J55: 0 | K55: 0 | L55: 0 | M55: 0 | N55: 0 | O55: 0 | P55: 0 | Q55: 1 | R55: 0 | S55: 0 | T55: 0 | U55: 0 | V55: 1 | W55: 0 | X55: 0 | Y55: 0 | Z55: 0 | AA55: 0 | AB55: 0 | AC55: 0 | AD55: 1 | AE55: 0 | AF55: 0 | AG55: 0 | AH55: 0 | AI55: 1 | AJ55: 1 | AK55: 1 | AL55: 1 | AM55: 0 | AN55: 0 | AO55: 0 | AP55: 0
F56: LV network | G56: 1 or 0 | J56: 1 | K56: 1 | L56: 1 | M56: 1 | N56: 1 | O56: 1 | P56: 1 | Q56: 0 | R56: 0 | S56: 1 | T56: 1 | U56: 1 | V56: 0 | W56: 0 | X56: 1 | Y56: 1 | Z56: 1 | AA56: 1 | AB56: 1 | AC56: 1 | AD56: 0 | AE56: 1 | AF56: 1 | AG56: 1 | AH56: 1 | AI56: 0 | AJ56: 0 | AK56: 0 | AL56: 0 | AM56: 0 | AN56: 0 | AO56: 0 | AP56: 0
E58: Network use factors (assuming generation contributes at level of connection)
E59: These assume demand and generation use the network from the point of connection.
F60: Transmission exit | G60: 1, 0 or -1 | J60: 1 | K60: 1 | L60: 1 | M60: 1 | N60: 1 | O60: 1 | P60: 1 | Q60: 1 | R60: 1 | S60: 1 | T60: 1 | U60: 1 | V60: 1 | W60: 1 | X60: 1 | Y60: 1 | Z60: 1 | AA60: 1 | AB60: 1 | AC60: -1 | AD60: -1 | AE60: -1 | AF60: -1 | AG60: -1 | AH60: -1 | AI60: -1 | AJ60: -1 | AK60: -1 | AL60: -1 | AM60: -1 | AN60: -1 | AO60: -1 | AP60: -1
F61: GSPs | G61: 1, 0 or -1 | J61: 1 | K61: 1 | L61: 1 | M61: 1 | N61: 1 | O61: 1 | P61: 1 | Q61: 1 | R61: 1 | S61: 1 | T61: 1 | U61: 1 | V61: 1 | W61: 1 | X61: 1 | Y61: 1 | Z61: 1 | AA61: 1 | AB61: 1 | AC61: -1 | AD61: -1 | AE61: -1 | AF61: -1 | AG61: -1 | AH61: -1 | AI61: -1 | AJ61: -1 | AK61: -1 | AL61: -1 | AM61: -1 | AN61: -1 | AO61: -1 | AP61: -1
F62: 132kV | G62: 1, 0 or -1 | J62: 1 | K62: 1 | L62: 1 | M62: 1 | N62: 1 | O62: 1 | P62: 1 | Q62: 1 | R62: 1 | S62: 1 | T62: 1 | U62: 1 | V62: 1 | W62: 1 | X62: 1 | Y62: 1 | Z62: 1 | AA62: 1 | AB62: 1 | AC62: -1 | AD62: -1 | AE62: -1 | AF62: -1 | AG62: -1 | AH62: -1 | AI62: -1 | AJ62: -1 | AK62: -1 | AL62: -1 | AM62: -1 | AN62: -1 | AO62: -1 | AP62: -1
F63: 132kV/EHV | G63: 1, 0 or -1 | J63: 1 | K63: 1 | L63: 1 | M63: 1 | N63: 1 | O63: 1 | P63: 1 | Q63: 1 | R63: 1 | S63: 1 | T63: 1 | U63: 1 | V63: 1 | W63: 1 | X63: 1 | Y63: 1 | Z63: 1 | AA63: 1 | AB63: 1 | AC63: -1 | AD63: -1 | AE63: -1 | AF63: -1 | AG63: -1 | AH63: -1 | AI63: -1 | AJ63: -1 | AK63: -1 | AL63: -1 | AM63: -1 | AN63: -1 | AO63: -1 | AP63: -1
F64: EHV | G64: 1, 0 or -1 | J64: 1 | K64: 1 | L64: 1 | M64: 1 | N64: 1 | O64: 1 | P64: 1 | Q64: 1 | R64: 1 | S64: 1 | T64: 1 | U64: 1 | V64: 1 | W64: 1 | X64: 1 | Y64: 1 | Z64: 1 | AA64: 1 | AB64: 1 | AC64: -1 | AD64: -1 | AE64: -1 | AF64: -1 | AG64: -1 | AH64: -1 | AI64: -1 | AJ64: -1 | AK64: -1 | AL64: -1 | AM64: -1 | AN64: -1 | AO64: -1 | AP64: -1
F65: EHV/HV | G65: 1, 0 or -1 | J65: 1 | K65: 1 | L65: 1 | M65: 1 | N65: 1 | O65: 1 | P65: 1 | Q65: 1 | R65: 1 | S65: 1 | T65: 1 | U65: 1 | V65: 1 | W65: 1 | X65: 1 | Y65: 1 | Z65: 1 | AA65: 1 | AB65: 1 | AC65: -1 | AD65: -1 | AE65: -1 | AF65: -1 | AG65: -1 | AH65: -1 | AI65: -1 | AJ65: -1 | AK65: -1 | AL65: -1 | AM65: -1 | AN65: -1 | AO65: -1 | AP65: -1
F66: 132kV/HV | G66: 1, 0 or -1 | J66: 1 | K66: 1 | L66: 1 | M66: 1 | N66: 1 | O66: 1 | P66: 1 | Q66: 1 | R66: 1 | S66: 1 | T66: 1 | U66: 1 | V66: 1 | W66: 1 | X66: 1 | Y66: 1 | Z66: 1 | AA66: 1 | AB66: 1 | AC66: -1 | AD66: -1 | AE66: -1 | AF66: -1 | AG66: -1 | AH66: -1 | AI66: -1 | AJ66: -1 | AK66: -1 | AL66: -1 | AM66: -1 | AN66: -1 | AO66: -1 | AP66: -1
F67: HV | G67: 1, 0 or -1 | J67: 1 | K67: 1 | L67: 1 | M67: 1 | N67: 1 | O67: 1 | P67: 1 | Q67: 1 | R67: 1 | S67: 1 | T67: 1 | U67: 1 | V67: 1 | W67: 1 | X67: 1 | Y67: 1 | Z67: 1 | AA67: 1 | AB67: 1 | AC67: -1 | AD67: -1 | AE67: -1 | AF67: -1 | AG67: -1 | AH67: -1 | AI67: -1 | AJ67: -1 | AK67: -1 | AL67: -1 | AM67: -1 | AN67: -1 | AO67: -1 | AP67: -1
F68: HV/LV | G68: 1, 0 or -1 | J68: 1 | K68: 1 | L68: 1 | M68: 1 | N68: 1 | O68: 1 | P68: 1 | Q68: 1 | R68: 0 | S68: 1 | T68: 1 | U68: 1 | V68: 1 | W68: 0 | X68: 1 | Y68: 1 | Z68: 1 | AA68: 1 | AB68: 1 | AC68: -1 | AD68: -1 | AE68: -1 | AF68: -1 | AG68: -1 | AH68: -1 | AI68: -1 | AJ68: -1 | AK68: -1 | AL68: -1 | AM68: 0 | AN68: 0 | AO68: 0 | AP68: 0
F69: LV circuits | G69: 1, 0 or -1 | J69: 1 | K69: 1 | L69: 1 | M69: 1 | N69: 1 | O69: 1 | P69: 1 | Q69: 0 | R69: 0 | S69: 1 | T69: 1 | U69: 1 | V69: 0 | W69: 0 | X69: 1 | Y69: 1 | Z69: 1 | AA69: 1 | AB69: 1 | AC69: -1 | AD69: 0 | AE69: -1 | AF69: -1 | AG69: -1 | AH69: -1 | AI69: 0 | AJ69: 0 | AK69: 0 | AL69: 0 | AM69: 0 | AN69: 0 | AO69: 0 | AP69: 0
E71: Network use factors (assuming generation makes no contribution at level of connection) | I71: > | AR71: Paragraphs 62 & 71
E72: Equal to 0 for the network level at which generation is connected, otherwise equal to network use factor
F73: Transmission exit | G73: 1, 0 or -1 | J73: 1 | K73: 1 | L73: 1 | M73: 1 | N73: 1 | O73: 1 | P73: 1 | Q73: 1 | R73: 1 | S73: 1 | T73: 1 | U73: 1 | V73: 1 | W73: 1 | X73: 1 | Y73: 1 | Z73: 1 | AA73: 1 | AB73: 1 | AC73: -1 | AD73: -1 | AE73: -1 | AF73: -1 | AG73: -1 | AH73: -1 | AI73: -1 | AJ73: -1 | AK73: -1 | AL73: -1 | AM73: -1 | AN73: -1 | AO73: -1 | AP73: -1
F74: GSPs | G74: 1, 0 or -1 | J74: 1 | K74: 1 | L74: 1 | M74: 1 | N74: 1 | O74: 1 | P74: 1 | Q74: 1 | R74: 1 | S74: 1 | T74: 1 | U74: 1 | V74: 1 | W74: 1 | X74: 1 | Y74: 1 | Z74: 1 | AA74: 1 | AB74: 1 | AC74: -1 | AD74: -1 | AE74: -1 | AF74: -1 | AG74: -1 | AH74: -1 | AI74: -1 | AJ74: -1 | AK74: -1 | AL74: -1 | AM74: -1 | AN74: -1 | AO74: -1 | AP74: -1
F75: 132kV | G75: 1, 0 or -1 | J75: 1 | K75: 1 | L75: 1 | M75: 1 | N75: 1 | O75: 1 | P75: 1 | Q75: 1 | R75: 1 | S75: 1 | T75: 1 | U75: 1 | V75: 1 | W75: 1 | X75: 1 | Y75: 1 | Z75: 1 | AA75: 1 | AB75: 1 | AC75: -1 | AD75: -1 | AE75: -1 | AF75: -1 | AG75: -1 | AH75: -1 | AI75: -1 | AJ75: -1 | AK75: -1 | AL75: -1 | AM75: -1 | AN75: -1 | AO75: -1 | AP75: -1
F76: 132kV/EHV | G76: 1, 0 or -1 | J76: 1 | K76: 1 | L76: 1 | M76: 1 | N76: 1 | O76: 1 | P76: 1 | Q76: 1 | R76: 1 | S76: 1 | T76: 1 | U76: 1 | V76: 1 | W76: 1 | X76: 1 | Y76: 1 | Z76: 1 | AA76: 1 | AB76: 1 | AC76: -1 | AD76: -1 | AE76: -1 | AF76: -1 | AG76: -1 | AH76: -1 | AI76: -1 | AJ76: -1 | AK76: -1 | AL76: -1 | AM76: -1 | AN76: -1 | AO76: -1 | AP76: -1
F77: EHV | G77: 1, 0 or -1 | J77: 1 | K77: 1 | L77: 1 | M77: 1 | N77: 1 | O77: 1 | P77: 1 | Q77: 1 | R77: 1 | S77: 1 | T77: 1 | U77: 1 | V77: 1 | W77: 1 | X77: 1 | Y77: 1 | Z77: 1 | AA77: 1 | AB77: 1 | AC77: -1 | AD77: -1 | AE77: -1 | AF77: -1 | AG77: -1 | AH77: -1 | AI77: -1 | AJ77: -1 | AK77: -1 | AL77: -1 | AM77: -1 | AN77: -1 | AO77: -1 | AP77: -1
F78: EHV/HV | G78: 1, 0 or -1 | J78: 1 | K78: 1 | L78: 1 | M78: 1 | N78: 1 | O78: 1 | P78: 1 | Q78: 1 | R78: 1 | S78: 1 | T78: 1 | U78: 1 | V78: 1 | W78: 1 | X78: 1 | Y78: 1 | Z78: 1 | AA78: 1 | AB78: 1 | AC78: -1 | AD78: -1 | AE78: -1 | AF78: -1 | AG78: -1 | AH78: -1 | AI78: -1 | AJ78: -1 | AK78: -1 | AL78: -1 | AM78: -1 | AN78: -1 | AO78: -1 | AP78: -1
F79: 132kV/HV | G79: 1, 0 or -1 | J79: 1 | K79: 1 | L79: 1 | M79: 1 | N79: 1 | O79: 1 | P79: 1 | Q79: 1 | R79: 1 | S79: 1 | T79: 1 | U79: 1 | V79: 1 | W79: 1 | X79: 1 | Y79: 1 | Z79: 1 | AA79: 1 | AB79: 1 | AC79: -1 | AD79: -1 | AE79: -1 | AF79: -1 | AG79: -1 | AH79: -1 | AI79: -1 | AJ79: -1 | AK79: -1 | AL79: -1 | AM79: -1 | AN79: -1 | AO79: -1 | AP79: -1
F80: HV | G80: 1, 0 or -1 | J80: 1 | K80: 1 | L80: 1 | M80: 1 | N80: 1 | O80: 1 | P80: 1 | Q80: 1 | R80: 1 | S80: 1 | T80: 1 | U80: 1 | V80: 1 | W80: 1 | X80: 1 | Y80: 1 | Z80: 1 | AA80: 1 | AB80: 1 | AC80: -1 | AD80: -1 | AE80: -1 | AF80: -1 | AG80: -1 | AH80: -1 | AI80: -1 | AJ80: -1 | AK80: -1 | AL80: -1 | AM80: 0 | AN80: 0 | AO80: 0 | AP80: 0
F81: HV/LV | G81: 1, 0 or -1 | J81: 1 | K81: 1 | L81: 1 | M81: 1 | N81: 1 | O81: 1 | P81: 1 | Q81: 1 | R81: 0 | S81: 1 | T81: 1 | U81: 1 | V81: 1 | W81: 0 | X81: 1 | Y81: 1 | Z81: 1 | AA81: 1 | AB81: 1 | AC81: -1 | AD81: 0 | AE81: -1 | AF81: -1 | AG81: -1 | AH81: -1 | AI81: 0 | AJ81: 0 | AK81: 0 | AL81: 0 | AM81: 0 | AN81: 0 | AO81: 0 | AP81: 0
F82: LV circuits | G82: 1, 0 or -1 | J82: 1 | K82: 1 | L82: 1 | M82: 1 | N82: 1 | O82: 1 | P82: 1 | Q82: 0 | R82: 0 | S82: 1 | T82: 1 | U82: 1 | V82: 0 | W82: 0 | X82: 1 | Y82: 1 | Z82: 1 | AA82: 1 | AB82: 1 | AC82: 0 | AD82: 0 | AE82: 0 | AF82: 0 | AG82: 0 | AH82: 0 | AI82: 0 | AJ82: 0 | AK82: 0 | AL82: 0 | AM82: 0 | AN82: 0 | AO82: 0 | AP82: 0
C84: =INDEX('Version control'!$H$34:$H$59,MATCH($A$1,'Version control'!$F$34:$F$59,0),1)&"-E: Standing charge factors" -> Input 504-E: Standing charge factors
E86: Equal to 0 for the network level at which generation is connected, otherwise equal to network use factor
E88: Standing charge factors | I88: > | AR88: Paragraph 74
F89: Transmission exit | G89: %
F90: GSPs | G90: %
F91: 132kV | G91: %
F92: 132kV/EHV | G92: %
F93: EHV | G93: % | R93: 0.2 | W93: 0.2
F94: EHV/HV | G94: % | R94: 1 | W94: 1
F95: 132kV/HV | G95: %
F96: HV | G96: % | R96: 1 | U96: 0.2 | V96: 1 | W96: 1
F97: HV/LV | G97: % | Q97: 1 | U97: 1 | V97: 1
F98: LV circuits | G98: % | J98: 1 | K98: 1 | L98: 1 | M98: 1 | N98: 1 | O98: 1 | P98: 1 | S98: 1 | T98: 1 | U98: 1 | X98: 0 | Y98: 0 | Z98: 0 | AA98: 0 | AB98: 0
C100: =INDEX('Version control'!$H$34:$H$59,MATCH($A$1,'Version control'!$F$34:$F$59,0),1)&"-F: Flags" -> Input 504-F: Flags
D102: Override discount rate applied
D103: See Schedule 16, para 125. This has been interpreted to mean that MPANs are fully discounted,
D104: and everything else is not
E105: MWh
F106: Override discount | G106: TRUE / FALSE | I106: > | J106: FALSE | K106: FALSE | L106: FALSE | M106: FALSE | N106: FALSE | O106: FALSE | P106: FALSE | Q106: FALSE | R106: FALSE | S106: FALSE | T106: FALSE | U106: FALSE | V106: FALSE | W106: FALSE | X106: FALSE | Y106: FALSE | Z106: FALSE | AA106: FALSE | AB106: FALSE | AC106: TRUE | AD106: TRUE | AE106: TRUE | AF106: TRUE | AG106: TRUE | AH106: TRUE | AI106: TRUE | AJ106: TRUE | AK106: TRUE | AL106: TRUE | AM106: TRUE | AN106: TRUE | AO106: TRUE | AP106: TRUE | AR106: Paragraph 99
F107: Discount % | G107: % | AC107: 0 | AD107: 0 | AE107: 0 | AF107: 0 | AG107: 0 | AH107: 0 | AI107: 0 | AJ107: 0 | AK107: 0 | AL107: 0 | AM107: 0 | AN107: 0 | AO107: 0 | AP107: 0
E109: MPANs
F110: Override discount | G110: TRUE / FALSE | J110: FALSE | K110: FALSE | L110: FALSE | M110: FALSE | N110: FALSE | O110: FALSE | P110: FALSE | Q110: FALSE | R110: FALSE | S110: FALSE | T110: FALSE | U110: FALSE | V110: FALSE | W110: FALSE | X110: FALSE | Y110: FALSE | Z110: FALSE | AA110: FALSE | AB110: FALSE | AC110: TRUE | AD110: TRUE | AE110: TRUE | AF110: TRUE | AG110: TRUE | AH110: TRUE | AI110: TRUE | AJ110: TRUE | AK110: TRUE | AL110: TRUE | AM110: TRUE | AN110: TRUE | AO110: TRUE | AP110: TRUE
F111: Discount % | G111: % | AC111: 1 | AD111: 1 | AE111: 1 | AF111: 1 | AG111: 1 | AH111: 1 | AI111: 1 | AJ111: 1 | AK111: 1 | AL111: 1 | AM111: 1 | AN111: 1 | AO111: 1 | AP111: 1
E113: Import capacity (kVA)
F114: Override discount | G114: TRUE / FALSE | J114: FALSE | K114: FALSE | L114: FALSE | M114: FALSE | N114: FALSE | O114: FALSE | P114: FALSE | Q114: FALSE | R114: FALSE | S114: FALSE | T114: FALSE | U114: FALSE | V114: FALSE | W114: FALSE | X114: FALSE | Y114: FALSE | Z114: FALSE | AA114: FALSE | AB114: FALSE | AC114: TRUE | AD114: TRUE | AE114: TRUE | AF114: TRUE | AG114: TRUE | AH114: TRUE | AI114: TRUE | AJ114: TRUE | AK114: TRUE | AL114: TRUE | AM114: TRUE | AN114: TRUE | AO114: TRUE | AP114: TRUE
F115: Discount % | G115: % | AC115: 0 | AD115: 0 | AE115: 0 | AF115: 0 | AG115: 0 | AH115: 0 | AI115: 0 | AJ115: 0 | AK115: 0 | AL115: 0 | AM115: 0 | AN115: 0 | AO115: 0 | AP115: 0
E117: Exceeded capacity (kVA)
F118: Override discount | G118: TRUE / FALSE | J118: FALSE | K118: FALSE | L118: FALSE | M118: FALSE | N118: FALSE | O118: FALSE | P118: FALSE | Q118: FALSE | R118: FALSE | S118: FALSE | T118: FALSE | U118: FALSE | V118: FALSE | W118: FALSE | X118: FALSE | Y118: FALSE | Z118: FALSE | AA118: FALSE | AB118: FALSE | AC118: TRUE | AD118: TRUE | AE118: TRUE | AF118: TRUE | AG118: TRUE | AH118: TRUE | AI118: TRUE | AJ118: TRUE | AK118: TRUE | AL118: TRUE | AM118: TRUE | AN118: TRUE | AO118: TRUE | AP118: TRUE
F119: Discount % | G119: % | AC119: 0 | AD119: 0 | AE119: 0 | AF119: 0 | AG119: 0 | AH119: 0 | AI119: 0 | AJ119: 0 | AK119: 0 | AL119: 0 | AM119: 0 | AN119: 0 | AO119: 0 | AP119: 0
E121: Reactive power units (MVArh)
F122: Override discount | G122: TRUE / FALSE | J122: FALSE | K122: FALSE | L122: FALSE | M122: FALSE | N122: FALSE | O122: FALSE | P122: FALSE | Q122: FALSE | R122: FALSE | S122: FALSE | T122: FALSE | U122: FALSE | V122: FALSE | W122: FALSE | X122: FALSE | Y122: FALSE | Z122: FALSE | AA122: FALSE | AB122: FALSE | AC122: TRUE | AD122: TRUE | AE122: TRUE | AF122: TRUE | AG122: TRUE | AH122: TRUE | AI122: TRUE | AJ122: TRUE | AK122: TRUE | AL122: TRUE | AM122: TRUE | AN122: TRUE | AO122: TRUE | AP122: TRUE
F123: Discount % | G123: % | AC123: 0 | AD123: 0 | AE123: 0 | AF123: 0 | AG123: 0 | AH123: 0 | AI123: 0 | AJ123: 0 | AK123: 0 | AL123: 0 | AM123: 0 | AN123: 0 | AO123: 0 | AP123: 0
E125: Override to use flat annual load
E126: These are used to identify customers where a flat annual load should be assumed
F127: Flag to use flat annual load | G127: TRUE / FALSE | J127: FALSE | K127: FALSE | L127: FALSE | M127: FALSE | N127: FALSE | O127: FALSE | P127: FALSE | Q127: FALSE | R127: FALSE | S127: FALSE | T127: FALSE | U127: FALSE | V127: FALSE | W127: FALSE | X127: FALSE | Y127: FALSE | Z127: FALSE | AA127: FALSE | AB127: FALSE | AC127: TRUE | AD127: TRUE | AE127: TRUE | AF127: TRUE | AG127: FALSE | AH127: FALSE | AI127: TRUE | AJ127: TRUE | AK127: FALSE | AL127: FALSE | AM127: TRUE | AN127: TRUE | AO127: FALSE | AP127: FALSE
E129: Unmetered supply flags
E130: These are used to flag UMS tariff forecast in the pseudo load coefficient calculations, because UMS
E131: customers are subject to a different timebanding
F132: Unmetered supply flags | G132: TRUE / FALSE | J132: FALSE | K132: FALSE | L132: FALSE | M132: FALSE | N132: FALSE | O132: FALSE | P132: FALSE | Q132: FALSE | R132: FALSE | S132: FALSE | T132: FALSE | U132: FALSE | V132: FALSE | W132: FALSE | X132: TRUE | Y132: TRUE | Z132: TRUE | AA132: TRUE | AB132: TRUE | AC132: FALSE | AD132: FALSE | AE132: FALSE | AF132: FALSE | AG132: FALSE | AH132: FALSE | AI132: FALSE | AJ132: FALSE | AK132: FALSE | AL132: FALSE | AM132: FALSE | AN132: FALSE | AO132: FALSE | AP132: FALSE
E134: Flags used in calculation of LV diversity allowance
E135: FALSE = exclude
F136: Flag for customers included in aggregate maximum demand | G136: TRUE / FALSE | J136: TRUE | K136: TRUE | L136: FALSE | M136: TRUE | N136: TRUE | O136: FALSE | P136: TRUE | Q136: TRUE | R136: TRUE | S136: TRUE | T136: TRUE | U136: TRUE | V136: TRUE | W136: TRUE | X136: TRUE | Y136: TRUE | Z136: TRUE | AA136: TRUE | AB136: TRUE | AC136: TRUE | AD136: TRUE | AE136: TRUE | AF136: TRUE | AG136: TRUE | AH136: TRUE | AI136: TRUE | AJ136: TRUE | AK136: TRUE | AL136: TRUE | AM136: TRUE | AN136: TRUE | AO136: TRUE | AP136: TRUE
E138: Flags for applicability of capacity & reactive charges | I138: > | AR138: Paragraphs 141 & 146
E139: 0 = charges not applicable to customer type
E140: For fixed charges, 1 = capacity element is allocated to fixed charges
F141: Capacity charge | G141: 1 or 0 | J141: 0 | K141: 0 | L141: 0 | M141: 0 | N141: 0 | O141: 0 | P141: 0 | Q141: 0 | R141: 0 | S141: 0 | T141: 0 | U141: 1 | V141: 1 | W141: 1 | X141: 0 | Y141: 0 | Z141: 0 | AA141: 0 | AB141: 0 | AC141: 0 | AD141: 0 | AE141: 0 | AF141: 0 | AG141: 0 | AH141: 0 | AI141: 0 | AJ141: 0 | AK141: 0 | AL141: 0 | AM141: 0 | AN141: 0 | AO141: 0 | AP141: 0
F142: Exceeded capacity charge | G142: 1 or 0 | J142: 0 | K142: 0 | L142: 0 | M142: 0 | N142: 0 | O142: 0 | P142: 0 | Q142: 0 | R142: 0 | S142: 0 | T142: 0 | U142: 1 | V142: 1 | W142: 1 | X142: 0 | Y142: 0 | Z142: 0 | AA142: 0 | AB142: 0 | AC142: 0 | AD142: 0 | AE142: 0 | AF142: 0 | AG142: 0 | AH142: 0 | AI142: 0 | AJ142: 0 | AK142: 0 | AL142: 0 | AM142: 0 | AN142: 0 | AO142: 0 | AP142: 0
F143: Reactive power | G143: 1 or 0 | J143: 0 | K143: 0 | L143: 0 | M143: 0 | N143: 0 | O143: 0 | P143: 0 | Q143: 0 | R143: 0 | S143: 0 | T143: 0 | U143: 1 | V143: 1 | W143: 1 | X143: 0 | Y143: 0 | Z143: 0 | AA143: 0 | AB143: 0 | AC143: 0 | AD143: 0 | AE143: 1 | AF143: 0 | AG143: 1 | AH143: 0 | AI143: 1 | AJ143: 0 | AK143: 1 | AL143: 0 | AM143: 1 | AN143: 0 | AO143: 1 | AP143: 0
F144: Capacity charge allocated to fixed charge | G144: 1 or 0 | J144: 1 | K144: 1 | L144: 0 | M144: 1 | N144: 1 | O144: 0 | P144: 1 | Q144: 1 | R144: 1 | S144: 1 | T144: 1 | U144: 0 | V144: 0 | W144: 0 | X144: 0 | Y144: 0 | Z144: 0 | AA144: 0 | AB144: 0 | AC144: 0 | AD144: 0 | AE144: 0 | AF144: 0 | AG144: 0 | AH144: 0 | AI144: 0 | AJ144: 0 | AK144: 0 | AL144: 0 | AM144: 0 | AN144: 0 | AO144: 0 | AP144: 0
C146: =INDEX('Version control'!$H$34:$H$59,MATCH($A$1,'Version control'!$F$34:$F$59,0),1)&"-G: Identifiers for customer groupings" -> Input 504-G: Identifiers for customer groupings
E148: Groupings for fixed charges
E149: Sets out the groups that are aggregated when calculating fixed charges. Each group is given an identifier.
F150: Groupings for fixed charges | G150: integer | J150: 1 | K150: 1 | M150: 1 | N150: 1 | P150: 2 | Q150: 3 | R150: 4 | S150: 1 | T150: 1
E152: Groupings for equalising unit rates
E153: Sets out the groups that are equalised for unit rates, as set out in Paragraph 72A.
F154: Profile class group | G154: text | J154: 1&2 | K154: 1&2 | L154: 1&2 | M154: 3&4 | N154: 3&4 | O154: 3&4 | S154: LV Network Domestic | T154: LV Network Non-Domestic
F155: Equalisation group | G155: text | J155: Domestic | K155: Domestic | L155: Domestic | M155: Non-domestic | N155: Non-domestic | O155: Non-domestic | S155: Domestic | T155: Non-domestic
C157: =INDEX('Version control'!$H$34:$H$59,MATCH($A$1,'Version control'!$F$34:$F$59,0),1)&"-H: Decimal places for error checks" -> Input 504-H: Decimal places for error checks
E159: Decimals of precision for error checks | G159: integer | H159: 5
B161: Checks
E163: Check for error values | G163: number of issues | H163: =SUM(IF(ISERROR(H15:AP155), 1)) -> 0
E165: Check that UMS flags apply only to UMS | G165: number of issues | H165: =SUM(J165:AP165) -> 0 | J165: =IF(J132, IF(FIND("UMS", J5) > 0, 0, 1), 0) -> 0 | K165: 0 | L165: 0 | M165: 0 | N165: 0 | O165: 0 | P165: 0 | Q165: 0 | R165: 0 | S165: 0 | T165: 0 | U165: 0 | V165: 0 | W165: 0 | X165: 0 | Y165: 0 | Z165: 0 | AA165: 0 | AB165: 0 | AC165: 0 | AD165: 0 | AE165: 0 | AF165: 0 | AG165: 0 | AH165: 0 | AI165: 0 | AJ165: 0 | AK165: 0 | AL165: 0 | AM165: 0 | AN165: 0 | AO165: 0 | AP165: 0
E167: Check that discount overrides are either FALSE, or non-zero
F168: MWh override | G168: number of issues | H168: =SUM(J168:AP168) -> 0 | J168: =IF( OR( AND(J106 = TRUE, NOT(ISBLANK(J107))), AND(J106 = FALSE, J107 = 0)), 0, 1) -> 0 | K168: =IF( OR( AND(K106 = TRUE, NOT(ISBLANK(K107))), AND(K106 = FALSE, K107 = 0)), 0, 1) -> 0 | L168: 0 | M168: 0 | N168: 0 | O168: 0 | P168: 0 | Q168: 0 | R168: 0 | S168: 0 | T168: 0 | U168: 0 | V168: 0 | W168: 0 | X168: 0 | Y168: 0 | Z168: 0 | AA168: 0 | AB168: 0 | AC168: 0 | AD168: 0 | AE168: 0 | AF168: 0 | AG168: 0 | AH168: 0 | AI168: 0 | AJ168: 0 | AK168: 0 | AL168: 0 | AM168: 0 | AN168: 0 | AO168: 0 | AP168: 0
F169: MPAN override | G169: number of issues | H169: =SUM(J169:AP169) -> 0 | J169: =IF( OR( AND(J110 = TRUE, NOT(ISBLANK(J111))), AND(J110 = FALSE, J111 = 0)), 0, 1) -> 0 | K169: =IF( OR( AND(K110 = TRUE, NOT(ISBLANK(K111))), AND(K110 = FALSE, K111 = 0)), 0, 1) -> 0 | L169: 0 | M169: 0 | N169: 0 | O169: 0 | P169: 0 | Q169: 0 | R169: 0 | S169: 0 | T169: 0 | U169: 0 | V169: 0 | W169: 0 | X169: 0 | Y169: 0 | Z169: 0 | AA169: 0 | AB169: 0 | AC169: 0 | AD169: 0 | AE169: 0 | AF169: 0 | AG169: 0 | AH169: 0 | AI169: 0 | AJ169: 0 | AK169: 0 | AL169: 0 | AM169: 0 | AN169: 0 | AO169: 0 | AP169: 0
F170: Import capacity override | G170: number of issues | H170: =SUM(J170:AP170) -> 0 | J170: =IF( OR( AND(J114 = TRUE, NOT(ISBLANK(J115))), AND(J114 = FALSE, J115 = 0)), 0, 1) -> 0 | K170: =IF( OR( AND(K114 = TRUE, NOT(ISBLANK(K115))), AND(K114 = FALSE, K115 = 0)), 0, 1) -> 0 | L170: 0 | M170: 0 | N170: 0 | O170: 0 | P170: 0 | Q170: 0 | R170: 0 | S170: 0 | T170: 0 | U170: 0 | V170: 0 | W170: 0 | X170: 0 | Y170: 0 | Z170: 0 | AA170: 0 | AB170: 0 | AC170: 0 | AD170: 0 | AE170: 0 | AF170: 0 | AG170: 0 | AH170: 0 | AI170: 0 | AJ170: 0 | AK170: 0 | AL170: 0 | AM170: 0 | AN170: 0 | AO170: 0 | AP170: 0
F171: Exceeded capacity override | G171: number of issues | H171: =SUM(J171:AP171) -> 0 | J171: =IF( OR( AND(J118 = TRUE, NOT(ISBLANK(J119))), AND(J118 = FALSE, J119 = 0)), 0, 1) -> 0 | K171: =IF( OR( AND(K118 = TRUE, NOT(ISBLANK(K119))), AND(K118 = FALSE, K119 = 0)), 0, 1) -> 0 | L171: 0 | M171: 0 | N171: 0 | O171: 0 | P171: 0 | Q171: 0 | R171: 0 | S171: 0 | T171: 0 | U171: 0 | V171: 0 | W171: 0 | X171: 0 | Y171: 0 | Z171: 0 | AA171: 0 | AB171: 0 | AC171: 0 | AD171: 0 | AE171: 0 | AF171: 0 | AG171: 0 | AH171: 0 | AI171: 0 | AJ171: 0 | AK171: 0 | AL171: 0 | AM171: 0 | AN171: 0 | AO171: 0 | AP171: 0
F172: Reactive power override | G172: number of issues | H172: =SUM(J172:AP172) -> 0 | J172: =IF( OR( AND(J122 = TRUE, NOT(ISBLANK(J123))), AND(J122 = FALSE, J123 = 0)), 0, 1) -> 0 | K172: =IF( OR( AND(K122 = TRUE, NOT(ISBLANK(K123))), AND(K122 = FALSE, K123 = 0)), 0, 1) -> 0 | L172: 0 | M172: 0 | N172: 0 | O172: 0 | P172: 0 | Q172: 0 | R172: 0 | S172: 0 | T172: 0 | U172: 0 | V172: 0 | W172: 0 | X172: 0 | Y172: 0 | Z172: 0 | AA172: 0 | AB172: 0 | AC172: 0 | AD172: 0 | AE172: 0 | AF172: 0 | AG172: 0 | AH172: 0 | AI172: 0 | AJ172: 0 | AK172: 0 | AL172: 0 | AM172: 0 | AN172: 0 | AO172: 0 | AP172: 0
E174: Summary of checks | G174: number of issues | H174: =H163 + H165 + SUM(H168:H172) -> 0
B176: End of sheet

Sheet Inputs by customer type
A1: =MID(CELL("filename",A1),FIND("]",CELL("filename",A1))+1,255) -> Inputs by customer type
A2: =Cover!D21&" - "&Cover!D23 -> SP Manweb - V0.1
A3: =Cover!D2&" - "&Cover!D8&" v"&Cover!D10&" - "&Cover!D19 -> ARP model - Release for charge setting v3 - 2020/21
A4: =H88 & IF(H88 = 1, " issue", " issues") &" identified in checks on this sheet" -> 0 issues identified in checks on this sheet
B5: Click here to return to model map | G5: Units | H5: Constants | J5: Domestic Unrestricted | K5: Domestic Two Rate | L5: Domestic Off Peak (related MPAN) | M5: Small Non Domestic Unrestricted | N5: Small Non Domestic Two Rate | O5: Small Non Domestic Off Peak (related MPAN) | P5: LV Medium Non-Domestic | Q5: LV Sub Medium Non-Domestic | R5: HV Medium Non-Domestic | S5: LV Network Domestic | T5: LV Network Non-Domestic Non-CT | U5: LV HH Metered | V5: LV Sub HH Metered | W5: HV HH Metered | X5: NHH UMS category A | Y5: NHH UMS category B | Z5: NHH UMS category C | AA5: NHH UMS category D | AB5: LV UMS (Pseudo HH Metered) | AC5: LV Generation NHH or Aggregate HH | AD5: LV Sub Generation NHH | AE5: LV Generation Intermittent | AF5: LV Generation Intermittent no RP charge | AG5: LV Generation Non-Intermittent | AH5: LV Generation Non-Intermittent no RP charge | AI5: LV Sub Generation Intermittent | AJ5: LV Sub Generation Intermittent no RP charge | AK5: LV Sub Generation Non-Intermittent | AL5: LV Sub Generation Non-Intermittent no RP charge | AM5: HV Generation Intermittent | AN5: HV Generation Intermittent no RP charge | AO5: HV Generation Non-Intermittent | AP5: HV Generation Non-Intermittent no RP charge | AR5: Legal text reference
B7: Description
C9: This sheet sets out the inputs by customer type to be filled in by DNOs.
E11: Charging year selected | G11: year | H11: =charging_year_selected -> 2020/21
E12: Historic / current / forecast | G12: text | H12: ='ARP_User control'!$H$36 -> Current
B14: Inputs by customer type
C16: =INDEX('Version control'!$H$34:$H$59,MATCH($A$1,'Version control'!$F$34:$F$59,0),1)&"-A: Load characteristics" -> Section 501-A: Load characteristics
E18: Load factor | G18: % | I18: > | J18: ='ARP_Inputs by customer type'!J19 -> 0.4506666667 | K18: ='ARP_Inputs by customer type'!J20 -> 0.2476666667 | L18: ='ARP_Inputs by customer type'!J21 -> 0.102 | M18: ='ARP_Inputs by customer type'!J22 -> 0.387 | N18: ='ARP_Inputs by customer type'!J23 -> 0.5546666667 | O18: ='ARP_Inputs by customer type'!J24 -> 0.167 | P18: ='ARP_Inputs by customer type'!J25 -> 0.56 | Q18: ='ARP_Inputs by customer type'!J26 -> 0.5273333333 | R18: ='ARP_Inputs by customer type'!J27 -> 0.5273333333 | S18: ='ARP_Inputs by customer type'!J28 -> 0.4355704976 | T18: ='ARP_Inputs by customer type'!J29 -> 0.4691403556 | U18: ='ARP_Inputs by customer type'!J30 -> 0.5763333333 | V18: ='ARP_Inputs by customer type'!J31 -> 0.6053333333 | W18: ='ARP_Inputs by customer type'!J32 -> 0.736 | X18: ='ARP_Inputs by customer type'!J33 -> 1 | Y18: ='ARP_Inputs by customer type'!J34 -> 0.473 | Z18: ='ARP_Inputs by customer type'!J35 -> 0.256 | AA18: ='ARP_Inputs by customer type'!J36 -> 0.554 | AB18: ='ARP_Inputs by customer type'!J37 -> 0.5005 | AR18: Paragraph 42 (a)
E19: Coincidence factor | G19: % | I19: > | J19: ='ARP_Inputs by customer type'!J56 -> 0.8906666667 | K19: ='ARP_Inputs by customer type'!J57 -> 0.3026666667 | M19: ='ARP_Inputs by customer type'!J59 -> 0.6773333333 | N19: ='ARP_Inputs by customer type'!J60 -> 0.7773333333 | P19: ='ARP_Inputs by customer type'!J62 -> 0.85 | Q19: ='ARP_Inputs by customer type'!J63 -> 0.8956666667 | R19: ='ARP_Inputs by customer type'!J64 -> 0.8956666667 | S19: ='ARP_Inputs by customer type'!J65 -> 0.8476644187 | T19: ='ARP_Inputs by customer type'!J66 -> 0.6851030736 | U19: ='ARP_Inputs by customer type'!J67 -> 0.8273333333 | V19: ='ARP_Inputs by customer type'!J68 -> 0.7723333333 | W19: ='ARP_Inputs by customer type'!J69 -> 0.837 | X19: ='ARP_Inputs by customer type'!J70 -> 1 | Y19: ='ARP_Inputs by customer type'!J71 -> 1 | Z19: ='ARP_Inputs by customer type'!J72 -> 1 | AA19: ='ARP_Inputs by customer type'!J73 -> 0.067 | AB19: ='ARP_Inputs by customer type'!J74 -> 0.6976666667 | AR19: Paragraph 42 (b)
C21: =INDEX('Version control'!$H$34:$H$59,MATCH($A$1,'Version control'!$F$34:$F$59,0),1)&"-B: Volume forecasts for the charging year" -> Section 501-B: Volume forecasts for the charging year
E23: All the way volume forecast | I23: > | AR23: Paragraph 52
F24: Rate 1 units | G24: MWh | J24: ='ARP_Inputs by customer type'!J95 -> 4132243.804 | K24: ='ARP_Inputs by customer type'!J96 -> 248437.0765 | L24: ='ARP_Inputs by customer type'!J97 -> 13312.43601 | M24: ='ARP_Inputs by customer type'!J98 -> 1035508.428 | N24: ='ARP_Inputs by customer type'!J99 -> 368722.4957 | O24: ='ARP_Inputs by customer type'!J100 -> 5034.142114 | P24: ='ARP_Inputs by customer type'!J101 -> 77 | Q24: ='ARP_Inputs by customer type'!J102 -> 76 | R24: ='ARP_Inputs by customer type'!J103 -> 79 | S24: ='ARP_Inputs by customer type'!J104 -> 2038.802394 | T24: ='ARP_Inputs by customer type'!J105 -> 20903.42641 | U24: ='ARP_Inputs by customer type'!J106 -> 103968.6652 | V24: ='ARP_Inputs by customer type'!J107 -> 128942.9823 | W24: ='ARP_Inputs by customer type'!J108 -> 182704.8909 | X24: ='ARP_Inputs by customer type'!J109 -> 23470.9331 | Y24: ='ARP_Inputs by customer type'!J110 -> 51195.8419 | Z24: ='ARP_Inputs by customer type'!J111 -> 168.2768 | AA24: ='ARP_Inputs by customer type'!J112 -> 0 | AB24: ='ARP_Inputs by customer type'!J113 -> 5031.063643 | AC24: ='ARP_Inputs by customer type'!J114 -> 1133.820771 | AD24: ='ARP_Inputs by customer type'!J115 -> 401.7241471 | AE24: ='ARP_Inputs by customer type'!J116 -> 44292.94229 | AF24: ='ARP_Inputs by customer type'!J117 -> 0 | AG24: ='ARP_Inputs by customer type'!J118 -> 818.6848691 | AH24: ='ARP_Inputs by customer type'!J119 -> 0 | AI24: ='ARP_Inputs by customer type'!J120 -> 12581.23911 | AJ24: ='ARP_Inputs by customer type'!J121 -> 0 | AK24: ='ARP_Inputs by customer type'!J122 -> 338.1293855 | AL24: ='ARP_Inputs by customer type'!J123 -> 0 | AM24: ='ARP_Inputs by customer type'!J124 -> 157247.271 | AN24: ='ARP_Inputs by customer type'!J125 -> 0 | AO24: ='ARP_Inputs by customer type'!J126 -> 26134.70794 | AP24: ='ARP_Inputs by customer type'!J127 -> 0
F25: Rate 2 units | G25: MWh | K25: ='ARP_Inputs by customer type'!J131 -> 268830.9457 | N25: ='ARP_Inputs by customer type'!J134 -> 126255.5377 | P25: ='ARP_Inputs by customer type'!J136 -> 23 | Q25: ='ARP_Inputs by customer type'!J137 -> 24 | R25: ='ARP_Inputs by customer type'!J138 -> 21 | S25: ='ARP_Inputs by customer type'!J139 -> 7549.238181 | T25: ='ARP_Inputs by customer type'!J140 -> 100377.9372 | U25: ='ARP_Inputs by customer type'!J141 -> 469588.136 | V25: ='ARP_Inputs by customer type'!J142 -> 618527.7347 | W25: ='ARP_Inputs by customer type'!J143 -> 836422.8279 | AB25: ='ARP_Inputs by customer type'!J148 -> 21693.90007 | AG25: ='ARP_Inputs by customer type'!J153 -> 3583.812173 | AH25: ='ARP_Inputs by customer type'!J154 -> 0 | AK25: ='ARP_Inputs by customer type'!J157 -> 1467.32446 | AL25: ='ARP_Inputs by customer type'!J158 -> 0 | AO25: ='ARP_Inputs by customer type'!J161 -> 86001.19971 | AP25: ='ARP_Inputs by customer type'!J162 -> 0
F26: Rate 3 units | G26: MWh | S26: ='ARP_Inputs by customer type'!J174 -> 8179.050969 | T26: ='ARP_Inputs by customer type'!J175 -> 88381.28128 | U26: ='ARP_Inputs by customer type'!J176 -> 413004.122 | V26: ='ARP_Inputs by customer type'!J177 -> 544043.7201 | W26: ='ARP_Inputs by customer type'!J178 -> 895800.5274 | AB26: ='ARP_Inputs by customer type'!J183 -> 64636.76788 | AG26: ='ARP_Inputs by customer type'!J188 -> 4594.76927 | AH26: ='ARP_Inputs by customer type'!J189 -> 0 | AK26: ='ARP_Inputs by customer type'!J192 -> 2000.971626 | AL26: ='ARP_Inputs by customer type'!J193 -> 0 | AO26: ='ARP_Inputs by customer type'!J196 -> 105391.3866 | AP26: ='ARP_Inputs by customer type'!J197 -> 0
F27: MPANs | G27: MPANs | J27: ='ARP_Inputs by customer type'!J200 -> 1295187 | K27: ='ARP_Inputs by customer type'!J201 -> 88757 | L27: ='ARP_Inputs by customer type'!J202 -> 3576 | M27: ='ARP_Inputs by customer type'!J203 -> 78333 | N27: ='ARP_Inputs by customer type'!J204 -> 18394 | O27: ='ARP_Inputs by customer type'!J205 -> 989 | P27: ='ARP_Inputs by customer type'!J206 -> 1 | Q27: ='ARP_Inputs by customer type'!J207 -> 1 | R27: ='ARP_Inputs by customer type'!J208 -> 1 | S27: ='ARP_Inputs by customer type'!J209 -> 4084 | T27: ='ARP_Inputs by customer type'!J210 -> 3645.284645 | U27: ='ARP_Inputs by customer type'!J211 -> 5425.715355 | V27: ='ARP_Inputs by customer type'!J212 -> 3245 | W27: ='ARP_Inputs by customer type'!J213 -> 796 | X27: ='ARP_Inputs by customer type'!J214 -> 164 | Y27: ='ARP_Inputs by customer type'!J215 -> 361 | Z27: ='ARP_Inputs by customer type'!J216 -> 44 | AA27: ='ARP_Inputs by customer type'!J217 -> 0 | AB27: ='ARP_Inputs by customer type'!J218 -> 24 | AC27: ='ARP_Inputs by customer type'!J219 -> 123 | AD27: ='ARP_Inputs by customer type'!J220 -> 25 | AE27: ='ARP_Inputs by customer type'!J221 -> 273 | AF27: ='ARP_Inputs by customer type'!J222 -> 0 | AG27: ='ARP_Inputs by customer type'!J223 -> 27 | AH27: ='ARP_Inputs by customer type'!J224 -> 0 | AI27: ='ARP_Inputs by customer type'!J225 -> 34 | AJ27: ='ARP_Inputs by customer type'!J226 -> 0 | AK27: ='ARP_Inputs by customer type'!J227 -> 1 | AL27: ='ARP_Inputs by customer type'!J228 -> 0 | AM27: ='ARP_Inputs by customer type'!J229 -> 77 | AN27: ='ARP_Inputs by customer type'!J230 -> 0 | AO27: ='ARP_Inputs by customer type'!J231 -> 56 | AP27: ='ARP_Inputs by customer type'!J232 -> 0
F28: Import capacity | G28: kVA | U28: ='ARP_Inputs by customer type'!J246 -> 553007.2176 | V28: ='ARP_Inputs by customer type'!J247 -> 594536.8921 | W28: ='ARP_Inputs by customer type'!J248 -> 662677
F29: Exceeded capacity | G29: kVA | U29: ='ARP_Inputs by customer type'!J281 -> 14969.16667 | V29: ='ARP_Inputs by customer type'!J282 -> 15859.25 | W29: ='ARP_Inputs by customer type'!J283 -> 16112.08333
F30: Reactive power units | G30: MVArh | U30: ='ARP_Inputs by customer type'!J316 -> 77158.539 | V30: ='ARP_Inputs by customer type'!J317 -> 98264.211 | W30: ='ARP_Inputs by customer type'!J318 -> 115848.178 | AE30: ='ARP_Inputs by customer type'!J326 -> 2912.028 | AG30: ='ARP_Inputs by customer type'!J328 -> 418.696 | AI30: ='ARP_Inputs by customer type'!J330 -> 116.343 | AK30: ='ARP_Inputs by customer type'!J332 -> 3.264 | AM30: ='ARP_Inputs by customer type'!J334 -> 4347.5 | AO30: ='ARP_Inputs by customer type'!J336 -> 3130.109
E32: LDNO LV volume forecast | I32: > | AR32: Paragraph 52
F33: Rate 1 units | G33: MWh | J33: ='ARP_Inputs by customer type'!J342 -> 50121.3151 | K33: ='ARP_Inputs by customer type'!J343 -> 734.1923405 | L33: ='ARP_Inputs by customer type'!J344 -> 0 | M33: ='ARP_Inputs by customer type'!J345 -> 2708.520774 | N33: ='ARP_Inputs by customer type'!J346 -> 310.8968812 | O33: ='ARP_Inputs by customer type'!J347 -> 0 | P33: ='ARP_Inputs by customer type'!J348 -> 0 | S33: ='ARP_Inputs by customer type'!J351 -> 6.674355085 | T33: ='ARP_Inputs by customer type'!J352 -> 0 | U33: ='ARP_Inputs by customer type'!J353 -> 795.438439 | X33: ='ARP_Inputs by customer type'!J356 -> 0 | Y33: ='ARP_Inputs by customer type'!J357 -> 25.52956248 | Z33: ='ARP_Inputs by customer type'!J358 -> 0 | AA33: ='ARP_Inputs by customer type'!J359 -> 0 | AB33: ='ARP_Inputs by customer type'!J360 -> 0 | AC33: ='ARP_Inputs by customer type'!J361 -> 0 | AE33: ='ARP_Inputs by customer type'!J363 -> 0 | AG33: ='ARP_Inputs by customer type'!J365 -> 0
F34: Rate 2 units | G34: MWh | K34: ='ARP_Inputs by customer type'!J378 -> 464.4099359 | N34: ='ARP_Inputs by customer type'!J381 -> 73.31402199 | P34: ='ARP_Inputs by customer type'!J383 -> 0 | S34: ='ARP_Inputs by customer type'!J386 -> 23.87867931 | T34: ='ARP_Inputs by customer type'!J387 -> 0 | U34: ='ARP_Inputs by customer type'!J388 -> 3467.381918 | AB34: ='ARP_Inputs by customer type'!J395 -> 0 | AG34: ='ARP_Inputs by customer type'!J400 -> 0
F35: Rate 3 units | G35: MWh | S35: ='ARP_Inputs by customer type'!J421 -> 25.8533233 | T35: ='ARP_Inputs by customer type'!J422 -> 0 | U35: ='ARP_Inputs by customer type'!J423 -> 2722.392142 | AB35: ='ARP_Inputs by customer type'!J430 -> 0 | AG35: ='ARP_Inputs by customer type'!J435 -> 0
F36: MPANs | G36: MPANs | J36: ='ARP_Inputs by customer type'!J447 -> 17108 | K36: ='ARP_Inputs by customer type'!J448 -> 278 | L36: ='ARP_Inputs by customer type'!J449 -> 0 | M36: ='ARP_Inputs by customer type'!J450 -> 322 | N36: ='ARP_Inputs by customer type'!J451 -> 7 | O36: ='ARP_Inputs by customer type'!J452 -> 0 | P36: ='ARP_Inputs by customer type'!J453 -> 0 | S36: ='ARP_Inputs by customer type'!J456 -> 17 | T36: ='ARP_Inputs by customer type'!J457 -> 0 | U36: ='ARP_Inputs by customer type'!J458 -> 33 | X36: ='ARP_Inputs by customer type'!J461 -> 0 | Y36: ='ARP_Inputs by customer type'!J462 -> 4 | Z36: ='ARP_Inputs by customer type'!J463 -> 0 | AA36: ='ARP_Inputs by customer type'!J464 -> 0 | AB36: ='ARP_Inputs by customer type'!J465 -> 0 | AC36: ='ARP_Inputs by customer type'!J466 -> 0 | AE36: ='ARP_Inputs by customer type'!J468 -> 0 | AG36: ='ARP_Inputs by customer type'!J470 -> 0
F37: Import capacity | G37: kVA | U37: ='ARP_Inputs by customer type'!J493 -> 4985
F38: Exceeded capacity | G38: kVA | U38: ='ARP_Inputs by customer type'!J528 -> 0
F39: Reactive power units | G39: MVArh | U39: ='ARP_Inputs by customer type'!J563 -> 301.8236 | AE39: ='ARP_Inputs by customer type'!J573 -> 0 | AG39: ='ARP_Inputs by customer type'!J575 -> 0
E41: LDNO HV volume forecast | I41: > | AR41: Paragraph 52
F42: Rate 1 units | G42: MWh | J42: ='ARP_Inputs by customer type'!J589 -> 60573.80137 | K42: ='ARP_Inputs by customer type'!J590 -> 2510.671057 | L42: ='ARP_Inputs by customer type'!J591 -> 0 | M42: ='ARP_Inputs by customer type'!J592 -> 7725.165139 | N42: ='ARP_Inputs by customer type'!J593 -> 786.2224091 | O42: ='ARP_Inputs by customer type'!J594 -> 0 | P42: ='ARP_Inputs by customer type'!J595 -> 0 | S42: ='ARP_Inputs by customer type'!J598 -> 6.880093629 | T42: ='ARP_Inputs by customer type'!J599 -> 80.23239701 | U42: ='ARP_Inputs by customer type'!J600 -> 6593.22065 | V42: ='ARP_Inputs by customer type'!J601 -> 510.3543611 | W42: ='ARP_Inputs by customer type'!J602 -> 2278.784771 | X42: ='ARP_Inputs by customer type'!J603 -> 2.183033826 | Y42: ='ARP_Inputs by customer type'!J604 -> 212.4932957 | Z42: ='ARP_Inputs by customer type'!J605 -> 0.1568079287 | AA42: ='ARP_Inputs by customer type'!J606 -> 0 | AB42: ='ARP_Inputs by customer type'!J607 -> 0 | AC42: ='ARP_Inputs by customer type'!J608 -> 0 | AD42: ='ARP_Inputs by customer type'!J609 -> 0 | AE42: ='ARP_Inputs by customer type'!J610 -> 37.816 | AG42: ='ARP_Inputs by customer type'!J612 -> 0 | AI42: ='ARP_Inputs by customer type'!J614 -> 0 | AK42: ='ARP_Inputs by customer type'!J616 -> 0 | AM42: ='ARP_Inputs by customer type'!J618 -> 0 | AO42: ='ARP_Inputs by customer type'!J620 -> 0
F43: Rate 2 units | G43: MWh | K43: ='ARP_Inputs by customer type'!J625 -> 2189.145309 | N43: ='ARP_Inputs by customer type'!J628 -> 184.6618409 | P43: ='ARP_Inputs by customer type'!J630 -> 0 | S43: ='ARP_Inputs by customer type'!J633 -> 23.91592263 | T43: ='ARP_Inputs by customer type'!J634 -> 530.6139342 | U43: ='ARP_Inputs by customer type'!J635 -> 28738.57718 | V43: ='ARP_Inputs by customer type'!J636 -> 2201.148113 | W43: ='ARP_Inputs by customer type'!J637 -> 10438.42572 | AB43: ='ARP_Inputs by customer type'!J642 -> 0 | AG43: ='ARP_Inputs by customer type'!J647 -> 0 | AK43: ='ARP_Inputs by customer type'!J651 -> 0 | AO43: ='ARP_Inputs by customer type'!J655 -> 0
F44: Rate 3 units | G44: MWh | S44: ='ARP_Inputs by customer type'!J668 -> 29.17547695 | T44: ='ARP_Inputs by customer type'!J669 -> 399.0814339 | U44: ='ARP_Inputs by customer type'!J670 -> 25496.21654 | V44: ='ARP_Inputs by customer type'!J671 -> 2181.494411 | W44: ='ARP_Inputs by customer type'!J672 -> 9582.704759 | AB44: ='ARP_Inputs by customer type'!J677 -> 0 | AG44: ='ARP_Inputs by customer type'!J682 -> 0 | AK44: ='ARP_Inputs by customer type'!J686 -> 0 | AO44: ='ARP_Inputs by customer type'!J690 -> 0
F45: MPANs | G45: MPANs | J45: ='ARP_Inputs by customer type'!J694 -> 20959 | K45: ='ARP_Inputs by customer type'!J695 -> 789 | L45: ='ARP_Inputs by customer type'!J696 -> 0 | M45: ='ARP_Inputs by customer type'!J697 -> 441 | N45: ='ARP_Inputs by customer type'!J698 -> 24 | O45: ='ARP_Inputs by customer type'!J699 -> 0 | P45: ='ARP_Inputs by customer type'!J700 -> 0 | S45: ='ARP_Inputs by customer type'!J703 -> 22 | T45: ='ARP_Inputs by customer type'!J704 -> 16 | U45: ='ARP_Inputs by customer type'!J705 -> 196 | V45: ='ARP_Inputs by customer type'!J706 -> 9 | W45: ='ARP_Inputs by customer type'!J707 -> 15 | X45: ='ARP_Inputs by customer type'!J708 -> 8 | Y45: ='ARP_Inputs by customer type'!J709 -> 42 | Z45: ='ARP_Inputs by customer type'!J710 -> 1 | AA45: ='ARP_Inputs by customer type'!J711 -> 0 | AB45: ='ARP_Inputs by customer type'!J712 -> 0 | AC45: ='ARP_Inputs by customer type'!J713 -> 0 | AD45: ='ARP_Inputs by customer type'!J714 -> 0 | AE45: ='ARP_Inputs by customer type'!J715 -> 1 | AG45: ='ARP_Inputs by customer type'!J717 -> 0 | AI45: ='ARP_Inputs by customer type'!J719 -> 0 | AK45: ='ARP_Inputs by customer type'!J721 -> 0 | AM45: ='ARP_Inputs by customer type'!J723 -> 0 | AO45: ='ARP_Inputs by customer type'!J725 -> 0
F46: Import capacity | G46: kVA | U46: ='ARP_Inputs by customer type'!J740 -> 49084 | V46: ='ARP_Inputs by customer type'!J741 -> 6425 | W46: ='ARP_Inputs by customer type'!J742 -> 9743
F47: Exceeded capacity | G47: kVA | U47: ='ARP_Inputs by customer type'!J775 -> 44.30833333 | V47: ='ARP_Inputs by customer type'!J776 -> 2.333333333 | W47: ='ARP_Inputs by customer type'!J777 -> 0
F48: Reactive power units | G48: MVArh | U48: ='ARP_Inputs by customer type'!J810 -> 4297.4767 | V48: ='ARP_Inputs by customer type'!J811 -> 1832.1294 | W48: ='ARP_Inputs by customer type'!J812 -> 409.9587 | AE48: ='ARP_Inputs by customer type'!J820 -> 26.808 | AG48: ='ARP_Inputs by customer type'!J822 -> 0 | AI48: ='ARP_Inputs by customer type'!J824 -> 0 | AK48: ='ARP_Inputs by customer type'!J826 -> 0 | AM48: ='ARP_Inputs by customer type'!J828 -> 0 | AO48: ='ARP_Inputs by customer type'!J830 -> 0
C50: =INDEX('Version control'!$H$34:$H$59,MATCH($A$1,'Version control'!$F$34:$F$59,0),1)&"-C: Split of units by distribution timeband" -> Section 501-C: Split of units by distribution timeband
D52: UMS customers are under special time band regime (Black & Yellow)
D53: All other customers are under normal time band regime (Red & Amber)
E55: Unit rate 1 split of units by distribution timeband | I55: > | AR55: Paragraphs 42 (c) & 45
F56: Red / Black | G56: % | J56: ='ARP_Inputs by customer type'!J841 -> 0.1254517015 | K56: ='ARP_Inputs by customer type'!J842 -> 0.1570432661 | L56: ='ARP_Inputs by customer type'!J843 -> 0.01118986307 | M56: ='ARP_Inputs by customer type'!J844 -> 0.1094199523 | N56: ='ARP_Inputs by customer type'!J845 -> 0.1333308189 | O56: ='ARP_Inputs by customer type'!J846 -> 0.004075044988 | P56: ='ARP_Inputs by customer type'!J847 -> 0.1360610582 | Q56: ='ARP_Inputs by customer type'!J848 -> 0.1395250006 | R56: ='ARP_Inputs by customer type'!J849 -> 0.1395250006 | S56: ='ARP_Inputs by customer type'!J850 -> 1 | T56: ='ARP_Inputs by customer type'!J851 -> 1 | U56: ='ARP_Inputs by customer type'!J852 -> 1 | V56: ='ARP_Inputs by customer type'!J853 -> 1 | W56: ='ARP_Inputs by customer type'!J854 -> 1 | X56: ='ARP_Inputs by customer type'!J855 -> 0.02945205479 | Y56: ='ARP_Inputs by customer type'!J856 -> 0.05557325143 | Z56: ='ARP_Inputs by customer type'!J857 -> 0.1057349059 | AA56: ='ARP_Inputs by customer type'!J858 -> 0.009433624627 | AB56: ='ARP_Inputs by customer type'!J859 -> 1 | AG56: ='ARP_Inputs by customer type'!J864 -> 1 | AH56: ='ARP_Inputs by customer type'!J865 -> 1 | AK56: ='ARP_Inputs by customer type'!J868 -> 1 | AL56: ='ARP_Inputs by customer type'!J869 -> 1 | AO56: ='ARP_Inputs by customer type'!J872 -> 1 | AP56: ='ARP_Inputs by customer type'!J873 -> 1
F57: Amber / Yellow | G57: % | J57: ='ARP_Inputs by customer type'!J876 -> 0.4554595001 | K57: ='ARP_Inputs by customer type'!J877 -> 0.5271286936 | L57: ='ARP_Inputs by customer type'!J878 -> 0.07304055711 | M57: ='ARP_Inputs by customer type'!J879 -> 0.5397479886 | N57: ='ARP_Inputs by customer type'!J880 -> 0.6044257548 | O57: ='ARP_Inputs by customer type'!J881 -> 0.07396149515 | P57: ='ARP_Inputs by customer type'!J882 -> 0.6150696754 | Q57: ='ARP_Inputs by customer type'!J883 -> 0.6205907132 | R57: ='ARP_Inputs by customer type'!J884 -> 0.6205907132 | X57: ='ARP_Inputs by customer type'!J890 -> 0.4500570776 | Y57: ='ARP_Inputs by customer type'!J891 -> 0.19349876 | Z57: ='ARP_Inputs by customer type'!J892 -> 0.3821418424 | AA57: ='ARP_Inputs by customer type'!J893 -> 0.6669208634
F58: Green | G58: % | J58: ='ARP_Inputs by customer type'!J911 -> 0.4190887985 | K58: ='ARP_Inputs by customer type'!J912 -> 0.3158280403 | L58: ='ARP_Inputs by customer type'!J913 -> 0.9157695798 | M58: ='ARP_Inputs by customer type'!J914 -> 0.3508320591 | N58: ='ARP_Inputs by customer type'!J915 -> 0.2622434263 | O58: ='ARP_Inputs by customer type'!J916 -> 0.9219634599 | P58: ='ARP_Inputs by customer type'!J917 -> 0.2488692664 | Q58: ='ARP_Inputs by customer type'!J918 -> 0.2398842862 | R58: ='ARP_Inputs by customer type'!J919 -> 0.2398842862 | X58: ='ARP_Inputs by customer type'!J925 -> 0.5204908676 | Y58: ='ARP_Inputs by customer type'!J926 -> 0.7509279886 | Z58: ='ARP_Inputs by customer type'!J927 -> 0.5121232517 | AA58: ='ARP_Inputs by customer type'!J928 -> 0.323645512
E60: Unit rate 2 split of units by distribution timeband | I60: > | AR60: Paragraphs 42 (c) & 45
F61: Red / Black | G61: % | K61: ='ARP_Inputs by customer type'!J949 -> 0.002853715438 | N61: ='ARP_Inputs by customer type'!J952 -> 0 | P61: ='ARP_Inputs by customer type'!J954 -> 0 | Q61: ='ARP_Inputs by customer type'!J955 -> 0 | R61: ='ARP_Inputs by customer type'!J956 -> 0
F62: Amber / Yellow | G62: % | K62: ='ARP_Inputs by customer type'!J984 -> 0.06577023698 | N62: ='ARP_Inputs by customer type'!J987 -> 0.01974073227 | P62: ='ARP_Inputs by customer type'!J989 -> 0 | Q62: ='ARP_Inputs by customer type'!J990 -> 0 | R62: ='ARP_Inputs by customer type'!J991 -> 0 | S62: ='ARP_Inputs by customer type'!J992 -> 1 | T62: ='ARP_Inputs by customer type'!J993 -> 1 | U62: ='ARP_Inputs by customer type'!J994 -> 1 | V62: ='ARP_Inputs by customer type'!J995 -> 1 | W62: ='ARP_Inputs by customer type'!J996 -> 1 | AB62: ='ARP_Inputs by customer type'!J1001 -> 1 | AG62: ='ARP_Inputs by customer type'!J1006 -> 1 | AH62: ='ARP_Inputs by customer type'!J1007 -> 1 | AK62: ='ARP_Inputs by customer type'!J1010 -> 1 | AL62: ='ARP_Inputs by customer type'!J1011 -> 1 | AO62: ='ARP_Inputs by customer type'!J1014 -> 1 | AP62: ='ARP_Inputs by customer type'!J1015 -> 1
F63: Green | G63: % | K63: ='ARP_Inputs by customer type'!J1019 -> 0.9313760476 | N63: ='ARP_Inputs by customer type'!J1022 -> 0.9802592677 | P63: ='ARP_Inputs by customer type'!J1024 -> 1 | Q63: ='ARP_Inputs by customer type'!J1025 -> 1 | R63: ='ARP_Inputs by customer type'!J1026 -> 1
E65: Unit rate 3 split of units by distribution timeband | I65: > | AR65: Paragraphs 42 (c) & 45
F66: Red / Black | G66: %
F67: Amber / Yellow | G67: %
F68: Green | G68: % | S68: ='ARP_Inputs by customer type'!J1134 -> 1 | T68: ='ARP_Inputs by customer type'!J1135 -> 1 | U68: ='ARP_Inputs by customer type'!J1136 -> 1 | V68: ='ARP_Inputs by customer type'!J1137 -> 1 | W68: ='ARP_Inputs by customer type'!J1138 -> 1 | AB68: ='ARP_Inputs by customer type'!J1143 -> 1 | AG68: ='ARP_Inputs by customer type'!J1148 -> 1 | AH68: ='ARP_Inputs by customer type'!J1149 -> 1 | AK68: ='ARP_Inputs by customer type'!J1152 -> 1 | AL68: ='ARP_Inputs by customer type'!J1153 -> 1 | AO68: ='ARP_Inputs by customer type'!J1156 -> 1 | AP68: ='ARP_Inputs by customer type'!J1157 -> 1
C70: =INDEX('Version control'!$H$34:$H$59,MATCH($A$1,'Version control'!$F$34:$F$59,0),1)&"-D: Service model asset values" -> Section 501-D: Service model asset values
D72: Service model costs should be entered per customer or per MWh for unmetered customers
I73: > | AR73: Paragraphs 32 to 37
E74: LV customer service model asset values | G74: £ per MPAN | J74: ='ARP_Inputs by customer type'!J1166 -> 377.7 | K74: ='ARP_Inputs by customer type'!J1167 -> 377.7 | M74: ='ARP_Inputs by customer type'!J1169 -> 508.75 | N74: ='ARP_Inputs by customer type'!J1170 -> 508.75 | P74: ='ARP_Inputs by customer type'!J1172 -> 1170 | Q74: ='ARP_Inputs by customer type'!J1173 -> 0 | S74: ='ARP_Inputs by customer type'!J1175 -> 377.7 | T74: ='ARP_Inputs by customer type'!J1176 -> 508.75 | U74: ='ARP_Inputs by customer type'!J1177 -> 2380 | V74: ='ARP_Inputs by customer type'!J1178 -> 840 | AC74: ='ARP_Inputs by customer type'!J1185 -> 0 | AD74: ='ARP_Inputs by customer type'!J1186 -> 0 | AE74: ='ARP_Inputs by customer type'!J1187 -> 0 | AF74: ='ARP_Inputs by customer type'!J1188 -> 0 | AG74: ='ARP_Inputs by customer type'!J1189 -> 0 | AH74: ='ARP_Inputs by customer type'!J1190 -> 0 | AI74: ='ARP_Inputs by customer type'!J1191 -> 0 | AJ74: ='ARP_Inputs by customer type'!J1192 -> 0 | AK74: ='ARP_Inputs by customer type'!J1193 -> 0 | AL74: ='ARP_Inputs by customer type'!J1194 -> 0
E75: HV customer service model asset values | G75: £ per MPAN | R75: ='ARP_Inputs by customer type'!J1211 -> 12478 | W75: ='ARP_Inputs by customer type'!J1216 -> 12718.10554 | AM75: ='ARP_Inputs by customer type'!J1232 -> 9287 | AN75: ='ARP_Inputs by customer type'!J1233 -> 9287 | AO75: ='ARP_Inputs by customer type'!J1234 -> 9287 | AP75: ='ARP_Inputs by customer type'!J1235 -> 9287
E77: LV UMS customer service model asset values | G77: £/MWh/year | I77: > | X77: ='ARP_Inputs by customer type'!J1254 -> 120.51 | Y77: ='ARP_Inputs by customer type'!J1255 -> 120.51 | Z77: ='ARP_Inputs by customer type'!J1256 -> 120.51 | AA77: ='ARP_Inputs by customer type'!J1257 -> 120.51 | AB77: ='ARP_Inputs by customer type'!J1258 -> 120.51 | AR77: Paragraph 36
B79: Checks
E81: Check for error values | G81: number of issues | H81: =SUM(IF(ISERROR(H16:AP78), 1)) -> 0
E83: Check for split of units by timeband
F84: Unit rate 1 | G84: number of issues | H84: =SUM(J84:AP84) -> 0 | J84: =IF(ABS(SUM(J56:J58) - 1) < 10^-check_decimals, 0, 1) -> 0 | K84: 0 | L84: 0 | M84: 0 | N84: 0 | O84: 0 | P84: 0 | Q84: 0 | R84: 0 | S84: 0 | T84: 0 | U84: 0 | V84: 0 | W84: 0 | X84: 0 | Y84: 0 | Z84: 0 | AA84: 0 | AB84: 0 | AG84: =IF(ABS(SUM(AG56:AG58) - 1) < 10^-check_decimals, 0, 1) -> 0 | AH84: =IF(ABS(SUM(AH56:AH58) - 1) < 10^-check_decimals, 0, 1) -> 0 | AK84: =IF(ABS(SUM(AK56:AK58) - 1) < 10^-check_decimals, 0, 1) -> 0 | AL84: =IF(ABS(SUM(AL56:AL58) - 1) < 10^-check_decimals, 0, 1) -> 0 | AO84: =IF(ABS(SUM(AO56:AO58) - 1) < 10^-check_decimals, 0, 1) -> 0 | AP84: =IF(ABS(SUM(AP56:AP58) - 1) < 10^-check_decimals, 0, 1) -> 0
F85: Unit rate 2 | G85: number of issues | H85: =SUM(J85:AP85) -> 0 | K85: =IF(ABS(SUM(K61:K63) - 1) < 10^-check_decimals, 0, 1) -> 0 | N85: =IF(ABS(SUM(N61:N63) - 1) < 10^-check_decimals, 0, 1) -> 0 | P85: =IF(ABS(SUM(P61:P63) - 1) < 10^-check_decimals, 0, 1) -> 0 | Q85: 0 | R85: 0 | S85: 0 | T85: 0 | U85: 0 | V85: 0 | W85: 0 | AB85: =IF(ABS(SUM(AB61:AB63) - 1) < 10^-check_decimals, 0, 1) -> 0 | AG85: =IF(ABS(SUM(AG61:AG63) - 1) < 10^-check_decimals, 0, 1) -> 0 | AH85: =IF(ABS(SUM(AH61:AH63) - 1) < 10^-check_decimals, 0, 1) -> 0 | AK85: =IF(ABS(SUM(AK61:AK63) - 1) < 10^-check_decimals, 0, 1) -> 0 | AL85: =IF(ABS(SUM(AL61:AL63) - 1) < 10^-check_decimals, 0, 1) -> 0 | AO85: =IF(ABS(SUM(AO61:AO63) - 1) < 10^-check_decimals, 0, 1) -> 0 | AP85: =IF(ABS(SUM(AP61:AP63) - 1) < 10^-check_decimals, 0, 1) -> 0
F86: Unit rate 3 | G86: number of issues | H86: =SUM(J86:AP86) -> 0 | S86: =IF(ABS(SUM(S66:S68) - 1) < 10^-check_decimals, 0, 1) -> 0 | T86: =IF(ABS(SUM(T66:T68) - 1) < 10^-check_decimals, 0, 1) -> 0 | U86: =IF(ABS(SUM(U66:U68) - 1) < 10^-check_decimals, 0, 1) -> 0 | V86: =IF(ABS(SUM(V66:V68) - 1) < 10^-check_decimals, 0, 1) -> 0 | W86: =IF(ABS(SUM(W66:W68) - 1) < 10^-check_decimals, 0, 1) -> 0 | AB86: =IF(ABS(SUM(AB66:AB68) - 1) < 10^-check_decimals, 0, 1) -> 0 | AG86: =IF(ABS(SUM(AG66:AG68) - 1) < 10^-check_decimals, 0, 1) -> 0 | AH86: =IF(ABS(SUM(AH66:AH68) - 1) < 10^-check_decimals, 0, 1) -> 0 | AK86: =IF(ABS(SUM(AK66:AK68) - 1) < 10^-check_decimals, 0, 1) -> 0 | AL86: =IF(ABS(SUM(AL66:AL68) - 1) < 10^-check_decimals, 0, 1) -> 0 | AO86: =IF(ABS(SUM(AO66:AO68) - 1) < 10^-check_decimals, 0, 1) -> 0 | AP86: =IF(ABS(SUM(AP66:AP68) - 1) < 10^-check_decimals, 0, 1) -> 0
E88: Summary of checks | G88: number of issues | H88: =SUM(H81, H84:H86) -> 0
B90: End of sheet

Sheet Inputs by network level
A1: =MID(CELL("filename",A1),FIND("]",CELL("filename",A1))+1,255) -> Inputs by network level
A2: =Cover!D21&" - "&Cover!D23 -> SP Manweb - V0.1
A3: =Cover!D2&" - "&Cover!D8&" v"&Cover!D10&" - "&Cover!D19 -> ARP model - Release for charge setting v3 - 2020/21
A4: =H59 & IF(H59 = 1, " issue", " issues") &" identified in checks on this sheet" -> 0 issues identified in checks on this sheet
B5: Click here to return to model map | G5: Units | H5: Constants | J5: Transmission exit | K5: GSPs | L5: 132kV | M5: 132kV/EHV | N5: EHV | O5: EHV/HV | P5: 132kV/HV | Q5: HV | R5: HV/LV | S5: LV circuits | U5: Legal text reference
B7: Description
C9: This sheet sets out the inputs by network level to be filled in by DNOs.
E11: Charging year selected | G11: year | H11: =charging_year_selected -> 2020/21
E12: Historic / current / forecast | G12: text | H12: ='ARP_User control'!$H$36 -> Current
B14: Inputs by network level
C16: =INDEX('Version control'!$H$34:$H$59,MATCH($A$1,'Version control'!$F$34:$F$59,0),1)&"-A: Network and load inputs" -> Section 502-A: Network and load inputs
E18: Diversity allowance between top and bottom of network level | G18: % | I18: > | K18: ='ARP_Inputs by network level'!J20 -> 0.025 | L18: ='ARP_Inputs by network level'!J21 -> 0.1 | N18: ='ARP_Inputs by network level'!J23 -> 0.26 | Q18: ='ARP_Inputs by network level'!J26 -> 0.2 | U18: Paragraphs 26 to 28
E20: Proportion of load going through 132kV/HV direct transformation | G20: % | P20: ='ARP_Inputs by network level'!J36 -> 0
E22: Loss adjustment factors to transmission | G22: scalar | I22: > | K22: ='ARP_Inputs by network level'!J48 -> 1 | L22: ='ARP_Inputs by network level'!J49 -> 1.005 | M22: ='ARP_Inputs by network level'!J50 -> 1.012 | N22: ='ARP_Inputs by network level'!J51 -> 1.018 | O22: ='ARP_Inputs by network level'!J52 -> 1.026 | Q22: ='ARP_Inputs by network level'!J54 -> 1.038 | R22: ='ARP_Inputs by network level'!J55 -> 1.06 | S22: ='ARP_Inputs by network level'!J56 -> 1.105 | U22: Paragraph 47
E24: Average kVAr by kVA, by network level | G24: kVAr/kVA | I24: > | K24: ='ARP_Inputs by network level'!J62 -> 0.2171210252 | L24: ='ARP_Inputs by network level'!J63 -> 0.2171210252 | M24: ='ARP_Inputs by network level'!J64 -> 0.2546323519 | N24: ='ARP_Inputs by network level'!J65 -> 0.2546323519 | O24: ='ARP_Inputs by network level'!J66 -> 0.258965946 | P24: ='ARP_Inputs by network level'!J67 -> 0.258965946 | Q24: ='ARP_Inputs by network level'!J68 -> 0.258965946 | R24: ='ARP_Inputs by network level'!J69 -> 0.258965946 | S24: ='ARP_Inputs by network level'!J70 -> 0.258965946 | U24: Paragraphs 50 to 51
C26: =INDEX('Version control'!$H$34:$H$59,MATCH($A$1,'Version control'!$F$34:$F$59,0),1)&"-B: Customer contributions under current connection charging policy" -> Section 502-B: Customer contributions under current connection charging policy
I27: > | U27: Paragraphs 29 to 31
E28: Customer contributions under current connection charging policy
F29: LV network | G29: % | L29: ='ARP_Inputs by network level'!J78 -> 0 | M29: ='ARP_Inputs by network level'!J79 -> 0 | N29: ='ARP_Inputs by network level'!J80 -> 0 | O29: ='ARP_Inputs by network level'!J81 -> 0 | P29: ='ARP_Inputs by network level'!J82 -> 0 | Q29: ='ARP_Inputs by network level'!J83 -> 0.3263512902 | R29: ='ARP_Inputs by network level'!J84 -> 0.7109728507 | S29: ='ARP_Inputs by network level'!J85 -> 0.9309486908
F30: LV substation | G30: % | L30: ='ARP_Inputs by network level'!J89 -> 0 | M30: ='ARP_Inputs by network level'!J90 -> 0 | N30: ='ARP_Inputs by network level'!J91 -> 0 | O30: ='ARP_Inputs by network level'!J92 -> 0 | P30: ='ARP_Inputs by network level'!J93 -> 0 | Q30: ='ARP_Inputs by network level'!J94 -> 0.3263512902 | R30: ='ARP_Inputs by network level'!J95 -> 0.7109728507
F31: HV network | G31: % | L31: ='ARP_Inputs by network level'!J100 -> 0 | M31: ='ARP_Inputs by network level'!J101 -> 0 | N31: ='ARP_Inputs by network level'!J102 -> 0.2944301994 | O31: ='ARP_Inputs by network level'!J103 -> 0.1431705882 | P31: ='ARP_Inputs by network level'!J104 -> 0 | Q31: ='ARP_Inputs by network level'!J105 -> 0.7342904029
F32: HV substation | G32: % | L32: ='ARP_Inputs by network level'!J111 -> 0 | M32: ='ARP_Inputs by network level'!J112 -> 0 | N32: ='ARP_Inputs by network level'!J113 -> 0.2944301994 | O32: ='ARP_Inputs by network level'!J114 -> 0.1431705882
C34: =INDEX('Version control'!$H$34:$H$59,MATCH($A$1,'Version control'!$F$34:$F$59,0),1)&"-C: DRM asset costs" -> Section 502-C: DRM asset costs
E36: Gross asset cost by network level | G36: £ | I36: > | L36: ='ARP_Inputs by network level'!J125 -> 171855644.7 | M36: ='ARP_Inputs by network level'!J126 -> 14408725.46 | N36: ='ARP_Inputs by network level'!J127 -> 147094424.8 | O36: ='ARP_Inputs by network level'!J128 -> 24430842.08 | P36: ='ARP_Inputs by network level'!J129 -> 0 | Q36: ='ARP_Inputs by network level'!J130 -> 200515363.3 | R36: ='ARP_Inputs by network level'!J131 -> 78426095.59 | S36: ='ARP_Inputs by network level'!J132 -> 48021829.36
C38: =INDEX('Version control'!$H$34:$H$59,MATCH($A$1,'Version control'!$F$34:$F$59,0),1)&"-D: Peaking probabilities by network level" -> Section 502-D: Peaking probabilities by network level
D40: Red, Amber & Green peaking probabilities must sum to 100%, except for unused network levels, which should sum to 0%
E42: Peaking probabilities by network level | I42: > | U42: Paragraphs 48 to 49
F43: Red | G43: % | K43: ='ARP_Inputs by network level'!J140 -> 0.7432274561 | L43: ='ARP_Inputs by network level'!J141 -> 0.7432274561 | M43: ='ARP_Inputs by network level'!J142 -> 0.5365650771 | N43: ='ARP_Inputs by network level'!J143 -> 0.5365650771 | O43: ='ARP_Inputs by network level'!J144 -> 0.4845956017 | P43: ='ARP_Inputs by network level'!J145 -> 0.4845956017 | Q43: ='ARP_Inputs by network level'!J146 -> 0.4845956017 | R43: ='ARP_Inputs by network level'!J147 -> 0.4845956017 | S43: ='ARP_Inputs by network level'!J148 -> 0.4845956017
F44: Amber | G44: % | K44: ='ARP_Inputs by network level'!J152 -> 0.1832239838 | L44: ='ARP_Inputs by network level'!J153 -> 0.1832239838 | M44: ='ARP_Inputs by network level'!J154 -> 0.3806838741 | N44: ='ARP_Inputs by network level'!J155 -> 0.3806838741 | O44: ='ARP_Inputs by network level'!J156 -> 0.4701053821 | P44: ='ARP_Inputs by network level'!J157 -> 0.4701053821 | Q44: ='ARP_Inputs by network level'!J158 -> 0.4701053821 | R44: ='ARP_Inputs by network level'!J159 -> 0.4701053821 | S44: ='ARP_Inputs by network level'!J160 -> 0.4701053821
F45: Green | G45: % | K45: ='ARP_Inputs by network level'!J164 -> 0.0735485601 | L45: ='ARP_Inputs by network level'!J165 -> 0.0735485601 | M45: ='ARP_Inputs by network level'!J166 -> 0.08275104884 | N45: ='ARP_Inputs by network level'!J167 -> 0.08275104884 | O45: ='ARP_Inputs by network level'!J168 -> 0.04529901622 | P45: ='ARP_Inputs by network level'!J169 -> 0.04529901622 | Q45: ='ARP_Inputs by network level'!J170 -> 0.04529901622 | R45: ='ARP_Inputs by network level'!J171 -> 0.04529901622 | S45: ='ARP_Inputs by network level'!J172 -> 0.04529901622
F46: Black | G46: % | K46: ='ARP_Inputs by network level'!J176 -> 0.5747645624 | L46: ='ARP_Inputs by network level'!J177 -> 0.5747645624 | M46: ='ARP_Inputs by network level'!J178 -> 0.3260030119 | N46: ='ARP_Inputs by network level'!J179 -> 0.3260030119 | O46: ='ARP_Inputs by network level'!J180 -> 0.3398045622 | P46: ='ARP_Inputs by network level'!J181 -> 0.3398045622 | Q46: ='ARP_Inputs by network level'!J182 -> 0.3398045622 | R46: ='ARP_Inputs by network level'!J183 -> 0.3398045622 | S46: ='ARP_Inputs by network level'!J184 -> 0.3398045622
B48: Checks
E50: Check for error values | G50: number of issues | H50: =SUM(IF(ISERROR(H18:AA47), 1)) -> 0
E52: Check that loss adjustment factor = 1 at grid supply point | G52: number of issues | H52: =IF(K22 = 1, 0, 1) -> 0
E54: Peaking probabilities check
E55: 0% peaking probabilities are permitted for 132kV, 132kV/EHV & 132kV/HV network levels, which do not exist for all DNOs
F56: General | G56: number of issues | H56: =SUM(K56:S56) -> 0 | K56: =IF(ABS(SUM(K43:K45) - 1) < 10^-check_decimals, 0, 1) -> 0 | N56: =IF(ABS(SUM(N43:N45) - 1) < 10^-check_decimals, 0, 1) -> 0 | O56: =IF(ABS(SUM(O43:O45) - 1) < 10^-check_decimals, 0, 1) -> 0 | Q56: =IF(ABS(SUM(Q43:Q45) - 1) < 10^-check_decimals, 0, 1) -> 0 | R56: =IF(ABS(SUM(R43:R45) - 1) < 10^-check_decimals, 0, 1) -> 0 | S56: =IF(ABS(SUM(S43:S45) - 1) < 10^-check_decimals, 0, 1) -> 0
F57: 132kV | G57: number of issues | H57: =SUM(K57:S57) -> 0 | L57: =IF(OR(ABS(SUM(L43:L45) - 1) < 10^-check_decimals, ABS(SUM(L43:L45) - 0) < 10^-check_decimals), 0, 1) -> 0 | M57: =IF(OR(ABS(SUM(M43:M45) - 1) < 10^-check_decimals, ABS(SUM(M43:M45) - 0) < 10^-check_decimals), 0, 1) -> 0 | P57: =IF(OR(ABS(SUM(P43:P45) - 1) < 10^-check_decimals, ABS(SUM(P43:P45) - 0) < 10^-check_decimals), 0, 1) -> 0
E59: Summary of checks | G59: number of issues | H59: =SUM(H50:H57) -> 0
B61: End of sheet

Sheet General inputs
A1: =MID(CELL("filename",A1),FIND("]",CELL("filename",A1))+1,255) -> General inputs
A2: =Cover!D21&" - "&Cover!D23 -> SP Manweb - V0.1
A3: =Cover!D2&" - "&Cover!D8&" v"&Cover!D10&" - "&Cover!D19 -> ARP model - Release for charge setting v3 - 2020/21
A4: =H115 & IF(H115 = 1, " issue", " issues") &" identified in checks on this sheet" -> 0 issues identified in checks on this sheet
B5: Click here to return to model map | G5: Units | H5: Constants | J5: Legal text reference
B7: Description
C9: This sheet sets out the other inputs to be filled in by DNOs
E11: Charging year selected | G11: year | H11: =charging_year_selected -> 2020/21
E12: Historic / current / forecast | G12: text | H12: ='ARP_User control'!$H$36 -> Current
B14: General inputs
C16: =INDEX('Version control'!$H$34:$H$59,MATCH($A$1,'Version control'!$F$34:$F$59,0),1)&"-A: Inputs by distribution timeband" -> Section 503-A: Inputs by distribution timeband
D18: Typical annual hours by special distribution time band | I18: > | J18: Paragraphs 40 to 41
E19: Black | G19: hours per year | H19: ='ARP_General inputs'!J19 -> 255
E20: Yellow | G20: hours per year | H20: ='ARP_General inputs'!J20 -> 3945.5
E21: Green | G21: hours per year | H21: ='ARP_General inputs'!J21 -> 4559.5
D23: Typical annual hours by distribution time band | I23: > | J23: Paragraphs 40 to 41
E24: Red | G24: hours per year | H24: ='ARP_General inputs'!J24 -> 783
E25: Amber | G25: hours per year | H25: ='ARP_General inputs'!J25 -> 3417.5
E26: Green | G26: hours per year | H26: ='ARP_General inputs'!J26 -> 4559.5
C28: =INDEX('Version control'!$H$34:$H$59,MATCH($A$1,'Version control'!$F$34:$F$59,0),1)&"-B: LDNO discount inputs" -> Section 503-B: LDNO discount inputs
D30: Inputs sourced from the PCDM
D32: Embedded network (LDNO) discount percentages | I32: > | J32: Paragraph 53
E33: LDNO LV: LV user | G33: % | H33: ='ARP_General inputs'!J33 -> 0.379357347
E34: LDNO HV: LV user | G34: % | H34: ='ARP_General inputs'!J34 -> 0.5848240063
E35: LDNO HV: LV Sub user | G35: % | H35: ='ARP_General inputs'!J35 -> 0.3296081647
E36: LDNO HV: HV user | G36: % | H36: ='ARP_General inputs'!J36 -> 0.2427681856
C38: =INDEX('Version control'!$H$34:$H$59,MATCH($A$1,'Version control'!$F$34:$F$59,0),1)&"-C: CDCM target revenue" -> Section 503-C: CDCM target revenue
D40: The contents of this table are defined in Paragraph 1.5 of Schedule 15 (Table 1) | I40: > | J40: Paragraph 54 and Schedule 15 Table 1
D41: "CDCM Revenue used in Charging Model" is the only row used as an input to the model itself
E43: Base Demand Revenue before inflation | G43: £ | H43: ='ARP_General inputs'!J43 -> 310900000
E44: Annual Iteration adjustment before inflation | G44: £ | H44: ='ARP_General inputs'!J44 -> -10200011.06
E45: RPI True-up before inflation | G45: £ | H45: ='ARP_General inputs'!J45 -> 819865.5405
E46: Price index adjustment (RPI index) | G46: scalar | H46: ='ARP_General inputs'!J46 -> 1.237
E47: Base demand revenue | G47: £ | H47: =SUM(H43:H45) -> 301519854.5
E48: Inflation adjustment | G48: £ | H48: =H47 * (H46 - 1) -> 71460205.51
E50: Pass-Through Licence Fees | G50: £ | H50: ='ARP_General inputs'!J50 -> 194845.9492
E51: Pass-Through Business Rates | G51: £ | H51: ='ARP_General inputs'!J51 -> 6631134.17
E52: Pass-Through Transmission Connection Point Charges | G52: £ | H52: ='ARP_General inputs'!J52 -> -1831935.834
E53: Pass-through Smart Meter Communication Licence Costs | G53: £ | H53: ='ARP_General inputs'!J53 -> 1174060.8
E54: Pass-through Smart Meter IT Costs | G54: £ | H54: ='ARP_General inputs'!J54 -> 1388934.861
E55: Pass-through Ring Fence Costs | G55: £ | H55: ='ARP_General inputs'!J55 -> 0
E56: Pass-Through Others | G56: £ | H56: ='ARP_General inputs'!J56 -> 0
E57: Allowed Pass-Through Items | G57: £ | H57: =SUM(H50:H56) -> 7557039.948
E59: Broad Measure of Customer Service incentive | G59: £ | H59: ='ARP_General inputs'!J59 -> 3834751.718
E60: Quality of Service incentive | G60: £ | H60: ='ARP_General inputs'!J60 -> 4629782.871
E61: Connections Engagement incentive | G61: £ | H61: ='ARP_General inputs'!J61 -> 0
E62: Time to Connect incentive | G62: £ | H62: ='ARP_General inputs'!J62 -> 348613.7926
E63: Losses Discretionary Reward incentive | G63: £ | H63: ='ARP_General inputs'!J63 -> 0
E64: Network Innovation Allowance | G64: £ | H64: ='ARP_General inputs'!J64 -> 1260000
E65: Low Carbon Network Fund - Tier 1 unrecoverable | G65: £ | H65: ='ARP_General inputs'!J65 -> 0
E66: Low Carbon Network Fund - Tier 2 & Discretionary Funding | G66: £ | H66: ='ARP_General inputs'!J66 -> 0
E67: Connection Guaranteed Standards Systems & Processes penalty | G67: £ | H67: ='ARP_General inputs'!J67 -> 0
E68: Residual Losses and Growth Incentive - Losses | G68: £ | H68: ='ARP_General inputs'!J68 -> 0
E69: Residual Losses and Growth Incentive - Growth | G69: £ | H69: ='ARP_General inputs'!J69 -> 0
E70: Incentive Revenue and Other Adjustments | G70: £ | H70: =SUM(H59:H69) -> 10073148.38
E72: Correction Factor | G72: £ | H72: ='ARP_General inputs'!J72 -> 9333808.579
E73: Total allowed Revenue | G73: £ | H73: =H72 + H70 + H57 + H48 + H47 -> 399944056.9
E75: Other 1. Excluded services - Top-up, standby, and enhanced system security | G75: £ | H75: ='ARP_General inputs'!J75 -> 0
E76: Other 2. Excluded services - Revenue protection services | G76: £ | H76: ='ARP_General inputs'!J76 -> 533092.9651
E77: Other 3. Excluded services - Miscellaneous | G77: £ | H77: ='ARP_General inputs'!J77 -> 0
E78: Other 4. Please describe if used | G78: £ | H78: ='ARP_General inputs'!J78 -> 0
E79: Other 5. Please describe if used | G79: £ | H79: ='ARP_General inputs'!J79 -> 0
E80: Total other revenue recovered by Use of System Charges | G80: £ | H80: =SUM(H75:H79) -> 533092.9651
E81: Total Revenue for Use of System Charges | G81: £ | H81: =H73+H80 -> 400477149.9
E83: 1. Revenue raised outside CDCM - EDCM and Certain Interconnector Revenue | G83: £ | H83: ='ARP_General inputs'!J83 -> 32006147.04
E84: 2. Revenue raised outside CDCM - Voluntary under-recovery | G84: £ | H84: ='ARP_General inputs'!J84 -> 0
E85: 3. Revenue raised outside CDCM - Please describe if used | G85: £ | H85: ='ARP_General inputs'!J85 -> 0
E86: 4. Revenue raised outside CDCM - Please describe if used | G86: £ | H86: ='ARP_General inputs'!J86 -> 0
E87: Total Revenue to be raised outside the CDCM | G87: £ | H87: =SUM(H83:H86) -> 32006147.04
E88: Latest forecast of CDCM Revenue | G88: £ | H88: =H81-H87 -> 368471002.8
C90: =INDEX('Version control'!$H$34:$H$59,MATCH($A$1,'Version control'!$F$34:$F$59,0),1)&"-D: Financial and general assumptions" -> Section 503-D: Financial and general assumptions
E92: Real pre-tax cost of capital | G92: % | H92: ='ARP_General inputs'!J98 -> 0.0379 | I92: > | J92: Paragraph 57
E93: Days in the charging year | G93: days | H93: ='ARP_General inputs'!J99 -> 365
E94: Hours in charging year | G94: hours | H94: =days_in_year * hours_in_day -> 8760
C96: =INDEX('Version control'!$H$34:$H$59,MATCH($A$1,'Version control'!$F$34:$F$59,0),1)&"-E: Transmission exit charges" -> Section 503-E: Transmission exit charges
E98: Transmission exit charges | G98: £ per year | H98: ='ARP_General inputs'!J103 -> 19197064.17 | I98: > | J98: Paragraph 38
C100: =INDEX('Version control'!$H$34:$H$56,MATCH($A$1,'Version control'!$F$34:$F$56,0),1)&"-F: Other expenditure" -> Section 503-F: Other expenditure
E102: Other expenditure | I102: > | J102: Paragraph 39
F103: Direct cost | G103: £ per year | H103: ='ARP_General inputs'!J108 -> 26111025.14
F104: Indirect cost | G104: £ per year | H104: ='ARP_General inputs'!J109 -> 61684476.31
F105: Network rates | G105: £ per year | H105: ='ARP_General inputs'!J110 -> 24567634.17
B107: Checks
E109: Check for error values | G109: number of issues | H109: =SUM(IF(ISERROR(H6:H106), 1)) -> 0
E111: Hours in charging year check
F112: Normal distribution timebands | G112: number of issues | H112: =IF(SUM(H19:H21) = hours_in_year, 0, 1) -> 0
F113: Special distribution timebands | G113: number of issues | H113: =IF(SUM(H24:H26) = hours_in_year, 0, 1) -> 0
E115: Summary of checks | G115: number of issues | H115: =SUM(H109,H112:H113) -> 0
B117: End of sheet

Sheet Standing charge factors
A1: =MID(CELL("filename",A1),FIND("]",CELL("filename",A1))+1,255) -> Standing charge factors
A2: =Cover!D21&" - "&Cover!D23 -> SP Manweb - V0.1
A3: =Cover!D2&" - "&Cover!D8&" v"&Cover!D10&" - "&Cover!D19 -> ARP model - Release for charge setting v3 - 2020/21
A4: =H58 & IF(H58 = 1, " issue", " issues") &" identified in checks on this sheet" -> 0 issues identified in checks on this sheet
B5: Click here to return to model map | G5: Units | H5: Constants | J5: Domestic Unrestricted | K5: Domestic Two Rate | L5: Domestic Off Peak (related MPAN) | M5: Small Non Domestic Unrestricted | N5: Small Non Domestic Two Rate | O5: Small Non Domestic Off Peak (related MPAN) | P5: LV Medium Non-Domestic | Q5: LV Sub Medium Non-Domestic | R5: HV Medium Non-Domestic | S5: LV Network Domestic | T5: LV Network Non-Domestic Non-CT | U5: LV HH Metered | V5: LV Sub HH Metered | W5: HV HH Metered | X5: NHH UMS category A | Y5: NHH UMS category B | Z5: NHH UMS category C | AA5: NHH UMS category D | AB5: LV UMS (Pseudo HH Metered) | AC5: LV Generation NHH or Aggregate HH | AD5: LV Sub Generation NHH | AE5: LV Generation Intermittent | AF5: LV Generation Intermittent no RP charge | AG5: LV Generation Non-Intermittent | AH5: LV Generation Non-Intermittent no RP charge | AI5: LV Sub Generation Intermittent | AJ5: LV Sub Generation Intermittent no RP charge | AK5: LV Sub Generation Non-Intermittent | AL5: LV Sub Generation Non-Intermittent no RP charge | AM5: HV Generation Intermittent | AN5: HV Generation Intermittent no RP charge | AO5: HV Generation Non-Intermittent | AP5: HV Generation Non-Intermittent no RP charge | AR5: Legal text reference
B7: Description
C9: This sheet contains standing charge factors, as described in DCUSA Schedule 16, Paragraphs 74-76.
C10: Standing charge factors are used to split network costs between those to be recovered through unit rate charges
C11: and those to be recovered through standing (capacity or fixed) charges, depending on the customer class and
C12: the network level at which costs occur.
C14: Standing charge factors are only applied for demand users.
C15: A factor of 100% implies that all costs will be allocated to standing charges.
B17: Adjustments to standing charges
C19: =INDEX('Version control'!$H$34:$H$59,MATCH($A$1,'Version control'!$F$34:$F$59,0),1)&"-A: Adjustments to standing charges" -> Section 504-A: Adjustments to standing charges
D21: Brings in standing charge factors and adjusts them for share of load going through 132/HV
E23: Raw inputs for standing charge factors, by network level | I23: > | AR23: Paragraph 74
E24: Standing charge factors as specified in Paragraph 74
F25: Transmission exit | G25: % | J25: ='Fixed inputs'!J89 -> 0 | K25: ='Fixed inputs'!K89 -> 0 | L25: ='Fixed inputs'!L89 -> 0 | M25: ='Fixed inputs'!M89 -> 0 | N25: ='Fixed inputs'!N89 -> 0 | O25: ='Fixed inputs'!O89 -> 0 | P25: ='Fixed inputs'!P89 -> 0 | Q25: ='Fixed inputs'!Q89 -> 0 | R25: ='Fixed inputs'!R89 -> 0 | S25: ='Fixed inputs'!S89 -> 0 | T25: ='Fixed inputs'!T89 -> 0 | U25: ='Fixed inputs'!U89 -> 0 | V25: ='Fixed inputs'!V89 -> 0 | W25: ='Fixed inputs'!W89 -> 0 | X25: ='Fixed inputs'!X89 -> 0 | Y25: ='Fixed inputs'!Y89 -> 0 | Z25: ='Fixed inputs'!Z89 -> 0 | AA25: ='Fixed inputs'!AA89 -> 0 | AB25: ='Fixed inputs'!AB89 -> 0
F26: GSPs | G26: % | J26: ='Fixed inputs'!J90 -> 0 | K26: ='Fixed inputs'!K90 -> 0 | L26: ='Fixed inputs'!L90 -> 0 | M26: ='Fixed inputs'!M90 -> 0 | N26: ='Fixed inputs'!N90 -> 0 | O26: ='Fixed inputs'!O90 -> 0 | P26: ='Fixed inputs'!P90 -> 0 | Q26: ='Fixed inputs'!Q90 -> 0 | R26: ='Fixed inputs'!R90 -> 0 | S26: ='Fixed inputs'!S90 -> 0 | T26: ='Fixed inputs'!T90 -> 0 | U26: ='Fixed inputs'!U90 -> 0 | V26: ='Fixed inputs'!V90 -> 0 | W26: ='Fixed inputs'!W90 -> 0 | X26: ='Fixed inputs'!X90 -> 0 | Y26: ='Fixed inputs'!Y90 -> 0 | Z26: ='Fixed inputs'!Z90 -> 0 | AA26: ='Fixed inputs'!AA90 -> 0 | AB26: ='Fixed inputs'!AB90 -> 0
F27: 132kV | G27: % | J27: ='Fixed inputs'!J91 -> 0 | K27: ='Fixed inputs'!K91 -> 0 | L27: ='Fixed inputs'!L91 -> 0 | M27: ='Fixed inputs'!M91 -> 0 | N27: ='Fixed inputs'!N91 -> 0 | O27: ='Fixed inputs'!O91 -> 0 | P27: ='Fixed inputs'!P91 -> 0 | Q27: ='Fixed inputs'!Q91 -> 0 | R27: ='Fixed inputs'!R91 -> 0 | S27: ='Fixed inputs'!S91 -> 0 | T27: ='Fixed inputs'!T91 -> 0 | U27: ='Fixed inputs'!U91 -> 0 | V27: ='Fixed inputs'!V91 -> 0 | W27: ='Fixed inputs'!W91 -> 0 | X27: ='Fixed inputs'!X91 -> 0 | Y27: ='Fixed inputs'!Y91 -> 0 | Z27: ='Fixed inputs'!Z91 -> 0 | AA27: ='Fixed inputs'!AA91 -> 0 | AB27: ='Fixed inputs'!AB91 -> 0
F28: 132kV/EHV | G28: % | J28: ='Fixed inputs'!J92 -> 0 | K28: ='Fixed inputs'!K92 -> 0 | L28: ='Fixed inputs'!L92 -> 0 | M28: ='Fixed inputs'!M92 -> 0 | N28: ='Fixed inputs'!N92 -> 0 | O28: ='Fixed inputs'!O92 -> 0 | P28: ='Fixed inputs'!P92 -> 0 | Q28: ='Fixed inputs'!Q92 -> 0 | R28: ='Fixed inputs'!R92 -> 0 | S28: ='Fixed inputs'!S92 -> 0 | T28: ='Fixed inputs'!T92 -> 0 | U28: ='Fixed inputs'!U92 -> 0 | V28: ='Fixed inputs'!V92 -> 0 | W28: ='Fixed inputs'!W92 -> 0 | X28: ='Fixed inputs'!X92 -> 0 | Y28: ='Fixed inputs'!Y92 -> 0 | Z28: ='Fixed inputs'!Z92 -> 0 | AA28: ='Fixed inputs'!AA92 -> 0 | AB28: ='Fixed inputs'!AB92 -> 0
F29: EHV | G29: % | J29: ='Fixed inputs'!J93 -> 0 | K29: ='Fixed inputs'!K93 -> 0 | L29: ='Fixed inputs'!L93 -> 0 | M29: ='Fixed inputs'!M93 -> 0 | N29: ='Fixed inputs'!N93 -> 0 | O29: ='Fixed inputs'!O93 -> 0 | P29: ='Fixed inputs'!P93 -> 0 | Q29: ='Fixed inputs'!Q93 -> 0 | R29: ='Fixed inputs'!R93 -> 0.2 | S29: ='Fixed inputs'!S93 -> 0 | T29: ='Fixed inputs'!T93 -> 0 | U29: ='Fixed inputs'!U93 -> 0 | V29: ='Fixed inputs'!V93 -> 0 | W29: ='Fixed inputs'!W93 -> 0.2 | X29: ='Fixed inputs'!X93 -> 0 | Y29: ='Fixed inputs'!Y93 -> 0 | Z29: ='Fixed inputs'!Z93 -> 0 | AA29: ='Fixed inputs'!AA93 -> 0 | AB29: ='Fixed inputs'!AB93 -> 0
F30: EHV/HV | G30: % | J30: ='Fixed inputs'!J94 -> 0 | K30: ='Fixed inputs'!K94 -> 0 | L30: ='Fixed inputs'!L94 -> 0 | M30: ='Fixed inputs'!M94 -> 0 | N30: ='Fixed inputs'!N94 -> 0 | O30: ='Fixed inputs'!O94 -> 0 | P30: ='Fixed inputs'!P94 -> 0 | Q30: ='Fixed inputs'!Q94 -> 0 | R30: ='Fixed inputs'!R94 -> 1 | S30: ='Fixed inputs'!S94 -> 0 | T30: ='Fixed inputs'!T94 -> 0 | U30: ='Fixed inputs'!U94 -> 0 | V30: ='Fixed inputs'!V94 -> 0 | W30: ='Fixed inputs'!W94 -> 1 | X30: ='Fixed inputs'!X94 -> 0 | Y30: ='Fixed inputs'!Y94 -> 0 | Z30: ='Fixed inputs'!Z94 -> 0 | AA30: ='Fixed inputs'!AA94 -> 0 | AB30: ='Fixed inputs'!AB94 -> 0
F31: 132kV/HV | G31: % | J31: ='Fixed inputs'!J95 -> 0 | K31: ='Fixed inputs'!K95 -> 0 | L31: ='Fixed inputs'!L95 -> 0 | M31: ='Fixed inputs'!M95 -> 0 | N31: ='Fixed inputs'!N95 -> 0 | O31: ='Fixed inputs'!O95 -> 0 | P31: ='Fixed inputs'!P95 -> 0 | Q31: ='Fixed inputs'!Q95 -> 0 | R31: ='Fixed inputs'!R95 -> 0 | S31: ='Fixed inputs'!S95 -> 0 | T31: ='Fixed inputs'!T95 -> 0 | U31: ='Fixed inputs'!U95 -> 0 | V31: ='Fixed inputs'!V95 -> 0 | W31: ='Fixed inputs'!W95 -> 0 | X31: ='Fixed inputs'!X95 -> 0 | Y31: ='Fixed inputs'!Y95 -> 0 | Z31: ='Fixed inputs'!Z95 -> 0 | AA31: ='Fixed inputs'!AA95 -> 0 | AB31: ='Fixed inputs'!AB95 -> 0
F32: HV | G32: % | J32: ='Fixed inputs'!J96 -> 0 | K32: ='Fixed inputs'!K96 -> 0 | L32: ='Fixed inputs'!L96 -> 0 | M32: ='Fixed inputs'!M96 -> 0 | N32: ='Fixed inputs'!N96 -> 0 | O32: ='Fixed inputs'!O96 -> 0 | P32: ='Fixed inputs'!P96 -> 0 | Q32: ='Fixed inputs'!Q96 -> 0 | R32: ='Fixed inputs'!R96 -> 1 | S32: ='Fixed inputs'!S96 -> 0 | T32: ='Fixed inputs'!T96 -> 0 | U32: ='Fixed inputs'!U96 -> 0.2 | V32: ='Fixed inputs'!V96 -> 1 | W32: ='Fixed inputs'!W96 -> 1 | X32: ='Fixed inputs'!X96 -> 0 | Y32: ='Fixed inputs'!Y96 -> 0 | Z32: ='Fixed inputs'!Z96 -> 0 | AA32: ='Fixed inputs'!AA96 -> 0 | AB32: ='Fixed inputs'!AB96 -> 0
F33: HV/LV | G33: % | J33: ='Fixed inputs'!J97 -> 0 | K33: ='Fixed inputs'!K97 -> 0 | L33: ='Fixed inputs'!L97 -> 0 | M33: ='Fixed inputs'!M97 -> 0 | N33: ='Fixed inputs'!N97 -> 0 | O33: ='Fixed inputs'!O97 -> 0 | P33: ='Fixed inputs'!P97 -> 0 | Q33: ='Fixed inputs'!Q97 -> 1 | R33: ='Fixed inputs'!R97 -> 0 | S33: ='Fixed inputs'!S97 -> 0 | T33: ='Fixed inputs'!T97 -> 0 | U33: ='Fixed inputs'!U97 -> 1 | V33: ='Fixed inputs'!V97 -> 1 | W33: ='Fixed inputs'!W97 -> 0 | X33: ='Fixed inputs'!X97 -> 0 | Y33: ='Fixed inputs'!Y97 -> 0 | Z33: ='Fixed inputs'!Z97 -> 0 | AA33: ='Fixed inputs'!AA97 -> 0 | AB33: ='Fixed inputs'!AB97 -> 0
F34: LV circuits | G34: % | J34: ='Fixed inputs'!J98 -> 1 | K34: ='Fixed inputs'!K98 -> 1 | L34: ='Fixed inputs'!L98 -> 1 | M34: ='Fixed inputs'!M98 -> 1 | N34: ='Fixed inputs'!N98 -> 1 | O34: ='Fixed inputs'!O98 -> 1 | P34: ='Fixed inputs'!P98 -> 1 | Q34: ='Fixed inputs'!Q98 -> 0 | R34: ='Fixed inputs'!R98 -> 0 | S34: ='Fixed inputs'!S98 -> 1 | T34: ='Fixed inputs'!T98 -> 1 | U34: ='Fixed inputs'!U98 -> 1 | V34: ='Fixed inputs'!V98 -> 0 | W34: ='Fixed inputs'!W98 -> 0 | X34: ='Fixed inputs'!X98 -> 0 | Y34: ='Fixed inputs'!Y98 -> 0 | Z34: ='Fixed inputs'!Z98 -> 0 | AA34: ='Fixed inputs'!AA98 -> 0 | AB34: ='Fixed inputs'!AB98 -> 0
F35: LV customers | G35: %
F36: HV customers | G36: %
E38: Proportion of load going through 132kV/HV direct transformation
F39: Proportion of load going through 132kV/HV direct transformation | G39: % | H39: ='Inputs by network level'!P20 -> 0
E41: Standing charges factors adapted to use 132kV/HV, by network level
E42: Adjustments as described in Paragraph 75 and 76
F43: Transmission exit | G43: %
F44: GSPs | G44: %
F45: 132kV | G45: % | I45: > | J45: =IF($H$39 = 0, J25, J29 * $H$39) -> 0 | K45: =IF($H$39 = 0, K25, K29 * $H$39) -> 0 | L45: 0 | M45: 0 | N45: 0 | O45: 0 | P45: 0 | Q45: 0 | R45: 0 | S45: 0 | T45: 0 | U45: 0 | V45: 0 | W45: 0 | X45: 0 | Y45: 0 | Z45: 0 | AA45: 0 | AB45: 0 | AR45: Paragraph 76
F46: 132kV/EHV | G46: % | J46: =J28 -> 0 | K46: 0 | L46: 0 | M46: 0 | N46: 0 | O46: 0 | P46: 0 | Q46: 0 | R46: 0 | S46: 0 | T46: 0 | U46: 0 | V46: 0 | W46: 0 | X46: 0 | Y46: 0 | Z46: 0 | AA46: 0 | AB46: 0
F47: EHV | G47: % | J47: =J29 -> 0 | K47: 0 | L47: 0 | M47: 0 | N47: 0 | O47: 0 | P47: 0 | Q47: 0 | R47: 0.2 | S47: 0 | T47: 0 | U47: 0 | V47: 0 | W47: 0.2 | X47: 0 | Y47: 0 | Z47: 0 | AA47: 0 | AB47: 0
F48: EHV/HV | G48: % | J48: =J30 -> 0 | K48: 0 | L48: 0 | M48: 0 | N48: 0 | O48: 0 | P48: 0 | Q48: 0 | R48: 1 | S48: 0 | T48: 0 | U48: 0 | V48: 0 | W48: 1 | X48: 0 | Y48: 0 | Z48: 0 | AA48: 0 | AB48: 0
F49: 132kV/HV | G49: % | I49: > | J49: =J30 -> 0 | K49: =K30 -> 0 | L49: 0 | M49: 0 | N49: 0 | O49: 0 | P49: 0 | Q49: 0 | R49: 1 | S49: 0 | T49: 0 | U49: 0 | V49: 0 | W49: 1 | X49: 0 | Y49: 0 | Z49: 0 | AA49: 0 | AB49: 0 | AR49: Paragraph 75
F50: HV | G50: % | J50: =J32 -> 0 | K50: 0 | L50: 0 | M50: 0 | N50: 0 | O50: 0 | P50: 0 | Q50: 0 | R50: 1 | S50: 0 | T50: 0 | U50: 0.2 | V50: 1 | W50: 1 | X50: 0 | Y50: 0 | Z50: 0 | AA50: 0 | AB50: 0
F51: HV/LV | G51: % | J51: =J33 -> 0 | K51: 0 | L51: 0 | M51: 0 | N51: 0 | O51: 0 | P51: 0 | Q51: 1 | R51: 0 | S51: 0 | T51: 0 | U51: 1 | V51: 1 | W51: 0 | X51: 0 | Y51: 0 | Z51: 0 | AA51: 0 | AB51: 0
F52: LV circuits | G52: % | J52: =J34 -> 1 | K52: 1 | L52: 1 | M52: 1 | N52: 1 | O52: 1 | P52: 1 | Q52: 0 | R52: 0 | S52: 1 | T52: 1 | U52: 1 | V52: 0 | W52: 0 | X52: 0 | Y52: 0 | Z52: 0 | AA52: 0 | AB52: 0
F53: LV customers | G53: %
F54: HV customers | G54: %
B56: Checks
E58: Check for error values | G58: number of issues | H58: =SUM(IF(ISERROR(H25:AP54), 1)) -> 0
B60: End of sheet

Sheet Load & loss characteristics
A1: =MID(CELL("filename",A1),FIND("]",CELL("filename",A1))+1,255) -> Load & loss characteristics
A2: =Cover!D21&" - "&Cover!D23 -> SP Manweb - V0.1
A3: =Cover!D2&" - "&Cover!D8&" v"&Cover!D10&" - "&Cover!D19 -> ARP model - Release for charge setting v3 - 2020/21
A4: =H302 & IF(H302 = 1, " issue", " issues") &" identified in checks on this sheet" -> 0 issues identified in checks on this sheet
B5: Click here to return to model map | G5: Units | H5: Constants | J5: Transmission exit | K5: GSPs | L5: 132kV | M5: 132kV/EHV | N5: EHV | O5: EHV/HV | P5: 132kV/HV | Q5: HV | R5: HV/LV | S5: LV circuits | T5: LV customers | U5: HV customers | W5: Legal text reference
B7: Description
C9: This sheet adjusts diversity allowances, coincidence factors and loss adjustment factors for use in the model
C10: This sheet then uses network use factors and loss adjustment factors to calculate user loss factors
C11: Network use factors and user loss factors are also adjusted for the share of load going through 132/HV transformation
B13: Load and loss characteristics
C15: Brings in diversity allowances to calculate coincidence and cumulative diversity factors. Also adjusts loss adjustment factors.
C17: =INDEX('Version control'!$H$34:$H$59,MATCH($A$1,'Version control'!$F$34:$F$59,0),1)&"-A: Load characteristics" -> Section 505-A: Load characteristics
E19: Network model diversity allowances | G19: % | K19: ='Inputs by network level'!K18 -> 0.025 | L19: ='Inputs by network level'!L18 -> 0.1 | N19: ='Inputs by network level'!N18 -> 0.26 | Q19: ='Inputs by network level'!Q18 -> 0.2
E20: Coincidence factor | G20: % | J20: =IF(I20 = "", 1, I20 / (1 + J19)) -> 1 | K20: =IF(J20 = "", 1, J20 / (1 + K19)) -> 0.9756097561 | L20: =IF(K20 = "", 1, K20 / (1 + L19)) -> 0.8869179601 | M20: 0.8869179601 | N20: 0.7039031429 | O20: 0.7039031429 | P20: 0.7039031429 | Q20: 0.5865859524 | R20: 0.5865859524 | S20: 0.5865859524
E21: Network model cumulative diversity factor | G21: % | J21: =1 / J20 - 1 -> 0 | K21: =1 / K20 - 1 -> 0.025 | L21: 0.1275 | M21: 0.1275 | N21: 0.42065 | O21: 0.42065 | P21: 0.42065 | Q21: 0.70478 | R21: 0.70478 | S21: 0.70478
E22: Adjustment for 132/HV diversity | G22: % | P22: =M21 -> 0.1275
E23: Adjusted network model cumulative diversity factor | G23: % | I23: > | J23: =IF(J22 = "", J21, J22) -> 0 | K23: 0.025 | L23: 0.1275 | M23: 0.1275 | N23: 0.42065 | O23: 0.42065 | P23: 0.1275 | Q23: 0.70478 | R23: 0.70478 | S23: 0.70478 | W23: Paragraphs 42 to 44
C25: =INDEX('Version control'!$H$34:$H$59,MATCH($A$1,'Version control'!$F$34:$F$59,0),1)&"-B: Loss adjustment factors" -> Section 505-B: Loss adjustment factors
E27: Loss adjustment factor to transmission | G27: scalar | K27: ='Inputs by network level'!K22 -> 1 | L27: ='Inputs by network level'!L22 -> 1.005 | M27: ='Inputs by network level'!M22 -> 1.012 | N27: ='Inputs by network level'!N22 -> 1.018 | O27: ='Inputs by network level'!O22 -> 1.026 | Q27: ='Inputs by network level'!Q22 -> 1.038 | R27: ='Inputs by network level'!R22 -> 1.06 | S27: ='Inputs by network level'!S22 -> 1.105
E28: Adjustment for 132/HV transformation & transmission exit | G28: scalar | J28: =K27 -> 1 | P28: =O27 -> 1.026
E29: Loss adjustment factor to transmission for each DRM network level | G29: scalar | I29: > | J29: =J27 + J28 -> 1 | K29: 1 | L29: 1.005 | M29: 1.012 | N29: 1.018 | O29: 1.026 | P29: 1.026 | Q29: 1.038 | R29: 1.06 | S29: 1.105 | W29: Paragraph 47
B31: User loss factor adjustments
C33: Calculates user loss factors and makes adjustments for share of load going through 132kV/HV
C35: =INDEX('Version control'!$H$34:$H$59,MATCH($A$1,'Version control'!$F$34:$F$59,0),1)&"-C: Proportion of relevant load going through 132kV/HV direct transformation" -> Section 505-C: Proportion of relevant load going through 132kV/HV direct transformation
E37: 132kV/HV | G37: % | H37: ='Inputs by network level'!P20 -> 0
E38: Adjustment to network use factors for 132/HV share | G38: % | M38: =1 - $H$37 -> 1 | N38: =1 - $H$37 -> 1 | O38: =1 - $H$37 -> 1 | P38: =H37 -> 0
C40: =INDEX('Version control'!$H$34:$H$59,MATCH($A$1,'Version control'!$F$34:$F$59,0),1)&"-D: Network use factors" -> Section 505-D: Network use factors
D42: Network use factors assume demand and generation use the network from the point of connection.
E44: Network use factors (assuming generation contributes at level of connection)
E45: These values are drawn from the "Fixed inputs" sheet.
F46: Domestic Unrestricted | G46: 1, 0 or -1 | J46: =TRANSPOSE('Fixed inputs'!J60:AP69) -> 1 | K46: 1 | L46: 1 | M46: 1 | N46: 1 | O46: 1 | P46: 1 | Q46: 1 | R46: 1 | S46: 1
F47: Domestic Two Rate | G47: 1, 0 or -1 | J47: 1 | K47: 1 | L47: 1 | M47: 1 | N47: 1 | O47: 1 | P47: 1 | Q47: 1 | R47: 1 | S47: 1
F48: Domestic Off Peak (related MPAN) | G48: 1, 0 or -1 | J48: 1 | K48: 1 | L48: 1 | M48: 1 | N48: 1 | O48: 1 | P48: 1 | Q48: 1 | R48: 1 | S48: 1
F49: Small Non Domestic Unrestricted | G49: 1, 0 or -1 | J49: 1 | K49: 1 | L49: 1 | M49: 1 | N49: 1 | O49: 1 | P49: 1 | Q49: 1 | R49: 1 | S49: 1
F50: Small Non Domestic Two Rate | G50: 1, 0 or -1 | J50: 1 | K50: 1 | L50: 1 | M50: 1 | N50: 1 | O50: 1 | P50: 1 | Q50: 1 | R50: 1 | S50: 1
F51: Small Non Domestic Off Peak (related MPAN) | G51: 1, 0 or -1 | J51: 1 | K51: 1 | L51: 1 | M51: 1 | N51: 1 | O51: 1 | P51: 1 | Q51: 1 | R51: 1 | S51: 1
F52: LV Medium Non-Domestic | G52: 1, 0 or -1 | J52: 1 | K52: 1 | L52: 1 | M52: 1 | N52: 1 | O52: 1 | P52: 1 | Q52: 1 | R52: 1 | S52: 1
F53: LV Sub Medium Non-Domestic | G53: 1, 0 or -1 | J53: 1 | K53: 1 | L53: 1 | M53: 1 | N53: 1 | O53: 1 | P53: 1 | Q53: 1 | R53: 1 | S53: 0
F54: HV Medium Non-Domestic | G54: 1, 0 or -1 | J54: 1 | K54: 1 | L54: 1 | M54: 1 | N54: 1 | O54: 1 | P54: 1 | Q54: 1 | R54: 0 | S54: 0
F55: LV Network Domestic | G55: 1, 0 or -1 | J55: 1 | K55: 1 | L55: 1 | M55: 1 | N55: 1 | O55: 1 | P55: 1 | Q55: 1 | R55: 1 | S55: 1
F56: LV Network Non-Domestic Non-CT | G56: 1, 0 or -1 | J56: 1 | K56: 1 | L56: 1 | M56: 1 | N56: 1 | O56: 1 | P56: 1 | Q56: 1 | R56: 1 | S56: 1
F57: LV HH Metered | G57: 1, 0 or -1 | J57: 1 | K57: 1 | L57: 1 | M57: 1 | N57: 1 | O57: 1 | P57: 1 | Q57: 1 | R57: 1 | S57: 1
F58: LV Sub HH Metered | G58: 1, 0 or -1 | J58: 1 | K58: 1 | L58: 1 | M58: 1 | N58: 1 | O58: 1 | P58: 1 | Q58: 1 | R58: 1 | S58: 0
F59: HV HH Metered | G59: 1, 0 or -1 | J59: 1 | K59: 1 | L59: 1 | M59: 1 | N59: 1 | O59: 1 | P59: 1 | Q59: 1 | R59: 0 | S59: 0
F60: NHH UMS category A | G60: 1, 0 or -1 | J60: 1 | K60: 1 | L60: 1 | M60: 1 | N60: 1 | O60: 1 | P60: 1 | Q60: 1 | R60: 1 | S60: 1
F61: NHH UMS category B | G61: 1, 0 or -1 | J61: 1 | K61: 1 | L61: 1 | M61: 1 | N61: 1 | O61: 1 | P61: 1 | Q61: 1 | R61: 1 | S61: 1
F62: NHH UMS category C | G62: 1, 0 or -1 | J62: 1 | K62: 1 | L62: 1 | M62: 1 | N62: 1 | O62: 1 | P62: 1 | Q62: 1 | R62: 1 | S62: 1
F63: NHH UMS category D | G63: 1, 0 or -1 | J63: 1 | K63: 1 | L63: 1 | M63: 1 | N63: 1 | O63: 1 | P63: 1 | Q63: 1 | R63: 1 | S63: 1
F64: LV UMS (Pseudo HH Metered) | G64: 1, 0 or -1 | J64: 1 | K64: 1 | L64: 1 | M64: 1 | N64: 1 | O64: 1 | P64: 1 | Q64: 1 | R64: 1 | S64: 1
F65: LV Generation NHH or Aggregate HH | G65: 1, 0 or -1 | J65: -1 | K65: -1 | L65: -1 | M65: -1 | N65: -1 | O65: -1 | P65: -1 | Q65: -1 | R65: -1 | S65: -1
F66: LV Sub Generation NHH | G66: 1, 0 or -1 | J66: -1 | K66: -1 | L66: -1 | M66: -1 | N66: -1 | O66: -1 | P66: -1 | Q66: -1 | R66: -1 | S66: 0
F67: LV Generation Intermittent | G67: 1, 0 or -1 | J67: -1 | K67: -1 | L67: -1 | M67: -1 | N67: -1 | O67: -1 | P67: -1 | Q67: -1 | R67: -1 | S67: -1
F68: LV Generation Intermittent no RP charge | G68: 1, 0 or -1 | J68: -1 | K68: -1 | L68: -1 | M68: -1 | N68: -1 | O68: -1 | P68: -1 | Q68: -1 | R68: -1 | S68: -1
F69: LV Generation Non-Intermittent | G69: 1, 0 or -1 | J69: -1 | K69: -1 | L69: -1 | M69: -1 | N69: -1 | O69: -1 | P69: -1 | Q69: -1 | R69: -1 | S69: -1
F70: LV Generation Non-Intermittent no RP charge | G70: 1, 0 or -1 | J70: -1 | K70: -1 | L70: -1 | M70: -1 | N70: -1 | O70: -1 | P70: -1 | Q70: -1 | R70: -1 | S70: -1
F71: LV Sub Generation Intermittent | G71: 1, 0 or -1 | J71: -1 | K71: -1 | L71: -1 | M71: -1 | N71: -1 | O71: -1 | P71: -1 | Q71: -1 | R71: -1 | S71: 0
F72: LV Sub Generation Intermittent no RP charge | G72: 1, 0 or -1 | J72: -1 | K72: -1 | L72: -1 | M72: -1 | N72: -1 | O72: -1 | P72: -1 | Q72: -1 | R72: -1 | S72: 0
F73: LV Sub Generation Non-Intermittent | G73: 1, 0 or -1 | J73: -1 | K73: -1 | L73: -1 | M73: -1 | N73: -1 | O73: -1 | P73: -1 | Q73: -1 | R73: -1 | S73: 0
F74: LV Sub Generation Non-Intermittent no RP charge | G74: 1, 0 or -1 | J74: -1 | K74: -1 | L74: -1 | M74: -1 | N74: -1 | O74: -1 | P74: -1 | Q74: -1 | R74: -1 | S74: 0
F75: HV Generation Intermittent | G75: 1, 0 or -1 | J75: -1 | K75: -1 | L75: -1 | M75: -1 | N75: -1 | O75: -1 | P75: -1 | Q75: -1 | R75: 0 | S75: 0
F76: HV Generation Intermittent no RP charge | G76: 1, 0 or -1 | J76: -1 | K76: -1 | L76: -1 | M76: -1 | N76: -1 | O76: -1 | P76: -1 | Q76: -1 | R76: 0 | S76: 0
F77: HV Generation Non-Intermittent | G77: 1, 0 or -1 | J77: -1 | K77: -1 | L77: -1 | M77: -1 | N77: -1 | O77: -1 | P77: -1 | Q77: -1 | R77: 0 | S77: 0
F78: HV Generation Non-Intermittent no RP charge | G78: 1, 0 or -1 | J78: -1 | K78: -1 | L78: -1 | M78: -1 | N78: -1 | O78: -1 | P78: -1 | Q78: -1 | R78: 0 | S78: 0
E80: Network use factors (assuming generation contributes at level of connection) scaled for 132/HV
E81: These have been adjusted for the share of load going through 132/HV transformation
F82: Domestic Unrestricted | G82: 1, 0 or -1 | J82: =IF(J$38 = "", J46, J46 * J$38) -> 1 | K82: 1 | L82: 1 | M82: 1 | N82: 1 | O82: 1 | P82: 0 | Q82: 1 | R82: 1 | S82: 1
F83: Domestic Two Rate | G83: 1, 0 or -1 | J83: =IF(J$38 = "", J47, J47 * J$38) -> 1 | K83: 1 | L83: 1 | M83: 1 | N83: 1 | O83: 1 | P83: 0 | Q83: 1 | R83: 1 | S83: 1
F84: Domestic Off Peak (related MPAN) | G84: 1, 0 or -1 | J84: =IF(J$38 = "", J48, J48 * J$38) -> 1 | K84: 1 | L84: 1 | M84: 1 | N84: 1 | O84: 1 | P84: 0 | Q84: 1 | R84: 1 | S84: 1
F85: Small Non Domestic Unrestricted | G85: 1, 0 or -1 | J85: =IF(J$38 = "", J49, J49 * J$38) -> 1 | K85: 1 | L85: 1 | M85: 1 | N85: 1 | O85: 1 | P85: 0 | Q85: 1 | R85: 1 | S85: 1
F86: Small Non Domestic Two Rate | G86: 1, 0 or -1 | J86: =IF(J$38 = "", J50, J50 * J$38) -> 1 | K86: 1 | L86: 1 | M86: 1 | N86: 1 | O86: 1 | P86: 0 | Q86: 1 | R86: 1 | S86: 1
F87: Small Non Domestic Off Peak (related MPAN) | G87: 1, 0 or -1 | J87: =IF(J$38 = "", J51, J51 * J$38) -> 1 | K87: 1 | L87: 1 | M87: 1 | N87: 1 | O87: 1 | P87: 0 | Q87: 1 | R87: 1 | S87: 1
F88: LV Medium Non-Domestic | G88: 1, 0 or -1 | J88: =IF(J$38 = "", J52, J52 * J$38) -> 1 | K88: 1 | L88: 1 | M88: 1 | N88: 1 | O88: 1 | P88: 0 | Q88: 1 | R88: 1 | S88: 1
F89: LV Sub Medium Non-Domestic | G89: 1, 0 or -1 | J89: =IF(J$38 = "", J53, J53 * J$38) -> 1 | K89: 1 | L89: 1 | M89: 1 | N89: 1 | O89: 1 | P89: 0 | Q89: 1 | R89: 1 | S89: 0
F90: HV Medium Non-Domestic | G90: 1, 0 or -1 | J90: =IF(J$38 = "", J54, J54 * J$38) -> 1 | K90: 1 | L90: 1 | M90: 1 | N90: 1 | O90: 1 | P90: 0 | Q90: 1 | R90: 0 | S90: 0
F91: LV Network Domestic | G91: 1, 0 or -1 | J91: =IF(J$38 = "", J55, J55 * J$38) -> 1 | K91: 1 | L91: 1 | M91: 1 | N91: 1 | O91: 1 | P91: 0 | Q91: 1 | R91: 1 | S91: 1
F92: LV Network Non-Domestic Non-CT | G92: 1, 0 or -1 | J92: =IF(J$38 = "", J56, J56 * J$38) -> 1 | K92: 1 | L92: 1 | M92: 1 | N92: 1 | O92: 1 | P92: 0 | Q92: 1 | R92: 1 | S92: 1
F93: LV HH Metered | G93: 1, 0 or -1 | J93: =IF(J$38 = "", J57, J57 * J$38) -> 1 | K93: 1 | L93: 1 | M93: 1 | N93: 1 | O93: 1 | P93: 0 | Q93: 1 | R93: 1 | S93: 1
F94: LV Sub HH Metered | G94: 1, 0 or -1 | J94: =IF(J$38 = "", J58, J58 * J$38) -> 1 | K94: 1 | L94: 1 | M94: 1 | N94: 1 | O94: 1 | P94: 0 | Q94: 1 | R94: 1 | S94: 0
F95: HV HH Metered | G95: 1, 0 or -1 | J95: =IF(J$38 = "", J59, J59 * J$38) -> 1 | K95: 1 | L95: 1 | M95: 1 | N95: 1 | O95: 1 | P95: 0 | Q95: 1 | R95: 0 | S95: 0
F96: NHH UMS category A | G96: 1, 0 or -1 | J96: =IF(J$38 = "", J60, J60 * J$38) -> 1 | K96: 1 | L96: 1 | M96: 1 | N96: 1 | O96: 1 | P96: 0 | Q96: 1 | R96: 1 | S96: 1
F97: NHH UMS category B | G97: 1, 0 or -1 | J97: =IF(J$38 = "", J61, J61 * J$38) -> 1 | K97: 1 | L97: 1 | M97: 1 | N97: 1 | O97: 1 | P97: 0 | Q97: 1 | R97: 1 | S97: 1
F98: NHH UMS category C | G98: 1, 0 or -1 | J98: =IF(J$38 = "", J62, J62 * J$38) -> 1 | K98: 1 | L98: 1 | M98: 1 | N98: 1 | O98: 1 | P98: 0 | Q98: 1 | R98: 1 | S98: 1
F99: NHH UMS category D | G99: 1, 0 or -1 | J99: =IF(J$38 = "", J63, J63 * J$38) -> 1 | K99: 1 | L99: 1 | M99: 1 | N99: 1 | O99: 1 | P99: 0 | Q99: 1 | R99: 1 | S99: 1
F100: LV UMS (Pseudo HH Metered) | G100: 1, 0 or -1 | J100: =IF(J$38 = "", J64, J64 * J$38) -> 1 | K100: 1 | L100: 1 | M100: 1 | N100: 1 | O100: 1 | P100: 0 | Q100: 1 | R100: 1 | S100: 1
F101: LV Generation NHH or Aggregate HH | G101: 1, 0 or -1 | J101: =IF(J$38 = "", J65, J65 * J$38) -> -1 | K101: -1 | L101: -1 | M101: -1 | N101: -1 | O101: -1 | P101: 0 | Q101: -1 | R101: -1 | S101: -1
F102: LV Sub Generation NHH | G102: 1, 0 or -1 | J102: =IF(J$38 = "", J66, J66 * J$38) -> -1 | K102: -1 | L102: -1 | M102: -1 | N102: -1 | O102: -1 | P102: 0 | Q102: -1 | R102: -1 | S102: 0
F103: LV Generation Intermittent | G103: 1, 0 or -1 | J103: =IF(J$38 = "", J67, J67 * J$38) -> -1 | K103: -1 | L103: -1 | M103: -1 | N103: -1 | O103: -1 | P103: 0 | Q103: -1 | R103: -1 | S103: -1
F104: LV Generation Intermittent no RP charge | G104: 1, 0 or -1 | J104: =IF(J$38 = "", J68, J68 * J$38) -> -1 | K104: -1 | L104: -1 | M104: -1 | N104: -1 | O104: -1 | P104: 0 | Q104: -1 | R104: -1 | S104: -1
F105: LV Generation Non-Intermittent | G105: 1, 0 or -1 | J105: =IF(J$38 = "", J69, J69 * J$38) -> -1 | K105: -1 | L105: -1 | M105: -1 | N105: -1 | O105: -1 | P105: 0 | Q105: -1 | R105: -1 | S105: -1
F106: LV Generation Non-Intermittent no RP charge | G106: 1, 0 or -1 | J106: =IF(J$38 = "", J70, J70 * J$38) -> -1 | K106: -1 | L106: -1 | M106: -1 | N106: -1 | O106: -1 | P106: 0 | Q106: -1 | R106: -1 | S106: -1
F107: LV Sub Generation Intermittent | G107: 1, 0 or -1 | J107: =IF(J$38 = "", J71, J71 * J$38) -> -1 | K107: -1 | L107: -1 | M107: -1 | N107: -1 | O107: -1 | P107: 0 | Q107: -1 | R107: -1 | S107: 0
F108: LV Sub Generation Intermittent no RP charge | G108: 1, 0 or -1 | J108: =IF(J$38 = "", J72, J72 * J$38) -> -1 | K108: -1 | L108: -1 | M108: -1 | N108: -1 | O108: -1 | P108: 0 | Q108: -1 | R108: -1 | S108: 0
F109: LV Sub Generation Non-Intermittent | G109: 1, 0 or -1 | J109: =IF(J$38 = "", J73, J73 * J$38) -> -1 | K109: -1 | L109: -1 | M109: -1 | N109: -1 | O109: -1 | P109: 0 | Q109: -1 | R109: -1 | S109: 0
F110: LV Sub Generation Non-Intermittent no RP charge | G110: 1, 0 or -1 | J110: =IF(J$38 = "", J74, J74 * J$38) -> -1 | K110: -1 | L110: -1 | M110: -1 | N110: -1 | O110: -1 | P110: 0 | Q110: -1 | R110: -1 | S110: 0
F111: HV Generation Intermittent | G111: 1, 0 or -1 | J111: =IF(J$38 = "", J75, J75 * J$38) -> -1 | K111: -1 | L111: -1 | M111: -1 | N111: -1 | O111: -1 | P111: 0 | Q111: -1 | R111: 0 | S111: 0
F112: HV Generation Intermittent no RP charge | G112: 1, 0 or -1 | J112: =IF(J$38 = "", J76, J76 * J$38) -> -1 | K112: -1 | L112: -1 | M112: -1 | N112: -1 | O112: -1 | P112: 0 | Q112: -1 | R112: 0 | S112: 0
F113: HV Generation Non-Intermittent | G113: 1, 0 or -1 | J113: =IF(J$38 = "", J77, J77 * J$38) -> -1 | K113: -1 | L113: -1 | M113: -1 | N113: -1 | O113: -1 | P113: 0 | Q113: -1 | R113: 0 | S113: 0
F114: HV Generation Non-Intermittent no RP charge | G114: 1, 0 or -1 | J114: =IF(J$38 = "", J78, J78 * J$38) -> -1 | K114: -1 | L114: -1 | M114: -1 | N114: -1 | O114: -1 | P114: 0 | Q114: -1 | R114: 0 | S114: 0
E116: Network use factors (assuming generation makes no contribution at level of connection) | I116: > | W116: Paragraphs 62 and 71
E117: Equal to 0 for the network level at which generation is connected, otherwise equal to network use factor
F118: Domestic Unrestricted | G118: 1 or 0 | J118: =TRANSPOSE('Fixed inputs'!J73:AP82) -> 1 | K118: 1 | L118: 1 | M118: 1 | N118: 1 | O118: 1 | P118: 1 | Q118: 1 | R118: 1 | S118: 1
F119: Domestic Two Rate | G119: 1 or 0 | J119: 1 | K119: 1 | L119: 1 | M119: 1 | N119: 1 | O119: 1 | P119: 1 | Q119: 1 | R119: 1 | S119: 1
F120: Domestic Off Peak (related MPAN) | G120: 1 or 0 | J120: 1 | K120: 1 | L120: 1 | M120: 1 | N120: 1 | O120: 1 | P120: 1 | Q120: 1 | R120: 1 | S120: 1
F121: Small Non Domestic Unrestricted | G121: 1 or 0 | J121: 1 | K121: 1 | L121: 1 | M121: 1 | N121: 1 | O121: 1 | P121: 1 | Q121: 1 | R121: 1 | S121: 1
F122: Small Non Domestic Two Rate | G122: 1 or 0 | J122: 1 | K122: 1 | L122: 1 | M122: 1 | N122: 1 | O122: 1 | P122: 1 | Q122: 1 | R122: 1 | S122: 1
F123: Small Non Domestic Off Peak (related MPAN) | G123: 1 or 0 | J123: 1 | K123: 1 | L123: 1 | M123: 1 | N123: 1 | O123: 1 | P123: 1 | Q123: 1 | R123: 1 | S123: 1
F124: LV Medium Non-Domestic | G124: 1 or 0 | J124: 1 | K124: 1 | L124: 1 | M124: 1 | N124: 1 | O124: 1 | P124: 1 | Q124: 1 | R124: 1 | S124: 1
F125: LV Sub Medium Non-Domestic | G125: 1 or 0 | J125: 1 | K125: 1 | L125: 1 | M125: 1 | N125: 1 | O125: 1 | P125: 1 | Q125: 1 | R125: 1 | S125: 0
F126: HV Medium Non-Domestic | G126: 1 or 0 | J126: 1 | K126: 1 | L126: 1 | M126: 1 | N126: 1 | O126: 1 | P126: 1 | Q126: 1 | R126: 0 | S126: 0
F127: LV Network Domestic | G127: 1 or 0 | J127: 1 | K127: 1 | L127: 1 | M127: 1 | N127: 1 | O127: 1 | P127: 1 | Q127: 1 | R127: 1 | S127: 1
F128: LV Network Non-Domestic Non-CT | G128: 1 or 0 | J128: 1 | K128: 1 | L128: 1 | M128: 1 | N128: 1 | O128: 1 | P128: 1 | Q128: 1 | R128: 1 | S128: 1
F129: LV HH Metered | G129: 1 or 0 | J129: 1 | K129: 1 | L129: 1 | M129: 1 | N129: 1 | O129: 1 | P129: 1 | Q129: 1 | R129: 1 | S129: 1
F130: LV Sub HH Metered | G130: 1 or 0 | J130: 1 | K130: 1 | L130: 1 | M130: 1 | N130: 1 | O130: 1 | P130: 1 | Q130: 1 | R130: 1 | S130: 0
F131: HV HH Metered | G131: 1 or 0 | J131: 1 | K131: 1 | L131: 1 | M131: 1 | N131: 1 | O131: 1 | P131: 1 | Q131: 1 | R131: 0 | S131: 0
F132: NHH UMS category A | G132: 1 or 0 | J132: 1 | K132: 1 | L132: 1 | M132: 1 | N132: 1 | O132: 1 | P132: 1 | Q132: 1 | R132: 1 | S132: 1
F133: NHH UMS category B | G133: 1 or 0 | J133: 1 | K133: 1 | L133: 1 | M133: 1 | N133: 1 | O133: 1 | P133: 1 | Q133: 1 | R133: 1 | S133: 1
F134: NHH UMS category C | G134: 1 or 0 | J134: 1 | K134: 1 | L134: 1 | M134: 1 | N134: 1 | O134: 1 | P134: 1 | Q134: 1 | R134: 1 | S134: 1
F135: NHH UMS category D | G135: 1 or 0 | J135: 1 | K135: 1 | L135: 1 | M135: 1 | N135: 1 | O135: 1 | P135: 1 | Q135: 1 | R135: 1 | S135: 1
F136: LV UMS (Pseudo HH Metered) | G136: 1 or 0 | J136: 1 | K136: 1 | L136: 1 | M136: 1 | N136: 1 | O136: 1 | P136: 1 | Q136: 1 | R136: 1 | S136: 1
F137: LV Generation NHH or Aggregate HH | G137: 1 or 0 | J137: -1 | K137: -1 | L137: -1 | M137: -1 | N137: -1 | O137: -1 | P137: -1 | Q137: -1 | R137: -1 | S137: 0
F138: LV Sub Generation NHH | G138: 1 or 0 | J138: -1 | K138: -1 | L138: -1 | M138: -1 | N138: -1 | O138: -1 | P138: -1 | Q138: -1 | R138: 0 | S138: 0
F139: LV Generation Intermittent | G139: 1 or 0 | J139: -1 | K139: -1 | L139: -1 | M139: -1 | N139: -1 | O139: -1 | P139: -1 | Q139: -1 | R139: -1 | S139: 0
F140: LV Generation Intermittent no RP charge | G140: 1 or 0 | J140: -1 | K140: -1 | L140: -1 | M140: -1 | N140: -1 | O140: -1 | P140: -1 | Q140: -1 | R140: -1 | S140: 0
F141: LV Generation Non-Intermittent | G141: 1 or 0 | J141: -1 | K141: -1 | L141: -1 | M141: -1 | N141: -1 | O141: -1 | P141: -1 | Q141: -1 | R141: -1 | S141: 0
F142: LV Generation Non-Intermittent no RP charge | G142: 1 or 0 | J142: -1 | K142: -1 | L142: -1 | M142: -1 | N142: -1 | O142: -1 | P142: -1 | Q142: -1 | R142: -1 | S142: 0
F143: LV Sub Generation Intermittent | G143: 1 or 0 | J143: -1 | K143: -1 | L143: -1 | M143: -1 | N143: -1 | O143: -1 | P143: -1 | Q143: -1 | R143: 0 | S143: 0
F144: LV Sub Generation Intermittent no RP charge | G144: 1 or 0 | J144: -1 | K144: -1 | L144: -1 | M144: -1 | N144: -1 | O144: -1 | P144: -1 | Q144: -1 | R144: 0 | S144: 0
F145: LV Sub Generation Non-Intermittent | G145: 1 or 0 | J145: -1 | K145: -1 | L145: -1 | M145: -1 | N145: -1 | O145: -1 | P145: -1 | Q145: -1 | R145: 0 | S145: 0
F146: LV Sub Generation Non-Intermittent no RP charge | G146: 1 or 0 | J146: -1 | K146: -1 | L146: -1 | M146: -1 | N146: -1 | O146: -1 | P146: -1 | Q146: -1 | R146: 0 | S146: 0
F147: HV Generation Intermittent | G147: 1 or 0 | J147: -1 | K147: -1 | L147: -1 | M147: -1 | N147: -1 | O147: -1 | P147: -1 | Q147: 0 | R147: 0 | S147: 0
F148: HV Generation Intermittent no RP charge | G148: 1 or 0 | J148: -1 | K148: -1 | L148: -1 | M148: -1 | N148: -1 | O148: -1 | P148: -1 | Q148: 0 | R148: 0 | S148: 0
F149: HV Generation Non-Intermittent | G149: 1 or 0 | J149: -1 | K149: -1 | L149: -1 | M149: -1 | N149: -1 | O149: -1 | P149: -1 | Q149: 0 | R149: 0 | S149: 0
F150: HV Generation Non-Intermittent no RP charge | G150: 1 or 0 | J150: -1 | K150: -1 | L150: -1 | M150: -1 | N150: -1 | O150: -1 | P150: -1 | Q150: 0 | R150: 0 | S150: 0
E152: Network use factors (assuming generation makes no contribution at level of connection), scaled for 132/HV | I152: > | W152: Paragraphs 62 and 71
E153: Equal to 0 for the network level at which generation is connected, otherwise equal to network use factor
E154: These have been adjusted for the share of load going through 132/HV transformation
F155: Domestic Unrestricted | G155: 1 or 0 | J155: =IF(J$38 = "", J118, J118 * J$38) -> 1 | K155: =IF(K$38 = "", K118, K118 * K$38) -> 1 | L155: 1 | M155: 1 | N155: 1 | O155: 1 | P155: 0 | Q155: 1 | R155: 1 | S155: 1
F156: Domestic Two Rate | G156: 1 or 0 | J156: =IF(J$38 = "", J119, J119 * J$38) -> 1 | K156: 1 | L156: 1 | M156: 1 | N156: 1 | O156: 1 | P156: 0 | Q156: 1 | R156: 1 | S156: 1
F157: Domestic Off Peak (related MPAN) | G157: 1 or 0 | J157: =IF(J$38 = "", J120, J120 * J$38) -> 1 | K157: 1 | L157: 1 | M157: 1 | N157: 1 | O157: 1 | P157: 0 | Q157: 1 | R157: 1 | S157: 1
F158: Small Non Domestic Unrestricted | G158: 1 or 0 | J158: =IF(J$38 = "", J121, J121 * J$38) -> 1 | K158: 1 | L158: 1 | M158: 1 | N158: 1 | O158: 1 | P158: 0 | Q158: 1 | R158: 1 | S158: 1
F159: Small Non Domestic Two Rate | G159: 1 or 0 | J159: =IF(J$38 = "", J122, J122 * J$38) -> 1 | K159: 1 | L159: 1 | M159: 1 | N159: 1 | O159: 1 | P159: 0 | Q159: 1 | R159: 1 | S159: 1
F160: Small Non Domestic Off Peak (related MPAN) | G160: 1 or 0 | J160: =IF(J$38 = "", J123, J123 * J$38) -> 1 | K160: 1 | L160: 1 | M160: 1 | N160: 1 | O160: 1 | P160: 0 | Q160: 1 | R160: 1 | S160: 1
F161: LV Medium Non-Domestic | G161: 1 or 0 | J161: =IF(J$38 = "", J124, J124 * J$38) -> 1 | K161: 1 | L161: 1 | M161: 1 | N161: 1 | O161: 1 | P161: 0 | Q161: 1 | R161: 1 | S161: 1
F162: LV Sub Medium Non-Domestic | G162: 1 or 0 | J162: =IF(J$38 = "", J125, J125 * J$38) -> 1 | K162: 1 | L162: 1 | M162: 1 | N162: 1 | O162: 1 | P162: 0 | Q162: 1 | R162: 1 | S162: 0
F163: HV Medium Non-Domestic | G163: 1 or 0 | J163: =IF(J$38 = "", J126, J126 * J$38) -> 1 | K163: 1 | L163: 1 | M163: 1 | N163: 1 | O163: 1 | P163: 0 | Q163: 1 | R163: 0 | S163: 0
F164: LV Network Domestic | G164: 1 or 0 | J164: =IF(J$38 = "", J127, J127 * J$38) -> 1 | K164: 1 | L164: 1 | M164: 1 | N164: 1 | O164: 1 | P164: 0 | Q164: 1 | R164: 1 | S164: 1
F165: LV Network Non-Domestic Non-CT | G165: 1 or 0 | J165: =IF(J$38 = "", J128, J128 * J$38) -> 1 | K165: 1 | L165: 1 | M165: 1 | N165: 1 | O165: 1 | P165: 0 | Q165: 1 | R165: 1 | S165: 1
F166: LV HH Metered | G166: 1 or 0 | J166: =IF(J$38 = "", J129, J129 * J$38) -> 1 | K166: 1 | L166: 1 | M166: 1 | N166: 1 | O166: 1 | P166: 0 | Q166: 1 | R166: 1 | S166: 1
F167: LV Sub HH Metered | G167: 1 or 0 | J167: =IF(J$38 = "", J130, J130 * J$38) -> 1 | K167: 1 | L167: 1 | M167: 1 | N167: 1 | O167: 1 | P167: 0 | Q167: 1 | R167: 1 | S167: 0
F168: HV HH Metered | G168: 1 or 0 | J168: =IF(J$38 = "", J131, J131 * J$38) -> 1 | K168: 1 | L168: 1 | M168: 1 | N168: 1 | O168: 1 | P168: 0 | Q168: 1 | R168: 0 | S168: 0
F169: NHH UMS category A | G169: 1 or 0 | J169: =IF(J$38 = "", J132, J132 * J$38) -> 1 | K169: 1 | L169: 1 | M169: 1 | N169: 1 | O169: 1 | P169: 0 | Q169: 1 | R169: 1 | S169: 1
F170: NHH UMS category B | G170: 1 or 0 | J170: =IF(J$38 = "", J133, J133 * J$38) -> 1 | K170: 1 | L170: 1 | M170: 1 | N170: 1 | O170: 1 | P170: 0 | Q170: 1 | R170: 1 | S170: 1
F171: NHH UMS category C | G171: 1 or 0 | J171: =IF(J$38 = "", J134, J134 * J$38) -> 1 | K171: 1 | L171: 1 | M171: 1 | N171: 1 | O171: 1 | P171: 0 | Q171: 1 | R171: 1 | S171: 1
F172: NHH UMS category D | G172: 1 or 0 | J172: =IF(J$38 = "", J135, J135 * J$38) -> 1 | K172: 1 | L172: 1 | M172: 1 | N172: 1 | O172: 1 | P172: 0 | Q172: 1 | R172: 1 | S172: 1
F173: LV UMS (Pseudo HH Metered) | G173: 1 or 0 | J173: =IF(J$38 = "", J136, J136 * J$38) -> 1 | K173: 1 | L173: 1 | M173: 1 | N173: 1 | O173: 1 | P173: 0 | Q173: 1 | R173: 1 | S173: 1
F174: LV Generation NHH or Aggregate HH | G174: 1 or 0 | J174: =IF(J$38 = "", J137, J137 * J$38) -> -1 | K174: -1 | L174: -1 | M174: -1 | N174: -1 | O174: -1 | P174: 0 | Q174: -1 | R174: -1 | S174: 0
F175: LV Sub Generation NHH | G175: 1 or 0 | J175: =IF(J$38 = "", J138, J138 * J$38) -> -1 | K175: -1 | L175: -1 | M175: -1 | N175: -1 | O175: -1 | P175: 0 | Q175: -1 | R175: 0 | S175: 0
F176: LV Generation Intermittent | G176: 1 or 0 | J176: =IF(J$38 = "", J139, J139 * J$38) -> -1 | K176: -1 | L176: -1 | M176: -1 | N176: -1 | O176: -1 | P176: 0 | Q176: -1 | R176: -1 | S176: 0
F177: LV Generation Intermittent no RP charge | G177: 1 or 0 | J177: =IF(J$38 = "", J140, J140 * J$38) -> -1 | K177: -1 | L177: -1 | M177: -1 | N177: -1 | O177: -1 | P177: 0 | Q177: -1 | R177: -1 | S177: 0
F178: LV Generation Non-Intermittent | G178: 1 or 0 | J178: =IF(J$38 = "", J141, J141 * J$38) -> -1 | K178: -1 | L178: -1 | M178: -1 | N178: -1 | O178: -1 | P178: 0 | Q178: -1 | R178: -1 | S178: 0
F179: LV Generation Non-Intermittent no RP charge | G179: 1 or 0 | J179: =IF(J$38 = "", J142, J142 * J$38) -> -1 | K179: -1 | L179: -1 | M179: -1 | N179: -1 | O179: -1 | P179: 0 | Q179: -1 | R179: -1 | S179: 0
F180: LV Sub Generation Intermittent | G180: 1 or 0 | J180: =IF(J$38 = "", J143, J143 * J$38) -> -1 | K180: -1 | L180: -1 | M180: -1 | N180: -1 | O180: -1 | P180: 0 | Q180: -1 | R180: 0 | S180: 0
F181: LV Sub Generation Intermittent no RP charge | G181: 1 or 0 | J181: =IF(J$38 = "", J144, J144 * J$38) -> -1 | K181: -1 | L181: -1 | M181: -1 | N181: -1 | O181: -1 | P181: 0 | Q181: -1 | R181: 0 | S181: 0
F182: LV Sub Generation Non-Intermittent | G182: 1 or 0 | J182: =IF(J$38 = "", J145, J145 * J$38) -> -1 | K182: -1 | L182: -1 | M182: -1 | N182: -1 | O182: -1 | P182: 0 | Q182: -1 | R182: 0 | S182: 0
F183: LV Sub Generation Non-Intermittent no RP charge | G183: 1 or 0 | J183: =IF(J$38 = "", J146, J146 * J$38) -> -1 | K183: -1 | L183: -1 | M183: -1 | N183: -1 | O183: -1 | P183: 0 | Q183: -1 | R183: 0 | S183: 0
F184: HV Generation Intermittent | G184: 1 or 0 | J184: =IF(J$38 = "", J147, J147 * J$38) -> -1 | K184: -1 | L184: -1 | M184: -1 | N184: -1 | O184: -1 | P184: 0 | Q184: 0 | R184: 0 | S184: 0
F185: HV Generation Intermittent no RP charge | G185: 1 or 0 | J185: =IF(J$38 = "", J148, J148 * J$38) -> -1 | K185: -1 | L185: -1 | M185: -1 | N185: -1 | O185: -1 | P185: 0 | Q185: 0 | R185: 0 | S185: 0
F186: HV Generation Non-Intermittent | G186: 1 or 0 | J186: =IF(J$38 = "", J149, J149 * J$38) -> -1 | K186: -1 | L186: -1 | M186: -1 | N186: -1 | O186: -1 | P186: 0 | Q186: 0 | R186: 0 | S186: 0
F187: HV Generation Non-Intermittent no RP charge | G187: 1 or 0 | J187: =IF(J$38 = "", J150, J150 * J$38) -> -1 | K187: -1 | L187: -1 | M187: -1 | N187: -1 | O187: -1 | P187: 0 | Q187: 0 | R187: 0 | S187: 0
C189: =INDEX('Version control'!$H$34:$H$59,MATCH($A$1,'Version control'!$F$34:$F$59,0),1)&"-E: User loss factors" -> Section 505-E: User loss factors
E191: User loss factor (assuming generation contributes at level of connection)
E192: For demand, it is the loss factor at network level which user is supplied.
E193: For generation, it is the loss factor at network level which user is supplied. | H193: Maximum
F194: Domestic Unrestricted | G194: scalar | H194: =MAX(J194:S194) -> 1.105 | J194: =OR(SUM(J82:$S82) = 1, SUM(J82:$S82) = -1) * J$29 -> 0 | K194: =OR(SUM(K82:$S82) = 1, SUM(K82:$S82) = -1) * K$29 -> 0 | L194: =OR(SUM(L82:$S82) = 1, SUM(L82:$S82) = -1) * L$29 -> 0 | M194: =OR(SUM(M82:$S82) = 1, SUM(M82:$S82) = -1) * M$29 -> 0 | N194: =OR(SUM(N82:$S82) = 1, SUM(N82:$S82) = -1) * N$29 -> 0 | O194: =OR(SUM(O82:$S82) = 1, SUM(O82:$S82) = -1) * O$29 -> 0 | P194: =OR(SUM(P82:$S82) = 1, SUM(P82:$S82) = -1) * P$29 -> 0 | Q194: =OR(SUM(Q82:$S82) = 1, SUM(Q82:$S82) = -1) * Q$29 -> 0 | R194: =OR(SUM(R82:$S82) = 1, SUM(R82:$S82) = -1) * R$29 -> 0 | S194: =OR(SUM(S82:$S82) = 1, SUM(S82:$S82) = -1) * S$29 -> 1.105
F195: Domestic Two Rate | G195: scalar | H195: 1.105 | J195: =OR(SUM(J83:$S83) = 1, SUM(J83:$S83) = -1) * J$29 -> 0 | K195: =OR(SUM(K83:$S83) = 1, SUM(K83:$S83) = -1) * K$29 -> 0 | L195: =OR(SUM(L83:$S83) = 1, SUM(L83:$S83) = -1) * L$29 -> 0 | M195: =OR(SUM(M83:$S83) = 1, SUM(M83:$S83) = -1) * M$29 -> 0 | N195: =OR(SUM(N83:$S83) = 1, SUM(N83:$S83) = -1) * N$29 -> 0 | O195: =OR(SUM(O83:$S83) = 1, SUM(O83:$S83) = -1) * O$29 -> 0 | P195: =OR(SUM(P83:$S83) = 1, SUM(P83:$S83) = -1) * P$29 -> 0 | Q195: =OR(SUM(Q83:$S83) = 1, SUM(Q83:$S83) = -1) * Q$29 -> 0 | R195: =OR(SUM(R83:$S83) = 1, SUM(R83:$S83) = -1) * R$29 -> 0 | S195: =OR(SUM(S83:$S83) = 1, SUM(S83:$S83) = -1) * S$29 -> 1.105
F196: Domestic Off Peak (related MPAN) | G196: scalar | H196: 1.105 | J196: =OR(SUM(J84:$S84) = 1, SUM(J84:$S84) = -1) * J$29 -> 0 | K196: =OR(SUM(K84:$S84) = 1, SUM(K84:$S84) = -1) * K$29 -> 0 | L196: =OR(SUM(L84:$S84) = 1, SUM(L84:$S84) = -1) * L$29 -> 0 | M196: =OR(SUM(M84:$S84) = 1, SUM(M84:$S84) = -1) * M$29 -> 0 | N196: =OR(SUM(N84:$S84) = 1, SUM(N84:$S84) = -1) * N$29 -> 0 | O196: =OR(SUM(O84:$S84) = 1, SUM(O84:$S84) = -1) * O$29 -> 0 | P196: =OR(SUM(P84:$S84) = 1, SUM(P84:$S84) = -1) * P$29 -> 0 | Q196: =OR(SUM(Q84:$S84) = 1, SUM(Q84:$S84) = -1) * Q$29 -> 0 | R196: =OR(SUM(R84:$S84) = 1, SUM(R84:$S84) = -1) * R$29 -> 0 | S196: =OR(SUM(S84:$S84) = 1, SUM(S84:$S84) = -1) * S$29 -> 1.105
F197: Small Non Domestic Unrestricted | G197: scalar | H197: 1.105 | J197: =OR(SUM(J85:$S85) = 1, SUM(J85:$S85) = -1) * J$29 -> 0 | K197: =OR(SUM(K85:$S85) = 1, SUM(K85:$S85) = -1) * K$29 -> 0 | L197: =OR(SUM(L85:$S85) = 1, SUM(L85:$S85) = -1) * L$29 -> 0 | M197: =OR(SUM(M85:$S85) = 1, SUM(M85:$S85) = -1) * M$29 -> 0 | N197: =OR(SUM(N85:$S85) = 1, SUM(N85:$S85) = -1) * N$29 -> 0 | O197: =OR(SUM(O85:$S85) = 1, SUM(O85:$S85) = -1) * O$29 -> 0 | P197: =OR(SUM(P85:$S85) = 1, SUM(P85:$S85) = -1) * P$29 -> 0 | Q197: =OR(SUM(Q85:$S85) = 1, SUM(Q85:$S85) = -1) * Q$29 -> 0 | R197: =OR(SUM(R85:$S85) = 1, SUM(R85:$S85) = -1) * R$29 -> 0 | S197: =OR(SUM(S85:$S85) = 1, SUM(S85:$S85) = -1) * S$29 -> 1.105
F198: Small Non Domestic Two Rate | G198: scalar | H198: 1.105 | J198: =OR(SUM(J86:$S86) = 1, SUM(J86:$S86) = -1) * J$29 -> 0 | K198: =OR(SUM(K86:$S86) = 1, SUM(K86:$S86) = -1) * K$29 -> 0 | L198: =OR(SUM(L86:$S86) = 1, SUM(L86:$S86) = -1) * L$29 -> 0 | M198: =OR(SUM(M86:$S86) = 1, SUM(M86:$S86) = -1) * M$29 -> 0 | N198: =OR(SUM(N86:$S86) = 1, SUM(N86:$S86) = -1) * N$29 -> 0 | O198: =OR(SUM(O86:$S86) = 1, SUM(O86:$S86) = -1) * O$29 -> 0 | P198: =OR(SUM(P86:$S86) = 1, SUM(P86:$S86) = -1) * P$29 -> 0 | Q198: =OR(SUM(Q86:$S86) = 1, SUM(Q86:$S86) = -1) * Q$29 -> 0 | R198: =OR(SUM(R86:$S86) = 1, SUM(R86:$S86) = -1) * R$29 -> 0 | S198: =OR(SUM(S86:$S86) = 1, SUM(S86:$S86) = -1) * S$29 -> 1.105
F199: Small Non Domestic Off Peak (related MPAN) | G199: scalar | H199: 1.105 | J199: =OR(SUM(J87:$S87) = 1, SUM(J87:$S87) = -1) * J$29 -> 0 | K199: =OR(SUM(K87:$S87) = 1, SUM(K87:$S87) = -1) * K$29 -> 0 | L199: =OR(SUM(L87:$S87) = 1, SUM(L87:$S87) = -1) * L$29 -> 0 | M199: =OR(SUM(M87:$S87) = 1, SUM(M87:$S87) = -1) * M$29 -> 0 | N199: =OR(SUM(N87:$S87) = 1, SUM(N87:$S87) = -1) * N$29 -> 0 | O199: =OR(SUM(O87:$S87) = 1, SUM(O87:$S87) = -1) * O$29 -> 0 | P199: =OR(SUM(P87:$S87) = 1, SUM(P87:$S87) = -1) * P$29 -> 0 | Q199: =OR(SUM(Q87:$S87) = 1, SUM(Q87:$S87) = -1) * Q$29 -> 0 | R199: =OR(SUM(R87:$S87) = 1, SUM(R87:$S87) = -1) * R$29 -> 0 | S199: =OR(SUM(S87:$S87) = 1, SUM(S87:$S87) = -1) * S$29 -> 1.105
F200: LV Medium Non-Domestic | G200: scalar | H200: 1.105 | J200: =OR(SUM(J88:$S88) = 1, SUM(J88:$S88) = -1) * J$29 -> 0 | K200: =OR(SUM(K88:$S88) = 1, SUM(K88:$S88) = -1) * K$29 -> 0 | L200: =OR(SUM(L88:$S88) = 1, SUM(L88:$S88) = -1) * L$29 -> 0 | M200: =OR(SUM(M88:$S88) = 1, SUM(M88:$S88) = -1) * M$29 -> 0 | N200: =OR(SUM(N88:$S88) = 1, SUM(N88:$S88) = -1) * N$29 -> 0 | O200: =OR(SUM(O88:$S88) = 1, SUM(O88:$S88) = -1) * O$29 -> 0 | P200: =OR(SUM(P88:$S88) = 1, SUM(P88:$S88) = -1) * P$29 -> 0 | Q200: =OR(SUM(Q88:$S88) = 1, SUM(Q88:$S88) = -1) * Q$29 -> 0 | R200: =OR(SUM(R88:$S88) = 1, SUM(R88:$S88) = -1) * R$29 -> 0 | S200: =OR(SUM(S88:$S88) = 1, SUM(S88:$S88) = -1) * S$29 -> 1.105
F201: LV Sub Medium Non-Domestic | G201: scalar | H201: 1.06 | J201: =OR(SUM(J89:$S89) = 1, SUM(J89:$S89) = -1) * J$29 -> 0 | K201: =OR(SUM(K89:$S89) = 1, SUM(K89:$S89) = -1) * K$29 -> 0 | L201: =OR(SUM(L89:$S89) = 1, SUM(L89:$S89) = -1) * L$29 -> 0 | M201: =OR(SUM(M89:$S89) = 1, SUM(M89:$S89) = -1) * M$29 -> 0 | N201: =OR(SUM(N89:$S89) = 1, SUM(N89:$S89) = -1) * N$29 -> 0 | O201: =OR(SUM(O89:$S89) = 1, SUM(O89:$S89) = -1) * O$29 -> 0 | P201: =OR(SUM(P89:$S89) = 1, SUM(P89:$S89) = -1) * P$29 -> 0 | Q201: =OR(SUM(Q89:$S89) = 1, SUM(Q89:$S89) = -1) * Q$29 -> 0 | R201: =OR(SUM(R89:$S89) = 1, SUM(R89:$S89) = -1) * R$29 -> 1.06 | S201: =OR(SUM(S89:$S89) = 1, SUM(S89:$S89) = -1) * S$29 -> 0
F202: HV Medium Non-Domestic | G202: scalar | H202: 1.038 | J202: =OR(SUM(J90:$S90) = 1, SUM(J90:$S90) = -1) * J$29 -> 0 | K202: =OR(SUM(K90:$S90) = 1, SUM(K90:$S90) = -1) * K$29 -> 0 | L202: =OR(SUM(L90:$S90) = 1, SUM(L90:$S90) = -1) * L$29 -> 0 | M202: =OR(SUM(M90:$S90) = 1, SUM(M90:$S90) = -1) * M$29 -> 0 | N202: =OR(SUM(N90:$S90) = 1, SUM(N90:$S90) = -1) * N$29 -> 0 | O202: =OR(SUM(O90:$S90) = 1, SUM(O90:$S90) = -1) * O$29 -> 0 | P202: =OR(SUM(P90:$S90) = 1, SUM(P90:$S90) = -1) * P$29 -> 1.026 | Q202: =OR(SUM(Q90:$S90) = 1, SUM(Q90:$S90) = -1) * Q$29 -> 1.038 | R202: =OR(SUM(R90:$S90) = 1, SUM(R90:$S90) = -1) * R$29 -> 0 | S202: =OR(SUM(S90:$S90) = 1, SUM(S90:$S90) = -1) * S$29 -> 0
F203: LV Network Domestic | G203: scalar | H203: 1.105 | J203: =OR(SUM(J91:$S91) = 1, SUM(J91:$S91) = -1) * J$29 -> 0 | K203: =OR(SUM(K91:$S91) = 1, SUM(K91:$S91) = -1) * K$29 -> 0 | L203: =OR(SUM(L91:$S91) = 1, SUM(L91:$S91) = -1) * L$29 -> 0 | M203: =OR(SUM(M91:$S91) = 1, SUM(M91:$S91) = -1) * M$29 -> 0 | N203: =OR(SUM(N91:$S91) = 1, SUM(N91:$S91) = -1) * N$29 -> 0 | O203: =OR(SUM(O91:$S91) = 1, SUM(O91:$S91) = -1) * O$29 -> 0 | P203: =OR(SUM(P91:$S91) = 1, SUM(P91:$S91) = -1) * P$29 -> 0 | Q203: =OR(SUM(Q91:$S91) = 1, SUM(Q91:$S91) = -1) * Q$29 -> 0 | R203: =OR(SUM(R91:$S91) = 1, SUM(R91:$S91) = -1) * R$29 -> 0 | S203: =OR(SUM(S91:$S91) = 1, SUM(S91:$S91) = -1) * S$29 -> 1.105
F204: LV Network Non-Domestic Non-CT | G204: scalar | H204: 1.105 | J204: =OR(SUM(J92:$S92) = 1, SUM(J92:$S92) = -1) * J$29 -> 0 | K204: =OR(SUM(K92:$S92) = 1, SUM(K92:$S92) = -1) * K$29 -> 0 | L204: =OR(SUM(L92:$S92) = 1, SUM(L92:$S92) = -1) * L$29 -> 0 | M204: =OR(SUM(M92:$S92) = 1, SUM(M92:$S92) = -1) * M$29 -> 0 | N204: =OR(SUM(N92:$S92) = 1, SUM(N92:$S92) = -1) * N$29 -> 0 | O204: =OR(SUM(O92:$S92) = 1, SUM(O92:$S92) = -1) * O$29 -> 0 | P204: =OR(SUM(P92:$S92) = 1, SUM(P92:$S92) = -1) * P$29 -> 0 | Q204: =OR(SUM(Q92:$S92) = 1, SUM(Q92:$S92) = -1) * Q$29 -> 0 | R204: =OR(SUM(R92:$S92) = 1, SUM(R92:$S92) = -1) * R$29 -> 0 | S204: =OR(SUM(S92:$S92) = 1, SUM(S92:$S92) = -1) * S$29 -> 1.105
F205: LV HH Metered | G205: scalar | H205: 1.105 | J205: =OR(SUM(J93:$S93) = 1, SUM(J93:$S93) = -1) * J$29 -> 0 | K205: =OR(SUM(K93:$S93) = 1, SUM(K93:$S93) = -1) * K$29 -> 0 | L205: =OR(SUM(L93:$S93) = 1, SUM(L93:$S93) = -1) * L$29 -> 0 | M205: =OR(SUM(M93:$S93) = 1, SUM(M93:$S93) = -1) * M$29 -> 0 | N205: =OR(SUM(N93:$S93) = 1, SUM(N93:$S93) = -1) * N$29 -> 0 | O205: =OR(SUM(O93:$S93) = 1, SUM(O93:$S93) = -1) * O$29 -> 0 | P205: =OR(SUM(P93:$S93) = 1, SUM(P93:$S93) = -1) * P$29 -> 0 | Q205: =OR(SUM(Q93:$S93) = 1, SUM(Q93:$S93) = -1) * Q$29 -> 0 | R205: =OR(SUM(R93:$S93) = 1, SUM(R93:$S93) = -1) * R$29 -> 0 | S205: =OR(SUM(S93:$S93) = 1, SUM(S93:$S93) = -1) * S$29 -> 1.105
F206: LV Sub HH Metered | G206: scalar | H206: 1.06 | J206: =OR(SUM(J94:$S94) = 1, SUM(J94:$S94) = -1) * J$29 -> 0 | K206: =OR(SUM(K94:$S94) = 1, SUM(K94:$S94) = -1) * K$29 -> 0 | L206: =OR(SUM(L94:$S94) = 1, SUM(L94:$S94) = -1) * L$29 -> 0 | M206: =OR(SUM(M94:$S94) = 1, SUM(M94:$S94) = -1) * M$29 -> 0 | N206: =OR(SUM(N94:$S94) = 1, SUM(N94:$S94) = -1) * N$29 -> 0 | O206: =OR(SUM(O94:$S94) = 1, SUM(O94:$S94) = -1) * O$29 -> 0 | P206: =OR(SUM(P94:$S94) = 1, SUM(P94:$S94) = -1) * P$29 -> 0 | Q206: =OR(SUM(Q94:$S94) = 1, SUM(Q94:$S94) = -1) * Q$29 -> 0 | R206: =OR(SUM(R94:$S94) = 1, SUM(R94:$S94) = -1) * R$29 -> 1.06 | S206: =OR(SUM(S94:$S94) = 1, SUM(S94:$S94) = -1) * S$29 -> 0
F207: HV HH Metered | G207: scalar | H207: 1.038 | J207: =OR(SUM(J95:$S95) = 1, SUM(J95:$S95) = -1) * J$29 -> 0 | K207: =OR(SUM(K95:$S95) = 1, SUM(K95:$S95) = -1) * K$29 -> 0 | L207: =OR(SUM(L95:$S95) = 1, SUM(L95:$S95) = -1) * L$29 -> 0 | M207: =OR(SUM(M95:$S95) = 1, SUM(M95:$S95) = -1) * M$29 -> 0 | N207: =OR(SUM(N95:$S95) = 1, SUM(N95:$S95) = -1) * N$29 -> 0 | O207: =OR(SUM(O95:$S95) = 1, SUM(O95:$S95) = -1) * O$29 -> 0 | P207: =OR(SUM(P95:$S95) = 1, SUM(P95:$S95) = -1) * P$29 -> 1.026 | Q207: =OR(SUM(Q95:$S95) = 1, SUM(Q95:$S95) = -1) * Q$29 -> 1.038 | R207: =OR(SUM(R95:$S95) = 1, SUM(R95:$S95) = -1) * R$29 -> 0 | S207: =OR(SUM(S95:$S95) = 1, SUM(S95:$S95) = -1) * S$29 -> 0
F208: NHH UMS category A | G208: scalar | H208: 1.105 | J208: =OR(SUM(J96:$S96) = 1, SUM(J96:$S96) = -1) * J$29 -> 0 | K208: =OR(SUM(K96:$S96) = 1, SUM(K96:$S96) = -1) * K$29 -> 0 | L208: =OR(SUM(L96:$S96) = 1, SUM(L96:$S96) = -1) * L$29 -> 0 | M208: =OR(SUM(M96:$S96) = 1, SUM(M96:$S96) = -1) * M$29 -> 0 | N208: =OR(SUM(N96:$S96) = 1, SUM(N96:$S96) = -1) * N$29 -> 0 | O208: =OR(SUM(O96:$S96) = 1, SUM(O96:$S96) = -1) * O$29 -> 0 | P208: =OR(SUM(P96:$S96) = 1, SUM(P96:$S96) = -1) * P$29 -> 0 | Q208: =OR(SUM(Q96:$S96) = 1, SUM(Q96:$S96) = -1) * Q$29 -> 0 | R208: =OR(SUM(R96:$S96) = 1, SUM(R96:$S96) = -1) * R$29 -> 0 | S208: =OR(SUM(S96:$S96) = 1, SUM(S96:$S96) = -1) * S$29 -> 1.105
F209: NHH UMS category B | G209: scalar | H209: 1.105 | J209: =OR(SUM(J97:$S97) = 1, SUM(J97:$S97) = -1) * J$29 -> 0 | K209: =OR(SUM(K97:$S97) = 1, SUM(K97:$S97) = -1) * K$29 -> 0 | L209: =OR(SUM(L97:$S97) = 1, SUM(L97:$S97) = -1) * L$29 -> 0 | M209: =OR(SUM(M97:$S97) = 1, SUM(M97:$S97) = -1) * M$29 -> 0 | N209: =OR(SUM(N97:$S97) = 1, SUM(N97:$S97) = -1) * N$29 -> 0 | O209: =OR(SUM(O97:$S97) = 1, SUM(O97:$S97) = -1) * O$29 -> 0 | P209: =OR(SUM(P97:$S97) = 1, SUM(P97:$S97) = -1) * P$29 -> 0 | Q209: =OR(SUM(Q97:$S97) = 1, SUM(Q97:$S97) = -1) * Q$29 -> 0 | R209: =OR(SUM(R97:$S97) = 1, SUM(R97:$S97) = -1) * R$29 -> 0 | S209: =OR(SUM(S97:$S97) = 1, SUM(S97:$S97) = -1) * S$29 -> 1.105
F210: NHH UMS category C | G210: scalar | H210: 1.105 | J210: =OR(SUM(J98:$S98) = 1, SUM(J98:$S98) = -1) * J$29 -> 0 | K210: =OR(SUM(K98:$S98) = 1, SUM(K98:$S98) = -1) * K$29 -> 0 | L210: =OR(SUM(L98:$S98) = 1, SUM(L98:$S98) = -1) * L$29 -> 0 | M210: =OR(SUM(M98:$S98) = 1, SUM(M98:$S98) = -1) * M$29 -> 0 | N210: =OR(SUM(N98:$S98) = 1, SUM(N98:$S98) = -1) * N$29 -> 0 | O210: =OR(SUM(O98:$S98) = 1, SUM(O98:$S98) = -1) * O$29 -> 0 | P210: =OR(SUM(P98:$S98) = 1, SUM(P98:$S98) = -1) * P$29 -> 0 | Q210: =OR(SUM(Q98:$S98) = 1, SUM(Q98:$S98) = -1) * Q$29 -> 0 | R210: =OR(SUM(R98:$S98) = 1, SUM(R98:$S98) = -1) * R$29 -> 0 | S210: =OR(SUM(S98:$S98) = 1, SUM(S98:$S98) = -1) * S$29 -> 1.105
F211: NHH UMS category D | G211: scalar | H211: 1.105 | J211: =OR(SUM(J99:$S99) = 1, SUM(J99:$S99) = -1) * J$29 -> 0 | K211: =OR(SUM(K99:$S99) = 1, SUM(K99:$S99) = -1) * K$29 -> 0 | L211: =OR(SUM(L99:$S99) = 1, SUM(L99:$S99) = -1) * L$29 -> 0 | M211: =OR(SUM(M99:$S99) = 1, SUM(M99:$S99) = -1) * M$29 -> 0 | N211: =OR(SUM(N99:$S99) = 1, SUM(N99:$S99) = -1) * N$29 -> 0 | O211: =OR(SUM(O99:$S99) = 1, SUM(O99:$S99) = -1) * O$29 -> 0 | P211: =OR(SUM(P99:$S99) = 1, SUM(P99:$S99) = -1) * P$29 -> 0 | Q211: =OR(SUM(Q99:$S99) = 1, SUM(Q99:$S99) = -1) * Q$29 -> 0 | R211: =OR(SUM(R99:$S99) = 1, SUM(R99:$S99) = -1) * R$29 -> 0 | S211: =OR(SUM(S99:$S99) = 1, SUM(S99:$S99) = -1) * S$29 -> 1.105
F212: LV UMS (Pseudo HH Metered) | G212: scalar | H212: 1.105 | J212: =OR(SUM(J100:$S100) = 1, SUM(J100:$S100) = -1) * J$29 -> 0 | K212: =OR(SUM(K100:$S100) = 1, SUM(K100:$S100) = -1) * K$29 -> 0 | L212: =OR(SUM(L100:$S100) = 1, SUM(L100:$S100) = -1) * L$29 -> 0 | M212: =OR(SUM(M100:$S100) = 1, SUM(M100:$S100) = -1) * M$29 -> 0 | N212: =OR(SUM(N100:$S100) = 1, SUM(N100:$S100) = -1) * N$29 -> 0 | O212: =OR(SUM(O100:$S100) = 1, SUM(O100:$S100) = -1) * O$29 -> 0 | P212: =OR(SUM(P100:$S100) = 1, SUM(P100:$S100) = -1) * P$29 -> 0 | Q212: =OR(SUM(Q100:$S100) = 1, SUM(Q100:$S100) = -1) * Q$29 -> 0 | R212: =OR(SUM(R100:$S100) = 1, SUM(R100:$S100) = -1) * R$29 -> 0 | S212: =OR(SUM(S100:$S100) = 1, SUM(S100:$S100) = -1) * S$29 -> 1.105
F213: LV Generation NHH or Aggregate HH | G213: scalar | H213: 1.105 | J213: =OR(SUM(J101:$S101) = 1, SUM(J101:$S101) = -1) * J$29 -> 0 | K213: =OR(SUM(K101:$S101) = 1, SUM(K101:$S101) = -1) * K$29 -> 0 | L213: =OR(SUM(L101:$S101) = 1, SUM(L101:$S101) = -1) * L$29 -> 0 | M213: =OR(SUM(M101:$S101) = 1, SUM(M101:$S101) = -1) * M$29 -> 0 | N213: =OR(SUM(N101:$S101) = 1, SUM(N101:$S101) = -1) * N$29 -> 0 | O213: =OR(SUM(O101:$S101) = 1, SUM(O101:$S101) = -1) * O$29 -> 0 | P213: =OR(SUM(P101:$S101) = 1, SUM(P101:$S101) = -1) * P$29 -> 0 | Q213: =OR(SUM(Q101:$S101) = 1, SUM(Q101:$S101) = -1) * Q$29 -> 0 | R213: =OR(SUM(R101:$S101) = 1, SUM(R101:$S101) = -1) * R$29 -> 0 | S213: =OR(SUM(S101:$S101) = 1, SUM(S101:$S101) = -1) * S$29 -> 1.105
F214: LV Sub Generation NHH | G214: scalar | H214: 1.06 | J214: =OR(SUM(J102:$S102) = 1, SUM(J102:$S102) = -1) * J$29 -> 0 | K214: =OR(SUM(K102:$S102) = 1, SUM(K102:$S102) = -1) * K$29 -> 0 | L214: =OR(SUM(L102:$S102) = 1, SUM(L102:$S102) = -1) * L$29 -> 0 | M214: =OR(SUM(M102:$S102) = 1, SUM(M102:$S102) = -1) * M$29 -> 0 | N214: =OR(SUM(N102:$S102) = 1, SUM(N102:$S102) = -1) * N$29 -> 0 | O214: =OR(SUM(O102:$S102) = 1, SUM(O102:$S102) = -1) * O$29 -> 0 | P214: =OR(SUM(P102:$S102) = 1, SUM(P102:$S102) = -1) * P$29 -> 0 | Q214: =OR(SUM(Q102:$S102) = 1, SUM(Q102:$S102) = -1) * Q$29 -> 0 | R214: =OR(SUM(R102:$S102) = 1, SUM(R102:$S102) = -1) * R$29 -> 1.06 | S214: =OR(SUM(S102:$S102) = 1, SUM(S102:$S102) = -1) * S$29 -> 0
F215: LV Generation Intermittent | G215: scalar | H215: 1.105 | J215: =OR(SUM(J103:$S103) = 1, SUM(J103:$S103) = -1) * J$29 -> 0 | K215: =OR(SUM(K103:$S103) = 1, SUM(K103:$S103) = -1) * K$29 -> 0 | L215: =OR(SUM(L103:$S103) = 1, SUM(L103:$S103) = -1) * L$29 -> 0 | M215: =OR(SUM(M103:$S103) = 1, SUM(M103:$S103) = -1) * M$29 -> 0 | N215: =OR(SUM(N103:$S103) = 1, SUM(N103:$S103) = -1) * N$29 -> 0 | O215: =OR(SUM(O103:$S103) = 1, SUM(O103:$S103) = -1) * O$29 -> 0 | P215: =OR(SUM(P103:$S103) = 1, SUM(P103:$S103) = -1) * P$29 -> 0 | Q215: =OR(SUM(Q103:$S103) = 1, SUM(Q103:$S103) = -1) * Q$29 -> 0 | R215: =OR(SUM(R103:$S103) = 1, SUM(R103:$S103) = -1) * R$29 -> 0 | S215: =OR(SUM(S103:$S103) = 1, SUM(S103:$S103) = -1) * S$29 -> 1.105
F216: LV Generation Intermittent no RP charge | G216: scalar | H216: 1.105 | J216: =OR(SUM(J104:$S104) = 1, SUM(J104:$S104) = -1) * J$29 -> 0 | K216: =OR(SUM(K104:$S104) = 1, SUM(K104:$S104) = -1) * K$29 -> 0 | L216: =OR(SUM(L104:$S104) = 1, SUM(L104:$S104) = -1) * L$29 -> 0 | M216: =OR(SUM(M104:$S104) = 1, SUM(M104:$S104) = -1) * M$29 -> 0 | N216: =OR(SUM(N104:$S104) = 1, SUM(N104:$S104) = -1) * N$29 -> 0 | O216: =OR(SUM(O104:$S104) = 1, SUM(O104:$S104) = -1) * O$29 -> 0 | P216: =OR(SUM(P104:$S104) = 1, SUM(P104:$S104) = -1) * P$29 -> 0 | Q216: =OR(SUM(Q104:$S104) = 1, SUM(Q104:$S104) = -1) * Q$29 -> 0 | R216: =OR(SUM(R104:$S104) = 1, SUM(R104:$S104) = -1) * R$29 -> 0 | S216: =OR(SUM(S104:$S104) = 1, SUM(S104:$S104) = -1) * S$29 -> 1.105
F217: LV Generation Non-Intermittent | G217: scalar | H217: 1.105 | J217: =OR(SUM(J105:$S105) = 1, SUM(J105:$S105) = -1) * J$29 -> 0 | K217: =OR(SUM(K105:$S105) = 1, SUM(K105:$S105) = -1) * K$29 -> 0 | L217: =OR(SUM(L105:$S105) = 1, SUM(L105:$S105) = -1) * L$29 -> 0 | M217: =OR(SUM(M105:$S105) = 1, SUM(M105:$S105) = -1) * M$29 -> 0 | N217: =OR(SUM(N105:$S105) = 1, SUM(N105:$S105) = -1) * N$29 -> 0 | O217: =OR(SUM(O105:$S105) = 1, SUM(O105:$S105) = -1) * O$29 -> 0 | P217: =OR(SUM(P105:$S105) = 1, SUM(P105:$S105) = -1) * P$29 -> 0 | Q217: =OR(SUM(Q105:$S105) = 1, SUM(Q105:$S105) = -1) * Q$29 -> 0 | R217: =OR(SUM(R105:$S105) = 1, SUM(R105:$S105) = -1) * R$29 -> 0 | S217: =OR(SUM(S105:$S105) = 1, SUM(S105:$S105) = -1) * S$29 -> 1.105
F218: LV Generation Non-Intermittent no RP charge | G218: scalar | H218: 1.105 | J218: =OR(SUM(J106:$S106) = 1, SUM(J106:$S106) = -1) * J$29 -> 0 | K218: =OR(SUM(K106:$S106) = 1, SUM(K106:$S106) = -1) * K$29 -> 0 | L218: =OR(SUM(L106:$S106) = 1, SUM(L106:$S106) = -1) * L$29 -> 0 | M218: =OR(SUM(M106:$S106) = 1, SUM(M106:$S106) = -1) * M$29 -> 0 | N218: =OR(SUM(N106:$S106) = 1, SUM(N106:$S106) = -1) * N$29 -> 0 | O218: =OR(SUM(O106:$S106) = 1, SUM(O106:$S106) = -1) * O$29 -> 0 | P218: =OR(SUM(P106:$S106) = 1, SUM(P106:$S106) = -1) * P$29 -> 0 | Q218: =OR(SUM(Q106:$S106) = 1, SUM(Q106:$S106) = -1) * Q$29 -> 0 | R218: =OR(SUM(R106:$S106) = 1, SUM(R106:$S106) = -1) * R$29 -> 0 | S218: =OR(SUM(S106:$S106) = 1, SUM(S106:$S106) = -1) * S$29 -> 1.105
F219: LV Sub Generation Intermittent | G219: scalar | H219: 1.06 | J219: =OR(SUM(J107:$S107) = 1, SUM(J107:$S107) = -1) * J$29 -> 0 | K219: =OR(SUM(K107:$S107) = 1, SUM(K107:$S107) = -1) * K$29 -> 0 | L219: =OR(SUM(L107:$S107) = 1, SUM(L107:$S107) = -1) * L$29 -> 0 | M219: =OR(SUM(M107:$S107) = 1, SUM(M107:$S107) = -1) * M$29 -> 0 | N219: =OR(SUM(N107:$S107) = 1, SUM(N107:$S107) = -1) * N$29 -> 0 | O219: =OR(SUM(O107:$S107) = 1, SUM(O107:$S107) = -1) * O$29 -> 0 | P219: =OR(SUM(P107:$S107) = 1, SUM(P107:$S107) = -1) * P$29 -> 0 | Q219: =OR(SUM(Q107:$S107) = 1, SUM(Q107:$S107) = -1) * Q$29 -> 0 | R219: =OR(SUM(R107:$S107) = 1, SUM(R107:$S107) = -1) * R$29 -> 1.06 | S219: =OR(SUM(S107:$S107) = 1, SUM(S107:$S107) = -1) * S$29 -> 0
F220: LV Sub Generation Intermittent no RP charge | G220: scalar | H220: 1.06 | J220: =OR(SUM(J108:$S108) = 1, SUM(J108:$S108) = -1) * J$29 -> 0 | K220: =OR(SUM(K108:$S108) = 1, SUM(K108:$S108) = -1) * K$29 -> 0 | L220: =OR(SUM(L108:$S108) = 1, SUM(L108:$S108) = -1) * L$29 -> 0 | M220: =OR(SUM(M108:$S108) = 1, SUM(M108:$S108) = -1) * M$29 -> 0 | N220: =OR(SUM(N108:$S108) = 1, SUM(N108:$S108) = -1) * N$29 -> 0 | O220: =OR(SUM(O108:$S108) = 1, SUM(O108:$S108) = -1) * O$29 -> 0 | P220: =OR(SUM(P108:$S108) = 1, SUM(P108:$S108) = -1) * P$29 -> 0 | Q220: =OR(SUM(Q108:$S108) = 1, SUM(Q108:$S108) = -1) * Q$29 -> 0 | R220: =OR(SUM(R108:$S108) = 1, SUM(R108:$S108) = -1) * R$29 -> 1.06 | S220: =OR(SUM(S108:$S108) = 1, SUM(S108:$S108) = -1) * S$29 -> 0
... 79 more rows

Sheet Customer contributions
A1: =MID(CELL("filename",A1),FIND("]",CELL("filename",A1))+1,255) -> Customer contributions
A2: =Cover!D21&" - "&Cover!D23 -> SP Manweb - V0.1
A3: =Cover!D2&" - "&Cover!D8&" v"&Cover!D10&" - "&Cover!D19 -> ARP model - Release for charge setting v3 - 2020/21
A4: =H104 & IF(H104 = 1, " issue", " issues") &" identified in checks on this sheet" -> 0 issues identified in checks on this sheet
B5: Click here to return to model map | G5: Units | H5: Constants | W5: Legal text reference
B7: Description
C9: This sheet calculates customer contributions towards assets (i.e. assets that are paid for, and should not be
C10: recovered under UoS charges)
B12: Customer contributions
C14: Maps customer contributions to customer categories
C16: =INDEX('Version control'!$H$34:$H$59,MATCH($A$1,'Version control'!$F$34:$F$59,0),1)&"-A: Network use factors" -> Section 506-A: Network use factors
E18: Network level at which users are supplied | I18: > | W18: Paragraph 30
E19: Network use factors based on customer contributed assets
J20: HV substation | K20: HV network | L20: LV substation | M20: LV network
F21: Domestic Unrestricted | G21: 1 or 0 | J21: =TRANSPOSE('Fixed inputs'!J53:AP56) -> 0 | K21: 0 | L21: 0 | M21: 1
F22: Domestic Two Rate | G22: 1 or 0 | J22: 0 | K22: 0 | L22: 0 | M22: 1
F23: Domestic Off Peak (related MPAN) | G23: 1 or 0 | J23: 0 | K23: 0 | L23: 0 | M23: 1
F24: Small Non Domestic Unrestricted | G24: 1 or 0 | J24: 0 | K24: 0 | L24: 0 | M24: 1
F25: Small Non Domestic Two Rate | G25: 1 or 0 | J25: 0 | K25: 0 | L25: 0 | M25: 1
F26: Small Non Domestic Off Peak (related MPAN) | G26: 1 or 0 | J26: 0 | K26: 0 | L26: 0 | M26: 1
F27: LV Medium Non-Domestic | G27: 1 or 0 | J27: 0 | K27: 0 | L27: 0 | M27: 1
F28: LV Sub Medium Non-Domestic | G28: 1 or 0 | J28: 0 | K28: 0 | L28: 1 | M28: 0
F29: HV Medium Non-Domestic | G29: 1 or 0 | J29: 0 | K29: 1 | L29: 0 | M29: 0
F30: LV Network Domestic | G30: 1 or 0 | J30: 0 | K30: 0 | L30: 0 | M30: 1
F31: LV Network Non-Domestic Non-CT | G31: 1 or 0 | J31: 0 | K31: 0 | L31: 0 | M31: 1
F32: LV HH Metered | G32: 1 or 0 | J32: 0 | K32: 0 | L32: 0 | M32: 1
F33: LV Sub HH Metered | G33: 1 or 0 | J33: 0 | K33: 0 | L33: 1 | M33: 0
F34: HV HH Metered | G34: 1 or 0 | J34: 0 | K34: 1 | L34: 0 | M34: 0
F35: NHH UMS category A | G35: 1 or 0 | J35: 0 | K35: 0 | L35: 0 | M35: 1
F36: NHH UMS category B | G36: 1 or 0 | J36: 0 | K36: 0 | L36: 0 | M36: 1
F37: NHH UMS category C | G37: 1 or 0 | J37: 0 | K37: 0 | L37: 0 | M37: 1
F38: NHH UMS category D | G38: 1 or 0 | J38: 0 | K38: 0 | L38: 0 | M38: 1
F39: LV UMS (Pseudo HH Metered) | G39: 1 or 0 | J39: 0 | K39: 0 | L39: 0 | M39: 1
F40: LV Generation NHH or Aggregate HH | G40: 1 or 0 | J40: 0 | K40: 0 | L40: 0 | M40: 1
F41: LV Sub Generation NHH | G41: 1 or 0 | J41: 0 | K41: 0 | L41: 1 | M41: 0
F42: LV Generation Intermittent | G42: 1 or 0 | J42: 0 | K42: 0 | L42: 0 | M42: 1
F43: LV Generation Intermittent no RP charge | G43: 1 or 0 | J43: 0 | K43: 0 | L43: 0 | M43: 1
F44: LV Generation Non-Intermittent | G44: 1 or 0 | J44: 0 | K44: 0 | L44: 0 | M44: 1
F45: LV Generation Non-Intermittent no RP charge | G45: 1 or 0 | J45: 0 | K45: 0 | L45: 0 | M45: 1
F46: LV Sub Generation Intermittent | G46: 1 or 0 | J46: 0 | K46: 0 | L46: 1 | M46: 0
F47: LV Sub Generation Intermittent no RP charge | G47: 1 or 0 | J47: 0 | K47: 0 | L47: 1 | M47: 0
F48: LV Sub Generation Non-Intermittent | G48: 1 or 0 | J48: 0 | K48: 0 | L48: 1 | M48: 0
F49: LV Sub Generation Non-Intermittent no RP charge | G49: 1 or 0 | J49: 0 | K49: 0 | L49: 1 | M49: 0
F50: HV Generation Intermittent | G50: 1 or 0 | J50: 0 | K50: 1 | L50: 0 | M50: 0
F51: HV Generation Intermittent no RP charge | G51: 1 or 0 | J51: 0 | K51: 1 | L51: 0 | M51: 0
F52: HV Generation Non-Intermittent | G52: 1 or 0 | J52: 0 | K52: 1 | L52: 0 | M52: 0
F53: HV Generation Non-Intermittent no RP charge | G53: 1 or 0 | J53: 0 | K53: 1 | L53: 0 | M53: 0
C55: =INDEX('Version control'!$H$34:$H$59,MATCH($A$1,'Version control'!$F$34:$F$59,0),1)&"-B: Customer contributions" -> Section 506-B: Customer contributions
E57: Customer contributions, by network level of supply | I57: > | W57: Paragraph 29
E58: Share of customer contributions by network level and asset type
J59: Transmission exit | K59: GSPs | L59: 132kV | M59: 132kV/EHV | N59: EHV | O59: EHV/HV | P59: 132kV/HV | Q59: HV | R59: HV/LV | S59: LV circuits | T59: LV customers | U59: HV customers
F60: LV network | G60: % | L60: ='Inputs by network level'!L29 -> 0 | M60: ='Inputs by network level'!M29 -> 0 | N60: ='Inputs by network level'!N29 -> 0 | O60: ='Inputs by network level'!O29 -> 0 | P60: ='Inputs by network level'!P29 -> 0 | Q60: ='Inputs by network level'!Q29 -> 0.3263512902 | R60: ='Inputs by network level'!R29 -> 0.7109728507 | S60: ='Inputs by network level'!S29 -> 0.9309486908
F61: LV substation | G61: % | L61: ='Inputs by network level'!L30 -> 0 | M61: ='Inputs by network level'!M30 -> 0 | N61: ='Inputs by network level'!N30 -> 0 | O61: ='Inputs by network level'!O30 -> 0 | P61: ='Inputs by network level'!P30 -> 0 | Q61: ='Inputs by network level'!Q30 -> 0.3263512902 | R61: ='Inputs by network level'!R30 -> 0.7109728507 | S61: ='Inputs by network level'!S30 -> 0
F62: HV network | G62: % | L62: ='Inputs by network level'!L31 -> 0 | M62: ='Inputs by network level'!M31 -> 0 | N62: ='Inputs by network level'!N31 -> 0.2944301994 | O62: ='Inputs by network level'!O31 -> 0.1431705882 | P62: ='Inputs by network level'!P31 -> 0 | Q62: ='Inputs by network level'!Q31 -> 0.7342904029 | R62: ='Inputs by network level'!R31 -> 0 | S62: ='Inputs by network level'!S31 -> 0
F63: HV substation | G63: % | L63: ='Inputs by network level'!L32 -> 0 | M63: ='Inputs by network level'!M32 -> 0 | N63: ='Inputs by network level'!N32 -> 0.2944301994 | O63: ='Inputs by network level'!O32 -> 0.1431705882 | P63: ='Inputs by network level'!P32 -> 0 | Q63: ='Inputs by network level'!Q32 -> 0 | R63: ='Inputs by network level'!R32 -> 0 | S63: ='Inputs by network level'!S32 -> 0
E65: Customer contributions, by network level
E66: Customer contributions by network level and customer type based on mappings above
J67: Transmission exit | K67: GSPs | L67: 132kV | M67: 132kV/EHV | N67: EHV | O67: EHV/HV | P67: 132kV/HV | Q67: HV | R67: HV/LV | S67: LV circuits | T67: LV customers | U67: HV customers
F68: Domestic Unrestricted | H68: % | L68: =$M21 * L$60 + $L21 * L$61 + $K21 * L$62 + $J21 * L$63 -> 0 | M68: 0 | N68: 0 | O68: 0 | P68: 0 | Q68: 0.3263512902 | R68: 0.7109728507 | S68: 0.9309486908
F69: Domestic Two Rate | H69: % | L69: 0 | M69: 0 | N69: 0 | O69: 0 | P69: 0 | Q69: 0.3263512902 | R69: 0.7109728507 | S69: 0.9309486908
F70: Domestic Off Peak (related MPAN) | H70: % | L70: 0 | M70: 0 | N70: 0 | O70: 0 | P70: 0 | Q70: 0.3263512902 | R70: 0.7109728507 | S70: 0.9309486908
F71: Small Non Domestic Unrestricted | H71: % | L71: 0 | M71: 0 | N71: 0 | O71: 0 | P71: 0 | Q71: 0.3263512902 | R71: 0.7109728507 | S71: 0.9309486908
F72: Small Non Domestic Two Rate | H72: % | L72: 0 | M72: 0 | N72: 0 | O72: 0 | P72: 0 | Q72: 0.3263512902 | R72: 0.7109728507 | S72: 0.9309486908
F73: Small Non Domestic Off Peak (related MPAN) | H73: % | L73: 0 | M73: 0 | N73: 0 | O73: 0 | P73: 0 | Q73: 0.3263512902 | R73: 0.7109728507 | S73: 0.9309486908
F74: LV Medium Non-Domestic | H74: % | L74: 0 | M74: 0 | N74: 0 | O74: 0 | P74: 0 | Q74: 0.3263512902 | R74: 0.7109728507 | S74: 0.9309486908
F75: LV Sub Medium Non-Domestic | H75: % | L75: 0 | M75: 0 | N75: 0 | O75: 0 | P75: 0 | Q75: 0.3263512902 | R75: 0.7109728507 | S75: 0
F76: HV Medium Non-Domestic | H76: % | L76: 0 | M76: 0 | N76: 0.2944301994 | O76: 0.1431705882 | P76: 0 | Q76: 0.7342904029 | R76: 0 | S76: 0
F77: LV Network Domestic | H77: % | L77: 0 | M77: 0 | N77: 0 | O77: 0 | P77: 0 | Q77: 0.3263512902 | R77: 0.7109728507 | S77: 0.9309486908
F78: LV Network Non-Domestic Non-CT | H78: % | L78: =$M31 * L$60 + $L31 * L$61 + $K31 * L$62 + $J31 * L$63 -> 0 | M78: 0 | N78: 0 | O78: 0 | P78: 0 | Q78: 0.3263512902 | R78: 0.7109728507 | S78: 0.9309486908
F79: LV HH Metered | H79: % | L79: 0 | M79: 0 | N79: 0 | O79: 0 | P79: 0 | Q79: 0.3263512902 | R79: 0.7109728507 | S79: 0.9309486908
F80: LV Sub HH Metered | H80: % | L80: 0 | M80: 0 | N80: 0 | O80: 0 | P80: 0 | Q80: 0.3263512902 | R80: 0.7109728507 | S80: 0
F81: HV HH Metered | H81: % | L81: 0 | M81: 0 | N81: 0.2944301994 | O81: 0.1431705882 | P81: 0 | Q81: 0.7342904029 | R81: 0 | S81: 0
F82: NHH UMS category A | H82: % | L82: 0 | M82: 0 | N82: 0 | O82: 0 | P82: 0 | Q82: 0.3263512902 | R82: 0.7109728507 | S82: 0.9309486908
F83: NHH UMS category B | H83: % | L83: 0 | M83: 0 | N83: 0 | O83: 0 | P83: 0 | Q83: 0.3263512902 | R83: 0.7109728507 | S83: 0.9309486908
F84: NHH UMS category C | H84: % | L84: 0 | M84: 0 | N84: 0 | O84: 0 | P84: 0 | Q84: 0.3263512902 | R84: 0.7109728507 | S84: 0.9309486908
F85: NHH UMS category D | H85: % | L85: 0 | M85: 0 | N85: 0 | O85: 0 | P85: 0 | Q85: 0.3263512902 | R85: 0.7109728507 | S85: 0.9309486908
F86: LV UMS (Pseudo HH Metered) | H86: % | L86: 0 | M86: 0 | N86: 0 | O86: 0 | P86: 0 | Q86: 0.3263512902 | R86: 0.7109728507 | S86: 0.9309486908
F87: LV Generation NHH or Aggregate HH | H87: % | L87: 0 | M87: 0 | N87: 0 | O87: 0 | P87: 0 | Q87: 0.3263512902 | R87: 0.7109728507 | S87: 0.9309486908
F88: LV Sub Generation NHH | H88: % | L88: =$M41 * L$60 + $L41 * L$61 + $K41 * L$62 + $J41 * L$63 -> 0 | M88: 0 | N88: 0 | O88: 0 | P88: 0 | Q88: 0.3263512902 | R88: 0.7109728507 | S88: 0
F89: LV Generation Intermittent | H89: % | L89: 0 | M89: 0 | N89: 0 | O89: 0 | P89: 0 | Q89: 0.3263512902 | R89: 0.7109728507 | S89: 0.9309486908
F90: LV Generation Intermittent no RP charge | H90: % | L90: 0 | M90: 0 | N90: 0 | O90: 0 | P90: 0 | Q90: 0.3263512902 | R90: 0.7109728507 | S90: 0.9309486908
F91: LV Generation Non-Intermittent | H91: % | L91: 0 | M91: 0 | N91: 0 | O91: 0 | P91: 0 | Q91: 0.3263512902 | R91: 0.7109728507 | S91: 0.9309486908
F92: LV Generation Non-Intermittent no RP charge | H92: % | L92: 0 | M92: 0 | N92: 0 | O92: 0 | P92: 0 | Q92: 0.3263512902 | R92: 0.7109728507 | S92: 0.9309486908
F93: LV Sub Generation Intermittent | H93: % | L93: 0 | M93: 0 | N93: 0 | O93: 0 | P93: 0 | Q93: 0.3263512902 | R93: 0.7109728507 | S93: 0
F94: LV Sub Generation Intermittent no RP charge | H94: % | L94: 0 | M94: 0 | N94: 0 | O94: 0 | P94: 0 | Q94: 0.3263512902 | R94: 0.7109728507 | S94: 0
F95: LV Sub Generation Non-Intermittent | H95: % | L95: 0 | M95: 0 | N95: 0 | O95: 0 | P95: 0 | Q95: 0.3263512902 | R95: 0.7109728507 | S95: 0
F96: LV Sub Generation Non-Intermittent no RP charge | H96: % | L96: 0 | M96: 0 | N96: 0 | O96: 0 | P96: 0 | Q96: 0.3263512902 | R96: 0.7109728507 | S96: 0
F97: HV Generation Intermittent | H97: % | L97: 0 | M97: 0 | N97: 0.2944301994 | O97: 0.1431705882 | P97: 0 | Q97: 0.7342904029 | R97: 0 | S97: 0
F98: HV Generation Intermittent no RP charge | H98: % | L98: =$M51 * L$60 + $L51 * L$61 + $K51 * L$62 + $J51 * L$63 -> 0 | M98: 0 | N98: 0.2944301994 | O98: 0.1431705882 | P98: 0 | Q98: 0.7342904029 | R98: 0 | S98: 0
F99: HV Generation Non-Intermittent | H99: % | L99: 0 | M99: 0 | N99: 0.2944301994 | O99: 0.1431705882 | P99: 0 | Q99: 0.7342904029 | R99: 0 | S99: 0
F100: HV Generation Non-Intermittent no RP charge | H100: % | L100: 0 | M100: 0 | N100: 0.2944301994 | O100: 0.1431705882 | P100: 0 | Q100: 0.7342904029 | R100: 0 | S100: 0
B102: Checks
E104: Check for error values | G104: number of issues | H104: =SUM(IF(ISERROR(H21:U100), 1)) -> 0
B106: End of sheet

Sheet Volume adjustments
A1: =MID(CELL("filename",A1),FIND("]",CELL("filename",A1))+1,255) -> Volume adjustments
A2: =Cover!D21&" - "&Cover!D23 -> SP Manweb - V0.1
A3: =Cover!D2&" - "&Cover!D8&" v"&Cover!D10&" - "&Cover!D19 -> ARP model - Release for charge setting v3 - 2020/21
A4: =H140 & IF(H140 = 1, " issue", " issues") &" identified in checks on this sheet" -> 0 issues identified in checks on this sheet
B5: Click here to return to model map | G5: Units | H5: Constants | J5: Domestic Unrestricted | K5: Domestic Two Rate | L5: Domestic Off Peak (related MPAN) | M5: Small Non Domestic Unrestricted | N5: Small Non Domestic Two Rate | O5: Small Non Domestic Off Peak (related MPAN) | P5: LV Medium Non-Domestic | Q5: LV Sub Medium Non-Domestic | R5: HV Medium Non-Domestic | S5: LV Network Domestic | T5: LV Network Non-Domestic Non-CT | U5: LV HH Metered | V5: LV Sub HH Metered | W5: HV HH Metered | X5: NHH UMS category A | Y5: NHH UMS category B | Z5: NHH UMS category C | AA5: NHH UMS category D | AB5: LV UMS (Pseudo HH Metered) | AC5: LV Generation NHH or Aggregate HH | AD5: LV Sub Generation NHH | AE5: LV Generation Intermittent | AF5: LV Generation Intermittent no RP charge | AG5: LV Generation Non-Intermittent | AH5: LV Generation Non-Intermittent no RP charge | AI5: LV Sub Generation Intermittent | AJ5: LV Sub Generation Intermittent no RP charge | AK5: LV Sub Generation Non-Intermittent | AL5: LV Sub Generation Non-Intermittent no RP charge | AM5: HV Generation Intermittent | AN5: HV Generation Intermittent no RP charge | AO5: HV Generation Non-Intermittent | AP5: HV Generation Non-Intermittent no RP charge | AR5: Legal text reference
B7: Description
C9: This sheet calculates volumes (kWh, MPAN, import and exceeded capacity) to be used throughout the model.
C10: This sheet first calculates the discounts to be applied to LDNO volumes, then combines these with volumes for
C11: all the way customers.
B13: LDNO discounts
C15: =INDEX('Version control'!$H$34:$H$59,MATCH($A$1,'Version control'!$F$34:$F$59,0),1)&"-A: LDNO discounts" -> Section 507-A: LDNO discounts
D17: This section maps the LDNO discounts from the PCDM to different customer categories
D18: Generation LDNO customers do not receive the standard LDNO discounts, and this adjustment is made in this section
E20: Discounts from PCDM | I20: >
E21: LDNO discounts calculated in the PCDM | AR21: Paragraph 97
F22: LDNO LV: LV user | G22: % | H22: ='General inputs'!H33 -> 0.379357347
F23: LDNO HV: LV user | G23: % | H23: ='General inputs'!H34 -> 0.5848240063
F24: LDNO HV: LV Sub user | G24: % | H24: ='General inputs'!H35 -> 0.3296081647
F25: LDNO HV: HV user | G25: % | H25: ='General inputs'!H36 -> 0.2427681856
E27: Discount mapping | I27: > | AR27: Paragraphs 98 & 99
E28: Maps customer types to LDNO discount categories and calculates the appropriate discount to be applied to
E29: each customer
F30: LDNO LV: LV user | G30: 1 or 0 | J30: ='Fixed inputs'!J46 -> 1 | K30: ='Fixed inputs'!K46 -> 1 | L30: ='Fixed inputs'!L46 -> 1 | M30: ='Fixed inputs'!M46 -> 1 | N30: ='Fixed inputs'!N46 -> 1 | O30: ='Fixed inputs'!O46 -> 1 | P30: ='Fixed inputs'!P46 -> 1 | Q30: ='Fixed inputs'!Q46 -> 0 | R30: ='Fixed inputs'!R46 -> 0 | S30: ='Fixed inputs'!S46 -> 1 | T30: ='Fixed inputs'!T46 -> 1 | U30: ='Fixed inputs'!U46 -> 1 | V30: ='Fixed inputs'!V46 -> 0 | W30: ='Fixed inputs'!W46 -> 0 | X30: ='Fixed inputs'!X46 -> 1 | Y30: ='Fixed inputs'!Y46 -> 1 | Z30: ='Fixed inputs'!Z46 -> 1 | AA30: ='Fixed inputs'!AA46 -> 1 | AB30: ='Fixed inputs'!AB46 -> 1 | AC30: ='Fixed inputs'!AC46 -> 0 | AD30: ='Fixed inputs'!AD46 -> 0 | AE30: ='Fixed inputs'!AE46 -> 0 | AF30: ='Fixed inputs'!AF46 -> 0 | AG30: ='Fixed inputs'!AG46 -> 0 | AH30: ='Fixed inputs'!AH46 -> 0 | AI30: ='Fixed inputs'!AI46 -> 0 | AJ30: ='Fixed inputs'!AJ46 -> 0 | AK30: ='Fixed inputs'!AK46 -> 0 | AL30: ='Fixed inputs'!AL46 -> 0 | AM30: ='Fixed inputs'!AM46 -> 0 | AN30: ='Fixed inputs'!AN46 -> 0 | AO30: ='Fixed inputs'!AO46 -> 0 | AP30: ='Fixed inputs'!AP46 -> 0
F31: LDNO HV: LV user | G31: 1 or 0 | J31: ='Fixed inputs'!J47 -> 1 | K31: ='Fixed inputs'!K47 -> 1 | L31: ='Fixed inputs'!L47 -> 1 | M31: ='Fixed inputs'!M47 -> 1 | N31: ='Fixed inputs'!N47 -> 1 | O31: ='Fixed inputs'!O47 -> 1 | P31: ='Fixed inputs'!P47 -> 1 | Q31: ='Fixed inputs'!Q47 -> 0 | R31: ='Fixed inputs'!R47 -> 0 | S31: ='Fixed inputs'!S47 -> 1 | T31: ='Fixed inputs'!T47 -> 1 | U31: ='Fixed inputs'!U47 -> 1 | V31: ='Fixed inputs'!V47 -> 0 | W31: ='Fixed inputs'!W47 -> 0 | X31: ='Fixed inputs'!X47 -> 1 | Y31: ='Fixed inputs'!Y47 -> 1 | Z31: ='Fixed inputs'!Z47 -> 1 | AA31: ='Fixed inputs'!AA47 -> 1 | AB31: ='Fixed inputs'!AB47 -> 1 | AC31: ='Fixed inputs'!AC47 -> 0 | AD31: ='Fixed inputs'!AD47 -> 0 | AE31: ='Fixed inputs'!AE47 -> 0 | AF31: ='Fixed inputs'!AF47 -> 0 | AG31: ='Fixed inputs'!AG47 -> 0 | AH31: ='Fixed inputs'!AH47 -> 0 | AI31: ='Fixed inputs'!AI47 -> 0 | AJ31: ='Fixed inputs'!AJ47 -> 0 | AK31: ='Fixed inputs'!AK47 -> 0 | AL31: ='Fixed inputs'!AL47 -> 0 | AM31: ='Fixed inputs'!AM47 -> 0 | AN31: ='Fixed inputs'!AN47 -> 0 | AO31: ='Fixed inputs'!AO47 -> 0 | AP31: ='Fixed inputs'!AP47 -> 0
F32: LDNO HV: LV Sub user | G32: 1 or 0 | J32: ='Fixed inputs'!J48 -> 0 | K32: ='Fixed inputs'!K48 -> 0 | L32: ='Fixed inputs'!L48 -> 0 | M32: ='Fixed inputs'!M48 -> 0 | N32: ='Fixed inputs'!N48 -> 0 | O32: ='Fixed inputs'!O48 -> 0 | P32: ='Fixed inputs'!P48 -> 0 | Q32: ='Fixed inputs'!Q48 -> 0 | R32: ='Fixed inputs'!R48 -> 0 | S32: ='Fixed inputs'!S48 -> 0 | T32: ='Fixed inputs'!T48 -> 0 | U32: ='Fixed inputs'!U48 -> 0 | V32: ='Fixed inputs'!V48 -> 1 | W32: ='Fixed inputs'!W48 -> 0 | X32: ='Fixed inputs'!X48 -> 0 | Y32: ='Fixed inputs'!Y48 -> 0 | Z32: ='Fixed inputs'!Z48 -> 0 | AA32: ='Fixed inputs'!AA48 -> 0 | AB32: ='Fixed inputs'!AB48 -> 0 | AC32: ='Fixed inputs'!AC48 -> 0 | AD32: ='Fixed inputs'!AD48 -> 0 | AE32: ='Fixed inputs'!AE48 -> 0 | AF32: ='Fixed inputs'!AF48 -> 0 | AG32: ='Fixed inputs'!AG48 -> 0 | AH32: ='Fixed inputs'!AH48 -> 0 | AI32: ='Fixed inputs'!AI48 -> 0 | AJ32: ='Fixed inputs'!AJ48 -> 0 | AK32: ='Fixed inputs'!AK48 -> 0 | AL32: ='Fixed inputs'!AL48 -> 0 | AM32: ='Fixed inputs'!AM48 -> 0 | AN32: ='Fixed inputs'!AN48 -> 0 | AO32: ='Fixed inputs'!AO48 -> 0 | AP32: ='Fixed inputs'!AP48 -> 0
F33: LDNO HV: HV user | G33: 1 or 0 | J33: ='Fixed inputs'!J49 -> 0 | K33: ='Fixed inputs'!K49 -> 0 | L33: ='Fixed inputs'!L49 -> 0 | M33: ='Fixed inputs'!M49 -> 0 | N33: ='Fixed inputs'!N49 -> 0 | O33: ='Fixed inputs'!O49 -> 0 | P33: ='Fixed inputs'!P49 -> 0 | Q33: ='Fixed inputs'!Q49 -> 0 | R33: ='Fixed inputs'!R49 -> 0 | S33: ='Fixed inputs'!S49 -> 0 | T33: ='Fixed inputs'!T49 -> 0 | U33: ='Fixed inputs'!U49 -> 0 | V33: ='Fixed inputs'!V49 -> 0 | W33: ='Fixed inputs'!W49 -> 1 | X33: ='Fixed inputs'!X49 -> 0 | Y33: ='Fixed inputs'!Y49 -> 0 | Z33: ='Fixed inputs'!Z49 -> 0 | AA33: ='Fixed inputs'!AA49 -> 0 | AB33: ='Fixed inputs'!AB49 -> 0 | AC33: ='Fixed inputs'!AC49 -> 0 | AD33: ='Fixed inputs'!AD49 -> 0 | AE33: ='Fixed inputs'!AE49 -> 0 | AF33: ='Fixed inputs'!AF49 -> 0 | AG33: ='Fixed inputs'!AG49 -> 0 | AH33: ='Fixed inputs'!AH49 -> 0 | AI33: ='Fixed inputs'!AI49 -> 0 | AJ33: ='Fixed inputs'!AJ49 -> 0 | AK33: ='Fixed inputs'!AK49 -> 0 | AL33: ='Fixed inputs'!AL49 -> 0 | AM33: ='Fixed inputs'!AM49 -> 0 | AN33: ='Fixed inputs'!AN49 -> 0 | AO33: ='Fixed inputs'!AO49 -> 0 | AP33: ='Fixed inputs'!AP49 -> 0
F34: LV discount | G34: % | J34: =J30 * $H$22 -> 0.379357347 | K34: =K30 * $H$22 -> 0.379357347 | L34: 0.379357347 | M34: 0.379357347 | N34: 0.379357347 | O34: 0.379357347 | P34: 0.379357347 | Q34: 0 | R34: 0 | S34: 0.379357347 | T34: 0.379357347 | U34: 0.379357347 | V34: =V30 * $H$22 -> 0 | W34: 0 | X34: 0.379357347 | Y34: 0.379357347 | Z34: 0.379357347 | AA34: 0.379357347 | AB34: 0.379357347 | AC34: 0 | AD34: 0 | AE34: 0 | AF34: 0 | AG34: 0 | AH34: 0 | AI34: 0 | AJ34: 0 | AK34: 0 | AL34: 0 | AM34: 0 | AN34: 0 | AO34: 0 | AP34: 0
F35: HV discount | G35: % | J35: =SUMPRODUCT(J31:J33,$H$23:$H$25) -> 0.5848240063 | K35: =SUMPRODUCT(K31:K33,$H$23:$H$25) -> 0.5848240063 | L35: 0.5848240063 | M35: 0.5848240063 | N35: 0.5848240063 | O35: 0.5848240063 | P35: 0.5848240063 | Q35: 0 | R35: 0 | S35: 0.5848240063 | T35: 0.5848240063 | U35: 0.5848240063 | V35: =SUMPRODUCT(V31:V33,$H$23:$H$25) -> 0.3296081647 | W35: 0.2427681856 | X35: 0.5848240063 | Y35: 0.5848240063 | Z35: 0.5848240063 | AA35: 0.5848240063 | AB35: 0.5848240063 | AC35: 0 | AD35: 0 | AE35: 0 | AF35: 0 | AG35: 0 | AH35: 0 | AI35: 0 | AJ35: 0 | AK35: 0 | AL35: 0 | AM35: 0 | AN35: 0 | AO35: 0 | AP35: 0
E37: Discount override | I37: > | AR37: Paragraphs 98 & 99
E38: This table overrides discount factors for certain categories of user
F39: Flag for overriding MWh discount rate | G39: TRUE / FALSE | J39: ='Fixed inputs'!J106 -> FALSE | K39: ='Fixed inputs'!K106 -> FALSE | L39: ='Fixed inputs'!L106 -> FALSE | M39: ='Fixed inputs'!M106 -> FALSE | N39: ='Fixed inputs'!N106 -> FALSE | O39: ='Fixed inputs'!O106 -> FALSE | P39: ='Fixed inputs'!P106 -> FALSE | Q39: ='Fixed inputs'!Q106 -> FALSE | R39: ='Fixed inputs'!R106 -> FALSE | S39: ='Fixed inputs'!S106 -> FALSE | T39: ='Fixed inputs'!T106 -> FALSE | U39: ='Fixed inputs'!U106 -> FALSE | V39: ='Fixed inputs'!V106 -> FALSE | W39: ='Fixed inputs'!W106 -> FALSE | X39: ='Fixed inputs'!X106 -> FALSE | Y39: ='Fixed inputs'!Y106 -> FALSE | Z39: ='Fixed inputs'!Z106 -> FALSE | AA39: ='Fixed inputs'!AA106 -> FALSE | AB39: ='Fixed inputs'!AB106 -> FALSE | AC39: ='Fixed inputs'!AC106 -> TRUE | AD39: ='Fixed inputs'!AD106 -> TRUE | AE39: ='Fixed inputs'!AE106 -> TRUE | AF39: ='Fixed inputs'!AF106 -> TRUE | AG39: ='Fixed inputs'!AG106 -> TRUE | AH39: ='Fixed inputs'!AH106 -> TRUE | AI39: ='Fixed inputs'!AI106 -> TRUE | AJ39: ='Fixed inputs'!AJ106 -> TRUE | AK39: ='Fixed inputs'!AK106 -> TRUE | AL39: ='Fixed inputs'!AL106 -> TRUE | AM39: ='Fixed inputs'!AM106 -> TRUE | AN39: ='Fixed inputs'!AN106 -> TRUE | AO39: ='Fixed inputs'!AO106 -> TRUE | AP39: ='Fixed inputs'!AP106 -> TRUE
F40: Flag for overriding MPAN discount rate | G40: TRUE / FALSE | J40: ='Fixed inputs'!J110 -> FALSE | K40: ='Fixed inputs'!K110 -> FALSE | L40: ='Fixed inputs'!L110 -> FALSE | M40: ='Fixed inputs'!M110 -> FALSE | N40: ='Fixed inputs'!N110 -> FALSE | O40: ='Fixed inputs'!O110 -> FALSE | P40: ='Fixed inputs'!P110 -> FALSE | Q40: ='Fixed inputs'!Q110 -> FALSE | R40: ='Fixed inputs'!R110 -> FALSE | S40: ='Fixed inputs'!S110 -> FALSE | T40: ='Fixed inputs'!T110 -> FALSE | U40: ='Fixed inputs'!U110 -> FALSE | V40: ='Fixed inputs'!V110 -> FALSE | W40: ='Fixed inputs'!W110 -> FALSE | X40: ='Fixed inputs'!X110 -> FALSE | Y40: ='Fixed inputs'!Y110 -> FALSE | Z40: ='Fixed inputs'!Z110 -> FALSE | AA40: ='Fixed inputs'!AA110 -> FALSE | AB40: ='Fixed inputs'!AB110 -> FALSE | AC40: ='Fixed inputs'!AC110 -> TRUE | AD40: ='Fixed inputs'!AD110 -> TRUE | AE40: ='Fixed inputs'!AE110 -> TRUE | AF40: ='Fixed inputs'!AF110 -> TRUE | AG40: ='Fixed inputs'!AG110 -> TRUE | AH40: ='Fixed inputs'!AH110 -> TRUE | AI40: ='Fixed inputs'!AI110 -> TRUE | AJ40: ='Fixed inputs'!AJ110 -> TRUE | AK40: ='Fixed inputs'!AK110 -> TRUE | AL40: ='Fixed inputs'!AL110 -> TRUE | AM40: ='Fixed inputs'!AM110 -> TRUE | AN40: ='Fixed inputs'!AN110 -> TRUE | AO40: ='Fixed inputs'!AO110 -> TRUE | AP40: ='Fixed inputs'!AP110 -> TRUE
F41: Flag for overriding import capacity discount rate | G41: TRUE / FALSE | J41: ='Fixed inputs'!J114 -> FALSE | K41: ='Fixed inputs'!K114 -> FALSE | L41: ='Fixed inputs'!L114 -> FALSE | M41: ='Fixed inputs'!M114 -> FALSE | N41: ='Fixed inputs'!N114 -> FALSE | O41: ='Fixed inputs'!O114 -> FALSE | P41: ='Fixed inputs'!P114 -> FALSE | Q41: ='Fixed inputs'!Q114 -> FALSE | R41: ='Fixed inputs'!R114 -> FALSE | S41: ='Fixed inputs'!S114 -> FALSE | T41: ='Fixed inputs'!T114 -> FALSE | U41: ='Fixed inputs'!U114 -> FALSE | V41: ='Fixed inputs'!V114 -> FALSE | W41: ='Fixed inputs'!W114 -> FALSE | X41: ='Fixed inputs'!X114 -> FALSE | Y41: ='Fixed inputs'!Y114 -> FALSE | Z41: ='Fixed inputs'!Z114 -> FALSE | AA41: ='Fixed inputs'!AA114 -> FALSE | AB41: ='Fixed inputs'!AB114 -> FALSE | AC41: ='Fixed inputs'!AC114 -> TRUE | AD41: ='Fixed inputs'!AD114 -> TRUE | AE41: ='Fixed inputs'!AE114 -> TRUE | AF41: ='Fixed inputs'!AF114 -> TRUE | AG41: ='Fixed inputs'!AG114 -> TRUE | AH41: ='Fixed inputs'!AH114 -> TRUE | AI41: ='Fixed inputs'!AI114 -> TRUE | AJ41: ='Fixed inputs'!AJ114 -> TRUE | AK41: ='Fixed inputs'!AK114 -> TRUE | AL41: ='Fixed inputs'!AL114 -> TRUE | AM41: ='Fixed inputs'!AM114 -> TRUE | AN41: ='Fixed inputs'!AN114 -> TRUE | AO41: ='Fixed inputs'!AO114 -> TRUE | AP41: ='Fixed inputs'!AP114 -> TRUE
F42: Flag for overriding exceeded capacity discount rate | G42: TRUE / FALSE | J42: ='Fixed inputs'!J118 -> FALSE | K42: ='Fixed inputs'!K118 -> FALSE | L42: ='Fixed inputs'!L118 -> FALSE | M42: ='Fixed inputs'!M118 -> FALSE | N42: ='Fixed inputs'!N118 -> FALSE | O42: ='Fixed inputs'!O118 -> FALSE | P42: ='Fixed inputs'!P118 -> FALSE | Q42: ='Fixed inputs'!Q118 -> FALSE | R42: ='Fixed inputs'!R118 -> FALSE | S42: ='Fixed inputs'!S118 -> FALSE | T42: ='Fixed inputs'!T118 -> FALSE | U42: ='Fixed inputs'!U118 -> FALSE | V42: ='Fixed inputs'!V118 -> FALSE | W42: ='Fixed inputs'!W118 -> FALSE | X42: ='Fixed inputs'!X118 -> FALSE | Y42: ='Fixed inputs'!Y118 -> FALSE | Z42: ='Fixed inputs'!Z118 -> FALSE | AA42: ='Fixed inputs'!AA118 -> FALSE | AB42: ='Fixed inputs'!AB118 -> FALSE | AC42: ='Fixed inputs'!AC118 -> TRUE | AD42: ='Fixed inputs'!AD118 -> TRUE | AE42: ='Fixed inputs'!AE118 -> TRUE | AF42: ='Fixed inputs'!AF118 -> TRUE | AG42: ='Fixed inputs'!AG118 -> TRUE | AH42: ='Fixed inputs'!AH118 -> TRUE | AI42: ='Fixed inputs'!AI118 -> TRUE | AJ42: ='Fixed inputs'!AJ118 -> TRUE | AK42: ='Fixed inputs'!AK118 -> TRUE | AL42: ='Fixed inputs'!AL118 -> TRUE | AM42: ='Fixed inputs'!AM118 -> TRUE | AN42: ='Fixed inputs'!AN118 -> TRUE | AO42: ='Fixed inputs'!AO118 -> TRUE | AP42: ='Fixed inputs'!AP118 -> TRUE
F43: Flag for overriding reactive power units discount rate | G43: TRUE / FALSE | J43: ='Fixed inputs'!J122 -> FALSE | K43: ='Fixed inputs'!K122 -> FALSE | L43: ='Fixed inputs'!L122 -> FALSE | M43: ='Fixed inputs'!M122 -> FALSE | N43: ='Fixed inputs'!N122 -> FALSE | O43: ='Fixed inputs'!O122 -> FALSE | P43: ='Fixed inputs'!P122 -> FALSE | Q43: ='Fixed inputs'!Q122 -> FALSE | R43: ='Fixed inputs'!R122 -> FALSE | S43: ='Fixed inputs'!S122 -> FALSE | T43: ='Fixed inputs'!T122 -> FALSE | U43: ='Fixed inputs'!U122 -> FALSE | V43: ='Fixed inputs'!V122 -> FALSE | W43: ='Fixed inputs'!W122 -> FALSE | X43: ='Fixed inputs'!X122 -> FALSE | Y43: ='Fixed inputs'!Y122 -> FALSE | Z43: ='Fixed inputs'!Z122 -> FALSE | AA43: ='Fixed inputs'!AA122 -> FALSE | AB43: ='Fixed inputs'!AB122 -> FALSE | AC43: ='Fixed inputs'!AC122 -> TRUE | AD43: ='Fixed inputs'!AD122 -> TRUE | AE43: ='Fixed inputs'!AE122 -> TRUE | AF43: ='Fixed inputs'!AF122 -> TRUE | AG43: ='Fixed inputs'!AG122 -> TRUE | AH43: ='Fixed inputs'!AH122 -> TRUE | AI43: ='Fixed inputs'!AI122 -> TRUE | AJ43: ='Fixed inputs'!AJ122 -> TRUE | AK43: ='Fixed inputs'!AK122 -> TRUE | AL43: ='Fixed inputs'!AL122 -> TRUE | AM43: ='Fixed inputs'!AM122 -> TRUE | AN43: ='Fixed inputs'!AN122 -> TRUE | AO43: ='Fixed inputs'!AO122 -> TRUE | AP43: ='Fixed inputs'!AP122 -> TRUE
F45: Override MWh discount rate | G45: % | J45: ='Fixed inputs'!J107 -> 0 | K45: ='Fixed inputs'!K107 -> 0 | L45: ='Fixed inputs'!L107 -> 0 | M45: ='Fixed inputs'!M107 -> 0 | N45: ='Fixed inputs'!N107 -> 0 | O45: ='Fixed inputs'!O107 -> 0 | P45: ='Fixed inputs'!P107 -> 0 | Q45: ='Fixed inputs'!Q107 -> 0 | R45: ='Fixed inputs'!R107 -> 0 | S45: ='Fixed inputs'!S107 -> 0 | T45: ='Fixed inputs'!T107 -> 0 | U45: ='Fixed inputs'!U107 -> 0 | V45: ='Fixed inputs'!V107 -> 0 | W45: ='Fixed inputs'!W107 -> 0 | X45: ='Fixed inputs'!X107 -> 0 | Y45: ='Fixed inputs'!Y107 -> 0 | Z45: ='Fixed inputs'!Z107 -> 0 | AA45: ='Fixed inputs'!AA107 -> 0 | AB45: ='Fixed inputs'!AB107 -> 0 | AC45: ='Fixed inputs'!AC107 -> 0 | AD45: ='Fixed inputs'!AD107 -> 0 | AE45: ='Fixed inputs'!AE107 -> 0 | AF45: ='Fixed inputs'!AF107 -> 0 | AG45: ='Fixed inputs'!AG107 -> 0 | AH45: ='Fixed inputs'!AH107 -> 0 | AI45: ='Fixed inputs'!AI107 -> 0 | AJ45: ='Fixed inputs'!AJ107 -> 0 | AK45: ='Fixed inputs'!AK107 -> 0 | AL45: ='Fixed inputs'!AL107 -> 0 | AM45: ='Fixed inputs'!AM107 -> 0 | AN45: ='Fixed inputs'!AN107 -> 0 | AO45: ='Fixed inputs'!AO107 -> 0 | AP45: ='Fixed inputs'!AP107 -> 0
F46: Override MPAN discount rate | G46: % | J46: ='Fixed inputs'!J111 -> 0 | K46: ='Fixed inputs'!K111 -> 0 | L46: ='Fixed inputs'!L111 -> 0 | M46: ='Fixed inputs'!M111 -> 0 | N46: ='Fixed inputs'!N111 -> 0 | O46: ='Fixed inputs'!O111 -> 0 | P46: ='Fixed inputs'!P111 -> 0 | Q46: ='Fixed inputs'!Q111 -> 0 | R46: ='Fixed inputs'!R111 -> 0 | S46: ='Fixed inputs'!S111 -> 0 | T46: ='Fixed inputs'!T111 -> 0 | U46: ='Fixed inputs'!U111 -> 0 | V46: ='Fixed inputs'!V111 -> 0 | W46: ='Fixed inputs'!W111 -> 0 | X46: ='Fixed inputs'!X111 -> 0 | Y46: ='Fixed inputs'!Y111 -> 0 | Z46: ='Fixed inputs'!Z111 -> 0 | AA46: ='Fixed inputs'!AA111 -> 0 | AB46: ='Fixed inputs'!AB111 -> 0 | AC46: ='Fixed inputs'!AC111 -> 1 | AD46: ='Fixed inputs'!AD111 -> 1 | AE46: ='Fixed inputs'!AE111 -> 1 | AF46: ='Fixed inputs'!AF111 -> 1 | AG46: ='Fixed inputs'!AG111 -> 1 | AH46: ='Fixed inputs'!AH111 -> 1 | AI46: ='Fixed inputs'!AI111 -> 1 | AJ46: ='Fixed inputs'!AJ111 -> 1 | AK46: ='Fixed inputs'!AK111 -> 1 | AL46: ='Fixed inputs'!AL111 -> 1 | AM46: ='Fixed inputs'!AM111 -> 1 | AN46: ='Fixed inputs'!AN111 -> 1 | AO46: ='Fixed inputs'!AO111 -> 1 | AP46: ='Fixed inputs'!AP111 -> 1
F47: Override import capacity discount rate | G47: % | J47: ='Fixed inputs'!J115 -> 0 | K47: ='Fixed inputs'!K115 -> 0 | L47: ='Fixed inputs'!L115 -> 0 | M47: ='Fixed inputs'!M115 -> 0 | N47: ='Fixed inputs'!N115 -> 0 | O47: ='Fixed inputs'!O115 -> 0 | P47: ='Fixed inputs'!P115 -> 0 | Q47: ='Fixed inputs'!Q115 -> 0 | R47: ='Fixed inputs'!R115 -> 0 | S47: ='Fixed inputs'!S115 -> 0 | T47: ='Fixed inputs'!T115 -> 0 | U47: ='Fixed inputs'!U115 -> 0 | V47: ='Fixed inputs'!V115 -> 0 | W47: ='Fixed inputs'!W115 -> 0 | X47: ='Fixed inputs'!X115 -> 0 | Y47: ='Fixed inputs'!Y115 -> 0 | Z47: ='Fixed inputs'!Z115 -> 0 | AA47: ='Fixed inputs'!AA115 -> 0 | AB47: ='Fixed inputs'!AB115 -> 0 | AC47: ='Fixed inputs'!AC115 -> 0 | AD47: ='Fixed inputs'!AD115 -> 0 | AE47: ='Fixed inputs'!AE115 -> 0 | AF47: ='Fixed inputs'!AF115 -> 0 | AG47: ='Fixed inputs'!AG115 -> 0 | AH47: ='Fixed inputs'!AH115 -> 0 | AI47: ='Fixed inputs'!AI115 -> 0 | AJ47: ='Fixed inputs'!AJ115 -> 0 | AK47: ='Fixed inputs'!AK115 -> 0 | AL47: ='Fixed inputs'!AL115 -> 0 | AM47: ='Fixed inputs'!AM115 -> 0 | AN47: ='Fixed inputs'!AN115 -> 0 | AO47: ='Fixed inputs'!AO115 -> 0 | AP47: ='Fixed inputs'!AP115 -> 0
F48: Override exceeded capacity discount rate | G48: % | J48: ='Fixed inputs'!J119 -> 0 | K48: ='Fixed inputs'!K119 -> 0 | L48: ='Fixed inputs'!L119 -> 0 | M48: ='Fixed inputs'!M119 -> 0 | N48: ='Fixed inputs'!N119 -> 0 | O48: ='Fixed inputs'!O119 -> 0 | P48: ='Fixed inputs'!P119 -> 0 | Q48: ='Fixed inputs'!Q119 -> 0 | R48: ='Fixed inputs'!R119 -> 0 | S48: ='Fixed inputs'!S119 -> 0 | T48: ='Fixed inputs'!T119 -> 0 | U48: ='Fixed inputs'!U119 -> 0 | V48: ='Fixed inputs'!V119 -> 0 | W48: ='Fixed inputs'!W119 -> 0 | X48: ='Fixed inputs'!X119 -> 0 | Y48: ='Fixed inputs'!Y119 -> 0 | Z48: ='Fixed inputs'!Z119 -> 0 | AA48: ='Fixed inputs'!AA119 -> 0 | AB48: ='Fixed inputs'!AB119 -> 0 | AC48: ='Fixed inputs'!AC119 -> 0 | AD48: ='Fixed inputs'!AD119 -> 0 | AE48: ='Fixed inputs'!AE119 -> 0 | AF48: ='Fixed inputs'!AF119 -> 0 | AG48: ='Fixed inputs'!AG119 -> 0 | AH48: ='Fixed inputs'!AH119 -> 0 | AI48: ='Fixed inputs'!AI119 -> 0 | AJ48: ='Fixed inputs'!AJ119 -> 0 | AK48: ='Fixed inputs'!AK119 -> 0 | AL48: ='Fixed inputs'!AL119 -> 0 | AM48: ='Fixed inputs'!AM119 -> 0 | AN48: ='Fixed inputs'!AN119 -> 0 | AO48: ='Fixed inputs'!AO119 -> 0 | AP48: ='Fixed inputs'!AP119 -> 0
F49: Override reactive power units discount rate | G49: % | J49: ='Fixed inputs'!J123 -> 0 | K49: ='Fixed inputs'!K123 -> 0 | L49: ='Fixed inputs'!L123 -> 0 | M49: ='Fixed inputs'!M123 -> 0 | N49: ='Fixed inputs'!N123 -> 0 | O49: ='Fixed inputs'!O123 -> 0 | P49: ='Fixed inputs'!P123 -> 0 | Q49: ='Fixed inputs'!Q123 -> 0 | R49: ='Fixed inputs'!R123 -> 0 | S49: ='Fixed inputs'!S123 -> 0 | T49: ='Fixed inputs'!T123 -> 0 | U49: ='Fixed inputs'!U123 -> 0 | V49: ='Fixed inputs'!V123 -> 0 | W49: ='Fixed inputs'!W123 -> 0 | X49: ='Fixed inputs'!X123 -> 0 | Y49: ='Fixed inputs'!Y123 -> 0 | Z49: ='Fixed inputs'!Z123 -> 0 | AA49: ='Fixed inputs'!AA123 -> 0 | AB49: ='Fixed inputs'!AB123 -> 0 | AC49: ='Fixed inputs'!AC123 -> 0 | AD49: ='Fixed inputs'!AD123 -> 0 | AE49: ='Fixed inputs'!AE123 -> 0 | AF49: ='Fixed inputs'!AF123 -> 0 | AG49: ='Fixed inputs'!AG123 -> 0 | AH49: ='Fixed inputs'!AH123 -> 0 | AI49: ='Fixed inputs'!AI123 -> 0 | AJ49: ='Fixed inputs'!AJ123 -> 0 | AK49: ='Fixed inputs'!AK123 -> 0 | AL49: ='Fixed inputs'!AL123 -> 0 | AM49: ='Fixed inputs'!AM123 -> 0 | AN49: ='Fixed inputs'!AN123 -> 0 | AO49: ='Fixed inputs'!AO123 -> 0 | AP49: ='Fixed inputs'!AP123 -> 0
B51: Volume discounting
C53: Applies LDNO discounts and aggregates with volumes from all the way customers
C55: =INDEX('Version control'!$H$34:$H$59,MATCH($A$1,'Version control'!$F$34:$F$59,0),1)&"-B: Volume discounting" -> Section 507-B: Volume discounting
E57: Unit rate 1 | I57: > | AR57: Paragraph 53
F59: All the way customers | G59: MWh | J59: ='Inputs by customer type'!J24 -> 4132243.804 | K59: ='Inputs by customer type'!K24 -> 248437.0765 | L59: ='Inputs by customer type'!L24 -> 13312.43601 | M59: ='Inputs by customer type'!M24 -> 1035508.428 | N59: ='Inputs by customer type'!N24 -> 368722.4957 | O59: ='Inputs by customer type'!O24 -> 5034.142114 | P59: ='Inputs by customer type'!P24 -> 77 | Q59: ='Inputs by customer type'!Q24 -> 76 | R59: ='Inputs by customer type'!R24 -> 79 | S59: ='Inputs by customer type'!S24 -> 2038.802394 | T59: ='Inputs by customer type'!T24 -> 20903.42641 | U59: ='Inputs by customer type'!U24 -> 103968.6652 | V59: ='Inputs by customer type'!V24 -> 128942.9823 | W59: ='Inputs by customer type'!W24 -> 182704.8909 | X59: ='Inputs by customer type'!X24 -> 23470.9331 | Y59: ='Inputs by customer type'!Y24 -> 51195.8419 | Z59: ='Inputs by customer type'!Z24 -> 168.2768 | AA59: ='Inputs by customer type'!AA24 -> 0 | AB59: ='Inputs by customer type'!AB24 -> 5031.063643 | AC59: ='Inputs by customer type'!AC24 -> 1133.820771 | AD59: ='Inputs by customer type'!AD24 -> 401.7241471 | AE59: ='Inputs by customer type'!AE24 -> 44292.94229 | AF59: ='Inputs by customer type'!AF24 -> 0 | AG59: ='Inputs by customer type'!AG24 -> 818.6848691 | AH59: ='Inputs by customer type'!AH24 -> 0 | AI59: ='Inputs by customer type'!AI24 -> 12581.23911 | AJ59: ='Inputs by customer type'!AJ24 -> 0 | AK59: ='Inputs by customer type'!AK24 -> 338.1293855 | AL59: ='Inputs by customer type'!AL24 -> 0 | AM59: ='Inputs by customer type'!AM24 -> 157247.271 | AN59: ='Inputs by customer type'!AN24 -> 0 | AO59: ='Inputs by customer type'!AO24 -> 26134.70794 | AP59: ='Inputs by customer type'!AP24 -> 0
F60: LDNO LV | G60: MWh | J60: ='Inputs by customer type'!J33 -> 50121.3151 | K60: ='Inputs by customer type'!K33 -> 734.1923405 | L60: ='Inputs by customer type'!L33 -> 0 | M60: ='Inputs by customer type'!M33 -> 2708.520774 | N60: ='Inputs by customer type'!N33 -> 310.8968812 | O60: ='Inputs by customer type'!O33 -> 0 | P60: ='Inputs by customer type'!P33 -> 0 | Q60: ='Inputs by customer type'!Q33 -> 0 | R60: ='Inputs by customer type'!R33 -> 0 | S60: ='Inputs by customer type'!S33 -> 6.674355085 | T60: ='Inputs by customer type'!T33 -> 0 | U60: ='Inputs by customer type'!U33 -> 795.438439 | V60: ='Inputs by customer type'!V33 -> 0 | W60: ='Inputs by customer type'!W33 -> 0 | X60: ='Inputs by customer type'!X33 -> 0 | Y60: ='Inputs by customer type'!Y33 -> 25.52956248 | Z60: ='Inputs by customer type'!Z33 -> 0 | AA60: ='Inputs by customer type'!AA33 -> 0 | AB60: ='Inputs by customer type'!AB33 -> 0 | AC60: ='Inputs by customer type'!AC33 -> 0 | AD60: ='Inputs by customer type'!AD33 -> 0 | AE60: ='Inputs by customer type'!AE33 -> 0 | AF60: ='Inputs by customer type'!AF33 -> 0 | AG60: ='Inputs by customer type'!AG33 -> 0 | AH60: ='Inputs by customer type'!AH33 -> 0 | AI60: ='Inputs by customer type'!AI33 -> 0 | AJ60: ='Inputs by customer type'!AJ33 -> 0 | AK60: ='Inputs by customer type'!AK33 -> 0 | AL60: ='Inputs by customer type'!AL33 -> 0 | AM60: ='Inputs by customer type'!AM33 -> 0 | AN60: ='Inputs by customer type'!AN33 -> 0 | AO60: ='Inputs by customer type'!AO33 -> 0 | AP60: ='Inputs by customer type'!AP33 -> 0
F61: LDNO HV | G61: MWh | J61: ='Inputs by customer type'!J42 -> 60573.80137 | K61: ='Inputs by customer type'!K42 -> 2510.671057 | L61: ='Inputs by customer type'!L42 -> 0 | M61: ='Inputs by customer type'!M42 -> 7725.165139 | N61: ='Inputs by customer type'!N42 -> 786.2224091 | O61: ='Inputs by customer type'!O42 -> 0 | P61: ='Inputs by customer type'!P42 -> 0 | Q61: ='Inputs by customer type'!Q42 -> 0 | R61: ='Inputs by customer type'!R42 -> 0 | S61: ='Inputs by customer type'!S42 -> 6.880093629 | T61: ='Inputs by customer type'!T42 -> 80.23239701 | U61: ='Inputs by customer type'!U42 -> 6593.22065 | V61: ='Inputs by customer type'!V42 -> 510.3543611 | W61: ='Inputs by customer type'!W42 -> 2278.784771 | X61: ='Inputs by customer type'!X42 -> 2.183033826 | Y61: ='Inputs by customer type'!Y42 -> 212.4932957 | Z61: ='Inputs by customer type'!Z42 -> 0.1568079287 | AA61: ='Inputs by customer type'!AA42 -> 0 | AB61: ='Inputs by customer type'!AB42 -> 0 | AC61: ='Inputs by customer type'!AC42 -> 0 | AD61: ='Inputs by customer type'!AD42 -> 0 | AE61: ='Inputs by customer type'!AE42 -> 37.816 | AF61: ='Inputs by customer type'!AF42 -> 0 | AG61: ='Inputs by customer type'!AG42 -> 0 | AH61: ='Inputs by customer type'!AH42 -> 0 | AI61: ='Inputs by customer type'!AI42 -> 0 | AJ61: ='Inputs by customer type'!AJ42 -> 0 | AK61: ='Inputs by customer type'!AK42 -> 0 | AL61: ='Inputs by customer type'!AL42 -> 0 | AM61: ='Inputs by customer type'!AM42 -> 0 | AN61: ='Inputs by customer type'!AN42 -> 0 | AO61: ='Inputs by customer type'!AO42 -> 0 | AP61: ='Inputs by customer type'!AP42 -> 0
F62: LDNO LV discount rate applied | G62: % | J62: =IF(J$39, J$45, J$34) -> 0.379357347 | K62: 0.379357347 | L62: 0.379357347 | M62: 0.379357347 | N62: 0.379357347 | O62: 0.379357347 | P62: 0.379357347 | Q62: 0 | R62: 0 | S62: 0.379357347 | T62: 0.379357347 | U62: 0.379357347 | V62: 0 | W62: 0 | X62: 0.379357347 | Y62: 0.379357347 | Z62: 0.379357347 | AA62: 0.379357347 | AB62: 0.379357347 | AC62: 0 | AD62: 0 | AE62: 0 | AF62: 0 | AG62: 0 | AH62: 0 | AI62: 0 | AJ62: 0 | AK62: 0 | AL62: 0 | AM62: 0 | AN62: 0 | AO62: 0 | AP62: 0
F63: LDNO HV discount rate applied | G63: % | J63: =IF(J$39, J$45, J$35) -> 0.5848240063 | K63: 0.5848240063 | L63: 0.5848240063 | M63: 0.5848240063 | N63: 0.5848240063 | O63: 0.5848240063 | P63: 0.5848240063 | Q63: 0 | R63: 0 | S63: 0.5848240063 | T63: 0.5848240063 | U63: 0.5848240063 | V63: 0.3296081647 | W63: 0.2427681856 | X63: 0.5848240063 | Y63: 0.5848240063 | Z63: 0.5848240063 | AA63: 0.5848240063 | AB63: 0.5848240063 | AC63: 0 | AD63: 0 | AE63: 0 | AF63: 0 | AG63: 0 | AH63: 0 | AI63: 0 | AJ63: 0 | AK63: 0 | AL63: 0 | AM63: 0 | AN63: 0 | AO63: 0 | AP63: 0
F64: LDNO LV, discounted | G64: MWh | J64: =J60 * (1 - J62) -> 31107.42597 | K64: 455.671082 | L64: 0 | M64: 1681.023519 | N64: 192.9558652 | O64: 0 | P64: 0 | Q64: 0 | R64: 0 | S64: 4.142389447 | T64: 0 | U64: 493.6830231 | V64: 0 | W64: 0 | X64: 0 | Y64: 15.84473539 | Z64: 0 | AA64: 0 | AB64: 0 | AC64: 0 | AD64: 0 | AE64: 0 | AF64: 0 | AG64: 0 | AH64: 0 | AI64: 0 | AJ64: 0 | AK64: 0 | AL64: 0 | AM64: 0 | AN64: 0 | AO64: 0 | AP64: 0
F65: LDNO HV, discounted | G65: MWh | J65: =J61 * (1 - J63) -> 25148.78818 | K65: 1042.370351 | L65: 0 | M65: 3207.303113 | N65: 326.42067 | O65: 0 | P65: 0 | Q65: 0 | R65: 0 | S65: 2.856449709 | T65: 33.31056516 | U65: 2737.346935 | V65: 342.1373968 | W65: 1725.568327 | X65: 0.9063432379 | Y65: 88.22211522 | Z65: 0.06510288764 | AA65: 0 | AB65: 0 | AC65: 0 | AD65: 0 | AE65: 37.816 | AF65: 0 | AG65: 0 | AH65: 0 | AI65: 0 | AJ65: 0 | AK65: 0 | AL65: 0 | AM65: 0 | AN65: 0 | AO65: 0 | AP65: 0
F66: Total after discounting | G66: MWh | J66: =J59 + J64 + J65 -> 4188500.018 | K66: 249935.118 | L66: 13312.43601 | M66: 1040396.755 | N66: 369241.8722 | O66: 5034.142114 | P66: 77 | Q66: 76 | R66: 79 | S66: 2045.801233 | T66: 20936.73698 | U66: 107199.6951 | V66: 129285.1197 | W66: 184430.4593 | X66: 23471.83944 | Y66: 51299.90875 | Z66: 168.3419029 | AA66: 0 | AB66: 5031.063643 | AC66: 1133.820771 | AD66: 401.7241471 | AE66: 44330.75829 | AF66: 0 | AG66: 818.6848691 | AH66: 0 | AI66: 12581.23911 | AJ66: 0 | AK66: 338.1293855 | AL66: 0 | AM66: 157247.271 | AN66: 0 | AO66: 26134.70794 | AP66: 0
E68: Unit rate 2 | I68: > | AR68: Paragraph 53
F70: All the way customers | G70: MWh | J70: ='Inputs by customer type'!J25 -> 0 | K70: ='Inputs by customer type'!K25 -> 268830.9457 | L70: ='Inputs by customer type'!L25 -> 0 | M70: ='Inputs by customer type'!M25 -> 0 | N70: ='Inputs by customer type'!N25 -> 126255.5377 | O70: ='Inputs by customer type'!O25 -> 0 | P70: ='Inputs by customer type'!P25 -> 23 | Q70: ='Inputs by customer type'!Q25 -> 24 | R70: ='Inputs by customer type'!R25 -> 21 | S70: ='Inputs by customer type'!S25 -> 7549.238181 | T70: ='Inputs by customer type'!T25 -> 100377.9372 | U70: ='Inputs by customer type'!U25 -> 469588.136 | V70: ='Inputs by customer type'!V25 -> 618527.7347 | W70: ='Inputs by customer type'!W25 -> 836422.8279 | X70: ='Inputs by customer type'!X25 -> 0 | Y70: ='Inputs by customer type'!Y25 -> 0 | Z70: ='Inputs by customer type'!Z25 -> 0 | AA70: ='Inputs by customer type'!AA25 -> 0 | AB70: ='Inputs by customer type'!AB25 -> 21693.90007 | AC70: ='Inputs by customer type'!AC25 -> 0 | AD70: ='Inputs by customer type'!AD25 -> 0 | AE70: ='Inputs by customer type'!AE25 -> 0 | AF70: ='Inputs by customer type'!AF25 -> 0 | AG70: ='Inputs by customer type'!AG25 -> 3583.812173 | AH70: ='Inputs by customer type'!AH25 -> 0 | AI70: ='Inputs by customer type'!AI25 -> 0 | AJ70: ='Inputs by customer type'!AJ25 -> 0 | AK70: ='Inputs by customer type'!AK25 -> 1467.32446 | AL70: ='Inputs by customer type'!AL25 -> 0 | AM70: ='Inputs by customer type'!AM25 -> 0 | AN70: ='Inputs by customer type'!AN25 -> 0 | AO70: ='Inputs by customer type'!AO25 -> 86001.19971 | AP70: ='Inputs by customer type'!AP25 -> 0
F71: LDNO LV | G71: MWh | J71: ='Inputs by customer type'!J34 -> 0 | K71: ='Inputs by customer type'!K34 -> 464.4099359 | L71: ='Inputs by customer type'!L34 -> 0 | M71: ='Inputs by customer type'!M34 -> 0 | N71: ='Inputs by customer type'!N34 -> 73.31402199 | O71: ='Inputs by customer type'!O34 -> 0 | P71: ='Inputs by customer type'!P34 -> 0 | Q71: ='Inputs by customer type'!Q34 -> 0 | R71: ='Inputs by customer type'!R34 -> 0 | S71: ='Inputs by customer type'!S34 -> 23.87867931 | T71: ='Inputs by customer type'!T34 -> 0 | U71: ='Inputs by customer type'!U34 -> 3467.381918 | V71: ='Inputs by customer type'!V34 -> 0 | W71: ='Inputs by customer type'!W34 -> 0 | X71: ='Inputs by customer type'!X34 -> 0 | Y71: ='Inputs by customer type'!Y34 -> 0 | Z71: ='Inputs by customer type'!Z34 -> 0 | AA71: ='Inputs by customer type'!AA34 -> 0 | AB71: ='Inputs by customer type'!AB34 -> 0 | AC71: ='Inputs by customer type'!AC34 -> 0 | AD71: ='Inputs by customer type'!AD34 -> 0 | AE71: ='Inputs by customer type'!AE34 -> 0 | AF71: ='Inputs by customer type'!AF34 -> 0 | AG71: ='Inputs by customer type'!AG34 -> 0 | AH71: ='Inputs by customer type'!AH34 -> 0 | AI71: ='Inputs by customer type'!AI34 -> 0 | AJ71: ='Inputs by customer type'!AJ34 -> 0 | AK71: ='Inputs by customer type'!AK34 -> 0 | AL71: ='Inputs by customer type'!AL34 -> 0 | AM71: ='Inputs by customer type'!AM34 -> 0 | AN71: ='Inputs by customer type'!AN34 -> 0 | AO71: ='Inputs by customer type'!AO34 -> 0 | AP71: ='Inputs by customer type'!AP34 -> 0
